Workbook

Sheet Moi
B2: Mes Stats
B4: x | C4: 16
B5: y | C5: 173
B7: VA | C7: 26
B9: TDC actuel | C9: 239462551

Sheet Mon Alliance
A1: Dernière MaJ | B1: =TODAY() -> 2013-04-14 | D1: Mon tdc | E1: =Moi!C9 -> 239462551 | G1: VA | H1: =Moi!C7 -> 26 | J1: Pos perso: | K1: x | L1: =Moi!C4 -> 16
K2: y | L2: =Moi!C5 -> 173
B3: MAP | C3: TDC | D3: A portée ? | E3: x | F3: y | G3: Distance | H3: Temps
A4: =IF('CC Mon Ally'!D5=0,"",'CC Mon Ally'!D5) -> spetsnaz | C4: =IF(A4=0,"",'CC Mon Ally'!E5) -> 3500000000 | D4: =IF(AND((C4<=(3*$E$1)),(C4>=(0.5*$E$1))),"A PORTEE"," ") ->  | E4: =IFERROR(VLOOKUP(A4,'Liste des joueurs'!A2:D20305,2),"") -> 40 | F4: =IFERROR(VLOOKUP(A4,'Liste des joueurs'!A2:D20305,3),"") -> 125 | G4: =IFERROR(SQRT(($L$1-E4)^2+($L$2-F4)^2),"") -> 53.66563146 | H4: =IFERROR('Data Mon Ally'!G2,"") -> 01:37:33
A5: =IF('CC Mon Ally'!D6=0,"",'CC Mon Ally'!D6) -> Azkanith | C5: =IF(A5=0,"",'CC Mon Ally'!E6) -> 3500000000 | D5: =IF(AND((C5<=(3*$E$1)),(C5>=(0.5*$E$1))),"A PORTEE"," ") ->  | E5: =IFERROR(VLOOKUP(A5,'Liste des joueurs'!A2:D20305,2),"") -> 28 | F5: =IFERROR(VLOOKUP(A5,'Liste des joueurs'!A2:D20305,3),"") -> 61 | G5: =IFERROR(SQRT(($L$1-E5)^2+($L$2-F5)^2),"") -> 112.6410227 | H5: =IFERROR('Data Mon Ally'!G3,"") -> 03:08:50
A6: =IF('CC Mon Ally'!D7=0,"",'CC Mon Ally'!D7) -> agecanonix | C6: =IF(A6=0,"",'CC Mon Ally'!E7) -> 3478184525 | D6: =IF(AND((C6<=(3*$E$1)),(C6>=(0.5*$E$1))),"A PORTEE"," ") ->  | E6: =IFERROR(VLOOKUP(A6,'Liste des joueurs'!A4:D20307,2),"") -> 12 | F6: =IFERROR(VLOOKUP(A6,'Liste des joueurs'!A4:D20307,3),"") -> 271 | G6: =IFERROR(SQRT(($L$1-E6)^2+($L$2-F6)^2),"") -> 98.08159868 | H6: =IFERROR('Data Mon Ally'!G4,"") -> 02:47:42
A7: =IF('CC Mon Ally'!D8=0,"",'CC Mon Ally'!D8) -> Bruxelles | C7: =IF(A7=0,"",'CC Mon Ally'!E8) -> 3200000000 | E7: =IFERROR(VLOOKUP(A7,'Liste des joueurs'!A4:D20307,2),"") -> 41 | F7: =IFERROR(VLOOKUP(A7,'Liste des joueurs'!A4:D20307,3),"") -> 56 | G7: 119.6411301 | H7: =IFERROR('Data Mon Ally'!G5,"") -> 03:18:41
A8: =IF('CC Mon Ally'!D9=0,"",'CC Mon Ally'!D9) -> Wolverine | C8: =IF(A8=0,"",'CC Mon Ally'!E9) -> 2500000000 | E8: =IFERROR(VLOOKUP(A8,'Liste des joueurs'!A6:D20309,2),"") -> 6 | F8: =IFERROR(VLOOKUP(A8,'Liste des joueurs'!A6:D20309,3),"") -> 34 | G8: 139.359248 | H8: =IFERROR('Data Mon Ally'!G6,"") -> 03:45:23
A9: =IF('CC Mon Ally'!D10=0,"",'CC Mon Ally'!D10) -> svanhilde | C9: =IF(A9=0,"",'CC Mon Ally'!E10) -> 2500000000 | E9: =IFERROR(VLOOKUP(A9,'Liste des joueurs'!A6:D20309,2),"") -> 29 | F9: =IFERROR(VLOOKUP(A9,'Liste des joueurs'!A6:D20309,3),"") -> 124 | G9: 50.69516742 | H9: =IFERROR('Data Mon Ally'!G7,"") -> 01:32:32
A10: =IF('CC Mon Ally'!D11=0,"",'CC Mon Ally'!D11) -> Thunderbird | C10: =IF(A10=0,"",'CC Mon Ally'!E11) -> 2202808830 | E10: =IFERROR(VLOOKUP(A10,'Liste des joueurs'!A8:D20311,2),"") -> 5 | F10: =IFERROR(VLOOKUP(A10,'Liste des joueurs'!A8:D20311,3),"") -> 172 | G10: 11.04536102 | H10: =IFERROR('Data Mon Ally'!G8,"") -> 00:21:19
A11: =IF('CC Mon Ally'!D12=0,"",'CC Mon Ally'!D12) -> Bactroban | C11: =IF(A11=0,"",'CC Mon Ally'!E12) -> 2154874164 | E11: =IFERROR(VLOOKUP(A11,'Liste des joueurs'!A8:D20311,2),"") -> 20 | F11: =IFERROR(VLOOKUP(A11,'Liste des joueurs'!A8:D20311,3),"") -> 115 | G11: 58.13776741 | H11: =IFERROR('Data Mon Ally'!G9,"") -> 01:45:01
A12: =IF('CC Mon Ally'!D13=0,"",'CC Mon Ally'!D13) -> Myvin | C12: =IF(A12=0,"",'CC Mon Ally'!E13) -> 1983940382 | E12: =IFERROR(VLOOKUP(A12,'Liste des joueurs'!A10:D20313,2),"") -> 29 | F12: =IFERROR(VLOOKUP(A12,'Liste des joueurs'!A10:D20313,3),"") -> 37 | G12: 136.6199107 | H12: =IFERROR('Data Mon Ally'!G10,"") -> 03:41:46
A13: =IF('CC Mon Ally'!D14=0,"",'CC Mon Ally'!D14) -> pANTSu | C13: =IF(A13=0,"",'CC Mon Ally'!E14) -> 1892810001 | E13: =IFERROR(VLOOKUP(A13,'Liste des joueurs'!A10:D20313,2),"") -> 29 | F13: =IFERROR(VLOOKUP(A13,'Liste des joueurs'!A10:D20313,3),"") -> 292 | G13: 119.707978 | H13: =IFERROR('Data Mon Ally'!G11,"") -> 03:18:46
A14: =IF('CC Mon Ally'!D15=0,"",'CC Mon Ally'!D15) -> Drusilla | C14: =IF(A14=0,"",'CC Mon Ally'!E15) -> 1855225863 | E14: =IFERROR(VLOOKUP(A14,'Liste des joueurs'!A12:D20315,2),"") -> 31 | F14: =IFERROR(VLOOKUP(A14,'Liste des joueurs'!A12:D20315,3),"") -> 23 | G14: 150.7481343 | H14: =IFERROR('Data Mon Ally'!G12,"") -> 04:00:08
A15: =IF('CC Mon Ally'!D16=0,"",'CC Mon Ally'!D16) -> marchombre | C15: =IF(A15=0,"",'CC Mon Ally'!E16) -> 1650134494 | E15: =IFERROR(VLOOKUP(A15,'Liste des joueurs'!A12:D20315,2),"") -> 16 | F15: =IFERROR(VLOOKUP(A15,'Liste des joueurs'!A12:D20315,3),"") -> 106 | G15: 67 | H15: =IFERROR('Data Mon Ally'!G13,"") -> 01:59:33
A16: =IF('CC Mon Ally'!D17=0,"",'CC Mon Ally'!D17) -> Gueust | C16: =IF(A16=0,"",'CC Mon Ally'!E17) -> 1620632393 | E16: =IFERROR(VLOOKUP(A16,'Liste des joueurs'!A14:D20317,2),"") -> 3 | F16: =IFERROR(VLOOKUP(A16,'Liste des joueurs'!A14:D20317,3),"") -> 385 | G16: 212.3982109 | H16: =IFERROR('Data Mon Ally'!G14,"") -> 05:12:10
A17: =IF('CC Mon Ally'!D18=0,"",'CC Mon Ally'!D18) -> hador | C17: =IF(A17=0,"",'CC Mon Ally'!E18) -> 1326361218 | E17: =IFERROR(VLOOKUP(A17,'Liste des joueurs'!A14:D20317,2),"") -> 27 | F17: =IFERROR(VLOOKUP(A17,'Liste des joueurs'!A14:D20317,3),"") -> 186 | G17: 17.02938637 | H17: =IFERROR('Data Mon Ally'!G15,"") -> 00:32:36
A18: =IF('CC Mon Ally'!D19=0,"",'CC Mon Ally'!D19) -> Ishigo | C18: =IF(A18=0,"",'CC Mon Ally'!E19) -> 1062861275 | E18: =IFERROR(VLOOKUP(A18,'Liste des joueurs'!A16:D20319,2),"") -> 23 | F18: =IFERROR(VLOOKUP(A18,'Liste des joueurs'!A16:D20319,3),"") -> 103 | G18: 70.34912935 | H18: =IFERROR('Data Mon Ally'!G16,"") -> 02:04:57
A19: =IF('CC Mon Ally'!D20=0,"",'CC Mon Ally'!D20) -> Phenixx | C19: =IF(A19=0,"",'CC Mon Ally'!E20) -> 908308062 | E19: =IFERROR(VLOOKUP(A19,'Liste des joueurs'!A16:D20319,2),"") -> 7 | F19: =IFERROR(VLOOKUP(A19,'Liste des joueurs'!A16:D20319,3),"") -> 181 | G19: 12.04159458 | H19: =IFERROR('Data Mon Ally'!G17,"") -> 00:23:13
A20: =IF('CC Mon Ally'!D21=0,"",'CC Mon Ally'!D21) -> CroolisVar | C20: =IF(A20=0,"",'CC Mon Ally'!E21) -> 692382228 | D20: A PORTEE | E20: =IFERROR(VLOOKUP(A20,'Liste des joueurs'!A18:D20321,2),"") -> 43 | F20: =IFERROR(VLOOKUP(A20,'Liste des joueurs'!A18:D20321,3),"") -> 205 | G20: 41.86884283 | H20: =IFERROR('Data Mon Ally'!G18,"") -> 01:17:22
A21: =IF('CC Mon Ally'!D22=0,"",'CC Mon Ally'!D22) -> Taouret | C21: =IF(A21=0,"",'CC Mon Ally'!E22) -> 651445793 | D21: A PORTEE | E21: =IFERROR(VLOOKUP(A21,'Liste des joueurs'!A18:D20321,2),"") -> 33 | F21: =IFERROR(VLOOKUP(A21,'Liste des joueurs'!A18:D20321,3),"") -> 237 | G21: 66.21933252 | H21: =IFERROR('Data Mon Ally'!G19,"") -> 01:58:17
A22: =IF('CC Mon Ally'!D23=0,"",'CC Mon Ally'!D23) -> Rita | C22: =IF(A22=0,"",'CC Mon Ally'!E23) -> 616559697 | D22: A PORTEE | E22: =IFERROR(VLOOKUP(A22,'Liste des joueurs'!A20:D20323,2),"") -> 33 | F22: =IFERROR(VLOOKUP(A22,'Liste des joueurs'!A20:D20323,3),"") -> 318 | G22: 145.9931505 | H22: =IFERROR('Data Mon Ally'!G20,"") -> 03:54:02
A23: =IF('CC Mon Ally'!D24=0,"",'CC Mon Ally'!D24) -> Rockslide | C23: =IF(A23=0,"",'CC Mon Ally'!E24) -> 288382393 | D23: A PORTEE | E23: =IFERROR(VLOOKUP(A23,'Liste des joueurs'!A20:D20323,2),"") -> 16 | F23: =IFERROR(VLOOKUP(A23,'Liste des joueurs'!A20:D20323,3),"") -> 173 | G23: 0 | H23: =IFERROR('Data Mon Ally'!G21,"") -> 00:00:00
A24: =IF('CC Mon Ally'!D25=0,"",'CC Mon Ally'!D25) -> Mimic | C24: =IF(A24=0,"",'CC Mon Ally'!E25) -> 251775358 | D24: A PORTEE | E24: =IFERROR(VLOOKUP(A24,'Liste des joueurs'!A22:D20325,2),"") -> 44 | F24: =IFERROR(VLOOKUP(A24,'Liste des joueurs'!A22:D20325,3),"") -> 173 | G24: 28 | H24: =IFERROR('Data Mon Ally'!G22,"") -> 00:52:46
A25: =IF('CC Mon Ally'!D26=0,"",'CC Mon Ally'!D26) -> Flipper1 | C25: =IF(A25=0,"",'CC Mon Ally'!E26) -> 108182291 | E25: =IFERROR(VLOOKUP(A25,'Liste des joueurs'!A22:D20325,2),"") -> 22 | F25: =IFERROR(VLOOKUP(A25,'Liste des joueurs'!A22:D20325,3),"") -> 69 | G25: 104.1729331 | H25: =IFERROR('Data Mon Ally'!G23,"") -> 02:56:39
A26: =IF('CC Mon Ally'!D27=0,"",'CC Mon Ally'!D27) -> Panda | C26: =IF(A26=0,"",'CC Mon Ally'!E27) -> 104866328 | E26: =IFERROR(VLOOKUP(A26,'Liste des joueurs'!A24:D20327,2),"") -> 4 | F26: =IFERROR(VLOOKUP(A26,'Liste des joueurs'!A24:D20327,3),"") -> 35 | G26: 138.5207566 | H26: =IFERROR('Data Mon Ally'!G24,"") -> 03:44:17
A27: =IF('CC Mon Ally'!D28=0,"",'CC Mon Ally'!D28) -> aubertignac | C27: =IF(A27=0,"",'CC Mon Ally'!E28) -> 48254661 | E27: =IFERROR(VLOOKUP(A27,'Liste des joueurs'!A24:D20327,2),"") -> 6 | F27: =IFERROR(VLOOKUP(A27,'Liste des joueurs'!A24:D20327,3),"") -> 52 | G27: 121.4125199 | H27: =IFERROR('Data Mon Ally'!G25,"") -> 03:21:08
A28: =IF('CC Mon Ally'!D29=0,"",'CC Mon Ally'!D29) -> bill | C28: =IF(A28=0,"",'CC Mon Ally'!E29) -> 29697292 | E28: =IFERROR(VLOOKUP(A28,'Liste des joueurs'!A26:D20329,2),"") -> 19 | F28: =IFERROR(VLOOKUP(A28,'Liste des joueurs'!A26:D20329,3),"") -> 112 | G28: 61.07372594 | H28: =IFERROR('Data Mon Ally'!G26,"") -> 01:49:53
A29: =IF('CC Mon Ally'!D30=0,"",'CC Mon Ally'!D30) -> Greeny | C29: =IF(A29=0,"",'CC Mon Ally'!E30) -> 23220450 | E29: =IFERROR(VLOOKUP(A29,'Liste des joueurs'!A26:D20329,2),"") -> 23 | F29: =IFERROR(VLOOKUP(A29,'Liste des joueurs'!A26:D20329,3),"") -> 50 | G29: 123.199026 | H29: =IFERROR('Data Mon Ally'!G27,"") -> 03:23:36
A30: =IF('CC Mon Ally'!D31=0,"",'CC Mon Ally'!D31) -> ryuk44 | C30: =IF(A30=0,"",'CC Mon Ally'!E31) -> 17547152 | E30: =IFERROR(VLOOKUP(A30,'Liste des joueurs'!A28:D20331,2),"") -> 12 | F30: =IFERROR(VLOOKUP(A30,'Liste des joueurs'!A28:D20331,3),"") -> 61 | G30: 112.0714058 | H30: =IFERROR('Data Mon Ally'!G28,"") -> 03:08:01
A31: =IF('CC Mon Ally'!D32=0,"",'CC Mon Ally'!D32) -> Tradjette | C31: =IF(A31=0,"",'CC Mon Ally'!E32) -> 15009549 | E31: =IFERROR(VLOOKUP(A31,'Liste des joueurs'!A28:D20331,2),"") -> 7 | F31: =IFERROR(VLOOKUP(A31,'Liste des joueurs'!A28:D20331,3),"") -> 13 | G31: 160.2529251 | H31: =IFERROR('Data Mon Ally'!G29,"") -> 04:12:05
A32: =IF('CC Mon Ally'!D33=0,"",'CC Mon Ally'!D33) -> Damping | C32: =IF(A32=0,"",'CC Mon Ally'!E33) -> 13255085 | E32: =IFERROR(VLOOKUP(A32,'Liste des joueurs'!A30:D20333,2),"") -> 29 | F32: =IFERROR(VLOOKUP(A32,'Liste des joueurs'!A30:D20333,3),"") -> 270 | G32: 97.86725704 | H32: =IFERROR('Data Mon Ally'!G30,"") -> 02:47:23
A33: =IF('CC Mon Ally'!D34=0,"",'CC Mon Ally'!D34) -> Rofulus | C33: =IF(A33=0,"",'CC Mon Ally'!E34) -> 12724132 | E33: =IFERROR(VLOOKUP(A33,'Liste des joueurs'!A30:D20333,2),"") -> 13 | F33: =IFERROR(VLOOKUP(A33,'Liste des joueurs'!A30:D20333,3),"") -> 107 | G33: 66.06814664 | H33: =IFERROR('Data Mon Ally'!G31,"") -> 01:58:03
A34: =IF('CC Mon Ally'!D35=0,"",'CC Mon Ally'!D35) -> pluginbaby | C34: =IF(A34=0,"",'CC Mon Ally'!E35) -> 12705822 | E34: =IFERROR(VLOOKUP(A34,'Liste des joueurs'!A32:D20335,2),"") -> 35 | F34: =IFERROR(VLOOKUP(A34,'Liste des joueurs'!A32:D20335,3),"") -> 23 | G34: 151.198545 | H34: =IFERROR('Data Mon Ally'!G32,"") -> 04:00:42
A35: =IF('CC Mon Ally'!D36=0,"",'CC Mon Ally'!D36) -> Chryom | C35: =IF(A35=0,"",'CC Mon Ally'!E36) -> 10858934 | E35: =IFERROR(VLOOKUP(A35,'Liste des joueurs'!A32:D20335,2),"") -> 9 | F35: =IFERROR(VLOOKUP(A35,'Liste des joueurs'!A32:D20335,3),"") -> 58 | G35: 115.2128465 | H35: =IFERROR('Data Mon Ally'!G33,"") -> 03:12:28
A36: =IF('CC Mon Ally'!D37=0,"",'CC Mon Ally'!D37) -> miloveam | C36: =IF(A36=0,"",'CC Mon Ally'!E37) -> 10733921 | E36: =IFERROR(VLOOKUP(A36,'Liste des joueurs'!A34:D20337,2),"") -> 26 | F36: =IFERROR(VLOOKUP(A36,'Liste des joueurs'!A34:D20337,3),"") -> 40 | G36: 133.37541 | H36: =IFERROR('Data Mon Ally'!G34,"") -> 03:37:26
A37: =IF('CC Mon Ally'!D38=0,"",'CC Mon Ally'!D38) -> sentih | C37: =IF(A37=0,"",'CC Mon Ally'!E38) -> 9555130 | E37: =IFERROR(VLOOKUP(A37,'Liste des joueurs'!A34:D20337,2),"") -> 6 | F37: =IFERROR(VLOOKUP(A37,'Liste des joueurs'!A34:D20337,3),"") -> 55 | G37: 118.4229707 | H37: =IFERROR('Data Mon Ally'!G35,"") -> 03:16:59
A38: =IF('CC Mon Ally'!D39=0,"",'CC Mon Ally'!D39) -> Shikamaru | C38: =IF(A38=0,"",'CC Mon Ally'!E39) -> 7411899 | E38: =IFERROR(VLOOKUP(A38,'Liste des joueurs'!A36:D20339,2),"") -> 35 | F38: =IFERROR(VLOOKUP(A38,'Liste des joueurs'!A36:D20339,3),"") -> 169 | G38: 19.41648784 | H38: =IFERROR('Data Mon Ally'!G36,"") -> 00:37:02
A39: =IF('CC Mon Ally'!D40=0,"",'CC Mon Ally'!D40) -> weaver | C39: =IF(A39=0,"",'CC Mon Ally'!E40) -> 5458020 | E39: =IFERROR(VLOOKUP(A39,'Liste des joueurs'!A36:D20339,2),"") -> 16 | F39: =IFERROR(VLOOKUP(A39,'Liste des joueurs'!A36:D20339,3),"") -> 13 | G39: 160 | H39: =IFERROR('Data Mon Ally'!G37,"") -> 04:11:46
A40: =IF('CC Mon Ally'!D41=0,"",'CC Mon Ally'!D41) -> Quivala | C40: =IF(A40=0,"",'CC Mon Ally'!E41) -> 5166745 | E40: =IFERROR(VLOOKUP(A40,'Liste des joueurs'!A38:D20341,2),"") -> 44 | F40: =IFERROR(VLOOKUP(A40,'Liste des joueurs'!A38:D20341,3),"") -> 143 | G40: 41.03656906 | H40: =IFERROR('Data Mon Ally'!G38,"") -> 01:15:55
A41: =IF('CC Mon Ally'!D42=0,"",'CC Mon Ally'!D42) -> DrAnts | C41: =IF(A41=0,"",'CC Mon Ally'!E42) -> 5107770 | E41: =IFERROR(VLOOKUP(A41,'Liste des joueurs'!A38:D20341,2),"") -> 20 | F41: =IFERROR(VLOOKUP(A41,'Liste des joueurs'!A38:D20341,3),"") -> 276 | G41: 103.0776406 | H41: =IFERROR('Data Mon Ally'!G39,"") -> 02:55:03
A42: =IF('CC Mon Ally'!D43=0,"",'CC Mon Ally'!D43) -> TheDentist | C42: =IF(A42=0,"",'CC Mon Ally'!E43) -> 5095878 | E42: =IFERROR(VLOOKUP(A42,'Liste des joueurs'!A40:D20343,2),"") -> 19 | F42: =IFERROR(VLOOKUP(A42,'Liste des joueurs'!A40:D20343,3),"") -> 53 | G42: 120.0374941 | H42: =IFERROR('Data Mon Ally'!G40,"") -> 03:19:14
A43: =IF('CC Mon Ally'!D44=0,"",'CC Mon Ally'!D44) -> lipoussou | C43: =IF(A43=0,"",'CC Mon Ally'!E44) -> 4626960 | E43: =IFERROR(VLOOKUP(A43,'Liste des joueurs'!A40:D20343,2),"") -> 40 | F43: =IFERROR(VLOOKUP(A43,'Liste des joueurs'!A40:D20343,3),"") -> 147 | G43: 35.38361203 | H43: =IFERROR('Data Mon Ally'!G41,"") -> 01:05:59
A44: =IF('CC Mon Ally'!D45=0,"",'CC Mon Ally'!D45) -> Lesqual | C44: =IF(A44=0,"",'CC Mon Ally'!E45) -> 4420390 | E44: =IFERROR(VLOOKUP(A44,'Liste des joueurs'!A42:D20345,2),"") -> 23 | F44: =IFERROR(VLOOKUP(A44,'Liste des joueurs'!A42:D20345,3),"") -> 295 | G44: 122.2006547 | H44: =IFERROR('Data Mon Ally'!G42,"") -> 03:22:14
A45: =IF('CC Mon Ally'!D46=0,"",'CC Mon Ally'!D46) -> Pinou | C45: =IF(A45=0,"",'CC Mon Ally'!E46) -> 3752807 | E45: =IFERROR(VLOOKUP(A45,'Liste des joueurs'!A42:D20345,2),"") -> 43 | F45: =IFERROR(VLOOKUP(A45,'Liste des joueurs'!A42:D20345,3),"") -> 21 | G45: 154.3794028 | H45: =IFERROR('Data Mon Ally'!G43,"") -> 04:04:44
A46: =IF('CC Mon Ally'!D47=0,"",'CC Mon Ally'!D47) -> Morphy | C46: =IF(A46=0,"",'CC Mon Ally'!E47) -> 2941290 | E46: =IFERROR(VLOOKUP(A46,'Liste des joueurs'!A44:D20347,2),"") -> 35 | F46: =IFERROR(VLOOKUP(A46,'Liste des joueurs'!A44:D20347,3),"") -> 6 | G46: 168.0773631 | H46: =IFERROR('Data Mon Ally'!G44,"") -> 04:21:41
A47: =IF('CC Mon Ally'!D48=0,"",'CC Mon Ally'!D48) -> osman | C47: =IF(A47=0,"",'CC Mon Ally'!E48) -> 2563860 | E47: =IFERROR(VLOOKUP(A47,'Liste des joueurs'!A44:D20347,2),"") -> 19 | F47: =IFERROR(VLOOKUP(A47,'Liste des joueurs'!A44:D20347,3),"") -> 28 | G47: 145.0310312 | H47: =IFERROR('Data Mon Ally'!G45,"") -> 03:52:47
A48: =IF('CC Mon Ally'!D49=0,"",'CC Mon Ally'!D49) -> bib595 | C48: =IF(A48=0,"",'CC Mon Ally'!E49) -> 2324016 | E48: =IFERROR(VLOOKUP(A48,'Liste des joueurs'!A46:D20349,2),"") -> 12 | F48: =IFERROR(VLOOKUP(A48,'Liste des joueurs'!A46:D20349,3),"") -> 237 | G48: 64.12487817 | H48: =IFERROR('Data Mon Ally'!G46,"") -> 01:54:53
A49: =IF('CC Mon Ally'!D50=0,"",'CC Mon Ally'!D50) -> pacpac001 | C49: =IF(A49=0,"",'CC Mon Ally'!E50) -> 1833364 | E49: =IFERROR(VLOOKUP(A49,'Liste des joueurs'!A46:D20349,2),"") -> 6 | F49: =IFERROR(VLOOKUP(A49,'Liste des joueurs'!A46:D20349,3),"") -> 51 | G49: 122.40915 | H49: =IFERROR('Data Mon Ally'!G47,"") -> 03:22:31
A50: =IF('CC Mon Ally'!D51=0,"",'CC Mon Ally'!D51) -> Mime | C50: =IF(A50=0,"",'CC Mon Ally'!E51) -> 1741606 | E50: =IFERROR(VLOOKUP(A50,'Liste des joueurs'!A48:D20351,2),"") -> 14 | F50: =IFERROR(VLOOKUP(A50,'Liste des joueurs'!A48:D20351,3),"") -> 128 | G50: 45.04442252 | H50: =IFERROR('Data Mon Ally'!G48,"") -> 01:22:52
A51: =IF('CC Mon Ally'!D52=0,"",'CC Mon Ally'!D52) -> Lockheed | C51: =IF(A51=0,"",'CC Mon Ally'!E52) -> 1576523 | E51: =IFERROR(VLOOKUP(A51,'Liste des joueurs'!A48:D20351,2),"") -> 28 | F51: =IFERROR(VLOOKUP(A51,'Liste des joueurs'!A48:D20351,3),"") -> 176 | G51: 12.36931688 | H51: =IFERROR('Data Mon Ally'!G49,"") -> 00:23:50
A52: =IF('CC Mon Ally'!D53=0,"",'CC Mon Ally'!D53) -> EllaVonZedanltha | C52: =IF(A52=0,"",'CC Mon Ally'!E53) -> 1453009 | E52: =IFERROR(VLOOKUP(A52,'Liste des joueurs'!A50:D20353,2),"") -> 29 | F52: =IFERROR(VLOOKUP(A52,'Liste des joueurs'!A50:D20353,3),"") -> 59 | G52: 114.7388339 | H52: =IFERROR('Data Mon Ally'!G50,"") -> 03:11:48
A53: =IF('CC Mon Ally'!D54=0,"",'CC Mon Ally'!D54) -> Reex | C53: =IF(A53=0,"",'CC Mon Ally'!E54) -> 1017264 | E53: =IFERROR(VLOOKUP(A53,'Liste des joueurs'!A50:D20353,2),"") -> 36 | F53: =IFERROR(VLOOKUP(A53,'Liste des joueurs'!A50:D20353,3),"") -> 193 | G53: 28.28427125 | H53: =IFERROR('Data Mon Ally'!G51,"") -> 00:53:17
A54: =IF('CC Mon Ally'!D55=0,"",'CC Mon Ally'!D55) -> MilesGloriosus | C54: =IF(A54=0,"",'CC Mon Ally'!E55) -> 190074 | E54: =IFERROR(VLOOKUP(A54,'Liste des joueurs'!A52:D20355,2),"") -> 5 | F54: =IFERROR(VLOOKUP(A54,'Liste des joueurs'!A52:D20355,3),"") -> 94 | G54: 79.76214641 | H54: =IFERROR('Data Mon Ally'!G52,"") -> 02:19:51
A55: =IF('CC Mon Ally'!D56=0,"",'CC Mon Ally'!D56) -> Seiduna | C55: =IF(A55=0,"",'CC Mon Ally'!E56) -> 181306 | E55: =IFERROR(VLOOKUP(A55,'Liste des joueurs'!A52:D20355,2),"") -> 10 | F55: =IFERROR(VLOOKUP(A55,'Liste des joueurs'!A52:D20355,3),"") -> 63 | G55: 110.1635148 | H55: =IFERROR('Data Mon Ally'!G53,"") -> 03:05:18
A56: =IF('CC Mon Ally'!D57=0,"",'CC Mon Ally'!D57) -> riblibli | C56: =IF(A56=0,"",'CC Mon Ally'!E57) -> 124756 | E56: =IFERROR(VLOOKUP(A56,'Liste des joueurs'!A54:D20357,2),"") -> 39 | F56: =IFERROR(VLOOKUP(A56,'Liste des joueurs'!A54:D20357,3),"") -> 25 | G56: 149.7765002 | H56: =IFERROR('Data Mon Ally'!G54,"") -> 03:58:54
A57: =IF('CC Mon Ally'!D58=0,"",'CC Mon Ally'!D58) -> MagnetO | C57: =IF(A57=0,"",'CC Mon Ally'!E58) -> 89366 | E57: =IFERROR(VLOOKUP(A57,'Liste des joueurs'!A54:D20357,2),"") -> 26 | F57: =IFERROR(VLOOKUP(A57,'Liste des joueurs'!A54:D20357,3),"") -> 172 | G57: 10.04987562 | H57: =IFERROR('Data Mon Ally'!G55,"") -> 00:19:26
A58: =IF('CC Mon Ally'!D59=0,"",'CC Mon Ally'!D59) ->  | C58: =IF(A58=0,"",'CC Mon Ally'!E59) -> 0 | E58: =IFERROR(VLOOKUP(A58,'Liste des joueurs'!A56:D20359,2),"") ->  | F58: =IFERROR(VLOOKUP(A58,'Liste des joueurs'!A56:D20359,3),"") ->  | H58: =IFERROR('Data Mon Ally'!G56,"") -> 
A59: =IF('CC Mon Ally'!D60=0,"",'CC Mon Ally'!D60) ->  | C59: =IF(A59=0,"",'CC Mon Ally'!E60) -> 0 | E59: =IFERROR(VLOOKUP(A59,'Liste des joueurs'!A56:D20359,2),"") ->  | F59: =IFERROR(VLOOKUP(A59,'Liste des joueurs'!A56:D20359,3),"") ->  | H59: =IFERROR('Data Mon Ally'!G57,"") -> 
A60: =IF('CC Mon Ally'!D61=0,"",'CC Mon Ally'!D61) ->  | C60: =IF(A60=0,"",'CC Mon Ally'!E61) -> 0 | E60: =IFERROR(VLOOKUP(A60,'Liste des joueurs'!A58:D20361,2),"") ->  | F60: =IFERROR(VLOOKUP(A60,'Liste des joueurs'!A58:D20361,3),"") ->  | H60: =IFERROR('Data Mon Ally'!G58,"") -> 
A61: =IF('CC Mon Ally'!D62=0,"",'CC Mon Ally'!D62) ->  | C61: =IF(A61=0,"",'CC Mon Ally'!E62) -> 0 | E61: =IFERROR(VLOOKUP(A61,'Liste des joueurs'!A58:D20361,2),"") ->  | F61: =IFERROR(VLOOKUP(A61,'Liste des joueurs'!A58:D20361,3),"") ->  | H61: =IFERROR('Data Mon Ally'!G59,"") -> 
A62: =IF('CC Mon Ally'!D63=0,"",'CC Mon Ally'!D63) ->  | C62: =IF(A62=0,"",'CC Mon Ally'!E63) -> 0 | E62: =IFERROR(VLOOKUP(A62,'Liste des joueurs'!A60:D20363,2),"") ->  | F62: =IFERROR(VLOOKUP(A62,'Liste des joueurs'!A60:D20363,3),"") ->  | H62: =IFERROR('Data Mon Ally'!G60,"") -> 
A63: =IF('CC Mon Ally'!D64=0,"",'CC Mon Ally'!D64) ->  | C63: =IF(A63=0,"",'CC Mon Ally'!E64) -> 0 | E63: =IFERROR(VLOOKUP(A63,'Liste des joueurs'!A60:D20363,2),"") ->  | F63: =IFERROR(VLOOKUP(A63,'Liste des joueurs'!A60:D20363,3),"") ->  | H63: =IFERROR('Data Mon Ally'!G61,"") -> 
A64: =IF('CC Mon Ally'!D65=0,"",'CC Mon Ally'!D65) ->  | C64: =IF(A64=0,"",'CC Mon Ally'!E65) -> 0 | E64: =IFERROR(VLOOKUP(A64,'Liste des joueurs'!A62:D20365,2),"") ->  | F64: =IFERROR(VLOOKUP(A64,'Liste des joueurs'!A62:D20365,3),"") ->  | H64: =IFERROR('Data Mon Ally'!G62,"") -> 
A65: =IF('CC Mon Ally'!D66=0,"",'CC Mon Ally'!D66) ->  | C65: =IF(A65=0,"",'CC Mon Ally'!E66) -> 0 | E65: =IFERROR(VLOOKUP(A65,'Liste des joueurs'!A62:D20365,2),"") ->  | F65: =IFERROR(VLOOKUP(A65,'Liste des joueurs'!A62:D20365,3),"") ->  | H65: =IFERROR('Data Mon Ally'!G63,"") -> 
A66: =IF('CC Mon Ally'!D67=0,"",'CC Mon Ally'!D67) ->  | C66: =IF(A66=0,"",'CC Mon Ally'!E67) -> 0 | E66: =IFERROR(VLOOKUP(A66,'Liste des joueurs'!A64:D20367,2),"") ->  | F66: =IFERROR(VLOOKUP(A66,'Liste des joueurs'!A64:D20367,3),"") ->  | H66: =IFERROR('Data Mon Ally'!G64,"") -> 
A67: =IF('CC Mon Ally'!D68=0,"",'CC Mon Ally'!D68) ->  | C67: =IF(A67=0,"",'CC Mon Ally'!E68) -> 0 | E67: =IFERROR(VLOOKUP(A67,'Liste des joueurs'!A64:D20367,2),"") ->  | F67: =IFERROR(VLOOKUP(A67,'Liste des joueurs'!A64:D20367,3),"") ->  | H67: =IFERROR('Data Mon Ally'!G65,"") -> 
A68: =IF('CC Mon Ally'!D69=0,"",'CC Mon Ally'!D69) ->  | C68: =IF(A68=0,"",'CC Mon Ally'!E69) -> 0 | E68: =IFERROR(VLOOKUP(A68,'Liste des joueurs'!A66:D20369,2),"") ->  | F68: =IFERROR(VLOOKUP(A68,'Liste des joueurs'!A66:D20369,3),"") ->  | H68: =IFERROR('Data Mon Ally'!G66,"") -> 
A69: =IF('CC Mon Ally'!D70=0,"",'CC Mon Ally'!D70) ->  | C69: =IF(A69=0,"",'CC Mon Ally'!E70) -> 0 | E69: =IFERROR(VLOOKUP(A69,'Liste des joueurs'!A66:D20369,2),"") ->  | F69: =IFERROR(VLOOKUP(A69,'Liste des joueurs'!A66:D20369,3),"") ->  | H69: =IFERROR('Data Mon Ally'!G67,"") -> 
A70: =IF('CC Mon Ally'!D71=0,"",'CC Mon Ally'!D71) ->  | C70: =IF(A70=0,"",'CC Mon Ally'!E71) -> 0 | D70: =IF(AND((C70<=(3*$E$1)),(C70>=(0.5*$E$1))),"A PORTEE"," ") ->  | E70: =IFERROR(VLOOKUP(A70,'Liste des joueurs'!A68:D20371,2),"") ->  | F70: =IFERROR(VLOOKUP(A70,'Liste des joueurs'!A68:D20371,3),"") ->  | G70: =IFERROR(SQRT(($L$1-E70)^2+($L$2-F70)^2),"") ->  | H70: =IFERROR('Data Mon Ally'!G68,"") -> 
A71: =IF('CC Mon Ally'!D72=0,"",'CC Mon Ally'!D72) ->  | C71: =IF(A71=0,"",'CC Mon Ally'!E72) -> 0 | E71: =IFERROR(VLOOKUP(A71,'Liste des joueurs'!A68:D20371,2),"") ->  | F71: =IFERROR(VLOOKUP(A71,'Liste des joueurs'!A68:D20371,3),"") ->  | H71: =IFERROR('Data Mon Ally'!G69,"") -> 
A72: =IF('CC Mon Ally'!D73=0,"",'CC Mon Ally'!D73) ->  | C72: =IF(A72=0,"",'CC Mon Ally'!E73) -> 0 | E72: =IFERROR(VLOOKUP(A72,'Liste des joueurs'!A70:D20373,2),"") ->  | F72: =IFERROR(VLOOKUP(A72,'Liste des joueurs'!A70:D20373,3),"") ->  | H72: =IFERROR('Data Mon Ally'!G70,"") -> 
A73: =IF('CC Mon Ally'!D74=0,"",'CC Mon Ally'!D74) ->  | C73: =IF(A73=0,"",'CC Mon Ally'!E74) -> 0 | E73: =IFERROR(VLOOKUP(A73,'Liste des joueurs'!A70:D20373,2),"") ->  | F73: =IFERROR(VLOOKUP(A73,'Liste des joueurs'!A70:D20373,3),"") ->  | H73: =IFERROR('Data Mon Ally'!G71,"") -> 
A74: =IF('CC Mon Ally'!D75=0,"",'CC Mon Ally'!D75) ->  | C74: =IF(A74=0,"",'CC Mon Ally'!E75) -> 0 | E74: =IFERROR(VLOOKUP(A74,'Liste des joueurs'!A72:D20375,2),"") ->  | F74: =IFERROR(VLOOKUP(A74,'Liste des joueurs'!A72:D20375,3),"") ->  | H74: =IFERROR('Data Mon Ally'!G72,"") -> 
A75: =IF('CC Mon Ally'!D76=0,"",'CC Mon Ally'!D76) ->  | C75: =IF(A75=0,"",'CC Mon Ally'!E76) -> 0 | E75: =IFERROR(VLOOKUP(A75,'Liste des joueurs'!A72:D20375,2),"") ->  | F75: =IFERROR(VLOOKUP(A75,'Liste des joueurs'!A72:D20375,3),"") ->  | H75: =IFERROR('Data Mon Ally'!G73,"") -> 
A76: =IF('CC Mon Ally'!D77=0,"",'CC Mon Ally'!D77) ->  | C76: =IF(A76=0,"",'CC Mon Ally'!E77) -> 0 | E76: =IFERROR(VLOOKUP(A76,'Liste des joueurs'!A74:D20377,2),"") ->  | F76: =IFERROR(VLOOKUP(A76,'Liste des joueurs'!A74:D20377,3),"") ->  | H76: =IFERROR('Data Mon Ally'!G74,"") -> 
A77: =IF('CC Mon Ally'!D78=0,"",'CC Mon Ally'!D78) ->  | C77: =IF(A77=0,"",'CC Mon Ally'!E78) -> 0 | E77: =IFERROR(VLOOKUP(A77,'Liste des joueurs'!A74:D20377,2),"") ->  | F77: =IFERROR(VLOOKUP(A77,'Liste des joueurs'!A74:D20377,3),"") ->  | H77: =IFERROR('Data Mon Ally'!G75,"") -> 
A78: =IF('CC Mon Ally'!D79=0,"",'CC Mon Ally'!D79) ->  | C78: =IF(A78=0,"",'CC Mon Ally'!E79) -> 0 | E78: =IFERROR(VLOOKUP(A78,'Liste des joueurs'!A76:D20379,2),"") ->  | F78: =IFERROR(VLOOKUP(A78,'Liste des joueurs'!A76:D20379,3),"") ->  | H78: =IFERROR('Data Mon Ally'!G76,"") -> 
A79: =IF('CC Mon Ally'!D80=0,"",'CC Mon Ally'!D80) ->  | C79: =IF(A79=0,"",'CC Mon Ally'!E80) -> 0 | E79: =IFERROR(VLOOKUP(A79,'Liste des joueurs'!A76:D20379,2),"") ->  | F79: =IFERROR(VLOOKUP(A79,'Liste des joueurs'!A76:D20379,3),"") ->  | H79: =IFERROR('Data Mon Ally'!G77,"") -> 
A80: =IF('CC Mon Ally'!D81=0,"",'CC Mon Ally'!D81) ->  | C80: =IF(A80=0,"",'CC Mon Ally'!E81) -> 0 | E80: =IFERROR(VLOOKUP(A80,'Liste des joueurs'!A78:D20381,2),"") ->  | F80: =IFERROR(VLOOKUP(A80,'Liste des joueurs'!A78:D20381,3),"") ->  | H80: =IFERROR('Data Mon Ally'!G78,"") -> 
A81: =IF('CC Mon Ally'!D82=0,"",'CC Mon Ally'!D82) ->  | C81: =IF(A81=0,"",'CC Mon Ally'!E82) -> 0 | E81: =IFERROR(VLOOKUP(A81,'Liste des joueurs'!A78:D20381,2),"") ->  | F81: =IFERROR(VLOOKUP(A81,'Liste des joueurs'!A78:D20381,3),"") ->  | H81: =IFERROR('Data Mon Ally'!G79,"") -> 
A82: =IF('CC Mon Ally'!D83=0,"",'CC Mon Ally'!D83) ->  | C82: =IF(A82=0,"",'CC Mon Ally'!E83) -> 0 | E82: =IFERROR(VLOOKUP(A82,'Liste des joueurs'!A80:D20383,2),"") ->  | F82: =IFERROR(VLOOKUP(A82,'Liste des joueurs'!A80:D20383,3),"") ->  | H82: =IFERROR('Data Mon Ally'!G80,"") -> 
A83: =IF('CC Mon Ally'!D84=0,"",'CC Mon Ally'!D84) ->  | C83: =IF(A83=0,"",'CC Mon Ally'!E84) -> 0 | E83: =IFERROR(VLOOKUP(A83,'Liste des joueurs'!A80:D20383,2),"") ->  | F83: =IFERROR(VLOOKUP(A83,'Liste des joueurs'!A80:D20383,3),"") ->  | H83: =IFERROR('Data Mon Ally'!G81,"") -> 
A84: =IF('CC Mon Ally'!D85=0,"",'CC Mon Ally'!D85) ->  | C84: =IF(A84=0,"",'CC Mon Ally'!E85) -> 0 | E84: =IFERROR(VLOOKUP(A84,'Liste des joueurs'!A82:D20385,2),"") ->  | F84: =IFERROR(VLOOKUP(A84,'Liste des joueurs'!A82:D20385,3),"") ->  | H84: =IFERROR('Data Mon Ally'!G82,"") -> 
A85: =IF('CC Mon Ally'!D86=0,"",'CC Mon Ally'!D86) ->  | C85: =IF(A85=0,"",'CC Mon Ally'!E86) -> 0 | E85: =IFERROR(VLOOKUP(A85,'Liste des joueurs'!A82:D20385,2),"") ->  | F85: =IFERROR(VLOOKUP(A85,'Liste des joueurs'!A82:D20385,3),"") ->  | H85: =IFERROR('Data Mon Ally'!G83,"") -> 
A86: =IF('CC Mon Ally'!D87=0,"",'CC Mon Ally'!D87) ->  | C86: =IF(A86=0,"",'CC Mon Ally'!E87) -> 0 | E86: =IFERROR(VLOOKUP(A86,'Liste des joueurs'!A84:D20387,2),"") ->  | F86: =IFERROR(VLOOKUP(A86,'Liste des joueurs'!A84:D20387,3),"") ->  | H86: =IFERROR('Data Mon Ally'!G84,"") -> 
A87: =IF('CC Mon Ally'!D88=0,"",'CC Mon Ally'!D88) ->  | C87: =IF(A87=0,"",'CC Mon Ally'!E88) -> 0 | E87: =IFERROR(VLOOKUP(A87,'Liste des joueurs'!A84:D20387,2),"") ->  | F87: =IFERROR(VLOOKUP(A87,'Liste des joueurs'!A84:D20387,3),"") ->  | H87: =IFERROR('Data Mon Ally'!G85,"") -> 
A88: =IF('CC Mon Ally'!D89=0,"",'CC Mon Ally'!D89) ->  | C88: =IF(A88=0,"",'CC Mon Ally'!E89) -> 0 | E88: =IFERROR(VLOOKUP(A88,'Liste des joueurs'!A86:D20389,2),"") ->  | F88: =IFERROR(VLOOKUP(A88,'Liste des joueurs'!A86:D20389,3),"") ->  | H88: =IFERROR('Data Mon Ally'!G86,"") -> 
A89: =IF('CC Mon Ally'!D90=0,"",'CC Mon Ally'!D90) ->  | C89: =IF(A89=0,"",'CC Mon Ally'!E90) -> 0 | E89: =IFERROR(VLOOKUP(A89,'Liste des joueurs'!A86:D20389,2),"") ->  | F89: =IFERROR(VLOOKUP(A89,'Liste des joueurs'!A86:D20389,3),"") ->  | H89: =IFERROR('Data Mon Ally'!G87,"") -> 
A90: =IF('CC Mon Ally'!D91=0,"",'CC Mon Ally'!D91) ->  | C90: =IF(A90=0,"",'CC Mon Ally'!E91) -> 0 | E90: =IFERROR(VLOOKUP(A90,'Liste des joueurs'!A88:D20391,2),"") ->  | F90: =IFERROR(VLOOKUP(A90,'Liste des joueurs'!A88:D20391,3),"") ->  | H90: =IFERROR('Data Mon Ally'!G88,"") -> 
A91: =IF('CC Mon Ally'!D92=0,"",'CC Mon Ally'!D92) ->  | C91: =IF(A91=0,"",'CC Mon Ally'!E92) -> 0 | E91: =IFERROR(VLOOKUP(A91,'Liste des joueurs'!A88:D20391,2),"") ->  | F91: =IFERROR(VLOOKUP(A91,'Liste des joueurs'!A88:D20391,3),"") ->  | H91: =IFERROR('Data Mon Ally'!G89,"") -> 
A92: =IF('CC Mon Ally'!D93=0,"",'CC Mon Ally'!D93) ->  | C92: =IF(A92=0,"",'CC Mon Ally'!E93) -> 0 | E92: =IFERROR(VLOOKUP(A92,'Liste des joueurs'!A90:D20393,2),"") ->  | F92: =IFERROR(VLOOKUP(A92,'Liste des joueurs'!A90:D20393,3),"") ->  | H92: =IFERROR('Data Mon Ally'!G90,"") -> 
A93: =IF('CC Mon Ally'!D94=0,"",'CC Mon Ally'!D94) ->  | C93: =IF(A93=0,"",'CC Mon Ally'!E94) -> 0 | E93: =IFERROR(VLOOKUP(A93,'Liste des joueurs'!A90:D20393,2),"") ->  | F93: =IFERROR(VLOOKUP(A93,'Liste des joueurs'!A90:D20393,3),"") ->  | H93: =IFERROR('Data Mon Ally'!G91,"") -> 
A94: =IF('CC Mon Ally'!D95=0,"",'CC Mon Ally'!D95) ->  | C94: =IF(A94=0,"",'CC Mon Ally'!E95) -> 0 | E94: =IFERROR(VLOOKUP(A94,'Liste des joueurs'!A92:D20395,2),"") ->  | F94: =IFERROR(VLOOKUP(A94,'Liste des joueurs'!A92:D20395,3),"") ->  | H94: =IFERROR('Data Mon Ally'!G92,"") -> 
A95: =IF('CC Mon Ally'!D96=0,"",'CC Mon Ally'!D96) ->  | C95: =IF(A95=0,"",'CC Mon Ally'!E96) -> 0 | E95: =IFERROR(VLOOKUP(A95,'Liste des joueurs'!A92:D20395,2),"") ->  | F95: =IFERROR(VLOOKUP(A95,'Liste des joueurs'!A92:D20395,3),"") ->  | H95: =IFERROR('Data Mon Ally'!G93,"") -> 
A96: =IF('CC Mon Ally'!D97=0,"",'CC Mon Ally'!D97) ->  | C96: =IF(A96=0,"",'CC Mon Ally'!E97) -> 0 | E96: =IFERROR(VLOOKUP(A96,'Liste des joueurs'!A94:D20397,2),"") ->  | F96: =IFERROR(VLOOKUP(A96,'Liste des joueurs'!A94:D20397,3),"") ->  | H96: =IFERROR('Data Mon Ally'!G94,"") -> 
A97: =IF('CC Mon Ally'!D98=0,"",'CC Mon Ally'!D98) ->  | C97: =IF(A97=0,"",'CC Mon Ally'!E98) -> 0 | E97: =IFERROR(VLOOKUP(A97,'Liste des joueurs'!A94:D20397,2),"") ->  | F97: =IFERROR(VLOOKUP(A97,'Liste des joueurs'!A94:D20397,3),"") ->  | H97: =IFERROR('Data Mon Ally'!G95,"") -> 
A98: =IF('CC Mon Ally'!D99=0,"",'CC Mon Ally'!D99) ->  | C98: =IF(A98=0,"",'CC Mon Ally'!E99) -> 0 | E98: =IFERROR(VLOOKUP(A98,'Liste des joueurs'!A96:D20399,2),"") ->  | F98: =IFERROR(VLOOKUP(A98,'Liste des joueurs'!A96:D20399,3),"") ->  | H98: =IFERROR('Data Mon Ally'!G96,"") -> 
A99: =IF('CC Mon Ally'!D100=0,"",'CC Mon Ally'!D100) ->  | C99: =IF(A99=0,"",'CC Mon Ally'!E100) -> 0 | E99: =IFERROR(VLOOKUP(A99,'Liste des joueurs'!A96:D20399,2),"") ->  | F99: =IFERROR(VLOOKUP(A99,'Liste des joueurs'!A96:D20399,3),"") ->  | H99: =IFERROR('Data Mon Ally'!G97,"") -> 
A100: =IF('CC Mon Ally'!D101=0,"",'CC Mon Ally'!D101) ->  | C100: =IF(A100=0,"",'CC Mon Ally'!E101) -> 0 | E100: =IFERROR(VLOOKUP(A100,'Liste des joueurs'!A98:D20401,2),"") ->  | F100: =IFERROR(VLOOKUP(A100,'Liste des joueurs'!A98:D20401,3),"") ->  | H100: =IFERROR('Data Mon Ally'!G98,"") -> 

Sheet Alliance 1
A1: Dernière MaJ | B1: =TODAY() -> 2013-04-14 | D1: Mon tdc | E1: =Moi!C9 -> 239462551 | G1: VA | H1: =Moi!C7 -> 26 | J1: Pos perso: | K1: x | L1: =Moi!C4 -> 16
K2: y | L2: =Moi!C5 -> 173
B3: MAP | C3: TDC | D3: A portée ? | E3: x | F3: y | G3: Distance | H3: Temps
A4: =IF('CC Ally 1'!D5=0,"",'CC Ally 1'!D5) -> Apokles | C4: =IF(A4=0,"",'CC Ally 1'!E5) -> 2600000000 | D4: =IF(AND((C4<=(3*$E$1)),(C4>=(0.5*$E$1))),"A PORTEE"," ") ->  | E4: =IFERROR(VLOOKUP(A4,'Liste des joueurs'!A2:D20305,2),"") -> 36 | F4: =IFERROR(VLOOKUP(A4,'Liste des joueurs'!A2:D20305,3),"") -> 311 | G4: =IFERROR(SQRT(($L$1-E4)^2+($L$2-F4)^2),"") -> 139.4417441 | H4: =IFERROR('Data Ally 1'!G2,"") -> 03:45:29
A5: =IF('CC Ally 1'!D6=0,"",'CC Ally 1'!D6) -> MicroMadere | C5: =IF(A5=0,"",'CC Ally 1'!E6) -> 2500000000 | D5: =IF(AND((C5<=(3*$E$1)),(C5>=(0.5*$E$1))),"A PORTEE"," ") ->  | E5: =IFERROR(VLOOKUP(A5,'Liste des joueurs'!A2:D20305,2),"") -> 42 | F5: =IFERROR(VLOOKUP(A5,'Liste des joueurs'!A2:D20305,3),"") -> 314 | G5: =IFERROR(SQRT(($L$1-E5)^2+($L$2-F5)^2),"") -> 143.3771251 | H5: =IFERROR('Data Ally 1'!G3,"") -> 03:50:38
A6: =IF('CC Ally 1'!D7=0,"",'CC Ally 1'!D7) -> baltazar14 | C6: =IF(A6=0,"",'CC Ally 1'!E7) -> 2250000000 | D6: =IF(AND((C6<=(3*$E$1)),(C6>=(0.5*$E$1))),"A PORTEE"," ") ->  | E6: =IFERROR(VLOOKUP(A6,'Liste des joueurs'!A4:D20307,2),"") -> 9 | F6: =IFERROR(VLOOKUP(A6,'Liste des joueurs'!A4:D20307,3),"") -> 171 | G6: =IFERROR(SQRT(($L$1-E6)^2+($L$2-F6)^2),"") -> 7.280109889 | H6: =IFERROR('Data Ally 1'!G4,"") -> 00:14:08
A7: =IF('CC Ally 1'!D8=0,"",'CC Ally 1'!D8) -> vinkou | C7: =IF(A7=0,"",'CC Ally 1'!E8) -> 2046872542 | E7: =IFERROR(VLOOKUP(A7,'Liste des joueurs'!A4:D20307,2),"") -> 45 | F7: =IFERROR(VLOOKUP(A7,'Liste des joueurs'!A4:D20307,3),"") -> 107 | G7: 72.09022125 | H7: =IFERROR('Data Ally 1'!G5,"") -> 02:07:44
A8: =IF('CC Ally 1'!D9=0,"",'CC Ally 1'!D9) -> carapuce | C8: =IF(A8=0,"",'CC Ally 1'!E9) -> 1337568063 | E8: =IFERROR(VLOOKUP(A8,'Liste des joueurs'!A6:D20309,2),"") -> 8 | F8: =IFERROR(VLOOKUP(A8,'Liste des joueurs'!A6:D20309,3),"") -> 277 | G8: 104.3072385 | H8: =IFERROR('Data Ally 1'!G6,"") -> 02:56:51
A9: =IF('CC Ally 1'!D10=0,"",'CC Ally 1'!D10) -> Bastet | C9: =IF(A9=0,"",'CC Ally 1'!E10) -> 1300000000 | E9: =IFERROR(VLOOKUP(A9,'Liste des joueurs'!A6:D20309,2),"") -> 34 | F9: =IFERROR(VLOOKUP(A9,'Liste des joueurs'!A6:D20309,3),"") -> 310 | G9: 138.1774222 | H9: =IFERROR('Data Ally 1'!G7,"") -> 03:43:49
A10: =IF('CC Ally 1'!D11=0,"",'CC Ally 1'!D11) -> bryansixx | C10: =IF(A10=0,"",'CC Ally 1'!E11) -> 734047607 | E10: =IFERROR(VLOOKUP(A10,'Liste des joueurs'!A8:D20311,2),"") -> 21 | F10: =IFERROR(VLOOKUP(A10,'Liste des joueurs'!A8:D20311,3),"") -> 283 | G10: 110.1135777 | H10: =IFERROR('Data Ally 1'!G8,"") -> 03:05:13
A11: =IF('CC Ally 1'!D12=0,"",'CC Ally 1'!D12) -> Indestructor | C11: =IF(A11=0,"",'CC Ally 1'!E12) -> 648837844 | D11: A PORTEE | E11: =IFERROR(VLOOKUP(A11,'Liste des joueurs'!A8:D20311,2),"") -> 31 | F11: =IFERROR(VLOOKUP(A11,'Liste des joueurs'!A8:D20311,3),"") -> 260 | G11: 88.28363382 | H11: =IFERROR('Data Ally 1'!G9,"") -> 02:32:59
A12: =IF('CC Ally 1'!D13=0,"",'CC Ally 1'!D13) -> Akrapovic | C12: =IF(A12=0,"",'CC Ally 1'!E13) -> 333983648 | D12: A PORTEE | E12: =IFERROR(VLOOKUP(A12,'Liste des joueurs'!A10:D20313,2),"") -> 20 | F12: =IFERROR(VLOOKUP(A12,'Liste des joueurs'!A10:D20313,3),"") -> 85 | G12: 88.09086218 | H12: =IFERROR('Data Ally 1'!G10,"") -> 02:32:41
A13: =IF('CC Ally 1'!D14=0,"",'CC Ally 1'!D14) -> maitre-marchombres | C13: =IF(A13=0,"",'CC Ally 1'!E14) -> 233552894 | D13: A PORTEE | E13: =IFERROR(VLOOKUP(A13,'Liste des joueurs'!A10:D20313,2),"") -> 3 | F13: =IFERROR(VLOOKUP(A13,'Liste des joueurs'!A10:D20313,3),"") -> 6 | G13: 167.5052238 | H13: =IFERROR('Data Ally 1'!G11,"") -> 04:20:59
A14: =IF('CC Ally 1'!D15=0,"",'CC Ally 1'!D15) -> le_chaton | C14: =IF(A14=0,"",'CC Ally 1'!E15) -> 187715367 | D14: A PORTEE | E14: =IFERROR(VLOOKUP(A14,'Liste des joueurs'!A12:D20315,2),"") -> 22 | F14: =IFERROR(VLOOKUP(A14,'Liste des joueurs'!A12:D20315,3),"") -> 16 | G14: 157.1146079 | H14: =IFERROR('Data Ally 1'!G12,"") -> 04:08:10
A15: =IF('CC Ally 1'!D16=0,"",'CC Ally 1'!D16) -> b-girl | C15: =IF(A15=0,"",'CC Ally 1'!E16) -> 80412661 | E15: =IFERROR(VLOOKUP(A15,'Liste des joueurs'!A12:D20315,2),"") -> 20 | F15: =IFERROR(VLOOKUP(A15,'Liste des joueurs'!A12:D20315,3),"") -> 35 | G15: 138.0579588 | H15: =IFERROR('Data Ally 1'!G13,"") -> 03:43:40
A16: =IF('CC Ally 1'!D17=0,"",'CC Ally 1'!D17) -> macgyver300 | C16: =IF(A16=0,"",'CC Ally 1'!E17) -> 49257464 | E16: =IFERROR(VLOOKUP(A16,'Liste des joueurs'!A14:D20317,2),"") -> 44 | F16: =IFERROR(VLOOKUP(A16,'Liste des joueurs'!A14:D20317,3),"") -> 845 | G16: 672.5830804 | H16: =IFERROR('Data Ally 1'!G14,"") -> 09:45:45
A17: =IF('CC Ally 1'!D18=0,"",'CC Ally 1'!D18) -> MissXY | C17: =IF(A17=0,"",'CC Ally 1'!E18) -> 34365521 | E17: =IFERROR(VLOOKUP(A17,'Liste des joueurs'!A14:D20317,2),"") -> 32 | F17: =IFERROR(VLOOKUP(A17,'Liste des joueurs'!A14:D20317,3),"") -> 43 | G17: 130.9809146 | H17: =IFERROR('Data Ally 1'!G15,"") -> 03:34:13
A18: =IF('CC Ally 1'!D19=0,"",'CC Ally 1'!D19) -> Mr_Patate | C18: =IF(A18=0,"",'CC Ally 1'!E19) -> 33182611 | E18: =IFERROR(VLOOKUP(A18,'Liste des joueurs'!A16:D20319,2),"") -> 36 | F18: =IFERROR(VLOOKUP(A18,'Liste des joueurs'!A16:D20319,3),"") -> 38 | G18: 136.4734406 | H18: =IFERROR('Data Ally 1'!G16,"") -> 03:41:34
A19: =IF('CC Ally 1'!D20=0,"",'CC Ally 1'!D20) -> Spirou | C19: =IF(A19=0,"",'CC Ally 1'!E20) -> 27534868 | E19: =IFERROR(VLOOKUP(A19,'Liste des joueurs'!A16:D20319,2),"") -> 30 | F19: =IFERROR(VLOOKUP(A19,'Liste des joueurs'!A16:D20319,3),"") -> 183 | G19: 17.20465053 | H19: =IFERROR('Data Ally 1'!G17,"") -> 00:32:55
A20: =IF('CC Ally 1'!D21=0,"",'CC Ally 1'!D21) -> theputbill | C20: =IF(A20=0,"",'CC Ally 1'!E21) -> 22614492 | E20: =IFERROR(VLOOKUP(A20,'Liste des joueurs'!A18:D20321,2),"") -> 5 | F20: =IFERROR(VLOOKUP(A20,'Liste des joueurs'!A18:D20321,3),"") -> 19 | G20: 154.3923573 | H20: =IFERROR('Data Ally 1'!G18,"") -> 04:04:45
A21: =IF('CC Ally 1'!D22=0,"",'CC Ally 1'!D22) -> juri | C21: =IF(A21=0,"",'CC Ally 1'!E22) -> 20737866 | E21: =IFERROR(VLOOKUP(A21,'Liste des joueurs'!A18:D20321,2),"") -> 6 | F21: =IFERROR(VLOOKUP(A21,'Liste des joueurs'!A18:D20321,3),"") -> 184 | G21: 14.86606875 | H21: =IFERROR('Data Ally 1'!G19,"") -> 00:28:33
A22: =IF('CC Ally 1'!D23=0,"",'CC Ally 1'!D23) -> bernard1349 | C22: =IF(A22=0,"",'CC Ally 1'!E23) -> 11561877 | E22: =IFERROR(VLOOKUP(A22,'Liste des joueurs'!A20:D20323,2),"") -> 13 | F22: =IFERROR(VLOOKUP(A22,'Liste des joueurs'!A20:D20323,3),"") -> 39 | G22: 134.0335779 | H22: =IFERROR('Data Ally 1'!G20,"") -> 03:38:19
A23: =IF('CC Ally 1'!D24=0,"",'CC Ally 1'!D24) -> Oupouaout | C23: =IF(A23=0,"",'CC Ally 1'!E24) -> 9583255 | E23: =IFERROR(VLOOKUP(A23,'Liste des joueurs'!A20:D20323,2),"") -> 31 | F23: =IFERROR(VLOOKUP(A23,'Liste des joueurs'!A20:D20323,3),"") -> 310 | G23: 137.8187215 | H23: =IFERROR('Data Ally 1'!G21,"") -> 03:43:21
A24: =IF('CC Ally 1'!D25=0,"",'CC Ally 1'!D25) -> gilles21 | C24: =IF(A24=0,"",'CC Ally 1'!E25) -> 9561272 | E24: =IFERROR(VLOOKUP(A24,'Liste des joueurs'!A22:D20325,2),"") -> 6 | F24: =IFERROR(VLOOKUP(A24,'Liste des joueurs'!A22:D20325,3),"") -> 75 | G24: 98.50888285 | H24: =IFERROR('Data Ally 1'!G22,"") -> 02:48:20
A25: =IF('CC Ally 1'!D26=0,"",'CC Ally 1'!D26) -> era92 | C25: =IF(A25=0,"",'CC Ally 1'!E26) -> 8961113 | E25: =IFERROR(VLOOKUP(A25,'Liste des joueurs'!A22:D20325,2),"") -> 4 | F25: =IFERROR(VLOOKUP(A25,'Liste des joueurs'!A22:D20325,3),"") -> 70 | G25: 103.696673 | H25: =IFERROR('Data Ally 1'!G23,"") -> 02:55:57
A26: =IF('CC Ally 1'!D27=0,"",'CC Ally 1'!D27) -> z3rO | C26: =IF(A26=0,"",'CC Ally 1'!E27) -> 3258588 | E26: =IFERROR(VLOOKUP(A26,'Liste des joueurs'!A24:D20327,2),"") -> 21 | F26: =IFERROR(VLOOKUP(A26,'Liste des joueurs'!A24:D20327,3),"") -> 20 | G26: 153.0816775 | H26: =IFERROR('Data Ally 1'!G24,"") -> 04:03:06
A27: =IF('CC Ally 1'!D28=0,"",'CC Ally 1'!D28) -> Thoutmosis | C27: =IF(A27=0,"",'CC Ally 1'!E28) -> 2120299 | E27: =IFERROR(VLOOKUP(A27,'Liste des joueurs'!A24:D20327,2),"") -> 37 | F27: =IFERROR(VLOOKUP(A27,'Liste des joueurs'!A24:D20327,3),"") -> 310 | G27: 138.6001443 | H27: =IFERROR('Data Ally 1'!G25,"") -> 03:44:23
A28: =IF('CC Ally 1'!D29=0,"",'CC Ally 1'!D29) -> Cstinger | C28: =IF(A28=0,"",'CC Ally 1'!E29) -> 2077553 | E28: =IFERROR(VLOOKUP(A28,'Liste des joueurs'!A26:D20329,2),"") -> 40 | F28: =IFERROR(VLOOKUP(A28,'Liste des joueurs'!A26:D20329,3),"") -> 18 | G28: 156.8470593 | H28: =IFERROR('Data Ally 1'!G26,"") -> 04:07:50
A29: =IF('CC Ally 1'!D30=0,"",'CC Ally 1'!D30) -> kliff33740 | C29: =IF(A29=0,"",'CC Ally 1'!E30) -> 1860170 | E29: =IFERROR(VLOOKUP(A29,'Liste des joueurs'!A26:D20329,2),"") -> 37 | F29: =IFERROR(VLOOKUP(A29,'Liste des joueurs'!A26:D20329,3),"") -> 325 | G29: 153.4438008 | H29: =IFERROR('Data Ally 1'!G27,"") -> 04:03:33
A30: =IF('CC Ally 1'!D31=0,"",'CC Ally 1'!D31) -> nsrsqual | C30: =IF(A30=0,"",'CC Ally 1'!E31) -> 1735147 | E30: =IFERROR(VLOOKUP(A30,'Liste des joueurs'!A28:D20331,2),"") -> 5 | F30: =IFERROR(VLOOKUP(A30,'Liste des joueurs'!A28:D20331,3),"") -> 102 | G30: 71.84705979 | H30: =IFERROR('Data Ally 1'!G28,"") -> 02:07:21
A31: =IF('CC Ally 1'!D32=0,"",'CC Ally 1'!D32) -> Sangoten | C31: =IF(A31=0,"",'CC Ally 1'!E32) -> 1567834 | E31: =IFERROR(VLOOKUP(A31,'Liste des joueurs'!A28:D20331,2),"") -> 14 | F31: =IFERROR(VLOOKUP(A31,'Liste des joueurs'!A28:D20331,3),"") -> 50 | G31: 123.0162591 | H31: =IFERROR('Data Ally 1'!G29,"") -> 03:23:21
A32: =IF('CC Ally 1'!D33=0,"",'CC Ally 1'!D33) -> polothedrummer | C32: =IF(A32=0,"",'CC Ally 1'!E33) -> 1011160 | E32: =IFERROR(VLOOKUP(A32,'Liste des joueurs'!A30:D20333,2),"") -> 15 | F32: =IFERROR(VLOOKUP(A32,'Liste des joueurs'!A30:D20333,3),"") -> 201 | G32: 28.01785145 | H32: =IFERROR('Data Ally 1'!G30,"") -> 00:52:48
A33: =IF('CC Ally 1'!D34=0,"",'CC Ally 1'!D34) -> kapyro | C33: =IF(A33=0,"",'CC Ally 1'!E34) -> 969881 | E33: =IFERROR(VLOOKUP(A33,'Liste des joueurs'!A30:D20333,2),"") -> 36 | F33: =IFERROR(VLOOKUP(A33,'Liste des joueurs'!A30:D20333,3),"") -> 826 | G33: 653.3062069 | H33: =IFERROR('Data Ally 1'!G31,"") -> 09:40:04
A34: =IF('CC Ally 1'!D35=0,"",'CC Ally 1'!D35) -> Le-Fauve | C34: =IF(A34=0,"",'CC Ally 1'!E35) -> 952211 | E34: =IFERROR(VLOOKUP(A34,'Liste des joueurs'!A32:D20335,2),"") -> 25 | F34: =IFERROR(VLOOKUP(A34,'Liste des joueurs'!A32:D20335,3),"") -> 172 | G34: 9.055385138 | H34: =IFERROR('Data Ally 1'!G32,"") -> 00:17:32
A35: =IF('CC Ally 1'!D36=0,"",'CC Ally 1'!D36) -> deezer | C35: =IF(A35=0,"",'CC Ally 1'!E36) -> 811141 | E35: =IFERROR(VLOOKUP(A35,'Liste des joueurs'!A32:D20335,2),"") -> 42 | F35: =IFERROR(VLOOKUP(A35,'Liste des joueurs'!A32:D20335,3),"") -> 64 | G35: 112.0580207 | H35: =IFERROR('Data Ally 1'!G33,"") -> 03:08:00
A36: =IF('CC Ally 1'!D37=0,"",'CC Ally 1'!D37) -> Leojah | C36: =IF(A36=0,"",'CC Ally 1'!E37) -> 570125 | E36: =IFERROR(VLOOKUP(A36,'Liste des joueurs'!A34:D20337,2),"") -> 7 | F36: =IFERROR(VLOOKUP(A36,'Liste des joueurs'!A34:D20337,3),"") -> 183 | G36: 13.45362405 | H36: =IFERROR('Data Ally 1'!G34,"") -> 00:25:53
A37: =IF('CC Ally 1'!D38=0,"",'CC Ally 1'!D38) -> Pipomambo | C37: =IF(A37=0,"",'CC Ally 1'!E38) -> 492205 | E37: =IFERROR(VLOOKUP(A37,'Liste des joueurs'!A34:D20337,2),"") -> 10 | F37: =IFERROR(VLOOKUP(A37,'Liste des joueurs'!A34:D20337,3),"") -> 593 | G37: 420.042855 | H37: =IFERROR('Data Ally 1'!G35,"") -> 07:59:32
A38: =IF('CC Ally 1'!D39=0,"",'CC Ally 1'!D39) -> keiser | C38: =IF(A38=0,"",'CC Ally 1'!E39) -> 410653 | E38: =IFERROR(VLOOKUP(A38,'Liste des joueurs'!A36:D20339,2),"") -> 9 | F38: =IFERROR(VLOOKUP(A38,'Liste des joueurs'!A36:D20339,3),"") -> 52 | G38: 121.2023102 | H38: =IFERROR('Data Ally 1'!G36,"") -> 03:20:51
A39: =IF('CC Ally 1'!D40=0,"",'CC Ally 1'!D40) -> Imhotep | C39: =IF(A39=0,"",'CC Ally 1'!E40) -> 357772 | E39: =IFERROR(VLOOKUP(A39,'Liste des joueurs'!A36:D20339,2),"") -> 33 | F39: =IFERROR(VLOOKUP(A39,'Liste des joueurs'!A36:D20339,3),"") -> 310 | G39: 138.0507153 | H39: =IFERROR('Data Ally 1'!G37,"") -> 03:43:39
A40: =IF('CC Ally 1'!D41=0,"",'CC Ally 1'!D41) -> Exodus | C40: =IF(A40=0,"",'CC Ally 1'!E41) -> 349045 | E40: =IFERROR(VLOOKUP(A40,'Liste des joueurs'!A38:D20341,2),"") -> 9 | F40: =IFERROR(VLOOKUP(A40,'Liste des joueurs'!A38:D20341,3),"") -> 53 | G40: 120.2039933 | H40: =IFERROR('Data Ally 1'!G38,"") -> 03:19:28
A41: =IF('CC Ally 1'!D42=0,"",'CC Ally 1'!D42) -> Goliath | C41: =IF(A41=0,"",'CC Ally 1'!E42) -> 342479 | E41: =IFERROR(VLOOKUP(A41,'Liste des joueurs'!A38:D20341,2),"") -> 8 | F41: =IFERROR(VLOOKUP(A41,'Liste des joueurs'!A38:D20341,3),"") -> 121 | G41: 52.61178575 | H41: =IFERROR('Data Ally 1'!G39,"") -> 01:35:46
A42: =IF('CC Ally 1'!D43=0,"",'CC Ally 1'!D43) -> neko-san | C42: =IF(A42=0,"",'CC Ally 1'!E43) -> 232041 | E42: =IFERROR(VLOOKUP(A42,'Liste des joueurs'!A40:D20343,2),"") -> 48 | F42: =IFERROR(VLOOKUP(A42,'Liste des joueurs'!A40:D20343,3),"") -> 68 | G42: 109.767937 | H42: =IFERROR('Data Ally 1'!G40,"") -> 03:04:44
A43: =IF('CC Ally 1'!D44=0,"",'CC Ally 1'!D44) -> styrie | C43: =IF(A43=0,"",'CC Ally 1'!E44) -> 107993 | E43: =IFERROR(VLOOKUP(A43,'Liste des joueurs'!A40:D20343,2),"") -> 36 | F43: =IFERROR(VLOOKUP(A43,'Liste des joueurs'!A40:D20343,3),"") -> 2332 | G43: 2159.092633 | H43: =IFERROR('Data Ally 1'!G41,"") -> 11:24:44
A44: =IF('CC Ally 1'!D45=0,"",'CC Ally 1'!D45) -> Shesmou | C44: =IF(A44=0,"",'CC Ally 1'!E45) -> 83776 | E44: =IFERROR(VLOOKUP(A44,'Liste des joueurs'!A42:D20345,2),"") -> 5 | F44: =IFERROR(VLOOKUP(A44,'Liste des joueurs'!A42:D20345,3),"") -> 311 | G44: 138.4377116 | H44: =IFERROR('Data Ally 1'!G42,"") -> 03:44:10
A45: =IF('CC Ally 1'!D46=0,"",'CC Ally 1'!D46) -> Menes | C45: =IF(A45=0,"",'CC Ally 1'!E46) -> 68011 | E45: =IFERROR(VLOOKUP(A45,'Liste des joueurs'!A42:D20345,2),"") -> 29 | F45: =IFERROR(VLOOKUP(A45,'Liste des joueurs'!A42:D20345,3),"") -> 513 | G45: 340.2484386 | H45: =IFERROR('Data Ally 1'!G43,"") -> 07:06:37
A46: =IF('CC Ally 1'!D47=0,"",'CC Ally 1'!D47) -> idefix | C46: =IF(A46=0,"",'CC Ally 1'!E47) -> 19470 | E46: =IFERROR(VLOOKUP(A46,'Liste des joueurs'!A44:D20347,2),"") -> 36 | F46: =IFERROR(VLOOKUP(A46,'Liste des joueurs'!A44:D20347,3),"") -> 126 | G46: 51.07837116 | H46: =IFERROR('Data Ally 1'!G44,"") -> 01:33:11
A47: =IF('CC Ally 1'!D48=0,"",'CC Ally 1'!D48) ->  | C47: =IF(A47=0,"",'CC Ally 1'!E48) -> 0 | E47: =IFERROR(VLOOKUP(A47,'Liste des joueurs'!A44:D20347,2),"") ->  | F47: =IFERROR(VLOOKUP(A47,'Liste des joueurs'!A44:D20347,3),"") ->  | H47: =IFERROR('Data Ally 1'!G45,"") -> 
A48: =IF('CC Ally 1'!D49=0,"",'CC Ally 1'!D49) ->  | C48: =IF(A48=0,"",'CC Ally 1'!E49) -> 0 | E48: =IFERROR(VLOOKUP(A48,'Liste des joueurs'!A46:D20349,2),"") ->  | F48: =IFERROR(VLOOKUP(A48,'Liste des joueurs'!A46:D20349,3),"") ->  | H48: =IFERROR('Data Ally 1'!G46,"") -> 
A49: =IF('CC Ally 1'!D50=0,"",'CC Ally 1'!D50) ->  | C49: =IF(A49=0,"",'CC Ally 1'!E50) -> 0 | E49: =IFERROR(VLOOKUP(A49,'Liste des joueurs'!A46:D20349,2),"") ->  | F49: =IFERROR(VLOOKUP(A49,'Liste des joueurs'!A46:D20349,3),"") ->  | H49: =IFERROR('Data Ally 1'!G47,"") -> 
A50: =IF('CC Ally 1'!D51=0,"",'CC Ally 1'!D51) ->  | C50: =IF(A50=0,"",'CC Ally 1'!E51) -> 0 | E50: =IFERROR(VLOOKUP(A50,'Liste des joueurs'!A48:D20351,2),"") ->  | F50: =IFERROR(VLOOKUP(A50,'Liste des joueurs'!A48:D20351,3),"") ->  | H50: =IFERROR('Data Ally 1'!G48,"") -> 
A51: =IF('CC Ally 1'!D52=0,"",'CC Ally 1'!D52) ->  | C51: =IF(A51=0,"",'CC Ally 1'!E52) -> 0 | E51: =IFERROR(VLOOKUP(A51,'Liste des joueurs'!A48:D20351,2),"") ->  | F51: =IFERROR(VLOOKUP(A51,'Liste des joueurs'!A48:D20351,3),"") ->  | H51: =IFERROR('Data Ally 1'!G49,"") -> 
A52: =IF('CC Ally 1'!D53=0,"",'CC Ally 1'!D53) ->  | C52: =IF(A52=0,"",'CC Ally 1'!E53) -> 0 | E52: =IFERROR(VLOOKUP(A52,'Liste des joueurs'!A50:D20353,2),"") ->  | F52: =IFERROR(VLOOKUP(A52,'Liste des joueurs'!A50:D20353,3),"") ->  | H52: =IFERROR('Data Ally 1'!G50,"") -> 
A53: =IF('CC Ally 1'!D54=0,"",'CC Ally 1'!D54) ->  | C53: =IF(A53=0,"",'CC Ally 1'!E54) -> 0 | E53: =IFERROR(VLOOKUP(A53,'Liste des joueurs'!A50:D20353,2),"") ->  | F53: =IFERROR(VLOOKUP(A53,'Liste des joueurs'!A50:D20353,3),"") ->  | H53: =IFERROR('Data Ally 1'!G51,"") -> 
A54: =IF('CC Ally 1'!D55=0,"",'CC Ally 1'!D55) ->  | C54: =IF(A54=0,"",'CC Ally 1'!E55) -> 0 | E54: =IFERROR(VLOOKUP(A54,'Liste des joueurs'!A52:D20355,2),"") ->  | F54: =IFERROR(VLOOKUP(A54,'Liste des joueurs'!A52:D20355,3),"") ->  | H54: =IFERROR('Data Ally 1'!G52,"") -> 
A55: =IF('CC Ally 1'!D56=0,"",'CC Ally 1'!D56) ->  | C55: =IF(A55=0,"",'CC Ally 1'!E56) -> 0 | E55: =IFERROR(VLOOKUP(A55,'Liste des joueurs'!A52:D20355,2),"") ->  | F55: =IFERROR(VLOOKUP(A55,'Liste des joueurs'!A52:D20355,3),"") ->  | H55: =IFERROR('Data Ally 1'!G53,"") -> 
A56: =IF('CC Ally 1'!D57=0,"",'CC Ally 1'!D57) ->  | C56: =IF(A56=0,"",'CC Ally 1'!E57) -> 0 | E56: =IFERROR(VLOOKUP(A56,'Liste des joueurs'!A54:D20357,2),"") ->  | F56: =IFERROR(VLOOKUP(A56,'Liste des joueurs'!A54:D20357,3),"") ->  | H56: =IFERROR('Data Ally 1'!G54,"") -> 
A57: =IF('CC Ally 1'!D58=0,"",'CC Ally 1'!D58) ->  | C57: =IF(A57=0,"",'CC Ally 1'!E58) -> 0 | E57: =IFERROR(VLOOKUP(A57,'Liste des joueurs'!A54:D20357,2),"") ->  | F57: =IFERROR(VLOOKUP(A57,'Liste des joueurs'!A54:D20357,3),"") ->  | H57: =IFERROR('Data Ally 1'!G55,"") -> 
A58: =IF('CC Ally 1'!D59=0,"",'CC Ally 1'!D59) ->  | C58: =IF(A58=0,"",'CC Ally 1'!E59) -> 0 | E58: =IFERROR(VLOOKUP(A58,'Liste des joueurs'!A56:D20359,2),"") ->  | F58: =IFERROR(VLOOKUP(A58,'Liste des joueurs'!A56:D20359,3),"") ->  | H58: =IFERROR('Data Ally 1'!G56,"") -> 
A59: =IF('CC Ally 1'!D60=0,"",'CC Ally 1'!D60) ->  | C59: =IF(A59=0,"",'CC Ally 1'!E60) -> 0 | E59: =IFERROR(VLOOKUP(A59,'Liste des joueurs'!A56:D20359,2),"") ->  | F59: =IFERROR(VLOOKUP(A59,'Liste des joueurs'!A56:D20359,3),"") ->  | H59: =IFERROR('Data Ally 1'!G57,"") -> 
A60: =IF('CC Ally 1'!D61=0,"",'CC Ally 1'!D61) ->  | C60: =IF(A60=0,"",'CC Ally 1'!E61) -> 0 | E60: =IFERROR(VLOOKUP(A60,'Liste des joueurs'!A58:D20361,2),"") ->  | F60: =IFERROR(VLOOKUP(A60,'Liste des joueurs'!A58:D20361,3),"") ->  | H60: =IFERROR('Data Ally 1'!G58,"") -> 
A61: =IF('CC Ally 1'!D62=0,"",'CC Ally 1'!D62) ->  | C61: =IF(A61=0,"",'CC Ally 1'!E62) -> 0 | E61: =IFERROR(VLOOKUP(A61,'Liste des joueurs'!A58:D20361,2),"") ->  | F61: =IFERROR(VLOOKUP(A61,'Liste des joueurs'!A58:D20361,3),"") ->  | H61: =IFERROR('Data Ally 1'!G59,"") -> 
A62: =IF('CC Ally 1'!D63=0,"",'CC Ally 1'!D63) ->  | C62: =IF(A62=0,"",'CC Ally 1'!E63) -> 0 | E62: =IFERROR(VLOOKUP(A62,'Liste des joueurs'!A60:D20363,2),"") ->  | F62: =IFERROR(VLOOKUP(A62,'Liste des joueurs'!A60:D20363,3),"") ->  | H62: =IFERROR('Data Ally 1'!G60,"") -> 
A63: =IF('CC Ally 1'!D64=0,"",'CC Ally 1'!D64) ->  | C63: =IF(A63=0,"",'CC Ally 1'!E64) -> 0 | E63: =IFERROR(VLOOKUP(A63,'Liste des joueurs'!A60:D20363,2),"") ->  | F63: =IFERROR(VLOOKUP(A63,'Liste des joueurs'!A60:D20363,3),"") ->  | H63: =IFERROR('Data Ally 1'!G61,"") -> 
A64: =IF('CC Ally 1'!D65=0,"",'CC Ally 1'!D65) ->  | C64: =IF(A64=0,"",'CC Ally 1'!E65) -> 0 | E64: =IFERROR(VLOOKUP(A64,'Liste des joueurs'!A62:D20365,2),"") ->  | F64: =IFERROR(VLOOKUP(A64,'Liste des joueurs'!A62:D20365,3),"") ->  | H64: =IFERROR('Data Ally 1'!G62,"") -> 
A65: =IF('CC Ally 1'!D66=0,"",'CC Ally 1'!D66) ->  | C65: =IF(A65=0,"",'CC Ally 1'!E66) -> 0 | E65: =IFERROR(VLOOKUP(A65,'Liste des joueurs'!A62:D20365,2),"") ->  | F65: =IFERROR(VLOOKUP(A65,'Liste des joueurs'!A62:D20365,3),"") ->  | H65: =IFERROR('Data Ally 1'!G63,"") -> 
A66: =IF('CC Ally 1'!D67=0,"",'CC Ally 1'!D67) ->  | C66: =IF(A66=0,"",'CC Ally 1'!E67) -> 0 | E66: =IFERROR(VLOOKUP(A66,'Liste des joueurs'!A64:D20367,2),"") ->  | F66: =IFERROR(VLOOKUP(A66,'Liste des joueurs'!A64:D20367,3),"") ->  | H66: =IFERROR('Data Ally 1'!G64,"") -> 
A67: =IF('CC Ally 1'!D68=0,"",'CC Ally 1'!D68) ->  | C67: =IF(A67=0,"",'CC Ally 1'!E68) -> 0 | E67: =IFERROR(VLOOKUP(A67,'Liste des joueurs'!A64:D20367,2),"") ->  | F67: =IFERROR(VLOOKUP(A67,'Liste des joueurs'!A64:D20367,3),"") ->  | H67: =IFERROR('Data Ally 1'!G65,"") -> 
A68: =IF('CC Ally 1'!D69=0,"",'CC Ally 1'!D69) ->  | C68: =IF(A68=0,"",'CC Ally 1'!E69) -> 0 | E68: =IFERROR(VLOOKUP(A68,'Liste des joueurs'!A66:D20369,2),"") ->  | F68: =IFERROR(VLOOKUP(A68,'Liste des joueurs'!A66:D20369,3),"") ->  | H68: =IFERROR('Data Ally 1'!G66,"") -> 
A69: =IF('CC Ally 1'!D70=0,"",'CC Ally 1'!D70) ->  | C69: =IF(A69=0,"",'CC Ally 1'!E70) -> 0 | E69: =IFERROR(VLOOKUP(A69,'Liste des joueurs'!A66:D20369,2),"") ->  | F69: =IFERROR(VLOOKUP(A69,'Liste des joueurs'!A66:D20369,3),"") ->  | H69: =IFERROR('Data Ally 1'!G67,"") -> 
A70: =IF('CC Ally 1'!D71=0,"",'CC Ally 1'!D71) ->  | C70: =IF(A70=0,"",'CC Ally 1'!E71) -> 0 | D70: =IF(AND((C70<=(3*$E$1)),(C70>=(0.5*$E$1))),"A PORTEE"," ") ->  | E70: =IFERROR(VLOOKUP(A70,'Liste des joueurs'!A68:D20371,2),"") ->  | F70: =IFERROR(VLOOKUP(A70,'Liste des joueurs'!A68:D20371,3),"") ->  | G70: =IFERROR(SQRT(($L$1-E70)^2+($L$2-F70)^2),"") ->  | H70: =IFERROR('Data Ally 1'!G68,"") -> 
A71: =IF('CC Ally 1'!D72=0,"",'CC Ally 1'!D72) ->  | C71: =IF(A71=0,"",'CC Ally 1'!E72) -> 0 | E71: =IFERROR(VLOOKUP(A71,'Liste des joueurs'!A68:D20371,2),"") ->  | F71: =IFERROR(VLOOKUP(A71,'Liste des joueurs'!A68:D20371,3),"") ->  | H71: =IFERROR('Data Ally 1'!G69,"") -> 
A72: =IF('CC Ally 1'!D73=0,"",'CC Ally 1'!D73) ->  | C72: =IF(A72=0,"",'CC Ally 1'!E73) -> 0 | E72: =IFERROR(VLOOKUP(A72,'Liste des joueurs'!A70:D20373,2),"") ->  | F72: =IFERROR(VLOOKUP(A72,'Liste des joueurs'!A70:D20373,3),"") ->  | H72: =IFERROR('Data Ally 1'!G70,"") -> 
A73: =IF('CC Ally 1'!D74=0,"",'CC Ally 1'!D74) ->  | C73: =IF(A73=0,"",'CC Ally 1'!E74) -> 0 | E73: =IFERROR(VLOOKUP(A73,'Liste des joueurs'!A70:D20373,2),"") ->  | F73: =IFERROR(VLOOKUP(A73,'Liste des joueurs'!A70:D20373,3),"") ->  | H73: =IFERROR('Data Ally 1'!G71,"") -> 
A74: =IF('CC Ally 1'!D75=0,"",'CC Ally 1'!D75) ->  | C74: =IF(A74=0,"",'CC Ally 1'!E75) -> 0 | E74: =IFERROR(VLOOKUP(A74,'Liste des joueurs'!A72:D20375,2),"") ->  | F74: =IFERROR(VLOOKUP(A74,'Liste des joueurs'!A72:D20375,3),"") ->  | H74: =IFERROR('Data Ally 1'!G72,"") -> 
A75: =IF('CC Ally 1'!D76=0,"",'CC Ally 1'!D76) ->  | C75: =IF(A75=0,"",'CC Ally 1'!E76) -> 0 | E75: =IFERROR(VLOOKUP(A75,'Liste des joueurs'!A72:D20375,2),"") ->  | F75: =IFERROR(VLOOKUP(A75,'Liste des joueurs'!A72:D20375,3),"") ->  | H75: =IFERROR('Data Ally 1'!G73,"") -> 
A76: =IF('CC Ally 1'!D77=0,"",'CC Ally 1'!D77) ->  | C76: =IF(A76=0,"",'CC Ally 1'!E77) -> 0 | E76: =IFERROR(VLOOKUP(A76,'Liste des joueurs'!A74:D20377,2),"") ->  | F76: =IFERROR(VLOOKUP(A76,'Liste des joueurs'!A74:D20377,3),"") ->  | H76: =IFERROR('Data Ally 1'!G74,"") -> 
A77: =IF('CC Ally 1'!D78=0,"",'CC Ally 1'!D78) ->  | C77: =IF(A77=0,"",'CC Ally 1'!E78) -> 0 | E77: =IFERROR(VLOOKUP(A77,'Liste des joueurs'!A74:D20377,2),"") ->  | F77: =IFERROR(VLOOKUP(A77,'Liste des joueurs'!A74:D20377,3),"") ->  | H77: =IFERROR('Data Ally 1'!G75,"") -> 
A78: =IF('CC Ally 1'!D79=0,"",'CC Ally 1'!D79) ->  | C78: =IF(A78=0,"",'CC Ally 1'!E79) -> 0 | E78: =IFERROR(VLOOKUP(A78,'Liste des joueurs'!A76:D20379,2),"") ->  | F78: =IFERROR(VLOOKUP(A78,'Liste des joueurs'!A76:D20379,3),"") ->  | H78: =IFERROR('Data Ally 1'!G76,"") -> 
A79: =IF('CC Ally 1'!D80=0,"",'CC Ally 1'!D80) ->  | C79: =IF(A79=0,"",'CC Ally 1'!E80) -> 0 | E79: =IFERROR(VLOOKUP(A79,'Liste des joueurs'!A76:D20379,2),"") ->  | F79: =IFERROR(VLOOKUP(A79,'Liste des joueurs'!A76:D20379,3),"") ->  | H79: =IFERROR('Data Ally 1'!G77,"") -> 
A80: =IF('CC Ally 1'!D81=0,"",'CC Ally 1'!D81) ->  | C80: =IF(A80=0,"",'CC Ally 1'!E81) -> 0 | E80: =IFERROR(VLOOKUP(A80,'Liste des joueurs'!A78:D20381,2),"") ->  | F80: =IFERROR(VLOOKUP(A80,'Liste des joueurs'!A78:D20381,3),"") ->  | H80: =IFERROR('Data Ally 1'!G78,"") -> 
A81: =IF('CC Ally 1'!D82=0,"",'CC Ally 1'!D82) ->  | C81: =IF(A81=0,"",'CC Ally 1'!E82) -> 0 | E81: =IFERROR(VLOOKUP(A81,'Liste des joueurs'!A78:D20381,2),"") ->  | F81: =IFERROR(VLOOKUP(A81,'Liste des joueurs'!A78:D20381,3),"") ->  | H81: =IFERROR('Data Ally 1'!G79,"") -> 
A82: =IF('CC Ally 1'!D83=0,"",'CC Ally 1'!D83) ->  | C82: =IF(A82=0,"",'CC Ally 1'!E83) -> 0 | E82: =IFERROR(VLOOKUP(A82,'Liste des joueurs'!A80:D20383,2),"") ->  | F82: =IFERROR(VLOOKUP(A82,'Liste des joueurs'!A80:D20383,3),"") ->  | H82: =IFERROR('Data Ally 1'!G80,"") -> 
A83: =IF('CC Ally 1'!D84=0,"",'CC Ally 1'!D84) ->  | C83: =IF(A83=0,"",'CC Ally 1'!E84) -> 0 | E83: =IFERROR(VLOOKUP(A83,'Liste des joueurs'!A80:D20383,2),"") ->  | F83: =IFERROR(VLOOKUP(A83,'Liste des joueurs'!A80:D20383,3),"") ->  | H83: =IFERROR('Data Ally 1'!G81,"") -> 
A84: =IF('CC Ally 1'!D85=0,"",'CC Ally 1'!D85) ->  | C84: =IF(A84=0,"",'CC Ally 1'!E85) -> 0 | E84: =IFERROR(VLOOKUP(A84,'Liste des joueurs'!A82:D20385,2),"") ->  | F84: =IFERROR(VLOOKUP(A84,'Liste des joueurs'!A82:D20385,3),"") ->  | H84: =IFERROR('Data Ally 1'!G82,"") -> 
A85: =IF('CC Ally 1'!D86=0,"",'CC Ally 1'!D86) ->  | C85: =IF(A85=0,"",'CC Ally 1'!E86) -> 0 | E85: =IFERROR(VLOOKUP(A85,'Liste des joueurs'!A82:D20385,2),"") ->  | F85: =IFERROR(VLOOKUP(A85,'Liste des joueurs'!A82:D20385,3),"") ->  | H85: =IFERROR('Data Ally 1'!G83,"") -> 
A86: =IF('CC Ally 1'!D87=0,"",'CC Ally 1'!D87) ->  | C86: =IF(A86=0,"",'CC Ally 1'!E87) -> 0 | E86: =IFERROR(VLOOKUP(A86,'Liste des joueurs'!A84:D20387,2),"") ->  | F86: =IFERROR(VLOOKUP(A86,'Liste des joueurs'!A84:D20387,3),"") ->  | H86: =IFERROR('Data Ally 1'!G84,"") -> 
A87: =IF('CC Ally 1'!D88=0,"",'CC Ally 1'!D88) ->  | C87: =IF(A87=0,"",'CC Ally 1'!E88) -> 0 | E87: =IFERROR(VLOOKUP(A87,'Liste des joueurs'!A84:D20387,2),"") ->  | F87: =IFERROR(VLOOKUP(A87,'Liste des joueurs'!A84:D20387,3),"") ->  | H87: =IFERROR('Data Ally 1'!G85,"") -> 
A88: =IF('CC Ally 1'!D89=0,"",'CC Ally 1'!D89) ->  | C88: =IF(A88=0,"",'CC Ally 1'!E89) -> 0 | E88: =IFERROR(VLOOKUP(A88,'Liste des joueurs'!A86:D20389,2),"") ->  | F88: =IFERROR(VLOOKUP(A88,'Liste des joueurs'!A86:D20389,3),"") ->  | H88: =IFERROR('Data Ally 1'!G86,"") -> 
A89: =IF('CC Ally 1'!D90=0,"",'CC Ally 1'!D90) ->  | C89: =IF(A89=0,"",'CC Ally 1'!E90) -> 0 | E89: =IFERROR(VLOOKUP(A89,'Liste des joueurs'!A86:D20389,2),"") ->  | F89: =IFERROR(VLOOKUP(A89,'Liste des joueurs'!A86:D20389,3),"") ->  | H89: =IFERROR('Data Ally 1'!G87,"") -> 
A90: =IF('CC Ally 1'!D91=0,"",'CC Ally 1'!D91) ->  | C90: =IF(A90=0,"",'CC Ally 1'!E91) -> 0 | E90: =IFERROR(VLOOKUP(A90,'Liste des joueurs'!A88:D20391,2),"") ->  | F90: =IFERROR(VLOOKUP(A90,'Liste des joueurs'!A88:D20391,3),"") ->  | H90: =IFERROR('Data Ally 1'!G88,"") -> 
A91: =IF('CC Ally 1'!D92=0,"",'CC Ally 1'!D92) ->  | C91: =IF(A91=0,"",'CC Ally 1'!E92) -> 0 | E91: =IFERROR(VLOOKUP(A91,'Liste des joueurs'!A88:D20391,2),"") ->  | F91: =IFERROR(VLOOKUP(A91,'Liste des joueurs'!A88:D20391,3),"") ->  | H91: =IFERROR('Data Ally 1'!G89,"") -> 
A92: =IF('CC Ally 1'!D93=0,"",'CC Ally 1'!D93) ->  | C92: =IF(A92=0,"",'CC Ally 1'!E93) -> 0 | E92: =IFERROR(VLOOKUP(A92,'Liste des joueurs'!A90:D20393,2),"") ->  | F92: =IFERROR(VLOOKUP(A92,'Liste des joueurs'!A90:D20393,3),"") ->  | H92: =IFERROR('Data Ally 1'!G90,"") -> 
A93: =IF('CC Ally 1'!D94=0,"",'CC Ally 1'!D94) ->  | C93: =IF(A93=0,"",'CC Ally 1'!E94) -> 0 | E93: =IFERROR(VLOOKUP(A93,'Liste des joueurs'!A90:D20393,2),"") ->  | F93: =IFERROR(VLOOKUP(A93,'Liste des joueurs'!A90:D20393,3),"") ->  | H93: =IFERROR('Data Ally 1'!G91,"") -> 
A94: =IF('CC Ally 1'!D95=0,"",'CC Ally 1'!D95) ->  | C94: =IF(A94=0,"",'CC Ally 1'!E95) -> 0 | E94: =IFERROR(VLOOKUP(A94,'Liste des joueurs'!A92:D20395,2),"") ->  | F94: =IFERROR(VLOOKUP(A94,'Liste des joueurs'!A92:D20395,3),"") ->  | H94: =IFERROR('Data Ally 1'!G92,"") -> 
A95: =IF('CC Ally 1'!D96=0,"",'CC Ally 1'!D96) ->  | C95: =IF(A95=0,"",'CC Ally 1'!E96) -> 0 | E95: =IFERROR(VLOOKUP(A95,'Liste des joueurs'!A92:D20395,2),"") ->  | F95: =IFERROR(VLOOKUP(A95,'Liste des joueurs'!A92:D20395,3),"") ->  | H95: =IFERROR('Data Ally 1'!G93,"") -> 
A96: =IF('CC Ally 1'!D97=0,"",'CC Ally 1'!D97) ->  | C96: =IF(A96=0,"",'CC Ally 1'!E97) -> 0 | E96: =IFERROR(VLOOKUP(A96,'Liste des joueurs'!A94:D20397,2),"") ->  | F96: =IFERROR(VLOOKUP(A96,'Liste des joueurs'!A94:D20397,3),"") ->  | H96: =IFERROR('Data Ally 1'!G94,"") -> 
A97: =IF('CC Ally 1'!D98=0,"",'CC Ally 1'!D98) ->  | C97: =IF(A97=0,"",'CC Ally 1'!E98) -> 0 | E97: =IFERROR(VLOOKUP(A97,'Liste des joueurs'!A94:D20397,2),"") ->  | F97: =IFERROR(VLOOKUP(A97,'Liste des joueurs'!A94:D20397,3),"") ->  | H97: =IFERROR('Data Ally 1'!G95,"") -> 
A98: =IF('CC Ally 1'!D99=0,"",'CC Ally 1'!D99) ->  | C98: =IF(A98=0,"",'CC Ally 1'!E99) -> 0 | E98: =IFERROR(VLOOKUP(A98,'Liste des joueurs'!A96:D20399,2),"") ->  | F98: =IFERROR(VLOOKUP(A98,'Liste des joueurs'!A96:D20399,3),"") ->  | H98: =IFERROR('Data Ally 1'!G96,"") -> 
A99: =IF('CC Ally 1'!D100=0,"",'CC Ally 1'!D100) ->  | C99: =IF(A99=0,"",'CC Ally 1'!E100) -> 0 | E99: =IFERROR(VLOOKUP(A99,'Liste des joueurs'!A96:D20399,2),"") ->  | F99: =IFERROR(VLOOKUP(A99,'Liste des joueurs'!A96:D20399,3),"") ->  | H99: =IFERROR('Data Ally 1'!G97,"") -> 
A100: =IF('CC Ally 1'!D101=0,"",'CC Ally 1'!D101) ->  | C100: =IF(A100=0,"",'CC Ally 1'!E101) -> 0 | E100: =IFERROR(VLOOKUP(A100,'Liste des joueurs'!A98:D20401,2),"") ->  | F100: =IFERROR(VLOOKUP(A100,'Liste des joueurs'!A98:D20401,3),"") ->  | H100: =IFERROR('Data Ally 1'!G98,"") -> 
A101: ,

Sheet Alliance 2
A1: Dernière MaJ | B1: =TODAY() -> 2013-04-14 | D1: Mon tdc | E1: =Moi!C9 -> 239462551 | G1: VA | H1: =Moi!C7 -> 26 | J1: Pos perso: | K1: x | L1: =Moi!C4 -> 16
K2: y | L2: =Moi!C5 -> 173
B3: MAP | C3: TDC | D3: A portée ? | E3: x | F3: y | G3: Distance | H3: Temps
A4: =IF('CC Ally 2'!D5=0,"",'CC Ally 2'!D5) -> lafourmirousse22 | C4: =IF(A4=0,"",'CC Ally 2'!E5) -> 6060000000 | D4: =IF(AND((C4<=(3*$E$1)),(C4>=(0.5*$E$1))),"A PORTEE"," ") ->  | E4: =IFERROR(VLOOKUP(A4,'Liste des joueurs'!A2:D20305,2),"") -> 35 | F4: =IFERROR(VLOOKUP(A4,'Liste des joueurs'!A2:D20305,3),"") -> 163 | G4: =IFERROR(SQRT(($L$1-E4)^2+($L$2-F4)^2),"") -> 21.47091055 | H4: =IFERROR('Data Ally 2'!G2,"") -> 00:40:50
A5: =IF('CC Ally 2'!D6=0,"",'CC Ally 2'!D6) -> colofan | C5: =IF(A5=0,"",'CC Ally 2'!E6) -> 5800000000 | D5: =IF(AND((C5<=(3*$E$1)),(C5>=(0.5*$E$1))),"A PORTEE"," ") ->  | E5: =IFERROR(VLOOKUP(A5,'Liste des joueurs'!A2:D20305,2),"") -> 34 | F5: =IFERROR(VLOOKUP(A5,'Liste des joueurs'!A2:D20305,3),"") -> 50 | G5: =IFERROR(SQRT(($L$1-E5)^2+($L$2-F5)^2),"") -> 124.3100961 | H5: =IFERROR('Data Ally 2'!G3,"") -> 03:25:08
A6: =IF('CC Ally 2'!D7=0,"",'CC Ally 2'!D7) -> Pololamagouille | C6: =IF(A6=0,"",'CC Ally 2'!E7) -> 4900000000 | D6: =IF(AND((C6<=(3*$E$1)),(C6>=(0.5*$E$1))),"A PORTEE"," ") ->  | E6: =IFERROR(VLOOKUP(A6,'Liste des joueurs'!A4:D20307,2),"") -> 38 | F6: =IFERROR(VLOOKUP(A6,'Liste des joueurs'!A4:D20307,3),"") -> 79 | G6: =IFERROR(SQRT(($L$1-E6)^2+($L$2-F6)^2),"") -> 96.54014709 | H6: =IFERROR('Data Ally 2'!G4,"") -> 02:45:25
A7: =IF('CC Ally 2'!D8=0,"",'CC Ally 2'!D8) -> choupette | C7: =IF(A7=0,"",'CC Ally 2'!E8) -> 4690000000 | E7: =IFERROR(VLOOKUP(A7,'Liste des joueurs'!A4:D20307,2),"") -> 38 | F7: =IFERROR(VLOOKUP(A7,'Liste des joueurs'!A4:D20307,3),"") -> 83 | G7: 92.64987858 | H7: =IFERROR('Data Ally 2'!G5,"") -> 02:39:36
A8: =IF('CC Ally 2'!D9=0,"",'CC Ally 2'!D9) -> marco3000 | C8: =IF(A8=0,"",'CC Ally 2'!E9) -> 3600000000 | E8: =IFERROR(VLOOKUP(A8,'Liste des joueurs'!A6:D20309,2),"") -> 35 | F8: =IFERROR(VLOOKUP(A8,'Liste des joueurs'!A6:D20309,3),"") -> 91 | G8: 84.17244205 | H8: =IFERROR('Data Ally 2'!G6,"") -> 02:26:41
A9: =IF('CC Ally 2'!D10=0,"",'CC Ally 2'!D10) -> graxy | C9: =IF(A9=0,"",'CC Ally 2'!E10) -> 3600000000 | E9: =IFERROR(VLOOKUP(A9,'Liste des joueurs'!A6:D20309,2),"") -> 44 | F9: =IFERROR(VLOOKUP(A9,'Liste des joueurs'!A6:D20309,3),"") -> 117 | G9: 62.60990337 | H9: =IFERROR('Data Ally 2'!G7,"") -> 01:52:24
A10: =IF('CC Ally 2'!D11=0,"",'CC Ally 2'!D11) -> mcflan | C10: =IF(A10=0,"",'CC Ally 2'!E11) -> 2836363043 | E10: =IFERROR(VLOOKUP(A10,'Liste des joueurs'!A8:D20311,2),"") -> 11 | F10: =IFERROR(VLOOKUP(A10,'Liste des joueurs'!A8:D20311,3),"") -> 40 | G10: 133.0939518 | H10: =IFERROR('Data Ally 2'!G8,"") -> 03:37:03
A11: =IF('CC Ally 2'!D12=0,"",'CC Ally 2'!D12) -> Patoche | C11: =IF(A11=0,"",'CC Ally 2'!E12) -> 2568546739 | E11: =IFERROR(VLOOKUP(A11,'Liste des joueurs'!A8:D20311,2),"") -> 19 | F11: =IFERROR(VLOOKUP(A11,'Liste des joueurs'!A8:D20311,3),"") -> 135 | G11: 38.11823711 | H11: =IFERROR('Data Ally 2'!G9,"") -> 01:10:49
A12: =IF('CC Ally 2'!D13=0,"",'CC Ally 2'!D13) -> Adrien | C12: =IF(A12=0,"",'CC Ally 2'!E13) -> 2500000000 | E12: =IFERROR(VLOOKUP(A12,'Liste des joueurs'!A10:D20313,2),"") -> 22 | F12: =IFERROR(VLOOKUP(A12,'Liste des joueurs'!A10:D20313,3),"") -> 127 | G12: 46.38965402 | H12: =IFERROR('Data Ally 2'!G10,"") -> 01:25:11
A13: =IF('CC Ally 2'!D14=0,"",'CC Ally 2'!D14) -> kiralove | C13: =IF(A13=0,"",'CC Ally 2'!E14) -> 2320000000 | E13: =IFERROR(VLOOKUP(A13,'Liste des joueurs'!A10:D20313,2),"") -> 27 | F13: =IFERROR(VLOOKUP(A13,'Liste des joueurs'!A10:D20313,3),"") -> 132 | G13: 42.44997055 | H13: =IFERROR('Data Ally 2'!G11,"") -> 01:18:23
A14: =IF('CC Ally 2'!D15=0,"",'CC Ally 2'!D15) -> hyelo | C14: =IF(A14=0,"",'CC Ally 2'!E15) -> 2179466379 | E14: =IFERROR(VLOOKUP(A14,'Liste des joueurs'!A12:D20315,2),"") -> 6 | F14: =IFERROR(VLOOKUP(A14,'Liste des joueurs'!A12:D20315,3),"") -> 11 | G14: 162.3083485 | H14: =IFERROR('Data Ally 2'!G12,"") -> 04:14:38
A15: =IF('CC Ally 2'!D16=0,"",'CC Ally 2'!D16) -> gooze | C15: =IF(A15=0,"",'CC Ally 2'!E16) -> 1850000000 | E15: =IFERROR(VLOOKUP(A15,'Liste des joueurs'!A12:D20315,2),"") -> 32 | F15: =IFERROR(VLOOKUP(A15,'Liste des joueurs'!A12:D20315,3),"") -> 86 | G15: 88.45903006 | H15: =IFERROR('Data Ally 2'!G13,"") -> 02:33:15
A16: =IF('CC Ally 2'!D17=0,"",'CC Ally 2'!D17) -> seguy | C16: =IF(A16=0,"",'CC Ally 2'!E17) -> 1611529941 | E16: =IFERROR(VLOOKUP(A16,'Liste des joueurs'!A14:D20317,2),"") -> 35 | F16: =IFERROR(VLOOKUP(A16,'Liste des joueurs'!A14:D20317,3),"") -> 200 | G16: 33.01514804 | H16: =IFERROR('Data Ally 2'!G14,"") -> 01:01:46
A17: =IF('CC Ally 2'!D18=0,"",'CC Ally 2'!D18) -> Drax | C17: =IF(A17=0,"",'CC Ally 2'!E18) -> 1300000000 | E17: =IFERROR(VLOOKUP(A17,'Liste des joueurs'!A14:D20317,2),"") -> 30 | F17: =IFERROR(VLOOKUP(A17,'Liste des joueurs'!A14:D20317,3),"") -> 253 | G17: 81.21576202 | H17: =IFERROR('Data Ally 2'!G15,"") -> 02:22:06
A18: =IF('CC Ally 2'!D19=0,"",'CC Ally 2'!D19) -> blade | C18: =IF(A18=0,"",'CC Ally 2'!E19) -> 1150000000 | E18: =IFERROR(VLOOKUP(A18,'Liste des joueurs'!A16:D20319,2),"") -> 15 | F18: =IFERROR(VLOOKUP(A18,'Liste des joueurs'!A16:D20319,3),"") -> 6 | G18: 167.002994 | H18: =IFERROR('Data Ally 2'!G16,"") -> 04:20:23
A19: =IF('CC Ally 2'!D20=0,"",'CC Ally 2'!D20) -> letraqueur | C19: =IF(A19=0,"",'CC Ally 2'!E20) -> 965176614 | E19: =IFERROR(VLOOKUP(A19,'Liste des joueurs'!A16:D20319,2),"") -> 33 | F19: =IFERROR(VLOOKUP(A19,'Liste des joueurs'!A16:D20319,3),"") -> 156 | G19: 24.04163056 | H19: =IFERROR('Data Ally 2'!G17,"") -> 00:45:34
A20: =IF('CC Ally 2'!D21=0,"",'CC Ally 2'!D21) -> Awaf | C20: =IF(A20=0,"",'CC Ally 2'!E21) -> 941361604 | E20: =IFERROR(VLOOKUP(A20,'Liste des joueurs'!A18:D20321,2),"") -> 34 | F20: =IFERROR(VLOOKUP(A20,'Liste des joueurs'!A18:D20321,3),"") -> 317 | G20: 145.1206395 | H20: =IFERROR('Data Ally 2'!G18,"") -> 03:52:54
A21: =IF('CC Ally 2'!D22=0,"",'CC Ally 2'!D22) -> nicolasto31 | C21: =IF(A21=0,"",'CC Ally 2'!E22) -> 720502820 | E21: =IFERROR(VLOOKUP(A21,'Liste des joueurs'!A18:D20321,2),"") -> 15 | F21: =IFERROR(VLOOKUP(A21,'Liste des joueurs'!A18:D20321,3),"") -> 29 | G21: 144.0034722 | H21: =IFERROR('Data Ally 2'!G19,"") -> 03:51:27
A22: =IF('CC Ally 2'!D23=0,"",'CC Ally 2'!D23) -> lhyan | C22: =IF(A22=0,"",'CC Ally 2'!E23) -> 525999950 | D22: A PORTEE | E22: =IFERROR(VLOOKUP(A22,'Liste des joueurs'!A20:D20323,2),"") -> 36 | F22: =IFERROR(VLOOKUP(A22,'Liste des joueurs'!A20:D20323,3),"") -> 17 | G22: 157.276826 | H22: =IFERROR('Data Ally 2'!G20,"") -> 04:08:23
A23: =IF('CC Ally 2'!D24=0,"",'CC Ally 2'!D24) -> Chiraze | C23: =IF(A23=0,"",'CC Ally 2'!E24) -> 428408162 | D23: A PORTEE | E23: =IFERROR(VLOOKUP(A23,'Liste des joueurs'!A20:D20323,2),"") -> 32 | F23: =IFERROR(VLOOKUP(A23,'Liste des joueurs'!A20:D20323,3),"") -> 319 | G23: 146.8740957 | H23: =IFERROR('Data Ally 2'!G21,"") -> 03:55:10
A24: =IF('CC Ally 2'!D25=0,"",'CC Ally 2'!D25) -> Antonin | C24: =IF(A24=0,"",'CC Ally 2'!E25) -> 411896393 | D24: A PORTEE | E24: =IFERROR(VLOOKUP(A24,'Liste des joueurs'!A22:D20325,2),"") -> 32 | F24: =IFERROR(VLOOKUP(A24,'Liste des joueurs'!A22:D20325,3),"") -> 316 | G24: 143.8923209 | H24: =IFERROR('Data Ally 2'!G22,"") -> 03:51:19
A25: =IF('CC Ally 2'!D26=0,"",'CC Ally 2'!D26) -> hellwolf11 | C25: =IF(A25=0,"",'CC Ally 2'!E26) -> 305445660 | D25: A PORTEE | E25: =IFERROR(VLOOKUP(A25,'Liste des joueurs'!A22:D20325,2),"") -> 9 | F25: =IFERROR(VLOOKUP(A25,'Liste des joueurs'!A22:D20325,3),"") -> 117 | G25: 56.43580424 | H25: =IFERROR('Data Ally 2'!G23,"") -> 01:42:11
A26: =IF('CC Ally 2'!D27=0,"",'CC Ally 2'!D27) -> erec | C26: =IF(A26=0,"",'CC Ally 2'!E27) -> 270184339 | D26: A PORTEE | E26: =IFERROR(VLOOKUP(A26,'Liste des joueurs'!A24:D20327,2),"") -> 42 | F26: =IFERROR(VLOOKUP(A26,'Liste des joueurs'!A24:D20327,3),"") -> 26 | G26: 149.2816131 | H26: =IFERROR('Data Ally 2'!G24,"") -> 03:58:16
A27: =IF('CC Ally 2'!D28=0,"",'CC Ally 2'!D28) -> Hugues | C27: =IF(A27=0,"",'CC Ally 2'!E28) -> 257366119 | D27: A PORTEE | E27: =IFERROR(VLOOKUP(A27,'Liste des joueurs'!A24:D20327,2),"") -> 29 | F27: =IFERROR(VLOOKUP(A27,'Liste des joueurs'!A24:D20327,3),"") -> 318 | G27: 145.5815922 | H27: =IFERROR('Data Ally 2'!G25,"") -> 03:53:30
A28: =IF('CC Ally 2'!D29=0,"",'CC Ally 2'!D29) -> Nicolasb | C28: =IF(A28=0,"",'CC Ally 2'!E29) -> 200000000 | D28: A PORTEE | E28: =IFERROR(VLOOKUP(A28,'Liste des joueurs'!A26:D20329,2),"") -> 32 | F28: =IFERROR(VLOOKUP(A28,'Liste des joueurs'!A26:D20329,3),"") -> 318 | G28: 145.8800877 | H28: =IFERROR('Data Ally 2'!G26,"") -> 03:53:53
A29: =IF('CC Ally 2'!D30=0,"",'CC Ally 2'!D30) -> astro19 | C29: =IF(A29=0,"",'CC Ally 2'!E30) -> 178594101 | D29: A PORTEE | E29: =IFERROR(VLOOKUP(A29,'Liste des joueurs'!A26:D20329,2),"") -> 37 | F29: =IFERROR(VLOOKUP(A29,'Liste des joueurs'!A26:D20329,3),"") -> 25 | G29: 149.4824404 | H29: =IFERROR('Data Ally 2'!G27,"") -> 03:58:31
A30: =IF('CC Ally 2'!D31=0,"",'CC Ally 2'!D31) -> LeJDueRRrr | C30: =IF(A30=0,"",'CC Ally 2'!E31) -> 133047096 | D30: A PORTEE | E30: =IFERROR(VLOOKUP(A30,'Liste des joueurs'!A28:D20331,2),"") -> 3 | F30: =IFERROR(VLOOKUP(A30,'Liste des joueurs'!A28:D20331,3),"") -> 398 | G30: 225.3752427 | H30: =IFERROR('Data Ally 2'!G28,"") -> 05:25:47
A31: =IF('CC Ally 2'!D32=0,"",'CC Ally 2'!D32) -> linepithema | C31: =IF(A31=0,"",'CC Ally 2'!E32) -> 101480995 | E31: =IFERROR(VLOOKUP(A31,'Liste des joueurs'!A28:D20331,2),"") -> 39 | F31: =IFERROR(VLOOKUP(A31,'Liste des joueurs'!A28:D20331,3),"") -> 241 | G31: 71.78439942 | H31: =IFERROR('Data Ally 2'!G29,"") -> 02:07:15
A32: =IF('CC Ally 2'!D33=0,"",'CC Ally 2'!D33) -> Nissart | C32: =IF(A32=0,"",'CC Ally 2'!E33) -> 89895053 | E32: =IFERROR(VLOOKUP(A32,'Liste des joueurs'!A30:D20333,2),"") -> 33 | F32: =IFERROR(VLOOKUP(A32,'Liste des joueurs'!A30:D20333,3),"") -> 51 | G32: 123.1787319 | H32: =IFERROR('Data Ally 2'!G30,"") -> 03:23:35
A33: =IF('CC Ally 2'!D34=0,"",'CC Ally 2'!D34) -> Corum | C33: =IF(A33=0,"",'CC Ally 2'!E34) -> 49160506 | E33: =IFERROR(VLOOKUP(A33,'Liste des joueurs'!A30:D20333,2),"") -> 2 | F33: =IFERROR(VLOOKUP(A33,'Liste des joueurs'!A30:D20333,3),"") -> 9 | G33: 164.5964763 | H33: =IFERROR('Data Ally 2'!G31,"") -> 04:17:26
A34: =IF('CC Ally 2'!D35=0,"",'CC Ally 2'!D35) -> brabancon | C34: =IF(A34=0,"",'CC Ally 2'!E35) -> 42253552 | E34: =IFERROR(VLOOKUP(A34,'Liste des joueurs'!A32:D20335,2),"") -> 47 | F34: =IFERROR(VLOOKUP(A34,'Liste des joueurs'!A32:D20335,3),"") -> 162 | G34: 32.89376841 | H34: =IFERROR('Data Ally 2'!G32,"") -> 01:01:33
A35: =IF('CC Ally 2'!D36=0,"",'CC Ally 2'!D36) -> Flow | C35: =IF(A35=0,"",'CC Ally 2'!E36) -> 42043746 | E35: =IFERROR(VLOOKUP(A35,'Liste des joueurs'!A32:D20335,2),"") -> 5 | F35: =IFERROR(VLOOKUP(A35,'Liste des joueurs'!A32:D20335,3),"") -> 398 | G35: 225.2687284 | H35: =IFERROR('Data Ally 2'!G33,"") -> 05:25:40
A36: =IF('CC Ally 2'!D37=0,"",'CC Ally 2'!D37) -> franck76 | C36: =IF(A36=0,"",'CC Ally 2'!E37) -> 38407322 | E36: =IFERROR(VLOOKUP(A36,'Liste des joueurs'!A34:D20337,2),"") -> 35 | F36: =IFERROR(VLOOKUP(A36,'Liste des joueurs'!A34:D20337,3),"") -> 520 | G36: 347.5197836 | H36: =IFERROR('Data Ally 2'!G34,"") -> 07:11:57
A37: =IF('CC Ally 2'!D38=0,"",'CC Ally 2'!D38) -> Zeref | C37: =IF(A37=0,"",'CC Ally 2'!E38) -> 27159344 | E37: =IFERROR(VLOOKUP(A37,'Liste des joueurs'!A34:D20337,2),"") -> 34 | F37: =IFERROR(VLOOKUP(A37,'Liste des joueurs'!A34:D20337,3),"") -> 4 | G37: 169.9558766 | H37: =IFERROR('Data Ally 2'!G35,"") -> 04:23:57
A38: =IF('CC Ally 2'!D39=0,"",'CC Ally 2'!D39) -> flydutchman | C38: =IF(A38=0,"",'CC Ally 2'!E39) -> 24068168 | E38: =IFERROR(VLOOKUP(A38,'Liste des joueurs'!A36:D20339,2),"") -> 6 | F38: =IFERROR(VLOOKUP(A38,'Liste des joueurs'!A36:D20339,3),"") -> 147 | G38: 27.85677655 | H38: =IFERROR('Data Ally 2'!G36,"") -> 00:52:30
A39: =IF('CC Ally 2'!D40=0,"",'CC Ally 2'!D40) -> Nine | C39: =IF(A39=0,"",'CC Ally 2'!E40) -> 20306133 | E39: =IFERROR(VLOOKUP(A39,'Liste des joueurs'!A36:D20339,2),"") -> 27 | F39: =IFERROR(VLOOKUP(A39,'Liste des joueurs'!A36:D20339,3),"") -> 75 | G39: 98.61541462 | H39: =IFERROR('Data Ally 2'!G37,"") -> 02:48:30
A40: =IF('CC Ally 2'!D41=0,"",'CC Ally 2'!D41) -> Ant-Hologie | C40: =IF(A40=0,"",'CC Ally 2'!E41) -> 19546926 | E40: =IFERROR(VLOOKUP(A40,'Liste des joueurs'!A38:D20341,2),"") -> 15 | F40: =IFERROR(VLOOKUP(A40,'Liste des joueurs'!A38:D20341,3),"") -> 57 | G40: 116.0043103 | H40: =IFERROR('Data Ally 2'!G38,"") -> 03:13:35
A41: =IF('CC Ally 2'!D42=0,"",'CC Ally 2'!D42) -> dobby | C41: =IF(A41=0,"",'CC Ally 2'!E42) -> 16219851 | E41: =IFERROR(VLOOKUP(A41,'Liste des joueurs'!A38:D20341,2),"") -> 29 | F41: =IFERROR(VLOOKUP(A41,'Liste des joueurs'!A38:D20341,3),"") -> 44 | G41: 129.6533841 | H41: =IFERROR('Data Ally 2'!G39,"") -> 03:32:25
A42: =IF('CC Ally 2'!D43=0,"",'CC Ally 2'!D43) -> daubinum | C42: =IF(A42=0,"",'CC Ally 2'!E43) -> 15851739 | E42: =IFERROR(VLOOKUP(A42,'Liste des joueurs'!A40:D20343,2),"") -> 43 | F42: =IFERROR(VLOOKUP(A42,'Liste des joueurs'!A40:D20343,3),"") -> 164 | G42: 28.46049894 | H42: =IFERROR('Data Ally 2'!G40,"") -> 00:53:36
A43: =IF('CC Ally 2'!D44=0,"",'CC Ally 2'!D44) -> castor | C43: =IF(A43=0,"",'CC Ally 2'!E44) -> 9745168 | E43: =IFERROR(VLOOKUP(A43,'Liste des joueurs'!A40:D20343,2),"") -> 19 | F43: =IFERROR(VLOOKUP(A43,'Liste des joueurs'!A40:D20343,3),"") -> 78 | G43: 95.04735662 | H43: =IFERROR('Data Ally 2'!G41,"") -> 02:43:11
A44: =IF('CC Ally 2'!D45=0,"",'CC Ally 2'!D45) -> bobdenar | C44: =IF(A44=0,"",'CC Ally 2'!E45) -> 8830845 | E44: =IFERROR(VLOOKUP(A44,'Liste des joueurs'!A42:D20345,2),"") -> 16 | F44: =IFERROR(VLOOKUP(A44,'Liste des joueurs'!A42:D20345,3),"") -> 160 | G44: 13 | H44: =IFERROR('Data Ally 2'!G42,"") -> 00:25:02
A45: =IF('CC Ally 2'!D46=0,"",'CC Ally 2'!D46) -> Paglop | C45: =IF(A45=0,"",'CC Ally 2'!E46) -> 8186728 | E45: =IFERROR(VLOOKUP(A45,'Liste des joueurs'!A42:D20345,2),"") -> 38 | F45: =IFERROR(VLOOKUP(A45,'Liste des joueurs'!A42:D20345,3),"") -> 352 | G45: 180.346888 | H45: =IFERROR('Data Ally 2'!G43,"") -> 04:36:18
A46: =IF('CC Ally 2'!D47=0,"",'CC Ally 2'!D47) -> destichado | C46: =IF(A46=0,"",'CC Ally 2'!E47) -> 7315698 | E46: =IFERROR(VLOOKUP(A46,'Liste des joueurs'!A44:D20347,2),"") -> 15 | F46: =IFERROR(VLOOKUP(A46,'Liste des joueurs'!A44:D20347,3),"") -> 24 | G46: 149.0033557 | H46: =IFERROR('Data Ally 2'!G44,"") -> 03:57:54
A47: =IF('CC Ally 2'!D48=0,"",'CC Ally 2'!D48) -> MistAr | C47: =IF(A47=0,"",'CC Ally 2'!E48) -> 4828503 | E47: =IFERROR(VLOOKUP(A47,'Liste des joueurs'!A44:D20347,2),"") -> 46 | F47: =IFERROR(VLOOKUP(A47,'Liste des joueurs'!A44:D20347,3),"") -> 146 | G47: 40.36087214 | H47: =IFERROR('Data Ally 2'!G45,"") -> 01:14:45
A48: =IF('CC Ally 2'!D49=0,"",'CC Ally 2'!D49) -> macewindu | C48: =IF(A48=0,"",'CC Ally 2'!E49) -> 3545650 | E48: =IFERROR(VLOOKUP(A48,'Liste des joueurs'!A46:D20349,2),"") -> 24 | F48: =IFERROR(VLOOKUP(A48,'Liste des joueurs'!A46:D20349,3),"") -> 85 | G48: 88.36288814 | H48: =IFERROR('Data Ally 2'!G46,"") -> 02:33:06
A49: =IF('CC Ally 2'!D50=0,"",'CC Ally 2'!D50) -> Lolo | C49: =IF(A49=0,"",'CC Ally 2'!E50) -> 3019848 | E49: =IFERROR(VLOOKUP(A49,'Liste des joueurs'!A46:D20349,2),"") -> 3 | F49: =IFERROR(VLOOKUP(A49,'Liste des joueurs'!A46:D20349,3),"") -> 38 | G49: 135.6244816 | H49: =IFERROR('Data Ally 2'!G47,"") -> 03:40:26
A50: =IF('CC Ally 2'!D51=0,"",'CC Ally 2'!D51) -> SpartanGoldberg | C50: =IF(A50=0,"",'CC Ally 2'!E51) -> 3004464 | E50: =IFERROR(VLOOKUP(A50,'Liste des joueurs'!A48:D20351,2),"") -> 13 | F50: =IFERROR(VLOOKUP(A50,'Liste des joueurs'!A48:D20351,3),"") -> 290 | G50: 117.0384552 | H50: =IFERROR('Data Ally 2'!G48,"") -> 03:15:02
A51: =IF('CC Ally 2'!D52=0,"",'CC Ally 2'!D52) -> Sizz31 | C51: =IF(A51=0,"",'CC Ally 2'!E52) -> 2775886 | E51: =IFERROR(VLOOKUP(A51,'Liste des joueurs'!A48:D20351,2),"") -> 14 | F51: =IFERROR(VLOOKUP(A51,'Liste des joueurs'!A48:D20351,3),"") -> 102 | G51: 71.02816343 | H51: =IFERROR('Data Ally 2'!G49,"") -> 02:06:02
A52: =IF('CC Ally 2'!D53=0,"",'CC Ally 2'!D53) -> Fubia | C52: =IF(A52=0,"",'CC Ally 2'!E53) -> 2254936 | E52: =IFERROR(VLOOKUP(A52,'Liste des joueurs'!A50:D20353,2),"") -> 18 | F52: =IFERROR(VLOOKUP(A52,'Liste des joueurs'!A50:D20353,3),"") -> 336 | G52: 163.0122695 | H52: =IFERROR('Data Ally 2'!G50,"") -> 04:15:30
A53: =IF('CC Ally 2'!D54=0,"",'CC Ally 2'!D54) -> Struf | C53: =IF(A53=0,"",'CC Ally 2'!E54) -> 1943200 | E53: =IFERROR(VLOOKUP(A53,'Liste des joueurs'!A50:D20353,2),"") -> 31 | F53: =IFERROR(VLOOKUP(A53,'Liste des joueurs'!A50:D20353,3),"") -> 191 | G53: 23.43074903 | H53: =IFERROR('Data Ally 2'!G51,"") -> 00:44:26
A54: =IF('CC Ally 2'!D55=0,"",'CC Ally 2'!D55) -> Macflush3 | C54: =IF(A54=0,"",'CC Ally 2'!E55) -> 1837280 | E54: =IFERROR(VLOOKUP(A54,'Liste des joueurs'!A52:D20355,2),"") -> 6 | F54: =IFERROR(VLOOKUP(A54,'Liste des joueurs'!A52:D20355,3),"") -> 282 | G54: 109.4577544 | H54: =IFERROR('Data Ally 2'!G52,"") -> 03:04:17
A55: =IF('CC Ally 2'!D56=0,"",'CC Ally 2'!D56) -> Bart.Simpson | C55: =IF(A55=0,"",'CC Ally 2'!E56) -> 1836385 | E55: =IFERROR(VLOOKUP(A55,'Liste des joueurs'!A52:D20355,2),"") -> 20 | F55: =IFERROR(VLOOKUP(A55,'Liste des joueurs'!A52:D20355,3),"") -> 91 | G55: 82.09750301 | H55: =IFERROR('Data Ally 2'!G53,"") -> 02:23:29
A56: =IF('CC Ally 2'!D57=0,"",'CC Ally 2'!D57) -> Minibug | C56: =IF(A56=0,"",'CC Ally 2'!E57) -> 1781761 | E56: =IFERROR(VLOOKUP(A56,'Liste des joueurs'!A54:D20357,2),"") -> 42 | F56: =IFERROR(VLOOKUP(A56,'Liste des joueurs'!A54:D20357,3),"") -> 19 | G56: 156.179384 | H56: =IFERROR('Data Ally 2'!G54,"") -> 04:07:00
A57: =IF('CC Ally 2'!D58=0,"",'CC Ally 2'!D58) -> tefeu2 | C57: =IF(A57=0,"",'CC Ally 2'!E58) -> 1722328 | E57: =IFERROR(VLOOKUP(A57,'Liste des joueurs'!A54:D20357,2),"") -> 42 | F57: =IFERROR(VLOOKUP(A57,'Liste des joueurs'!A54:D20357,3),"") -> 188 | G57: 30.01666204 | H57: =IFERROR('Data Ally 2'!G55,"") -> 00:56:24
A58: =IF('CC Ally 2'!D59=0,"",'CC Ally 2'!D59) -> coca | C58: =IF(A58=0,"",'CC Ally 2'!E59) -> 1405362 | E58: =IFERROR(VLOOKUP(A58,'Liste des joueurs'!A56:D20359,2),"") -> 11 | F58: =IFERROR(VLOOKUP(A58,'Liste des joueurs'!A56:D20359,3),"") -> 228 | G58: 55.22680509 | H58: =IFERROR('Data Ally 2'!G56,"") -> 01:40:10
A59: =IF('CC Ally 2'!D60=0,"",'CC Ally 2'!D60) -> Djika | C59: =IF(A59=0,"",'CC Ally 2'!E60) -> 1134235 | E59: =IFERROR(VLOOKUP(A59,'Liste des joueurs'!A56:D20359,2),"") -> 5 | F59: =IFERROR(VLOOKUP(A59,'Liste des joueurs'!A56:D20359,3),"") -> 60 | G59: 113.5341358 | H59: =IFERROR('Data Ally 2'!G57,"") -> 03:10:06
A60: =IF('CC Ally 2'!D61=0,"",'CC Ally 2'!D61) -> hellohiz | C60: =IF(A60=0,"",'CC Ally 2'!E61) -> 1132764 | E60: =IFERROR(VLOOKUP(A60,'Liste des joueurs'!A58:D20361,2),"") -> 11 | F60: =IFERROR(VLOOKUP(A60,'Liste des joueurs'!A58:D20361,3),"") -> 104 | G60: 69.18092223 | H60: =IFERROR('Data Ally 2'!G58,"") -> 02:03:04
A61: =IF('CC Ally 2'!D62=0,"",'CC Ally 2'!D62) -> trouch | C61: =IF(A61=0,"",'CC Ally 2'!E62) -> 1118160 | E61: =IFERROR(VLOOKUP(A61,'Liste des joueurs'!A58:D20361,2),"") -> 6 | F61: =IFERROR(VLOOKUP(A61,'Liste des joueurs'!A58:D20361,3),"") -> 275 | G61: 102.4890238 | H61: =IFERROR('Data Ally 2'!G59,"") -> 02:54:11
A62: =IF('CC Ally 2'!D63=0,"",'CC Ally 2'!D63) -> Rugbix | C62: =IF(A62=0,"",'CC Ally 2'!E63) -> 938826 | E62: =IFERROR(VLOOKUP(A62,'Liste des joueurs'!A60:D20363,2),"") -> 9 | F62: =IFERROR(VLOOKUP(A62,'Liste des joueurs'!A60:D20363,3),"") -> 43 | G62: 130.1883251 | H62: =IFERROR('Data Ally 2'!G60,"") -> 03:33:09
A63: =IF('CC Ally 2'!D64=0,"",'CC Ally 2'!D64) -> tobeerox | C63: =IF(A63=0,"",'CC Ally 2'!E64) -> 868785 | E63: =IFERROR(VLOOKUP(A63,'Liste des joueurs'!A60:D20363,2),"") -> 44 | F63: =IFERROR(VLOOKUP(A63,'Liste des joueurs'!A60:D20363,3),"") -> 136 | G63: 46.40043103 | H63: =IFERROR('Data Ally 2'!G61,"") -> 01:25:12
A64: =IF('CC Ally 2'!D65=0,"",'CC Ally 2'!D65) -> Nwoaar | C64: =IF(A64=0,"",'CC Ally 2'!E65) -> 865203 | E64: =IFERROR(VLOOKUP(A64,'Liste des joueurs'!A62:D20365,2),"") -> 8 | F64: =IFERROR(VLOOKUP(A64,'Liste des joueurs'!A62:D20365,3),"") -> 141 | G64: 32.984845 | H64: =IFERROR('Data Ally 2'!G62,"") -> 01:01:43
A65: =IF('CC Ally 2'!D66=0,"",'CC Ally 2'!D66) -> stankou | C65: =IF(A65=0,"",'CC Ally 2'!E66) -> 834784 | E65: =IFERROR(VLOOKUP(A65,'Liste des joueurs'!A62:D20365,2),"") -> 29 | F65: =IFERROR(VLOOKUP(A65,'Liste des joueurs'!A62:D20365,3),"") -> 176 | G65: 13.34166406 | H65: =IFERROR('Data Ally 2'!G63,"") -> 00:25:40
A66: =IF('CC Ally 2'!D67=0,"",'CC Ally 2'!D67) -> la-beuze | C66: =IF(A66=0,"",'CC Ally 2'!E67) -> 776401 | E66: =IFERROR(VLOOKUP(A66,'Liste des joueurs'!A64:D20367,2),"") -> 12 | F66: =IFERROR(VLOOKUP(A66,'Liste des joueurs'!A64:D20367,3),"") -> 40 | G66: 133.0601368 | H66: =IFERROR('Data Ally 2'!G64,"") -> 03:37:01
A67: =IF('CC Ally 2'!D68=0,"",'CC Ally 2'!D68) -> ourasi | C67: =IF(A67=0,"",'CC Ally 2'!E68) -> 749131 | E67: =IFERROR(VLOOKUP(A67,'Liste des joueurs'!A64:D20367,2),"") -> 24 | F67: =IFERROR(VLOOKUP(A67,'Liste des joueurs'!A64:D20367,3),"") -> 100 | G67: 73.43704787 | H67: =IFERROR('Data Ally 2'!G65,"") -> 02:09:53
A68: =IF('CC Ally 2'!D69=0,"",'CC Ally 2'!D69) -> fabiker | C68: =IF(A68=0,"",'CC Ally 2'!E69) -> 734336 | E68: =IFERROR(VLOOKUP(A68,'Liste des joueurs'!A66:D20369,2),"") -> 45 | F68: =IFERROR(VLOOKUP(A68,'Liste des joueurs'!A66:D20369,3),"") -> 161 | G68: 31.38470965 | H68: =IFERROR('Data Ally 2'!G66,"") -> 00:58:52
A69: =IF('CC Ally 2'!D70=0,"",'CC Ally 2'!D70) -> carpiste57970 | C69: =IF(A69=0,"",'CC Ally 2'!E70) -> 696306 | E69: =IFERROR(VLOOKUP(A69,'Liste des joueurs'!A66:D20369,2),"") -> 25 | F69: =IFERROR(VLOOKUP(A69,'Liste des joueurs'!A66:D20369,3),"") -> 58 | G69: 115.3516363 | H69: =IFERROR('Data Ally 2'!G67,"") -> 03:12:40
A70: =IF('CC Ally 2'!D71=0,"",'CC Ally 2'!D71) -> trickman | C70: =IF(A70=0,"",'CC Ally 2'!E71) -> 656652 | D70: =IF(AND((C70<=(3*$E$1)),(C70>=(0.5*$E$1))),"A PORTEE"," ") ->  | E70: =IFERROR(VLOOKUP(A70,'Liste des joueurs'!A68:D20371,2),"") -> 34 | F70: =IFERROR(VLOOKUP(A70,'Liste des joueurs'!A68:D20371,3),"") -> 92 | G70: =IFERROR(SQRT(($L$1-E70)^2+($L$2-F70)^2),"") -> 82.97590012 | H70: =IFERROR('Data Ally 2'!G68,"") -> 02:24:50
A71: =IF('CC Ally 2'!D72=0,"",'CC Ally 2'!D72) -> Slubs | C71: =IF(A71=0,"",'CC Ally 2'!E72) -> 628730 | E71: =IFERROR(VLOOKUP(A71,'Liste des joueurs'!A68:D20371,2),"") -> 46 | F71: =IFERROR(VLOOKUP(A71,'Liste des joueurs'!A68:D20371,3),"") -> 10 | G71: 165.7377446 | H71: =IFERROR('Data Ally 2'!G69,"") -> 04:18:50
A72: =IF('CC Ally 2'!D73=0,"",'CC Ally 2'!D73) -> GuillaumeF | C72: =IF(A72=0,"",'CC Ally 2'!E73) -> 601278 | E72: =IFERROR(VLOOKUP(A72,'Liste des joueurs'!A70:D20373,2),"") -> 31 | F72: =IFERROR(VLOOKUP(A72,'Liste des joueurs'!A70:D20373,3),"") -> 163 | G72: 18.02775638 | H72: =IFERROR('Data Ally 2'!G70,"") -> 00:34:27
A73: =IF('CC Ally 2'!D74=0,"",'CC Ally 2'!D74) -> Phenix | C73: =IF(A73=0,"",'CC Ally 2'!E74) -> 543226 | E73: =IFERROR(VLOOKUP(A73,'Liste des joueurs'!A70:D20373,2),"") -> 17 | F73: =IFERROR(VLOOKUP(A73,'Liste des joueurs'!A70:D20373,3),"") -> 57 | G73: 116.0043103 | H73: =IFERROR('Data Ally 2'!G71,"") -> 03:13:35
A74: =IF('CC Ally 2'!D75=0,"",'CC Ally 2'!D75) -> quilanvos78 | C74: =IF(A74=0,"",'CC Ally 2'!E75) -> 519277 | E74: =IFERROR(VLOOKUP(A74,'Liste des joueurs'!A72:D20375,2),"") -> 36 | F74: =IFERROR(VLOOKUP(A74,'Liste des joueurs'!A72:D20375,3),"") -> 88 | G74: 87.32124598 | H74: =IFERROR('Data Ally 2'!G72,"") -> 02:31:31
A75: =IF('CC Ally 2'!D76=0,"",'CC Ally 2'!D76) -> olitest | C75: =IF(A75=0,"",'CC Ally 2'!E76) -> 491458 | E75: =IFERROR(VLOOKUP(A75,'Liste des joueurs'!A72:D20375,2),"") -> 46 | F75: =IFERROR(VLOOKUP(A75,'Liste des joueurs'!A72:D20375,3),"") -> 98 | G75: 80.77747211 | H75: =IFERROR('Data Ally 2'!G73,"") -> 02:21:25
A76: =IF('CC Ally 2'!D77=0,"",'CC Ally 2'!D77) -> anthonysasuke | C76: =IF(A76=0,"",'CC Ally 2'!E77) -> 462942 | E76: =IFERROR(VLOOKUP(A76,'Liste des joueurs'!A74:D20377,2),"") -> 8 | F76: =IFERROR(VLOOKUP(A76,'Liste des joueurs'!A74:D20377,3),"") -> 56 | G76: 117.2731853 | H76: =IFERROR('Data Ally 2'!G74,"") -> 03:15:22
A77: =IF('CC Ally 2'!D78=0,"",'CC Ally 2'!D78) -> Giubel | C77: =IF(A77=0,"",'CC Ally 2'!E78) -> 433635 | E77: =IFERROR(VLOOKUP(A77,'Liste des joueurs'!A74:D20377,2),"") -> 19 | F77: =IFERROR(VLOOKUP(A77,'Liste des joueurs'!A74:D20377,3),"") -> 96 | G77: 77.0584194 | H77: =IFERROR('Data Ally 2'!G75,"") -> 02:15:36
A78: =IF('CC Ally 2'!D79=0,"",'CC Ally 2'!D79) -> clementin42 | C78: =IF(A78=0,"",'CC Ally 2'!E79) -> 428396 | E78: =IFERROR(VLOOKUP(A78,'Liste des joueurs'!A76:D20379,2),"") -> 11 | F78: =IFERROR(VLOOKUP(A78,'Liste des joueurs'!A76:D20379,3),"") -> 18 | G78: 155.0806242 | H78: =IFERROR('Data Ally 2'!G76,"") -> 04:05:37
A79: =IF('CC Ally 2'!D80=0,"",'CC Ally 2'!D80) -> allobye | C79: =IF(A79=0,"",'CC Ally 2'!E80) -> 363301 | E79: =IFERROR(VLOOKUP(A79,'Liste des joueurs'!A76:D20379,2),"") -> 7 | F79: =IFERROR(VLOOKUP(A79,'Liste des joueurs'!A76:D20379,3),"") -> 52 | G79: 121.3342491 | H79: =IFERROR('Data Ally 2'!G77,"") -> 03:21:02
A80: =IF('CC Ally 2'!D81=0,"",'CC Ally 2'!D81) -> Dragon25 | C80: =IF(A80=0,"",'CC Ally 2'!E81) -> 302228 | E80: =IFERROR(VLOOKUP(A80,'Liste des joueurs'!A78:D20381,2),"") -> 29 | F80: =IFERROR(VLOOKUP(A80,'Liste des joueurs'!A78:D20381,3),"") -> 186 | G80: 18.38477631 | H80: =IFERROR('Data Ally 2'!G78,"") -> 00:35:07
A81: =IF('CC Ally 2'!D82=0,"",'CC Ally 2'!D82) -> Ostrogott | C81: =IF(A81=0,"",'CC Ally 2'!E82) -> 297563 | E81: =IFERROR(VLOOKUP(A81,'Liste des joueurs'!A78:D20381,2),"") -> 25 | F81: =IFERROR(VLOOKUP(A81,'Liste des joueurs'!A78:D20381,3),"") -> 428 | G81: 255.1587741 | H81: =IFERROR('Data Ally 2'!G79,"") -> 05:55:11
A82: =IF('CC Ally 2'!D83=0,"",'CC Ally 2'!D83) -> Houssem | C82: =IF(A82=0,"",'CC Ally 2'!E83) -> 297113 | E82: =IFERROR(VLOOKUP(A82,'Liste des joueurs'!A80:D20383,2),"") -> 33 | F82: =IFERROR(VLOOKUP(A82,'Liste des joueurs'!A80:D20383,3),"") -> 319 | G82: 146.9863939 | H82: =IFERROR('Data Ally 2'!G80,"") -> 03:55:19
A83: =IF('CC Ally 2'!D84=0,"",'CC Ally 2'!D84) -> cevi18 | C83: =IF(A83=0,"",'CC Ally 2'!E84) -> 273417 | E83: =IFERROR(VLOOKUP(A83,'Liste des joueurs'!A80:D20383,2),"") -> 44 | F83: =IFERROR(VLOOKUP(A83,'Liste des joueurs'!A80:D20383,3),"") -> 162 | G83: 30.08321791 | H83: =IFERROR('Data Ally 2'!G81,"") -> 00:56:31
A84: =IF('CC Ally 2'!D85=0,"",'CC Ally 2'!D85) -> deadzone | C84: =IF(A84=0,"",'CC Ally 2'!E85) -> 269342 | E84: =IFERROR(VLOOKUP(A84,'Liste des joueurs'!A82:D20385,2),"") -> 11 | F84: =IFERROR(VLOOKUP(A84,'Liste des joueurs'!A82:D20385,3),"") -> 47 | G84: 126.0991673 | H84: =IFERROR('Data Ally 2'!G82,"") -> 03:27:35
A85: =IF('CC Ally 2'!D86=0,"",'CC Ally 2'!D86) -> Dtox | C85: =IF(A85=0,"",'CC Ally 2'!E86) -> 243000 | E85: =IFERROR(VLOOKUP(A85,'Liste des joueurs'!A82:D20385,2),"") -> 19 | F85: =IFERROR(VLOOKUP(A85,'Liste des joueurs'!A82:D20385,3),"") -> 44 | G85: 129.034879 | H85: =IFERROR('Data Ally 2'!G83,"") -> 03:31:35
A86: =IF('CC Ally 2'!D87=0,"",'CC Ally 2'!D87) -> Nordal | C86: =IF(A86=0,"",'CC Ally 2'!E87) -> 230466 | E86: =IFERROR(VLOOKUP(A86,'Liste des joueurs'!A84:D20387,2),"") -> 44 | F86: =IFERROR(VLOOKUP(A86,'Liste des joueurs'!A84:D20387,3),"") -> 159 | G86: 31.30495168 | H86: =IFERROR('Data Ally 2'!G84,"") -> 00:58:43
A87: =IF('CC Ally 2'!D88=0,"",'CC Ally 2'!D88) -> punkis | C87: =IF(A87=0,"",'CC Ally 2'!E88) -> 205117 | E87: =IFERROR(VLOOKUP(A87,'Liste des joueurs'!A84:D20387,2),"") -> 28 | F87: =IFERROR(VLOOKUP(A87,'Liste des joueurs'!A84:D20387,3),"") -> 47 | G87: 126.5701387 | H87: =IFERROR('Data Ally 2'!G85,"") -> 03:28:14
A88: =IF('CC Ally 2'!D89=0,"",'CC Ally 2'!D89) -> Shyzenka | C88: =IF(A88=0,"",'CC Ally 2'!E89) -> 202016 | E88: =IFERROR(VLOOKUP(A88,'Liste des joueurs'!A86:D20389,2),"") -> 34 | F88: =IFERROR(VLOOKUP(A88,'Liste des joueurs'!A86:D20389,3),"") -> 119 | G88: 56.92099788 | H88: =IFERROR('Data Ally 2'!G86,"") -> 01:43:00
A89: =IF('CC Ally 2'!D90=0,"",'CC Ally 2'!D90) -> Goelith | C89: =IF(A89=0,"",'CC Ally 2'!E90) -> 199183 | E89: =IFERROR(VLOOKUP(A89,'Liste des joueurs'!A86:D20389,2),"") -> 24 | F89: =IFERROR(VLOOKUP(A89,'Liste des joueurs'!A86:D20389,3),"") -> 20 | G89: 153.2090076 | H89: =IFERROR('Data Ally 2'!G87,"") -> 04:03:16
A90: =IF('CC Ally 2'!D91=0,"",'CC Ally 2'!D91) -> Destructor | C90: =IF(A90=0,"",'CC Ally 2'!E91) -> 172397 | E90: =IFERROR(VLOOKUP(A90,'Liste des joueurs'!A88:D20391,2),"") -> 35 | F90: =IFERROR(VLOOKUP(A90,'Liste des joueurs'!A88:D20391,3),"") -> 99 | G90: 76.40026178 | H90: =IFERROR('Data Ally 2'!G88,"") -> 02:14:34
A91: =IF('CC Ally 2'!D92=0,"",'CC Ally 2'!D92) -> Stalky | C91: =IF(A91=0,"",'CC Ally 2'!E92) -> 137749 | E91: =IFERROR(VLOOKUP(A91,'Liste des joueurs'!A88:D20391,2),"") -> 36 | F91: =IFERROR(VLOOKUP(A91,'Liste des joueurs'!A88:D20391,3),"") -> 13 | G91: 161.245155 | H91: =IFERROR('Data Ally 2'!G89,"") -> 04:13:19
A92: =IF('CC Ally 2'!D93=0,"",'CC Ally 2'!D93) -> l3dz | C92: =IF(A92=0,"",'CC Ally 2'!E93) -> 122000 | E92: =IFERROR(VLOOKUP(A92,'Liste des joueurs'!A90:D20393,2),"") -> 27 | F92: =IFERROR(VLOOKUP(A92,'Liste des joueurs'!A90:D20393,3),"") -> 108 | G92: 65.9241989 | H92: =IFERROR('Data Ally 2'!G90,"") -> 01:57:49
A93: =IF('CC Ally 2'!D94=0,"",'CC Ally 2'!D94) -> OURAGAN.II | C93: =IF(A93=0,"",'CC Ally 2'!E94) -> 121126 | E93: =IFERROR(VLOOKUP(A93,'Liste des joueurs'!A90:D20393,2),"") -> 18 | F93: =IFERROR(VLOOKUP(A93,'Liste des joueurs'!A90:D20393,3),"") -> 110 | G93: 63.03173804 | H93: =IFERROR('Data Ally 2'!G91,"") -> 01:53:06
A94: =IF('CC Ally 2'!D95=0,"",'CC Ally 2'!D95) -> Azeden9533 | C94: =IF(A94=0,"",'CC Ally 2'!E95) -> 103019 | E94: =IFERROR(VLOOKUP(A94,'Liste des joueurs'!A92:D20395,2),"") -> 26 | F94: =IFERROR(VLOOKUP(A94,'Liste des joueurs'!A92:D20395,3),"") -> 543 | G94: 370.1351105 | H94: =IFERROR('Data Ally 2'!G92,"") -> 07:27:52
A95: =IF('CC Ally 2'!D96=0,"",'CC Ally 2'!D96) -> stevenbreak | C95: =IF(A95=0,"",'CC Ally 2'!E96) -> 50030 | E95: =IFERROR(VLOOKUP(A95,'Liste des joueurs'!A92:D20395,2),"") -> 5 | F95: =IFERROR(VLOOKUP(A95,'Liste des joueurs'!A92:D20395,3),"") -> 50 | G95: 123.4908904 | H95: =IFERROR('Data Ally 2'!G93,"") -> 03:24:01
A96: =IF('CC Ally 2'!D97=0,"",'CC Ally 2'!D97) -> neufvy | C96: =IF(A96=0,"",'CC Ally 2'!E97) -> 151 | E96: =IFERROR(VLOOKUP(A96,'Liste des joueurs'!A94:D20397,2),"") -> 4 | F96: =IFERROR(VLOOKUP(A96,'Liste des joueurs'!A94:D20397,3),"") -> 2306 | G96: 2133.033755 | H96: =IFERROR('Data Ally 2'!G94,"") -> 11:24:38
A97: =IF('CC Ally 2'!D98=0,"",'CC Ally 2'!D98) -> MK_4ever | C97: =IF(A97=0,"",'CC Ally 2'!E98) -> 50 | E97: =IFERROR(VLOOKUP(A97,'Liste des joueurs'!A94:D20397,2),"") -> 18 | F97: =IFERROR(VLOOKUP(A97,'Liste des joueurs'!A94:D20397,3),"") -> 491 | G97: 318.0062892 | H97: =IFERROR('Data Ally 2'!G95,"") -> 06:49:35
A98: =IF('CC Ally 2'!D99=0,"",'CC Ally 2'!D99) ->  | C98: =IF(A98=0,"",'CC Ally 2'!E99) -> 0 | E98: =IFERROR(VLOOKUP(A98,'Liste des joueurs'!A96:D20399,2),"") ->  | F98: =IFERROR(VLOOKUP(A98,'Liste des joueurs'!A96:D20399,3),"") ->  | H98: =IFERROR('Data Ally 2'!G96,"") -> 
A99: =IF('CC Ally 2'!D100=0,"",'CC Ally 2'!D100) ->  | C99: =IF(A99=0,"",'CC Ally 2'!E100) -> 0 | E99: =IFERROR(VLOOKUP(A99,'Liste des joueurs'!A96:D20399,2),"") ->  | F99: =IFERROR(VLOOKUP(A99,'Liste des joueurs'!A96:D20399,3),"") ->  | H99: =IFERROR('Data Ally 2'!G97,"") -> 
A100: =IF('CC Ally 2'!D101=0,"",'CC Ally 2'!D101) ->  | C100: =IF(A100=0,"",'CC Ally 2'!E101) -> 0 | E100: =IFERROR(VLOOKUP(A100,'Liste des joueurs'!A98:D20401,2),"") ->  | F100: =IFERROR(VLOOKUP(A100,'Liste des joueurs'!A98:D20401,3),"") ->  | H100: =IFERROR('Data Ally 2'!G98,"") -> 
A101: ,

Sheet Alliance 3
A1: Dernière MaJ | B1: =TODAY() -> 2013-04-14 | D1: Mon tdc | E1: =Moi!C9 -> 239462551 | G1: VA | H1: =Moi!C7 -> 26 | J1: Pos perso: | K1: x | L1: =Moi!C4 -> 16
K2: y | L2: =Moi!C5 -> 173
B3: MAP | C3: TDC | D3: A portée ? | E3: x | F3: y | G3: Distance | H3: Temps
A4: =IF('CC Ally 3'!D5=0,"",'CC Ally 3'!D5) -> Koute | C4: =IF(A4=0,"",'CC Ally 3'!E5) -> 3300000000 | D4: =IF(AND((C4<=(3*$E$1)),(C4>=(0.5*$E$1))),"A PORTEE"," ") ->  | E4: =IFERROR(VLOOKUP(A4,'Liste des joueurs'!A2:D20305,2),"") -> 16 | F4: =IFERROR(VLOOKUP(A4,'Liste des joueurs'!A2:D20305,3),"") -> 59 | G4: =IFERROR(SQRT(($L$1-E4)^2+($L$2-F4)^2),"") -> 114 | H4: =IFERROR('Data Ally 3'!G2,"") -> 03:10:45
A5: =IF('CC Ally 3'!D6=0,"",'CC Ally 3'!D6) -> daine | C5: =IF(A5=0,"",'CC Ally 3'!E6) -> 1920000000 | D5: =IF(AND((C5<=(3*$E$1)),(C5>=(0.5*$E$1))),"A PORTEE"," ") ->  | E5: =IFERROR(VLOOKUP(A5,'Liste des joueurs'!A2:D20305,2),"") -> 19 | F5: =IFERROR(VLOOKUP(A5,'Liste des joueurs'!A2:D20305,3),"") -> 181 | G5: =IFERROR(SQRT(($L$1-E5)^2+($L$2-F5)^2),"") -> 8.544003745 | H5: =IFERROR('Data Ally 3'!G3,"") -> 00:16:33
A6: =IF('CC Ally 3'!D7=0,"",'CC Ally 3'!D7) -> eraser | C6: =IF(A6=0,"",'CC Ally 3'!E7) -> 1500925066 | D6: =IF(AND((C6<=(3*$E$1)),(C6>=(0.5*$E$1))),"A PORTEE"," ") ->  | E6: =IFERROR(VLOOKUP(A6,'Liste des joueurs'!A4:D20307,2),"") -> 22 | F6: =IFERROR(VLOOKUP(A6,'Liste des joueurs'!A4:D20307,3),"") -> 399 | G6: =IFERROR(SQRT(($L$1-E6)^2+($L$2-F6)^2),"") -> 226.079632 | H6: =IFERROR('Data Ally 3'!G4,"") -> 05:26:30
A7: =IF('CC Ally 3'!D8=0,"",'CC Ally 3'!D8) -> Matty | C7: =IF(A7=0,"",'CC Ally 3'!E8) -> 1181565918 | E7: =IFERROR(VLOOKUP(A7,'Liste des joueurs'!A4:D20307,2),"") -> 43 | F7: =IFERROR(VLOOKUP(A7,'Liste des joueurs'!A4:D20307,3),"") -> 14 | G7: 161.2761607 | H7: =IFERROR('Data Ally 3'!G5,"") -> 04:13:21
A8: =IF('CC Ally 3'!D9=0,"",'CC Ally 3'!D9) -> dreck | C8: =IF(A8=0,"",'CC Ally 3'!E9) -> 1060000000 | E8: =IFERROR(VLOOKUP(A8,'Liste des joueurs'!A6:D20309,2),"") -> 25 | F8: =IFERROR(VLOOKUP(A8,'Liste des joueurs'!A6:D20309,3),"") -> 1198 | G8: 1025.039511 | H8: =IFERROR('Data Ally 3'!G6,"") -> 10:49:29
A9: =IF('CC Ally 3'!D10=0,"",'CC Ally 3'!D10) -> sKorpion | C9: =IF(A9=0,"",'CC Ally 3'!E10) -> 580606946 | D9: A PORTEE | E9: =IFERROR(VLOOKUP(A9,'Liste des joueurs'!A6:D20309,2),"") -> 28 | F9: =IFERROR(VLOOKUP(A9,'Liste des joueurs'!A6:D20309,3),"") -> 84 | G9: 89.80534505 | H9: =IFERROR('Data Ally 3'!G7,"") -> 02:35:18
A10: =IF('CC Ally 3'!D11=0,"",'CC Ally 3'!D11) -> Schacka | C10: =IF(A10=0,"",'CC Ally 3'!E11) -> 557925025 | D10: A PORTEE | E10: =IFERROR(VLOOKUP(A10,'Liste des joueurs'!A8:D20311,2),"") -> 13 | F10: =IFERROR(VLOOKUP(A10,'Liste des joueurs'!A8:D20311,3),"") -> 92 | G10: 81.05553652 | H10: =IFERROR('Data Ally 3'!G8,"") -> 02:21:51
A11: =IF('CC Ally 3'!D12=0,"",'CC Ally 3'!D12) -> pixie | C11: =IF(A11=0,"",'CC Ally 3'!E12) -> 288763099 | D11: A PORTEE | E11: =IFERROR(VLOOKUP(A11,'Liste des joueurs'!A8:D20311,2),"") -> 27 | F11: =IFERROR(VLOOKUP(A11,'Liste des joueurs'!A8:D20311,3),"") -> 254 | G11: 81.74350127 | H11: =IFERROR('Data Ally 3'!G9,"") -> 02:22:56
A12: =IF('CC Ally 3'!D13=0,"",'CC Ally 3'!D13) -> elglando25 | C12: =IF(A12=0,"",'CC Ally 3'!E13) -> 235446988 | D12: A PORTEE | E12: =IFERROR(VLOOKUP(A12,'Liste des joueurs'!A10:D20313,2),"") -> 35 | F12: =IFERROR(VLOOKUP(A12,'Liste des joueurs'!A10:D20313,3),"") -> 170 | G12: 19.23538406 | H12: =IFERROR('Data Ally 3'!G10,"") -> 00:36:42
A13: =IF('CC Ally 3'!D14=0,"",'CC Ally 3'!D14) -> wallywilly | C13: =IF(A13=0,"",'CC Ally 3'!E14) -> 184655408 | D13: A PORTEE | E13: =IFERROR(VLOOKUP(A13,'Liste des joueurs'!A10:D20313,2),"") -> 40 | F13: =IFERROR(VLOOKUP(A13,'Liste des joueurs'!A10:D20313,3),"") -> 170 | G13: 24.18677324 | H13: =IFERROR('Data Ally 3'!G11,"") -> 00:45:49
A14: =IF('CC Ally 3'!D15=0,"",'CC Ally 3'!D15) -> gofast | C14: =IF(A14=0,"",'CC Ally 3'!E15) -> 76464443 | E14: =IFERROR(VLOOKUP(A14,'Liste des joueurs'!A12:D20315,2),"") -> 36 | F14: =IFERROR(VLOOKUP(A14,'Liste des joueurs'!A12:D20315,3),"") -> 139 | G14: 39.44616585 | H14: =IFERROR('Data Ally 3'!G12,"") -> 01:13:09
A15: =IF('CC Ally 3'!D16=0,"",'CC Ally 3'!D16) -> deus35 | C15: =IF(A15=0,"",'CC Ally 3'!E16) -> 56109310 | E15: =IFERROR(VLOOKUP(A15,'Liste des joueurs'!A12:D20315,2),"") -> 30 | F15: =IFERROR(VLOOKUP(A15,'Liste des joueurs'!A12:D20315,3),"") -> 99 | G15: 75.31268154 | H15: =IFERROR('Data Ally 3'!G13,"") -> 02:12:51
A16: =IF('CC Ally 3'!D17=0,"",'CC Ally 3'!D17) -> bnicky | C16: =IF(A16=0,"",'CC Ally 3'!E17) -> 41555680 | E16: =IFERROR(VLOOKUP(A16,'Liste des joueurs'!A14:D20317,2),"") -> 7 | F16: =IFERROR(VLOOKUP(A16,'Liste des joueurs'!A14:D20317,3),"") -> 438 | G16: 265.1527861 | H16: =IFERROR('Data Ally 3'!G14,"") -> 06:04:30
A17: =IF('CC Ally 3'!D18=0,"",'CC Ally 3'!D18) -> pomme | C17: =IF(A17=0,"",'CC Ally 3'!E18) -> 41378126 | E17: =IFERROR(VLOOKUP(A17,'Liste des joueurs'!A14:D20317,2),"") -> 22 | F17: =IFERROR(VLOOKUP(A17,'Liste des joueurs'!A14:D20317,3),"") -> 90 | G17: 83.21658489 | H17: =IFERROR('Data Ally 3'!G15,"") -> 02:25:12
A18: =IF('CC Ally 3'!D19=0,"",'CC Ally 3'!D19) -> edwinn | C18: =IF(A18=0,"",'CC Ally 3'!E19) -> 31914579 | E18: =IFERROR(VLOOKUP(A18,'Liste des joueurs'!A16:D20319,2),"") -> 40 | F18: =IFERROR(VLOOKUP(A18,'Liste des joueurs'!A16:D20319,3),"") -> 16 | G18: 158.8238017 | H18: =IFERROR('Data Ally 3'!G16,"") -> 04:10:18
A19: =IF('CC Ally 3'!D20=0,"",'CC Ally 3'!D20) -> Akkad | C19: =IF(A19=0,"",'CC Ally 3'!E20) -> 31498593 | E19: =IFERROR(VLOOKUP(A19,'Liste des joueurs'!A16:D20319,2),"") -> 43 | F19: =IFERROR(VLOOKUP(A19,'Liste des joueurs'!A16:D20319,3),"") -> 907 | G19: 734.4964261 | H19: =IFERROR('Data Ally 3'!G17,"") -> 10:02:02
A20: =IF('CC Ally 3'!D21=0,"",'CC Ally 3'!D21) -> lotinho | C20: =IF(A20=0,"",'CC Ally 3'!E21) -> 31342624 | E20: =IFERROR(VLOOKUP(A20,'Liste des joueurs'!A18:D20321,2),"") -> 40 | F20: =IFERROR(VLOOKUP(A20,'Liste des joueurs'!A18:D20321,3),"") -> 985 | G20: 812.3546024 | H20: =IFERROR('Data Ally 3'!G18,"") -> 10:18:49
A21: =IF('CC Ally 3'!D22=0,"",'CC Ally 3'!D22) -> StuPfix | C21: =IF(A21=0,"",'CC Ally 3'!E22) -> 19669986 | E21: =IFERROR(VLOOKUP(A21,'Liste des joueurs'!A18:D20321,2),"") -> 8 | F21: =IFERROR(VLOOKUP(A21,'Liste des joueurs'!A18:D20321,3),"") -> 300 | G21: 127.251719 | H21: =IFERROR('Data Ally 3'!G19,"") -> 03:29:10
A22: =IF('CC Ally 3'!D23=0,"",'CC Ally 3'!D23) -> Snagas | C22: =IF(A22=0,"",'CC Ally 3'!E23) -> 14485380 | E22: =IFERROR(VLOOKUP(A22,'Liste des joueurs'!A20:D20323,2),"") -> 46 | F22: =IFERROR(VLOOKUP(A22,'Liste des joueurs'!A20:D20323,3),"") -> 158 | G22: 33.54101966 | H22: =IFERROR('Data Ally 3'!G20,"") -> 01:02:43
A23: =IF('CC Ally 3'!D24=0,"",'CC Ally 3'!D24) -> krondgens | C23: =IF(A23=0,"",'CC Ally 3'!E24) -> 12496110 | E23: =IFERROR(VLOOKUP(A23,'Liste des joueurs'!A20:D20323,2),"") -> 32 | F23: =IFERROR(VLOOKUP(A23,'Liste des joueurs'!A20:D20323,3),"") -> 579 | G23: 406.3151486 | H23: =IFERROR('Data Ally 3'!G21,"") -> 07:51:16
A24: =IF('CC Ally 3'!D25=0,"",'CC Ally 3'!D25) -> uchiha | C24: =IF(A24=0,"",'CC Ally 3'!E25) -> 10649244 | E24: =IFERROR(VLOOKUP(A24,'Liste des joueurs'!A22:D20325,2),"") -> 47 | F24: =IFERROR(VLOOKUP(A24,'Liste des joueurs'!A22:D20325,3),"") -> 172 | G24: 31.01612484 | H24: =IFERROR('Data Ally 3'!G22,"") -> 00:58:12
A25: =IF('CC Ally 3'!D26=0,"",'CC Ally 3'!D26) -> sempervirens | C25: =IF(A25=0,"",'CC Ally 3'!E26) -> 8107860 | E25: =IFERROR(VLOOKUP(A25,'Liste des joueurs'!A22:D20325,2),"") -> 39 | F25: =IFERROR(VLOOKUP(A25,'Liste des joueurs'!A22:D20325,3),"") -> 239 | G25: 69.89277502 | H25: =IFERROR('Data Ally 3'!G23,"") -> 02:04:13
A26: =IF('CC Ally 3'!D27=0,"",'CC Ally 3'!D27) -> alijulien | C26: =IF(A26=0,"",'CC Ally 3'!E27) -> 7733668 | E26: =IFERROR(VLOOKUP(A26,'Liste des joueurs'!A24:D20327,2),"") -> 42 | F26: =IFERROR(VLOOKUP(A26,'Liste des joueurs'!A24:D20327,3),"") -> 20 | G26: 155.1934277 | H26: =IFERROR('Data Ally 3'!G24,"") -> 04:05:46
A27: =IF('CC Ally 3'!D28=0,"",'CC Ally 3'!D28) -> 77snake77 | C27: =IF(A27=0,"",'CC Ally 3'!E28) -> 5953541 | E27: =IFERROR(VLOOKUP(A27,'Liste des joueurs'!A24:D20327,2),"") -> 18 | F27: =IFERROR(VLOOKUP(A27,'Liste des joueurs'!A24:D20327,3),"") -> 309 | G27: 136.0147051 | H27: =IFERROR('Data Ally 3'!G25,"") -> 03:40:57
A28: =IF('CC Ally 3'!D29=0,"",'CC Ally 3'!D29) -> WeeD-Amnesia | C28: =IF(A28=0,"",'CC Ally 3'!E29) -> 5802482 | E28: =IFERROR(VLOOKUP(A28,'Liste des joueurs'!A26:D20329,2),"") -> 24 | F28: =IFERROR(VLOOKUP(A28,'Liste des joueurs'!A26:D20329,3),"") -> 13 | G28: 160.1998752 | H28: =IFERROR('Data Ally 3'!G26,"") -> 04:12:01
A29: =IF('CC Ally 3'!D30=0,"",'CC Ally 3'!D30) -> Riri | C29: =IF(A29=0,"",'CC Ally 3'!E30) -> 5462649 | E29: =IFERROR(VLOOKUP(A29,'Liste des joueurs'!A26:D20329,2),"") -> 3 | F29: =IFERROR(VLOOKUP(A29,'Liste des joueurs'!A26:D20329,3),"") -> 113 | G29: 61.39218191 | H29: =IFERROR('Data Ally 3'!G27,"") -> 01:50:24
A30: =IF('CC Ally 3'!D31=0,"",'CC Ally 3'!D31) -> Gwenole | C30: =IF(A30=0,"",'CC Ally 3'!E31) -> 5218824 | E30: =IFERROR(VLOOKUP(A30,'Liste des joueurs'!A28:D20331,2),"") -> 31 | F30: =IFERROR(VLOOKUP(A30,'Liste des joueurs'!A28:D20331,3),"") -> 226 | G30: 55.08175742 | H30: =IFERROR('Data Ally 3'!G28,"") -> 01:39:56
A31: =IF('CC Ally 3'!D32=0,"",'CC Ally 3'!D32) -> etoilenoire | C31: =IF(A31=0,"",'CC Ally 3'!E32) -> 3503386 | E31: =IFERROR(VLOOKUP(A31,'Liste des joueurs'!A28:D20331,2),"") -> 24 | F31: =IFERROR(VLOOKUP(A31,'Liste des joueurs'!A28:D20331,3),"") -> 119 | G31: 54.58937626 | H31: =IFERROR('Data Ally 3'!G29,"") -> 01:39:06
A32: =IF('CC Ally 3'!D33=0,"",'CC Ally 3'!D33) -> nettoyeur | C32: =IF(A32=0,"",'CC Ally 3'!E33) -> 3440402 | E32: =IFERROR(VLOOKUP(A32,'Liste des joueurs'!A30:D20333,2),"") -> 18 | F32: =IFERROR(VLOOKUP(A32,'Liste des joueurs'!A30:D20333,3),"") -> 119 | G32: 54.03702434 | H32: =IFERROR('Data Ally 3'!G30,"") -> 01:38:10
A33: =IF('CC Ally 3'!D34=0,"",'CC Ally 3'!D34) -> sillages | C33: =IF(A33=0,"",'CC Ally 3'!E34) -> 2108709 | E33: =IFERROR(VLOOKUP(A33,'Liste des joueurs'!A30:D20333,2),"") -> 22 | F33: =IFERROR(VLOOKUP(A33,'Liste des joueurs'!A30:D20333,3),"") -> 29 | G33: 144.1249458 | H33: =IFERROR('Data Ally 3'!G31,"") -> 03:51:37
A34: =IF('CC Ally 3'!D35=0,"",'CC Ally 3'!D35) -> aurjemi | C34: =IF(A34=0,"",'CC Ally 3'!E35) -> 1871948 | E34: =IFERROR(VLOOKUP(A34,'Liste des joueurs'!A32:D20335,2),"") -> 38 | F34: =IFERROR(VLOOKUP(A34,'Liste des joueurs'!A32:D20335,3),"") -> 210 | G34: 43.0464865 | H34: =IFERROR('Data Ally 3'!G32,"") -> 01:19:25
A35: =IF('CC Ally 3'!D36=0,"",'CC Ally 3'!D36) -> Balthazard55 | C35: =IF(A35=0,"",'CC Ally 3'!E36) -> 1861064 | E35: =IFERROR(VLOOKUP(A35,'Liste des joueurs'!A32:D20335,2),"") -> 38 | F35: =IFERROR(VLOOKUP(A35,'Liste des joueurs'!A32:D20335,3),"") -> 41 | G35: 133.8207757 | H35: =IFERROR('Data Ally 3'!G33,"") -> 03:38:02
A36: =IF('CC Ally 3'!D37=0,"",'CC Ally 3'!D37) -> oiseaudeproie | C36: =IF(A36=0,"",'CC Ally 3'!E37) -> 1661864 | E36: =IFERROR(VLOOKUP(A36,'Liste des joueurs'!A34:D20337,2),"") -> 25 | F36: =IFERROR(VLOOKUP(A36,'Liste des joueurs'!A34:D20337,3),"") -> 257 | G36: 84.48076704 | H36: =IFERROR('Data Ally 3'!G34,"") -> 02:27:09
A37: =IF('CC Ally 3'!D38=0,"",'CC Ally 3'!D38) -> kroing | C37: =IF(A37=0,"",'CC Ally 3'!E38) -> 1311728 | E37: =IFERROR(VLOOKUP(A37,'Liste des joueurs'!A34:D20337,2),"") -> 3 | F37: =IFERROR(VLOOKUP(A37,'Liste des joueurs'!A34:D20337,3),"") -> 182 | G37: 15.8113883 | H37: =IFERROR('Data Ally 3'!G35,"") -> 00:30:19
A38: =IF('CC Ally 3'!D39=0,"",'CC Ally 3'!D39) -> el-loco | C38: =IF(A38=0,"",'CC Ally 3'!E39) -> 1090773 | E38: =IFERROR(VLOOKUP(A38,'Liste des joueurs'!A36:D20339,2),"") -> 29 | F38: =IFERROR(VLOOKUP(A38,'Liste des joueurs'!A36:D20339,3),"") -> 48 | G38: 125.6741819 | H38: =IFERROR('Data Ally 3'!G36,"") -> 03:27:00
A39: =IF('CC Ally 3'!D40=0,"",'CC Ally 3'!D40) -> Pich39 | C39: =IF(A39=0,"",'CC Ally 3'!E40) -> 1046122 | E39: =IFERROR(VLOOKUP(A39,'Liste des joueurs'!A36:D20339,2),"") -> 17 | F39: =IFERROR(VLOOKUP(A39,'Liste des joueurs'!A36:D20339,3),"") -> 104 | G39: 69.007246 | H39: =IFERROR('Data Ally 3'!G37,"") -> 02:02:48
A40: =IF('CC Ally 3'!D41=0,"",'CC Ally 3'!D41) -> GammaNu | C40: =IF(A40=0,"",'CC Ally 3'!E41) -> 1034002 | E40: =IFERROR(VLOOKUP(A40,'Liste des joueurs'!A38:D20341,2),"") -> 13 | F40: =IFERROR(VLOOKUP(A40,'Liste des joueurs'!A38:D20341,3),"") -> 59 | G40: 114.0394669 | H40: =IFERROR('Data Ally 3'!G38,"") -> 03:10:49
A41: =IF('CC Ally 3'!D42=0,"",'CC Ally 3'!D42) -> Malicieuse | C41: =IF(A41=0,"",'CC Ally 3'!E42) -> 871472 | E41: =IFERROR(VLOOKUP(A41,'Liste des joueurs'!A38:D20341,2),"") -> 44 | F41: =IFERROR(VLOOKUP(A41,'Liste des joueurs'!A38:D20341,3),"") -> 53 | G41: 123.2233744 | H41: =IFERROR('Data Ally 3'!G39,"") -> 03:23:38
A42: =IF('CC Ally 3'!D43=0,"",'CC Ally 3'!D43) -> cipo1 | C42: =IF(A42=0,"",'CC Ally 3'!E43) -> 743360 | E42: =IFERROR(VLOOKUP(A42,'Liste des joueurs'!A40:D20343,2),"") -> 7 | F42: =IFERROR(VLOOKUP(A42,'Liste des joueurs'!A40:D20343,3),"") -> 204 | G42: 32.28002478 | H42: =IFERROR('Data Ally 3'!G40,"") -> 01:00:28
A43: =IF('CC Ally 3'!D44=0,"",'CC Ally 3'!D44) -> corgun | C43: =IF(A43=0,"",'CC Ally 3'!E44) -> 730086 | E43: =IFERROR(VLOOKUP(A43,'Liste des joueurs'!A40:D20343,2),"") -> 9 | F43: =IFERROR(VLOOKUP(A43,'Liste des joueurs'!A40:D20343,3),"") -> 42 | G43: 131.1868896 | H43: =IFERROR('Data Ally 3'!G41,"") -> 03:34:30
A44: =IF('CC Ally 3'!D45=0,"",'CC Ally 3'!D45) -> hano | C44: =IF(A44=0,"",'CC Ally 3'!E45) -> 496405 | E44: =IFERROR(VLOOKUP(A44,'Liste des joueurs'!A42:D20345,2),"") -> 14 | F44: =IFERROR(VLOOKUP(A44,'Liste des joueurs'!A42:D20345,3),"") -> 112 | G44: 61.03277808 | H44: =IFERROR('Data Ally 3'!G42,"") -> 01:49:49
A45: =IF('CC Ally 3'!D46=0,"",'CC Ally 3'!D46) -> Hyunkel | C45: =IF(A45=0,"",'CC Ally 3'!E46) -> 178796 | E45: =IFERROR(VLOOKUP(A45,'Liste des joueurs'!A42:D20345,2),"") -> 22 | F45: =IFERROR(VLOOKUP(A45,'Liste des joueurs'!A42:D20345,3),"") -> 1035 | G45: 862.0208814 | H45: =IFERROR('Data Ally 3'!G43,"") -> 10:27:43
A46: =IF('CC Ally 3'!D47=0,"",'CC Ally 3'!D47) -> jojo | C46: =IF(A46=0,"",'CC Ally 3'!E47) -> 53892 | E46: =IFERROR(VLOOKUP(A46,'Liste des joueurs'!A44:D20347,2),"") -> 11 | F46: =IFERROR(VLOOKUP(A46,'Liste des joueurs'!A44:D20347,3),"") -> 24 | G46: 149.083869 | H46: =IFERROR('Data Ally 3'!G44,"") -> 03:58:00
A47: =IF('CC Ally 3'!D48=0,"",'CC Ally 3'!D48) ->  | C47: =IF(A47=0,"",'CC Ally 3'!E48) -> 0 | E47: =IFERROR(VLOOKUP(A47,'Liste des joueurs'!A44:D20347,2),"") ->  | F47: =IFERROR(VLOOKUP(A47,'Liste des joueurs'!A44:D20347,3),"") ->  | H47: =IFERROR('Data Ally 3'!G45,"") -> 
A48: =IF('CC Ally 3'!D49=0,"",'CC Ally 3'!D49) ->  | C48: =IF(A48=0,"",'CC Ally 3'!E49) -> 0 | E48: =IFERROR(VLOOKUP(A48,'Liste des joueurs'!A46:D20349,2),"") ->  | F48: =IFERROR(VLOOKUP(A48,'Liste des joueurs'!A46:D20349,3),"") ->  | H48: =IFERROR('Data Ally 3'!G46,"") -> 
A49: =IF('CC Ally 3'!D50=0,"",'CC Ally 3'!D50) ->  | C49: =IF(A49=0,"",'CC Ally 3'!E50) -> 0 | E49: =IFERROR(VLOOKUP(A49,'Liste des joueurs'!A46:D20349,2),"") ->  | F49: =IFERROR(VLOOKUP(A49,'Liste des joueurs'!A46:D20349,3),"") ->  | H49: =IFERROR('Data Ally 3'!G47,"") -> 
A50: =IF('CC Ally 3'!D51=0,"",'CC Ally 3'!D51) ->  | C50: =IF(A50=0,"",'CC Ally 3'!E51) -> 0 | E50: =IFERROR(VLOOKUP(A50,'Liste des joueurs'!A48:D20351,2),"") ->  | F50: =IFERROR(VLOOKUP(A50,'Liste des joueurs'!A48:D20351,3),"") ->  | H50: =IFERROR('Data Ally 3'!G48,"") -> 
A51: =IF('CC Ally 3'!D52=0,"",'CC Ally 3'!D52) ->  | C51: =IF(A51=0,"",'CC Ally 3'!E52) -> 0 | E51: =IFERROR(VLOOKUP(A51,'Liste des joueurs'!A48:D20351,2),"") ->  | F51: =IFERROR(VLOOKUP(A51,'Liste des joueurs'!A48:D20351,3),"") ->  | H51: =IFERROR('Data Ally 3'!G49,"") -> 
A52: =IF('CC Ally 3'!D53=0,"",'CC Ally 3'!D53) ->  | C52: =IF(A52=0,"",'CC Ally 3'!E53) -> 0 | E52: =IFERROR(VLOOKUP(A52,'Liste des joueurs'!A50:D20353,2),"") ->  | F52: =IFERROR(VLOOKUP(A52,'Liste des joueurs'!A50:D20353,3),"") ->  | H52: =IFERROR('Data Ally 3'!G50,"") -> 
A53: =IF('CC Ally 3'!D54=0,"",'CC Ally 3'!D54) ->  | C53: =IF(A53=0,"",'CC Ally 3'!E54) -> 0 | E53: =IFERROR(VLOOKUP(A53,'Liste des joueurs'!A50:D20353,2),"") ->  | F53: =IFERROR(VLOOKUP(A53,'Liste des joueurs'!A50:D20353,3),"") ->  | H53: =IFERROR('Data Ally 3'!G51,"") -> 
A54: =IF('CC Ally 3'!D55=0,"",'CC Ally 3'!D55) ->  | C54: =IF(A54=0,"",'CC Ally 3'!E55) -> 0 | E54: =IFERROR(VLOOKUP(A54,'Liste des joueurs'!A52:D20355,2),"") ->  | F54: =IFERROR(VLOOKUP(A54,'Liste des joueurs'!A52:D20355,3),"") ->  | H54: =IFERROR('Data Ally 3'!G52,"") -> 
A55: =IF('CC Ally 3'!D56=0,"",'CC Ally 3'!D56) ->  | C55: =IF(A55=0,"",'CC Ally 3'!E56) -> 0 | E55: =IFERROR(VLOOKUP(A55,'Liste des joueurs'!A52:D20355,2),"") ->  | F55: =IFERROR(VLOOKUP(A55,'Liste des joueurs'!A52:D20355,3),"") ->  | H55: =IFERROR('Data Ally 3'!G53,"") -> 
A56: =IF('CC Ally 3'!D57=0,"",'CC Ally 3'!D57) ->  | C56: =IF(A56=0,"",'CC Ally 3'!E57) -> 0 | E56: =IFERROR(VLOOKUP(A56,'Liste des joueurs'!A54:D20357,2),"") ->  | F56: =IFERROR(VLOOKUP(A56,'Liste des joueurs'!A54:D20357,3),"") ->  | H56: =IFERROR('Data Ally 3'!G54,"") -> 
A57: =IF('CC Ally 3'!D58=0,"",'CC Ally 3'!D58) ->  | C57: =IF(A57=0,"",'CC Ally 3'!E58) -> 0 | E57: =IFERROR(VLOOKUP(A57,'Liste des joueurs'!A54:D20357,2),"") ->  | F57: =IFERROR(VLOOKUP(A57,'Liste des joueurs'!A54:D20357,3),"") ->  | H57: =IFERROR('Data Ally 3'!G55,"") -> 
A58: =IF('CC Ally 3'!D59=0,"",'CC Ally 3'!D59) ->  | C58: =IF(A58=0,"",'CC Ally 3'!E59) -> 0 | E58: =IFERROR(VLOOKUP(A58,'Liste des joueurs'!A56:D20359,2),"") ->  | F58: =IFERROR(VLOOKUP(A58,'Liste des joueurs'!A56:D20359,3),"") ->  | H58: =IFERROR('Data Ally 3'!G56,"") -> 
A59: =IF('CC Ally 3'!D60=0,"",'CC Ally 3'!D60) ->  | C59: =IF(A59=0,"",'CC Ally 3'!E60) -> 0 | E59: =IFERROR(VLOOKUP(A59,'Liste des joueurs'!A56:D20359,2),"") ->  | F59: =IFERROR(VLOOKUP(A59,'Liste des joueurs'!A56:D20359,3),"") ->  | H59: =IFERROR('Data Ally 3'!G57,"") -> 
A60: =IF('CC Ally 3'!D61=0,"",'CC Ally 3'!D61) ->  | C60: =IF(A60=0,"",'CC Ally 3'!E61) -> 0 | E60: =IFERROR(VLOOKUP(A60,'Liste des joueurs'!A58:D20361,2),"") ->  | F60: =IFERROR(VLOOKUP(A60,'Liste des joueurs'!A58:D20361,3),"") ->  | H60: =IFERROR('Data Ally 3'!G58,"") -> 
A61: =IF('CC Ally 3'!D62=0,"",'CC Ally 3'!D62) ->  | C61: =IF(A61=0,"",'CC Ally 3'!E62) -> 0 | E61: =IFERROR(VLOOKUP(A61,'Liste des joueurs'!A58:D20361,2),"") ->  | F61: =IFERROR(VLOOKUP(A61,'Liste des joueurs'!A58:D20361,3),"") ->  | H61: =IFERROR('Data Ally 3'!G59,"") -> 
A62: =IF('CC Ally 3'!D63=0,"",'CC Ally 3'!D63) ->  | C62: =IF(A62=0,"",'CC Ally 3'!E63) -> 0 | E62: =IFERROR(VLOOKUP(A62,'Liste des joueurs'!A60:D20363,2),"") ->  | F62: =IFERROR(VLOOKUP(A62,'Liste des joueurs'!A60:D20363,3),"") ->  | H62: =IFERROR('Data Ally 3'!G60,"") -> 
A63: =IF('CC Ally 3'!D64=0,"",'CC Ally 3'!D64) ->  | C63: =IF(A63=0,"",'CC Ally 3'!E64) -> 0 | E63: =IFERROR(VLOOKUP(A63,'Liste des joueurs'!A60:D20363,2),"") ->  | F63: =IFERROR(VLOOKUP(A63,'Liste des joueurs'!A60:D20363,3),"") ->  | H63: =IFERROR('Data Ally 3'!G61,"") -> 
A64: =IF('CC Ally 3'!D65=0,"",'CC Ally 3'!D65) ->  | C64: =IF(A64=0,"",'CC Ally 3'!E65) -> 0 | E64: =IFERROR(VLOOKUP(A64,'Liste des joueurs'!A62:D20365,2),"") ->  | F64: =IFERROR(VLOOKUP(A64,'Liste des joueurs'!A62:D20365,3),"") ->  | H64: =IFERROR('Data Ally 3'!G62,"") -> 
A65: =IF('CC Ally 3'!D66=0,"",'CC Ally 3'!D66) ->  | C65: =IF(A65=0,"",'CC Ally 3'!E66) -> 0 | E65: =IFERROR(VLOOKUP(A65,'Liste des joueurs'!A62:D20365,2),"") ->  | F65: =IFERROR(VLOOKUP(A65,'Liste des joueurs'!A62:D20365,3),"") ->  | H65: =IFERROR('Data Ally 3'!G63,"") -> 
A66: =IF('CC Ally 3'!D67=0,"",'CC Ally 3'!D67) ->  | C66: =IF(A66=0,"",'CC Ally 3'!E67) -> 0 | E66: =IFERROR(VLOOKUP(A66,'Liste des joueurs'!A64:D20367,2),"") ->  | F66: =IFERROR(VLOOKUP(A66,'Liste des joueurs'!A64:D20367,3),"") ->  | H66: =IFERROR('Data Ally 3'!G64,"") -> 
A67: =IF('CC Ally 3'!D68=0,"",'CC Ally 3'!D68) ->  | C67: =IF(A67=0,"",'CC Ally 3'!E68) -> 0 | E67: =IFERROR(VLOOKUP(A67,'Liste des joueurs'!A64:D20367,2),"") ->  | F67: =IFERROR(VLOOKUP(A67,'Liste des joueurs'!A64:D20367,3),"") ->  | H67: =IFERROR('Data Ally 3'!G65,"") -> 
A68: =IF('CC Ally 3'!D69=0,"",'CC Ally 3'!D69) ->  | C68: =IF(A68=0,"",'CC Ally 3'!E69) -> 0 | E68: =IFERROR(VLOOKUP(A68,'Liste des joueurs'!A66:D20369,2),"") ->  | F68: =IFERROR(VLOOKUP(A68,'Liste des joueurs'!A66:D20369,3),"") ->  | H68: =IFERROR('Data Ally 3'!G66,"") -> 
A69: =IF('CC Ally 3'!D70=0,"",'CC Ally 3'!D70) ->  | C69: =IF(A69=0,"",'CC Ally 3'!E70) -> 0 | E69: =IFERROR(VLOOKUP(A69,'Liste des joueurs'!A66:D20369,2),"") ->  | F69: =IFERROR(VLOOKUP(A69,'Liste des joueurs'!A66:D20369,3),"") ->  | H69: =IFERROR('Data Ally 3'!G67,"") -> 
A70: =IF('CC Ally 3'!D71=0,"",'CC Ally 3'!D71) ->  | C70: =IF(A70=0,"",'CC Ally 3'!E71) -> 0 | D70: =IF(AND((C70<=(3*$E$1)),(C70>=(0.5*$E$1))),"A PORTEE"," ") ->  | E70: =IFERROR(VLOOKUP(A70,'Liste des joueurs'!A68:D20371,2),"") ->  | F70: =IFERROR(VLOOKUP(A70,'Liste des joueurs'!A68:D20371,3),"") ->  | G70: =IFERROR(SQRT(($L$1-E70)^2+($L$2-F70)^2),"") ->  | H70: =IFERROR('Data Ally 3'!G68,"") -> 
A71: =IF('CC Ally 3'!D72=0,"",'CC Ally 3'!D72) ->  | C71: =IF(A71=0,"",'CC Ally 3'!E72) -> 0 | E71: =IFERROR(VLOOKUP(A71,'Liste des joueurs'!A68:D20371,2),"") ->  | F71: =IFERROR(VLOOKUP(A71,'Liste des joueurs'!A68:D20371,3),"") ->  | H71: =IFERROR('Data Ally 3'!G69,"") -> 
A72: =IF('CC Ally 3'!D73=0,"",'CC Ally 3'!D73) ->  | C72: =IF(A72=0,"",'CC Ally 3'!E73) -> 0 | E72: =IFERROR(VLOOKUP(A72,'Liste des joueurs'!A70:D20373,2),"") ->  | F72: =IFERROR(VLOOKUP(A72,'Liste des joueurs'!A70:D20373,3),"") ->  | H72: =IFERROR('Data Ally 3'!G70,"") -> 
A73: =IF('CC Ally 3'!D74=0,"",'CC Ally 3'!D74) ->  | C73: =IF(A73=0,"",'CC Ally 3'!E74) -> 0 | E73: =IFERROR(VLOOKUP(A73,'Liste des joueurs'!A70:D20373,2),"") ->  | F73: =IFERROR(VLOOKUP(A73,'Liste des joueurs'!A70:D20373,3),"") ->  | H73: =IFERROR('Data Ally 3'!G71,"") -> 
A74: =IF('CC Ally 3'!D75=0,"",'CC Ally 3'!D75) ->  | C74: =IF(A74=0,"",'CC Ally 3'!E75) -> 0 | E74: =IFERROR(VLOOKUP(A74,'Liste des joueurs'!A72:D20375,2),"") ->  | F74: =IFERROR(VLOOKUP(A74,'Liste des joueurs'!A72:D20375,3),"") ->  | H74: =IFERROR('Data Ally 3'!G72,"") -> 
A75: =IF('CC Ally 3'!D76=0,"",'CC Ally 3'!D76) ->  | C75: =IF(A75=0,"",'CC Ally 3'!E76) -> 0 | E75: =IFERROR(VLOOKUP(A75,'Liste des joueurs'!A72:D20375,2),"") ->  | F75: =IFERROR(VLOOKUP(A75,'Liste des joueurs'!A72:D20375,3),"") ->  | H75: =IFERROR('Data Ally 3'!G73,"") -> 
A76: =IF('CC Ally 3'!D77=0,"",'CC Ally 3'!D77) ->  | C76: =IF(A76=0,"",'CC Ally 3'!E77) -> 0 | E76: =IFERROR(VLOOKUP(A76,'Liste des joueurs'!A74:D20377,2),"") ->  | F76: =IFERROR(VLOOKUP(A76,'Liste des joueurs'!A74:D20377,3),"") ->  | H76: =IFERROR('Data Ally 3'!G74,"") -> 
A77: =IF('CC Ally 3'!D78=0,"",'CC Ally 3'!D78) ->  | C77: =IF(A77=0,"",'CC Ally 3'!E78) -> 0 | E77: =IFERROR(VLOOKUP(A77,'Liste des joueurs'!A74:D20377,2),"") ->  | F77: =IFERROR(VLOOKUP(A77,'Liste des joueurs'!A74:D20377,3),"") ->  | H77: =IFERROR('Data Ally 3'!G75,"") -> 
A78: =IF('CC Ally 3'!D79=0,"",'CC Ally 3'!D79) ->  | C78: =IF(A78=0,"",'CC Ally 3'!E79) -> 0 | E78: =IFERROR(VLOOKUP(A78,'Liste des joueurs'!A76:D20379,2),"") ->  | F78: =IFERROR(VLOOKUP(A78,'Liste des joueurs'!A76:D20379,3),"") ->  | H78: =IFERROR('Data Ally 3'!G76,"") -> 
A79: =IF('CC Ally 3'!D80=0,"",'CC Ally 3'!D80) ->  | C79: =IF(A79=0,"",'CC Ally 3'!E80) -> 0 | E79: =IFERROR(VLOOKUP(A79,'Liste des joueurs'!A76:D20379,2),"") ->  | F79: =IFERROR(VLOOKUP(A79,'Liste des joueurs'!A76:D20379,3),"") ->  | H79: =IFERROR('Data Ally 3'!G77,"") -> 
A80: =IF('CC Ally 3'!D81=0,"",'CC Ally 3'!D81) ->  | C80: =IF(A80=0,"",'CC Ally 3'!E81) -> 0 | E80: =IFERROR(VLOOKUP(A80,'Liste des joueurs'!A78:D20381,2),"") ->  | F80: =IFERROR(VLOOKUP(A80,'Liste des joueurs'!A78:D20381,3),"") ->  | H80: =IFERROR('Data Ally 3'!G78,"") -> 
A81: =IF('CC Ally 3'!D82=0,"",'CC Ally 3'!D82) ->  | C81: =IF(A81=0,"",'CC Ally 3'!E82) -> 0 | E81: =IFERROR(VLOOKUP(A81,'Liste des joueurs'!A78:D20381,2),"") ->  | F81: =IFERROR(VLOOKUP(A81,'Liste des joueurs'!A78:D20381,3),"") ->  | H81: =IFERROR('Data Ally 3'!G79,"") -> 
A82: =IF('CC Ally 3'!D83=0,"",'CC Ally 3'!D83) ->  | C82: =IF(A82=0,"",'CC Ally 3'!E83) -> 0 | E82: =IFERROR(VLOOKUP(A82,'Liste des joueurs'!A80:D20383,2),"") ->  | F82: =IFERROR(VLOOKUP(A82,'Liste des joueurs'!A80:D20383,3),"") ->  | H82: =IFERROR('Data Ally 3'!G80,"") -> 
A83: =IF('CC Ally 3'!D84=0,"",'CC Ally 3'!D84) ->  | C83: =IF(A83=0,"",'CC Ally 3'!E84) -> 0 | E83: =IFERROR(VLOOKUP(A83,'Liste des joueurs'!A80:D20383,2),"") ->  | F83: =IFERROR(VLOOKUP(A83,'Liste des joueurs'!A80:D20383,3),"") ->  | H83: =IFERROR('Data Ally 3'!G81,"") -> 
A84: =IF('CC Ally 3'!D85=0,"",'CC Ally 3'!D85) ->  | C84: =IF(A84=0,"",'CC Ally 3'!E85) -> 0 | E84: =IFERROR(VLOOKUP(A84,'Liste des joueurs'!A82:D20385,2),"") ->  | F84: =IFERROR(VLOOKUP(A84,'Liste des joueurs'!A82:D20385,3),"") ->  | H84: =IFERROR('Data Ally 3'!G82,"") -> 
A85: =IF('CC Ally 3'!D86=0,"",'CC Ally 3'!D86) ->  | C85: =IF(A85=0,"",'CC Ally 3'!E86) -> 0 | E85: =IFERROR(VLOOKUP(A85,'Liste des joueurs'!A82:D20385,2),"") ->  | F85: =IFERROR(VLOOKUP(A85,'Liste des joueurs'!A82:D20385,3),"") ->  | H85: =IFERROR('Data Ally 3'!G83,"") -> 
A86: =IF('CC Ally 3'!D87=0,"",'CC Ally 3'!D87) ->  | C86: =IF(A86=0,"",'CC Ally 3'!E87) -> 0 | E86: =IFERROR(VLOOKUP(A86,'Liste des joueurs'!A84:D20387,2),"") ->  | F86: =IFERROR(VLOOKUP(A86,'Liste des joueurs'!A84:D20387,3),"") ->  | H86: =IFERROR('Data Ally 3'!G84,"") -> 
A87: =IF('CC Ally 3'!D88=0,"",'CC Ally 3'!D88) ->  | C87: =IF(A87=0,"",'CC Ally 3'!E88) -> 0 | E87: =IFERROR(VLOOKUP(A87,'Liste des joueurs'!A84:D20387,2),"") ->  | F87: =IFERROR(VLOOKUP(A87,'Liste des joueurs'!A84:D20387,3),"") ->  | H87: =IFERROR('Data Ally 3'!G85,"") -> 
A88: =IF('CC Ally 3'!D89=0,"",'CC Ally 3'!D89) ->  | C88: =IF(A88=0,"",'CC Ally 3'!E89) -> 0 | E88: =IFERROR(VLOOKUP(A88,'Liste des joueurs'!A86:D20389,2),"") ->  | F88: =IFERROR(VLOOKUP(A88,'Liste des joueurs'!A86:D20389,3),"") ->  | H88: =IFERROR('Data Ally 3'!G86,"") -> 
A89: =IF('CC Ally 3'!D90=0,"",'CC Ally 3'!D90) ->  | C89: =IF(A89=0,"",'CC Ally 3'!E90) -> 0 | E89: =IFERROR(VLOOKUP(A89,'Liste des joueurs'!A86:D20389,2),"") ->  | F89: =IFERROR(VLOOKUP(A89,'Liste des joueurs'!A86:D20389,3),"") ->  | H89: =IFERROR('Data Ally 3'!G87,"") -> 
A90: =IF('CC Ally 3'!D91=0,"",'CC Ally 3'!D91) ->  | C90: =IF(A90=0,"",'CC Ally 3'!E91) -> 0 | E90: =IFERROR(VLOOKUP(A90,'Liste des joueurs'!A88:D20391,2),"") ->  | F90: =IFERROR(VLOOKUP(A90,'Liste des joueurs'!A88:D20391,3),"") ->  | H90: =IFERROR('Data Ally 3'!G88,"") -> 
A91: =IF('CC Ally 3'!D92=0,"",'CC Ally 3'!D92) ->  | C91: =IF(A91=0,"",'CC Ally 3'!E92) -> 0 | E91: =IFERROR(VLOOKUP(A91,'Liste des joueurs'!A88:D20391,2),"") ->  | F91: =IFERROR(VLOOKUP(A91,'Liste des joueurs'!A88:D20391,3),"") ->  | H91: =IFERROR('Data Ally 3'!G89,"") -> 
A92: =IF('CC Ally 3'!D93=0,"",'CC Ally 3'!D93) ->  | C92: =IF(A92=0,"",'CC Ally 3'!E93) -> 0 | E92: =IFERROR(VLOOKUP(A92,'Liste des joueurs'!A90:D20393,2),"") ->  | F92: =IFERROR(VLOOKUP(A92,'Liste des joueurs'!A90:D20393,3),"") ->  | H92: =IFERROR('Data Ally 3'!G90,"") -> 
A93: =IF('CC Ally 3'!D94=0,"",'CC Ally 3'!D94) ->  | C93: =IF(A93=0,"",'CC Ally 3'!E94) -> 0 | E93: =IFERROR(VLOOKUP(A93,'Liste des joueurs'!A90:D20393,2),"") ->  | F93: =IFERROR(VLOOKUP(A93,'Liste des joueurs'!A90:D20393,3),"") ->  | H93: =IFERROR('Data Ally 3'!G91,"") -> 
A94: =IF('CC Ally 3'!D95=0,"",'CC Ally 3'!D95) ->  | C94: =IF(A94=0,"",'CC Ally 3'!E95) -> 0 | E94: =IFERROR(VLOOKUP(A94,'Liste des joueurs'!A92:D20395,2),"") ->  | F94: =IFERROR(VLOOKUP(A94,'Liste des joueurs'!A92:D20395,3),"") ->  | H94: =IFERROR('Data Ally 3'!G92,"") -> 
A95: =IF('CC Ally 3'!D96=0,"",'CC Ally 3'!D96) ->  | C95: =IF(A95=0,"",'CC Ally 3'!E96) -> 0 | E95: =IFERROR(VLOOKUP(A95,'Liste des joueurs'!A92:D20395,2),"") ->  | F95: =IFERROR(VLOOKUP(A95,'Liste des joueurs'!A92:D20395,3),"") ->  | H95: =IFERROR('Data Ally 3'!G93,"") -> 
A96: =IF('CC Ally 3'!D97=0,"",'CC Ally 3'!D97) ->  | C96: =IF(A96=0,"",'CC Ally 3'!E97) -> 0 | E96: =IFERROR(VLOOKUP(A96,'Liste des joueurs'!A94:D20397,2),"") ->  | F96: =IFERROR(VLOOKUP(A96,'Liste des joueurs'!A94:D20397,3),"") ->  | H96: =IFERROR('Data Ally 3'!G94,"") -> 
A97: =IF('CC Ally 3'!D98=0,"",'CC Ally 3'!D98) ->  | C97: =IF(A97=0,"",'CC Ally 3'!E98) -> 0 | E97: =IFERROR(VLOOKUP(A97,'Liste des joueurs'!A94:D20397,2),"") ->  | F97: =IFERROR(VLOOKUP(A97,'Liste des joueurs'!A94:D20397,3),"") ->  | H97: =IFERROR('Data Ally 3'!G95,"") -> 
A98: =IF('CC Ally 3'!D99=0,"",'CC Ally 3'!D99) ->  | C98: =IF(A98=0,"",'CC Ally 3'!E99) -> 0 | E98: =IFERROR(VLOOKUP(A98,'Liste des joueurs'!A96:D20399,2),"") ->  | F98: =IFERROR(VLOOKUP(A98,'Liste des joueurs'!A96:D20399,3),"") ->  | H98: =IFERROR('Data Ally 3'!G96,"") -> 
A99: =IF('CC Ally 3'!D100=0,"",'CC Ally 3'!D100) ->  | C99: =IF(A99=0,"",'CC Ally 3'!E100) -> 0 | E99: =IFERROR(VLOOKUP(A99,'Liste des joueurs'!A96:D20399,2),"") ->  | F99: =IFERROR(VLOOKUP(A99,'Liste des joueurs'!A96:D20399,3),"") ->  | H99: =IFERROR('Data Ally 3'!G97,"") -> 
A100: =IF('CC Ally 3'!D101=0,"",'CC Ally 3'!D101) ->  | C100: =IF(A100=0,"",'CC Ally 3'!E101) -> 0 | E100: =IFERROR(VLOOKUP(A100,'Liste des joueurs'!A98:D20401,2),"") ->  | F100: =IFERROR(VLOOKUP(A100,'Liste des joueurs'!A98:D20401,3),"") ->  | H100: =IFERROR('Data Ally 3'!G98,"") -> 
A101: ,

Sheet CC Mon Ally
B2: Bien penser à reset avant de c/c !
B3: C/c en B5
B5: 1 | C5: Harvestkiller | D5: spetsnaz | E5: 3500000000 | F5: 177 | G5: 313
B6: 2 | C6: Harvestkiller | D6: Azkanith | E6: 3500000000 | F6: 196 | G6: 317
B7: 3 | C7: Harvestkiller | D7: agecanonix | E7: 3478184525 | F7: 145 | G7: 275
B8: 4 | C8: Harvestkiller | D8: Bruxelles | E8: 3200000000 | F8: 152 | G8: 287
B9: 5 | C9: Harvestkiller | D9: Wolverine | E9: 2500000000 | F9: 172 | G9: 280
B10: 6 | C10: Harvestkiller | D10: svanhilde | E10: 2500000000 | F10: 181 | G10: 318
B11: 7 | C11: Géokiller | D11: Thunderbird | E11: 2202808830 | F11: 183 | G11: 314
B12: 8 | C12: Harvestkiller | D12: Bactroban | E12: 2154874164 | F12: 133 | G12: 256
B13: 9 | C13: Relief Fund | D13: Myvin | E13: 1983940382 | F13: 170 | G13: 312
B14: 10 | C14: Géokiller | D14: pANTSu | E14: 1892810001 | F14: 174 | G14: 304
B15: 11 | C15: Géokiller | D15: Drusilla | E15: 1855225863 | F15: 174 | G15: 313
B16: 12 | C16: Harvestkiller | D16: marchombre | E16: 1650134494 | F16: 180 | G16: 312
B17: 13 | C17: Économe Noir - Géokiller ₪ | D17: Gueust | E17: 1620632393 | F17: 170 | G17: 306
B18: 14 | C18: Harvestkiller | D18: hador | E18: 1326361218 | F18: 180 | G18: 323
B19: 15 | C19: Économe Noir - Géokiller ₪ | D19: Ishigo | E19: 1062861275 | F19: 177 | G19: 324
B20: 16 | C20: Nomade - sous protection Théocrâte | D20: Phenixx | E20: 908308062 | F20: 191 | G20: 310
B21: 17 | C21: Géokiller | D21: CroolisVar | E21: 692382228 | F21: 173 | G21: 321
B22: 18 | C22: Gardien Noir - Harvestkiller 🔑 | D22: Taouret | E22: 651445793 | F22: 137 | G22: 245
B23: 19 | C23: Géostratège Noire - Géokiller | D23: Rita | E23: 616559697 | F23: 180 | G23: 309
B24: 20 | C24: Nomarque Noir - Géokiller ۞ | D24: Rockslide | E24: 288382393 | F24: 183 | G24: 325
B25: 21 | C25: Géokiller | D25: Mimic | E25: 251775358 | F25: 176 | G25: 292
B26: 22 | C26: Géokiller | D26: Flipper1 | E26: 108182291 | F26: 168 | G26: 313
B27: 23 | C27: Géokiller | D27: Panda | E27: 104866328 | F27: 180 | G27: 317
B28: 24 | C28: Géokiller | D28: aubertignac | E28: 48254661 | F28: 184 | G28: 319
B29: 25 | C29: Géokiller | D29: bill | E29: 29697292 | F29: 190 | G29: 316
B30: 26 | C30: Shadowkiller | D30: Greeny | E30: 23220450 | F30: 171 | G30: 310
B31: 27 | C31: Économe Noir - Géokiller ₪ | D31: ryuk44 | E31: 17547152 | F31: 187 | G31: 307
B32: 28 | C32: Shadowkiller | D32: Tradjette | E32: 15009549 | F32: 185 | G32: 314
B33: 29 | C33: Shadowkiller | D33: Damping | E33: 13255085 | F33: 174 | G33: 305
B34: 30 | C34: Antskiller | D34: Rofulus | E34: 12724132 | F34: 177 | G34: 307
B35: 31 | C35: Nomade - sous protection Théocrâte | D35: pluginbaby | E35: 12705822 | F35: 179 | G35: 310
B36: 32 | C36: Shadowkiller | D36: Chryom | E36: 10858934 | F36: 180 | G36: 316
B37: 33 | C37: Harvestkiller | D37: miloveam | E37: 10733921 | F37: 161 | G37: 287
B38: 34 | C38: Shadowkiller | D38: sentih | E38: 9555130 | F38: 170 | G38: 304
B39: 35 | C39: Shadowkiller. | D39: Shikamaru | E39: 7411899 | F39: 186 | G39: 315
B40: 36 | C40: Nomarque Noir - Shadowkiller ۞ | D40: weaver | E40: 5458020 | F40: 190 | G40: 322
B41: 37 | C41: Antskiller | D41: Quivala | E41: 5166745 | F41: 177 | G41: 311
B42: 38 | C42: Pharaon Noir - Antskiller 🐜 | D42: DrAnts | E42: 5107770 | F42: 192 | G42: 313
B43: 39 | C43: Shadowkiller | D43: TheDentist | E43: 5095878 | F43: 170 | G43: 299
B44: 40 | C44: Nomarque Noir - Shadowkiller ۞ | D44: lipoussou | E44: 4626960 | F44: 178 | G44: 310
B45: 41 | C45: Vizir Noir - Shadowkiller ۝ | D45: Lesqual | E45: 4420390 | F45: 194 | G45: 320
B46: 42 | C46: Économe Noir - Shadowkiller ₪ | D46: Pinou | E46: 3752807 | F46: 166 | G46: 296
B47: 43 | C47: Shaman Noir - Enfermé dans sa tente | D47: Morphy | E47: 2941290 | F47: 156 | G47: 265
B48: 44 | C48: Antskiller | D48: osman | E48: 2563860 | F48: 171 | G48: 317
B49: 45 | C49: Économe Noir - Antskiller ₪ | D49: bib595 | E49: 2324016 | F49: 184 | G49: 320
B50: 46 | C50: Shadowkiller | D50: pacpac001 | E50: 1833364 | F50: 179 | G50: 318
B51: 47 | C51: Antskiller | D51: Mime | E51: 1741606 | F51: 176 | G51: 303
B52: 48 | C52: Antskiller | D52: Lockheed | E52: 1576523 | F52: 182 | G52: 317
B53: 49 | C53: Antskiller | D53: EllaVonZedanltha | E53: 1453009 | F53: 190 | G53: 317
B54: 50 | C54: Antskiller | D54: Reex | E54: 1017264 | F54: 190 | G54: 325
B55: 51 | C55: Harvestkiller | D55: MilesGloriosus | E55: 190074 | F55: 190 | G55: 313
B56: 52 | C56: Nomarque Noir - Shadowkiller ۞ | D56: Seiduna | E56: 181306 | F56: 173 | G56: 312
B57: 53 | C57: Nomade - Aube Grise | D57: riblibli | E57: 124756 | F57: 164 | G57: 283
B58: 54 | C58: Nomarque Noir - Antskiller ۞ | D58: MagnetO | E58: 89366 | F58: 187 | G58: 315

Sheet CC Ally 1
B2: Bien penser à reset avant de c/c !
B3: C/c en B5
B5: 1 | C5: Soldat | D5: Apokles | E5: 2600000000 | F5: 170 | G5: 294
B6: 2 | C6: Soldat | D6: MicroMadere | E6: 2500000000 | F6: 170 | G6: 298
B7: 3 | C7: Gardien des Tombeaux | D7: baltazar14 | E7: 2250000000 | F7: 181 | G7: 315
B8: 4 | C8: Nomade - Sous protection | D8: vinkou | E8: 2046872542 | F8: 169 | G8: 304
B9: 5 | C9: Soldat | D9: carapuce | E9: 1337568063 | F9: 149 | G9: 278
B10: 6 | C10: Soldat | D10: Bastet | E10: 1300000000 | F10: 151 | G10: 298
B11: 7 | C11: Gardien des Tombeaux | D11: bryansixx | E11: 734047607 | F11: 182 | G11: 308
B12: 8 | C12: Soldat | D12: Indestructor | E12: 648837844 | F12: 165 | G12: 282
B13: 9 | C13: Gardien des Tombeaux | D13: Akrapovic | E13: 333983648 | F13: 187 | G13: 316
B14: 10 | C14: Soldat | D14: maitre-marchombres | E14: 233552894 | F14: 174 | G14: 296
B15: 11 | C15: Soldat | D15: le_chaton | E15: 187715367 | F15: 135 | G15: 279
B16: 12 | C16: Gardien des Tombeaux | D16: b-girl | E16: 80412661 | F16: 179 | G16: 307
B17: 13 | C17: Gardien des Tombeaux | D17: macgyver300 | E17: 49257464 | F17: 177 | G17: 307
B18: 14 | C18: Soldat | D18: MissXY | E18: 34365521 | F18: 169 | G18: 286
B19: 15 | C19: Soldat | D19: Mr_Patate | E19: 33182611 | F19: 169 | G19: 317
B20: 16 | C20: Nomarque | D20: Spirou | E20: 27534868 | F20: 144 | G20: 277
B21: 17 | C21: Soldat | D21: theputbill | E21: 22614492 | F21: 162 | G21: 308
B22: 18 | C22: Gardien des Tombeaux | D22: juri | E22: 20737866 | F22: 194 | G22: 323
B23: 19 | C23: Soldat | D23: bernard1349 | E23: 11561877 | F23: 167 | G23: 302
B24: 20 | C24: Vizir | D24: Oupouaout | E24: 9583255 | F24: 174 | G24: 294
B25: 21 | C25: Gardien des Tombeaux | D25: gilles21 | E25: 9561272 | F25: 178 | G25: 304
B26: 22 | C26: Soldat | D26: era92 | E26: 8961113 | F26: 167 | G26: 286
B27: 23 | C27: Nomarque | D27: z3rO | E27: 3258588 | F27: 175 | G27: 305
B28: 24 | C28: Pharaon | D28: Thoutmosis | E28: 2120299 | F28: 174 | G28: 296
B29: 25 | C29: Gardien des Tombeaux | D29: Cstinger | E29: 2077553 | F29: 178 | G29: 307
B30: 26 | C30: Gardien des Tombeaux | D30: kliff33740 | E30: 1860170 | F30: 192 | G30: 309
B31: 27 | C31: Soldat | D31: nsrsqual | E31: 1735147 | F31: 173 | G31: 306
B32: 28 | C32: Soldat | D32: Sangoten | E32: 1567834 | F32: 172 | G32: 313
B33: 29 | C33: Soldat | D33: polothedrummer | E33: 1011160 | F33: 167 | G33: 301
B34: 30 | C34: Soldat | D34: kapyro | E34: 969881 | F34: 172 | G34: 295
B35: 31 | C35: Soldat | D35: Le-Fauve | E35: 952211 | F35: 175 | G35: 309
B36: 32 | C36: Gardien des Tombeaux | D36: deezer | E36: 811141 | F36: 180 | G36: 317
B37: 33 | C37: Soldat | D37: Leojah | E37: 570125 | F37: 167 | G37: 305
B38: 34 | C38: Soldat | D38: Pipomambo | E38: 492205 | F38: 179 | G38: 305
B39: 35 | C39: Soldat | D39: keiser | E39: 410653 | F39: 177 | G39: 311
B40: 36 | C40: Vizir | D40: Imhotep | E40: 357772 | F40: 172 | G40: 300
B41: 37 | C41: Nomarque | D41: Exodus | E41: 349045 | F41: 176 | G41: 306
B42: 38 | C42: Soldat | D42: Goliath | E42: 342479 | F42: 170 | G42: 306
B43: 39 | C43: Soldat | D43: neko-san | E43: 232041 | F43: 176 | G43: 309
B44: 40 | C44: Nomade - Sous protection | D44: styrie | E44: 107993 | F44: 138 | G44: 262
B45: 41 | C45: Nomade - Sous protection | D45: Shesmou | E45: 83776 | F45: 163 | G45: 301
B46: 42 | C46: Nomade - Sous protection | D46: Menes | E46: 68011 | F46: 166 | G46: 286
B47: 43 | C47: Nomade - Sous protection | D47: idefix | E47: 19470 | F47: 162 | G47: 268

Sheet CC Ally 2
B2: Bien penser à reset avant de c/c !
B3: C/c en B5
B5: 1 | C5: ¤¤¤ G01 © ¤¤¤ | D5: lafourmirousse22 | E5: 6060000000 | F5: 165 | G5: 291
B6: 2 | C6: ¤¤¤ G02 © ¤¤¤ | D6: colofan | E6: 5800000000 | F6: 175 | G6: 297
B7: 3 | C7: ¤¤¤ G03 ® ¤¤¤ | D7: Pololamagouille | E7: 4900000000 | F7: 183 | G7: 281
B8: 4 | C8: ¤¤¤ G04 ¤¤¤ | D8: choupette | E8: 4690000000 | F8: 173 | G8: 312
B9: 5 | C9: ¤¤¤ G06 ¤¤¤ | D9: marco3000 | E9: 3600000000 | F9: 186 | G9: 297
B10: 6 | C10: ¤¤¤ G05 ¤¤¤ | D10: graxy | E10: 3600000000 | F10: 157 | G10: 296
B11: 7 | C11: ¤¤¤ ¥¥ G00 ¥¥ ¤¤¤ | D11: mcflan | E11: 2836363043 | F11: 159 | G11: 284
B12: 8 | C12: ¤¤¤ G10 ¤¤¤ | D12: Patoche | E12: 2568546739 | F12: 191 | G12: 322
B13: 9 | C13: ¤¤¤ G08 ¤¤¤ | D13: Adrien | E13: 2500000000 | F13: 166 | G13: 281
B14: 10 | C14: ¤¤¤ G12 ¤¤¤ | D14: kiralove | E14: 2320000000 | F14: 166 | G14: 290
B15: 11 | C15: ¤¤¤ G09 ¤¤¤ | D15: hyelo | E15: 2179466379 | F15: 186 | G15: 321
B16: 12 | C16: ¤¤¤ G14 ¤¤¤ | D16: gooze | E16: 1850000000 | F16: 162 | G16: 285
B17: 13 | C17: ¤¤¤ G15 ¤¤¤ | D17: seguy | E17: 1611529941 | F17: 190 | G17: 319
B18: 14 | C18: ¤¤¤ G13 ¤¤¤ | D18: Drax | E18: 1300000000 | F18: 179 | G18: 318
B19: 15 | C19: ¥¥ VIP - 1,15G ¥¥ | D19: blade | E19: 1150000000 | F19: 167 | G19: 300
B20: 16 | C20: ¤¤¤ G17 ¤¤¤ | D20: letraqueur | E20: 965176614 | F20: 196 | G20: 322
B21: 17 | C21: ¥ MK under protection - 941 361 604 ¥ | D21: Awaf | E21: 941361604 | F21: 138 | G21: 267
B22: 18 | C22: ¤¤¤ G21 ¤¤¤ | D22: nicolasto31 | E22: 720502820 | F22: 190 | G22: 311
B23: 19 | C23: ¥¥ VIP - 494,4 M ¥¥ | D23: lhyan | E23: 525999950 | F23: 180 | G23: 315
B24: 20 | C24: ¥ MK under protection - 428 408 162 ¥ | D24: Chiraze | E24: 428408162 | F24: 138 | G24: 264
B25: 21 | C25: ¥ MK under protection - 420 575 932 ¥ | D25: Antonin | E25: 411896393 | F25: 137 | G25: 255
B26: 22 | C26: ¤¤¤ G23 ¤¤¤ | D26: hellwolf11 | E26: 305445660 | F26: 188 | G26: 312
B27: 23 | C27: ¤¤¤ G22 ¤¤¤ | D27: erec | E27: 270184339 | F27: 172 | G27: 297
B28: 24 | C28: ¥ MK under protection - 236 491 661 ¥ | D28: Hugues | E28: 257366119 | F28: 139 | G28: 253
B29: 25 | C29: ¥ MK under protection - 200 000 000 ¥ | D29: Nicolasb | E29: 200000000 | F29: 144 | G29: 262
B30: 26 | C30: ¤¤¤ G18 ¤¤¤ | D30: astro19 | E30: 178594101 | F30: 158 | G30: 313
B31: 27 | C31: ¤¤¤ G28 ¤¤¤ | D31: LeJDueRRrr | E31: 133047096 | F31: 183 | G31: 314
B32: 28 | C32: ¤¤ P30 ¤¤ | D32: linepithema | E32: 101480995 | F32: 195 | G32: 321
B33: 29 | C33: ¤¤¤ G26 ¤¤¤ | D33: Nissart | E33: 89895053 | F33: 184 | G33: 306
B34: 30 | C34: ¤¤ P30 ¤¤ | D34: Corum | E34: 49160506 | F34: 170 | G34: 302
B35: 31 | C35: ¤¤ ¥ P50 ¥ ¤¤ | D35: brabancon | E35: 42253552 | F35: 191 | G35: 320
B36: 32 | C36: ¤¤ P40 ¤¤ | D36: Flow | E36: 42043746 | F36: 190 | G36: 319
B37: 33 | C37: ¤¤ P40 ¤¤ | D37: franck76 | E37: 38407322 | F37: 185 | G37: 314
B38: 34 | C38: ¤¤ Z P50 ® ¤¤ | D38: Zeref | E38: 27159344 | F38: 189 | G38: 317
B39: 35 | C39: ¤¤ P40 ¤¤ | D39: flydutchman | E39: 24068168 | F39: 174 | G39: 309
B40: 36 | C40: ¤¤ ¥ P30 ¥ © ¤¤ | D40: Nine | E40: 20306133 | F40: 193 | G40: 322
B41: 37 | C41: ¤¤ P60 ¤¤ | D41: Ant-Hologie | E41: 19546926 | F41: 185 | G41: 316
B42: 38 | C42: ¤¤ P60 ¤¤ | D42: dobby | E42: 16219851 | F42: 185 | G42: 306
B43: 39 | C43: ¤¤ ¥ P60 ¥ ¤¤ | D43: daubinum | E43: 15851739 | F43: 178 | G43: 314
B44: 40 | C44: ¤¤ P60 ¤¤ | D44: castor | E44: 9745168 | F44: 181 | G44: 316
B45: 41 | C45: ¤¤ P60 ¤¤ | D45: bobdenar | E45: 8830845 | F45: 176 | G45: 300
B46: 42 | C46: ¤¤ P60 ¤¤ | D46: Paglop | E46: 8186728 | F46: 185 | G46: 310
B47: 43 | C47: ¤¤ P70 ¤¤ | D47: destichado | E47: 7315698 | F47: 194 | G47: 324
B48: 44 | C48: ¤¤ ¥ P70 ¥ ¤¤ | D48: MistAr | E48: 4828503 | F48: 169 | G48: 291
B49: 45 | C49: ¤¤ P70 ¤¤ | D49: macewindu | E49: 3545650 | F49: 164 | G49: 293
B50: 46 | C50: ¤¤ ¥ P90 ¥ ¤¤ | D50: Lolo | E50: 3019848 | F50: 190 | G50: 310
B51: 47 | C51: ¤¤ P90 ¤¤ | D51: SpartanGoldberg | E51: 3004464 | F51: 183 | G51: 312
B52: 48 | C52: ¤¤ P80 ¤¤ | D52: Sizz31 | E52: 2775886 | F52: 185 | G52: 314
B53: 49 | C53: ¤¤ P70 ¤¤ | D53: Fubia | E53: 2254936 | F53: 174 | G53: 304
B54: 50 | C54: ¤¤ P80 ¤¤ | D54: Struf | E54: 1943200 | F54: 189 | G54: 315
B55: 51 | C55: ¤¤ P80 ¤¤ | D55: Macflush3 | E55: 1837280 | F55: 182 | G55: 312
B56: 52 | C56: ¤¤ ¥ P80 ¥ ¤¤ | D56: Bart.Simpson | E56: 1836385 | F56: 161 | G56: 287
B57: 53 | C57: ¤¤ P80 ¤¤ | D57: Minibug | E57: 1781761 | F57: 175 | G57: 308
B58: 54 | C58: ¤¤ P80 ¤¤ | D58: tefeu2 | E58: 1722328 | F58: 198 | G58: 324
B59: 55 | C59: ¤ ¥ Pas infos Pas ...¥ ¤ | D59: coca | E59: 1405362 | F59: 174 | G59: 301
B60: 56 | C60: ¤¤ P90 ¤¤ | D60: Djika | E60: 1134235 | F60: 166 | G60: 281
B61: 57 | C61: ¤¤ P80 ¤¤ | D61: hellohiz | E61: 1132764 | F61: 168 | G61: 293
B62: 58 | C62: ¤¤ P90 ¤¤ | D62: trouch | E62: 1118160 | F62: 176 | G62: 311
B63: 59 | C63: ¤¤ P70 ¤¤ | D63: Rugbix | E63: 938826 | F63: 182 | G63: 310
B64: 60 | C64: ¤¤ P90 ¤¤ | D64: tobeerox | E64: 868785 | F64: 175 | G64: 301
B65: 61 | C65: ¤¤ P90 ¤¤ | D65: Nwoaar | E65: 865203 | F65: 186 | G65: 309
B66: 62 | C66: ¤¤ P90 ¤¤ | D66: stankou | E66: 834784 | F66: 180 | G66: 312
B67: 63 | C67: ¤¤ P90 ¤¤ | D67: la-beuze | E67: 776401 | F67: 173 | G67: 295
B68: 64 | C68: ¤¤ P90 ¤¤ | D68: ourasi | E68: 749131 | F68: 178 | G68: 320
B69: 65 | C69: ¤¤ P90 ¤¤ | D69: fabiker | E69: 734336 | F69: 174 | G69: 299
B70: 66 | C70: ¤¤ P90 ¤¤ | D70: carpiste57970 | E70: 696306 | F70: 180 | G70: 305
B71: 67 | C71: ¤¤ P90 ¤¤ | D71: trickman | E71: 656652 | F71: 181 | G71: 310
B72: 68 | C72: ¤ S ¤ | D72: Slubs | E72: 628730 | F72: 189 | G72: 321
B73: 69 | C73: ¤ S ® ¤ | D73: GuillaumeF | E73: 601278 | F73: 187 | G73: 315
B74: 70 | C74: ¤¤ P90 ¤¤ | D74: Phenix | E74: 543226 | F74: 173 | G74: 299
B75: 71 | C75: ¤ S ¤ | D75: quilanvos78 | E75: 519277 | F75: 160 | G75: 298
B76: 72 | C76: ¤ ¥ Pas infos Pas ...¥ ¤ | D76: olitest | E76: 491458 | F76: 187 | G76: 315
B77: 73 | C77: ¤¤ P90 ¤¤ | D77: anthonysasuke | E77: 462942 | F77: 192 | G77: 316
B78: 74 | C78: ¤¤ P90 ¤¤ | D78: Giubel | E78: 433635 | F78: 173 | G78: 309
B79: 75 | C79: ¤¤ P90 ¤¤ | D79: clementin42 | E79: 428396 | F79: 187 | G79: 315
B80: 76 | C80: ¥¥ VIP ¥¥ | D80: allobye | E80: 363301 | F80: 168 | G80: 298
B81: 77 | C81: ¤ S ¤ | D81: Dragon25 | E81: 302228 | F81: 190 | G81: 317
B82: 78 | C82: ¤ S ¤ | D82: Ostrogott | E82: 297563 | F82: 179 | G82: 317
B83: 79 | C83: ¥ MK under protection - 502 638 451 ¥ | D83: Houssem | E83: 297113 | F83: 137 | G83: 268
B84: 80 | C84: ¤ S © ¤ | D84: cevi18 | E84: 273417 | F84: 187 | G84: 319
B85: 81 | C85: ¤ S © ¤ | D85: deadzone | E85: 269342 | F85: 194 | G85: 316
B86: 82 | C86: ® A FLOODER | D86: Dtox | E86: 243000 | F86: 163 | G86: 290
B87: 83 | C87: ¤ S ® ¤ | D87: Nordal | E87: 230466 | F87: 193 | G87: 314
B88: 84 | C88: ¤¤ P90 ¤¤ | D88: punkis | E88: 205117 | F88: 172 | G88: 303
B89: 85 | C89: ¤ S ® ¤ | D89: Shyzenka | E89: 202016 | F89: 186 | G89: 316
B90: 86 | C90: ¤¤¤ G20 ¤¤¤ | D90: Goelith | E90: 199183 | F90: 177 | G90: 298
B91: 87 | C91: ¤ ¥ Pas infos Pas ...¥ ¤ | D91: Destructor | E91: 172397 | F91: 181 | G91: 306
B92: 88 | C92: ¤¤¤ G07 © ¤¤¤ | D92: Stalky | E92: 137749 | F92: 170 | G92: 308
B93: 89 | C93: ¤ S ¤ | D93: l3dz | E93: 122000 | F93: 190 | G93: 326
B94: 90 | C94: ¤ S ¤ | D94: OURAGAN.II | E94: 121126 | F94: 139 | G94: 243
B95: 91 | C95: ¤ S ¤ | D95: Azeden9533 | E95: 103019 | F95: 179 | G95: 306
B96: 92 | C96: ¥¥ VIP ¥¥ | D96: stevenbreak | E96: 50030 | F96: 174 | G96: 306
B97: 93 | C97: ¥¥ VIP ¥¥ | D97: neufvy | E97: 151 | F97: 87 | G97: 144
B98: 94 | C98: ¤ Mascotte MK ¤ | D98: MK_4ever | E98: 50 | F98: 22 | G98: 35

Sheet CC Ally 3
B2: Bien penser à reset avant de c/c !
B3: C/c en B5
B5: 1 | C5: Chevalier | D5: Koute | E5: 3300000000 | F5: 155 | G5: 309
B6: 2 | C6: Chevalier | D6: daine | E6: 1920000000 | F6: 180 | G6: 317
B7: 3 | C7: Chevalier | D7: eraser | E7: 1500925066 | F7: 159 | G7: 291
B8: 4 | C8: Chevalier Zen | D8: Matty | E8: 1181565918 | F8: 179 | G8: 319
B9: 5 | C9: Chevalier | D9: dreck | E9: 1060000000 | F9: 151 | G9: 293
B10: 6 | C10: Chevalier GB | D10: sKorpion | E10: 580606946 | F10: 159 | G10: 293
B11: 7 | C11: Chevalier GB | D11: Schacka | E11: 557925025 | F11: 163 | G11: 310
B12: 8 | C12: No flood | D12: pixie | E12: 288763099 | F12: 184 | G12: 321
B13: 9 | C13: Chevalier EL GB | D13: elglando25 | E13: 235446988 | F13: 188 | G13: 320
B14: 10 | C14: Chevalier 0,5 | D14: wallywilly | E14: 184655408 | F14: 186 | G14: 323
B15: 11 | C15: Chevalier 0,5 | D15: gofast | E15: 76464443 | F15: 181 | G15: 304
B16: 12 | C16: Chevalier 0,5 | D16: deus35 | E16: 56109310 | F16: 171 | G16: 306
B17: 13 | C17: Chevalier 3 | D17: bnicky | E17: 41555680 | F17: 169 | G17: 289
B18: 14 | C18: ★ Maître de l Ordre et de la diplomatie ★ | D18: pomme | E18: 41378126 | F18: 183 | G18: 318
B19: 15 | C19: Chevalier du bois manquant 2 | D19: edwinn | E19: 31914579 | F19: 173 | G19: 310
B20: 16 | C20: Chevalier 2 | D20: Akkad | E20: 31498593 | F20: 174 | G20: 290
B21: 17 | C21: Chevalier 1 | D21: lotinho | E21: 31342624 | F21: 180 | G21: 309
B22: 18 | C22: Chevalier 4 | D22: StuPfix | E22: 19669986 | F22: 161 | G22: 286
B23: 19 | C23: Chevalier 4 | D23: Snagas | E23: 14485380 | F23: 178 | G23: 315
B24: 20 | C24: Chevalier 3 | D24: krondgens | E24: 12496110 | F24: 190 | G24: 304
B25: 21 | C25: Chevalier 5 | D25: uchiha | E25: 10649244 | F25: 180 | G25: 311
B26: 22 | C26: Chevalier 4 | D26: sempervirens | E26: 8107860 | F26: 167 | G26: 305
B27: 23 | C27: Chevalier 5 | D27: alijulien | E27: 7733668 | F27: 177 | G27: 289
B28: 24 | C28: Chevalier | D28: 77snake77 | E28: 5953541 | F28: 176 | G28: 300
B29: 25 | C29: Chevalier 6 | D29: WeeD-Amnesia | E29: 5802482 | F29: 149 | G29: 254
B30: 26 | C30: Chevalier 5 | D30: Riri | E30: 5462649 | F30: 182 | G30: 303
B31: 27 | C31: Chevalier 6 | D31: Gwenole | E31: 5218824 | F31: 171 | G31: 290
B32: 28 | C32: Chevalier Toy Boy n°7 | D32: etoilenoire | E32: 3503386 | F32: 187 | G32: 320
B33: 29 | C33: Chevalier K2R 6 | D33: nettoyeur | E33: 3440402 | F33: 170 | G33: 301
B34: 30 | C34: Chevalier Archange 8 | D34: sillages | E34: 2108709 | F34: 177 | G34: 303
B35: 31 | C35: Chevalier 7 | D35: aurjemi | E35: 1871948 | F35: 185 | G35: 296
B36: 32 | C36: Anatidé en latex (Chevalier 9) | D36: Balthazard55 | E36: 1861064 | F36: 186 | G36: 310
B37: 33 | C37: Chevalier 8 | D37: oiseaudeproie | E37: 1661864 | F37: 167 | G37: 279
B38: 34 | C38: Chevalier | D38: kroing | E38: 1311728 | F38: 145 | G38: 260
B39: 35 | C39: Chevalier 9 | D39: el-loco | E39: 1090773 | F39: 168 | G39: 286
B40: 36 | C40: Chevalier 9 | D40: Pich39 | E40: 1046122 | F40: 194 | G40: 313
B41: 37 | C41: Avatar de Lord Inateur 9 | D41: GammaNu | E41: 1034002 | F41: 195 | G41: 334
B42: 38 | C42: Chevalier Madonna | D42: Malicieuse | E42: 871472 | F42: 178 | G42: 309
B43: 39 | C43: Chevalier | D43: cipo1 | E43: 743360 | F43: 183 | G43: 318
B44: 40 | C44: Visiteur | D44: corgun | E44: 730086 | F44: 179 | G44: 302
B45: 41 | C45: Chevalier | D45: hano | E45: 496405 | F45: 174 | G45: 310
B46: 42 | C46: A flooder | D46: Hyunkel | E46: 178796 | F46: 165 | G46: 293
B47: 43 | C47: Chevalier Leonidas | D47: jojo | E47: 53892 | F47: 179 | G47: 311

Sheet Data Mon Ally (hidden)
A1: Temps | B1: Distance | C1: Temps | D1: h | E1: min | F1: sec | G1: Soit
A2: ='Mon Alliance'!A4 -> spetsnaz | B2: ='Mon Alliance'!G4 -> 53.66563146 | C2: =ROUNDUP(24*3600*(1-EXP(-B2/350))*7.375*(0.9^'Mon Alliance'!$H$1),0) -> 5853 | D2: =ROUNDDOWN(C2/3600,0) -> 1 | E2: =ROUNDDOWN((C2-D2*3600)/60,0) -> 37 | F2: =ROUNDUP((C2-D2*3600-E2*60),0) -> 33 | G2: =TIME(D2,E2,F2) -> 01:37:33
A3: ='Mon Alliance'!A5 -> Azkanith | B3: ='Mon Alliance'!G5 -> 112.6410227 | C3: =ROUNDUP(24*3600*(1-EXP(-B3/350))*7.375*(0.9^'Mon Alliance'!$H$1),0) -> 11330 | D3: =ROUNDDOWN(C3/3600,0) -> 3 | E3: =ROUNDDOWN((C3-D3*3600)/60,0) -> 8 | F3: =ROUNDUP((C3-D3*3600-E3*60),0) -> 50 | G3: =TIME(D3,E3,F3) -> 03:08:50
A4: ='Mon Alliance'!A6 -> agecanonix | B4: ='Mon Alliance'!G6 -> 98.08159868 | C4: =ROUNDUP(24*3600*(1-EXP(-B4/350))*7.375*(0.9^'Mon Alliance'!$H$1),0) -> 10062 | D4: 2 | E4: 47 | F4: 42 | G4: 02:47:42
A5: ='Mon Alliance'!A7 -> Bruxelles | B5: ='Mon Alliance'!G7 -> 119.6411301 | C5: =ROUNDUP(24*3600*(1-EXP(-B5/350))*7.375*(0.9^'Mon Alliance'!$H$1),0) -> 11921 | D5: 3 | E5: 18 | F5: 41 | G5: 03:18:41
A6: ='Mon Alliance'!A8 -> Wolverine | B6: ='Mon Alliance'!G8 -> 139.359248 | C6: =ROUNDUP(24*3600*(1-EXP(-B6/350))*7.375*(0.9^'Mon Alliance'!$H$1),0) -> 13523 | D6: 3 | E6: 45 | F6: 23 | G6: 03:45:23
A7: ='Mon Alliance'!A9 -> svanhilde | B7: ='Mon Alliance'!G9 -> 50.69516742 | C7: =ROUNDUP(24*3600*(1-EXP(-B7/350))*7.375*(0.9^'Mon Alliance'!$H$1),0) -> 5552 | D7: 1 | E7: 32 | F7: 32 | G7: 01:32:32
A8: ='Mon Alliance'!A10 -> Thunderbird | B8: ='Mon Alliance'!G10 -> 11.04536102 | C8: =ROUNDUP(24*3600*(1-EXP(-B8/350))*7.375*(0.9^'Mon Alliance'!$H$1),0) -> 1279 | D8: 0 | E8: 21 | F8: 19 | G8: 00:21:19
A9: ='Mon Alliance'!A11 -> Bactroban | B9: ='Mon Alliance'!G11 -> 58.13776741 | C9: =ROUNDUP(24*3600*(1-EXP(-B9/350))*7.375*(0.9^'Mon Alliance'!$H$1),0) -> 6301 | D9: 1 | E9: 45 | F9: 1 | G9: 01:45:01
A10: ='Mon Alliance'!A12 -> Myvin | B10: ='Mon Alliance'!G12 -> 136.6199107 | C10: =ROUNDUP(24*3600*(1-EXP(-B10/350))*7.375*(0.9^'Mon Alliance'!$H$1),0) -> 13306 | D10: 3 | E10: 41 | F10: 46 | G10: 03:41:46
A11: ='Mon Alliance'!A13 -> pANTSu | B11: ='Mon Alliance'!G13 -> 119.707978 | C11: =ROUNDUP(24*3600*(1-EXP(-B11/350))*7.375*(0.9^'Mon Alliance'!$H$1),0) -> 11926 | D11: 3 | E11: 18 | F11: 46 | G11: 03:18:46
A12: ='Mon Alliance'!A14 -> Drusilla | B12: ='Mon Alliance'!G14 -> 150.7481343 | C12: =ROUNDUP(24*3600*(1-EXP(-B12/350))*7.375*(0.9^'Mon Alliance'!$H$1),0) -> 14408 | D12: 4 | E12: 0 | F12: 8 | G12: 04:00:08
A13: ='Mon Alliance'!A15 -> marchombre | B13: ='Mon Alliance'!G15 -> 67 | C13: =ROUNDUP(24*3600*(1-EXP(-B13/350))*7.375*(0.9^'Mon Alliance'!$H$1),0) -> 7173 | D13: 1 | E13: 59 | F13: 33 | G13: 01:59:33
A14: ='Mon Alliance'!A16 -> Gueust | B14: ='Mon Alliance'!G16 -> 212.3982109 | C14: =ROUNDUP(24*3600*(1-EXP(-B14/350))*7.375*(0.9^'Mon Alliance'!$H$1),0) -> 18730 | D14: 5 | E14: 12 | F14: 10 | G14: 05:12:10
A15: ='Mon Alliance'!A17 -> hador | B15: ='Mon Alliance'!G17 -> 17.02938637 | C15: =ROUNDUP(24*3600*(1-EXP(-B15/350))*7.375*(0.9^'Mon Alliance'!$H$1),0) -> 1956 | D15: 0 | E15: 32 | F15: 36 | G15: 00:32:36
A16: ='Mon Alliance'!A18 -> Ishigo | B16: ='Mon Alliance'!G18 -> 70.34912935 | C16: =ROUNDUP(24*3600*(1-EXP(-B16/350))*7.375*(0.9^'Mon Alliance'!$H$1),0) -> 7497 | D16: 2 | E16: 4 | F16: 57 | G16: 02:04:57
A17: ='Mon Alliance'!A19 -> Phenixx | B17: ='Mon Alliance'!G19 -> 12.04159458 | C17: =ROUNDUP(24*3600*(1-EXP(-B17/350))*7.375*(0.9^'Mon Alliance'!$H$1),0) -> 1393 | D17: 0 | E17: 23 | F17: 13 | G17: 00:23:13
A18: ='Mon Alliance'!A20 -> CroolisVar | B18: ='Mon Alliance'!G20 -> 41.86884283 | C18: =ROUNDUP(24*3600*(1-EXP(-B18/350))*7.375*(0.9^'Mon Alliance'!$H$1),0) -> 4642 | D18: 1 | E18: 17 | F18: 22 | G18: 01:17:22
A19: ='Mon Alliance'!A21 -> Taouret | B19: ='Mon Alliance'!G21 -> 66.21933252 | C19: =ROUNDUP(24*3600*(1-EXP(-B19/350))*7.375*(0.9^'Mon Alliance'!$H$1),0) -> 7097 | D19: 1 | E19: 58 | F19: 17 | G19: 01:58:17
A20: ='Mon Alliance'!A22 -> Rita | B20: ='Mon Alliance'!G22 -> 145.9931505 | C20: =ROUNDUP(24*3600*(1-EXP(-B20/350))*7.375*(0.9^'Mon Alliance'!$H$1),0) -> 14042 | D20: 3 | E20: 54 | F20: 2 | G20: 03:54:02
A21: ='Mon Alliance'!A23 -> Rockslide | B21: ='Mon Alliance'!G23 -> 0 | C21: =ROUNDUP(24*3600*(1-EXP(-B21/350))*7.375*(0.9^'Mon Alliance'!$H$1),0) -> 0 | D21: 0 | E21: 0 | F21: 0 | G21: 00:00:00
A22: ='Mon Alliance'!A24 -> Mimic | B22: ='Mon Alliance'!G24 -> 28 | C22: =ROUNDUP(24*3600*(1-EXP(-B22/350))*7.375*(0.9^'Mon Alliance'!$H$1),0) -> 3166 | D22: 0 | E22: 52 | F22: 46 | G22: 00:52:46
A23: ='Mon Alliance'!A25 -> Flipper1 | B23: ='Mon Alliance'!G25 -> 104.1729331 | C23: =ROUNDUP(24*3600*(1-EXP(-B23/350))*7.375*(0.9^'Mon Alliance'!$H$1),0) -> 10599 | D23: 2 | E23: 56 | F23: 39 | G23: 02:56:39
A24: ='Mon Alliance'!A26 -> Panda | B24: ='Mon Alliance'!G26 -> 138.5207566 | C24: =ROUNDUP(24*3600*(1-EXP(-B24/350))*7.375*(0.9^'Mon Alliance'!$H$1),0) -> 13457 | D24: 3 | E24: 44 | F24: 17 | G24: 03:44:17
A25: ='Mon Alliance'!A27 -> aubertignac | B25: ='Mon Alliance'!G27 -> 121.4125199 | C25: =ROUNDUP(24*3600*(1-EXP(-B25/350))*7.375*(0.9^'Mon Alliance'!$H$1),0) -> 12068 | D25: 3 | E25: 21 | F25: 8 | G25: 03:21:08
A26: ='Mon Alliance'!A28 -> bill | B26: ='Mon Alliance'!G28 -> 61.07372594 | C26: =ROUNDUP(24*3600*(1-EXP(-B26/350))*7.375*(0.9^'Mon Alliance'!$H$1),0) -> 6593 | D26: 1 | E26: 49 | F26: 53 | G26: 01:49:53
A27: ='Mon Alliance'!A29 -> Greeny | B27: ='Mon Alliance'!G29 -> 123.199026 | C27: =ROUNDUP(24*3600*(1-EXP(-B27/350))*7.375*(0.9^'Mon Alliance'!$H$1),0) -> 12216 | D27: 3 | E27: 23 | F27: 36 | G27: 03:23:36
A28: ='Mon Alliance'!A30 -> ryuk44 | B28: ='Mon Alliance'!G30 -> 112.0714058 | C28: =ROUNDUP(24*3600*(1-EXP(-B28/350))*7.375*(0.9^'Mon Alliance'!$H$1),0) -> 11281 | D28: 3 | E28: 8 | F28: 1 | G28: 03:08:01
A29: ='Mon Alliance'!A31 -> Tradjette | B29: ='Mon Alliance'!G31 -> 160.2529251 | C29: =ROUNDUP(24*3600*(1-EXP(-B29/350))*7.375*(0.9^'Mon Alliance'!$H$1),0) -> 15125 | D29: 4 | E29: 12 | F29: 5 | G29: 04:12:05
A30: ='Mon Alliance'!A32 -> Damping | B30: ='Mon Alliance'!G32 -> 97.86725704 | C30: =ROUNDUP(24*3600*(1-EXP(-B30/350))*7.375*(0.9^'Mon Alliance'!$H$1),0) -> 10043 | D30: 2 | E30: 47 | F30: 23 | G30: 02:47:23
A31: ='Mon Alliance'!A33 -> Rofulus | B31: ='Mon Alliance'!G33 -> 66.06814664 | C31: =ROUNDUP(24*3600*(1-EXP(-B31/350))*7.375*(0.9^'Mon Alliance'!$H$1),0) -> 7083 | D31: 1 | E31: 58 | F31: 3 | G31: 01:58:03
A32: ='Mon Alliance'!A34 -> pluginbaby | B32: ='Mon Alliance'!G34 -> 151.198545 | C32: =ROUNDUP(24*3600*(1-EXP(-B32/350))*7.375*(0.9^'Mon Alliance'!$H$1),0) -> 14442 | D32: 4 | E32: 0 | F32: 42 | G32: 04:00:42
A33: ='Mon Alliance'!A35 -> Chryom | B33: ='Mon Alliance'!G35 -> 115.2128465 | C33: =ROUNDUP(24*3600*(1-EXP(-B33/350))*7.375*(0.9^'Mon Alliance'!$H$1),0) -> 11548 | D33: 3 | E33: 12 | F33: 28 | G33: 03:12:28
A34: ='Mon Alliance'!A36 -> miloveam | B34: ='Mon Alliance'!G36 -> 133.37541 | C34: =ROUNDUP(24*3600*(1-EXP(-B34/350))*7.375*(0.9^'Mon Alliance'!$H$1),0) -> 13046 | D34: 3 | E34: 37 | F34: 26 | G34: 03:37:26
A35: ='Mon Alliance'!A37 -> sentih | B35: ='Mon Alliance'!G37 -> 118.4229707 | C35: =ROUNDUP(24*3600*(1-EXP(-B35/350))*7.375*(0.9^'Mon Alliance'!$H$1),0) -> 11819 | D35: 3 | E35: 16 | F35: 59 | G35: 03:16:59
A36: ='Mon Alliance'!A38 -> Shikamaru | B36: ='Mon Alliance'!G38 -> 19.41648784 | C36: =ROUNDUP(24*3600*(1-EXP(-B36/350))*7.375*(0.9^'Mon Alliance'!$H$1),0) -> 2222 | D36: 0 | E36: 37 | F36: 2 | G36: 00:37:02
A37: ='Mon Alliance'!A39 -> weaver | B37: ='Mon Alliance'!G39 -> 160 | C37: =ROUNDUP(24*3600*(1-EXP(-B37/350))*7.375*(0.9^'Mon Alliance'!$H$1),0) -> 15106 | D37: 4 | E37: 11 | F37: 46 | G37: 04:11:46
A38: ='Mon Alliance'!A40 -> Quivala | B38: ='Mon Alliance'!G40 -> 41.03656906 | C38: =ROUNDUP(24*3600*(1-EXP(-B38/350))*7.375*(0.9^'Mon Alliance'!$H$1),0) -> 4555 | D38: 1 | E38: 15 | F38: 55 | G38: 01:15:55
A39: ='Mon Alliance'!A41 -> DrAnts | B39: ='Mon Alliance'!G41 -> 103.0776406 | C39: =ROUNDUP(24*3600*(1-EXP(-B39/350))*7.375*(0.9^'Mon Alliance'!$H$1),0) -> 10503 | D39: 2 | E39: 55 | F39: 3 | G39: 02:55:03
A40: ='Mon Alliance'!A42 -> TheDentist | B40: ='Mon Alliance'!G42 -> 120.0374941 | C40: =ROUNDUP(24*3600*(1-EXP(-B40/350))*7.375*(0.9^'Mon Alliance'!$H$1),0) -> 11954 | D40: 3 | E40: 19 | F40: 14 | G40: 03:19:14
A41: ='Mon Alliance'!A43 -> lipoussou | B41: ='Mon Alliance'!G43 -> 35.38361203 | C41: =ROUNDUP(24*3600*(1-EXP(-B41/350))*7.375*(0.9^'Mon Alliance'!$H$1),0) -> 3959 | D41: 1 | E41: 5 | F41: 59 | G41: 01:05:59
A42: ='Mon Alliance'!A44 -> Lesqual | B42: ='Mon Alliance'!G44 -> 122.2006547 | C42: =ROUNDUP(24*3600*(1-EXP(-B42/350))*7.375*(0.9^'Mon Alliance'!$H$1),0) -> 12134 | D42: 3 | E42: 22 | F42: 14 | G42: 03:22:14
A43: ='Mon Alliance'!A45 -> Pinou | B43: ='Mon Alliance'!G45 -> 154.3794028 | C43: =ROUNDUP(24*3600*(1-EXP(-B43/350))*7.375*(0.9^'Mon Alliance'!$H$1),0) -> 14684 | D43: 4 | E43: 4 | F43: 44 | G43: 04:04:44
A44: ='Mon Alliance'!A46 -> Morphy | B44: ='Mon Alliance'!G46 -> 168.0773631 | C44: =ROUNDUP(24*3600*(1-EXP(-B44/350))*7.375*(0.9^'Mon Alliance'!$H$1),0) -> 15701 | D44: 4 | E44: 21 | F44: 41 | G44: 04:21:41
A45: ='Mon Alliance'!A47 -> osman | B45: ='Mon Alliance'!G47 -> 145.0310312 | C45: =ROUNDUP(24*3600*(1-EXP(-B45/350))*7.375*(0.9^'Mon Alliance'!$H$1),0) -> 13967 | D45: 3 | E45: 52 | F45: 47 | G45: 03:52:47
A46: ='Mon Alliance'!A48 -> bib595 | B46: ='Mon Alliance'!G48 -> 64.12487817 | C46: =ROUNDUP(24*3600*(1-EXP(-B46/350))*7.375*(0.9^'Mon Alliance'!$H$1),0) -> 6893 | D46: 1 | E46: 54 | F46: 53 | G46: 01:54:53
A47: ='Mon Alliance'!A49 -> pacpac001 | B47: ='Mon Alliance'!G49 -> 122.40915 | C47: =ROUNDUP(24*3600*(1-EXP(-B47/350))*7.375*(0.9^'Mon Alliance'!$H$1),0) -> 12151 | D47: 3 | E47: 22 | F47: 31 | G47: 03:22:31
A48: ='Mon Alliance'!A50 -> Mime | B48: ='Mon Alliance'!G50 -> 45.04442252 | C48: =ROUNDUP(24*3600*(1-EXP(-B48/350))*7.375*(0.9^'Mon Alliance'!$H$1),0) -> 4972 | D48: 1 | E48: 22 | F48: 52 | G48: 01:22:52
A49: ='Mon Alliance'!A51 -> Lockheed | B49: ='Mon Alliance'!G51 -> 12.36931688 | C49: =ROUNDUP(24*3600*(1-EXP(-B49/350))*7.375*(0.9^'Mon Alliance'!$H$1),0) -> 1430 | D49: 0 | E49: 23 | F49: 50 | G49: 00:23:50
A50: ='Mon Alliance'!A52 -> EllaVonZedanltha | B50: ='Mon Alliance'!G52 -> 114.7388339 | C50: =ROUNDUP(24*3600*(1-EXP(-B50/350))*7.375*(0.9^'Mon Alliance'!$H$1),0) -> 11508 | D50: 3 | E50: 11 | F50: 48 | G50: 03:11:48
A51: ='Mon Alliance'!A53 -> Reex | B51: ='Mon Alliance'!G53 -> 28.28427125 | C51: =ROUNDUP(24*3600*(1-EXP(-B51/350))*7.375*(0.9^'Mon Alliance'!$H$1),0) -> 3197 | D51: 0 | E51: 53 | F51: 17 | G51: 00:53:17
A52: ='Mon Alliance'!A54 -> MilesGloriosus | B52: ='Mon Alliance'!G54 -> 79.76214641 | C52: =ROUNDUP(24*3600*(1-EXP(-B52/350))*7.375*(0.9^'Mon Alliance'!$H$1),0) -> 8391 | D52: 2 | E52: 19 | F52: 51 | G52: 02:19:51
A53: ='Mon Alliance'!A55 -> Seiduna | B53: ='Mon Alliance'!G55 -> 110.1635148 | C53: =ROUNDUP(24*3600*(1-EXP(-B53/350))*7.375*(0.9^'Mon Alliance'!$H$1),0) -> 11118 | D53: 3 | E53: 5 | F53: 18 | G53: 03:05:18
A54: ='Mon Alliance'!A56 -> riblibli | B54: ='Mon Alliance'!G56 -> 149.7765002 | C54: =ROUNDUP(24*3600*(1-EXP(-B54/350))*7.375*(0.9^'Mon Alliance'!$H$1),0) -> 14334 | D54: 3 | E54: 58 | F54: 54 | G54: 03:58:54
A55: ='Mon Alliance'!A57 -> MagnetO | B55: ='Mon Alliance'!G57 -> 10.04987562 | C55: =ROUNDUP(24*3600*(1-EXP(-B55/350))*7.375*(0.9^'Mon Alliance'!$H$1),0) -> 1166 | D55: 0 | E55: 19 | F55: 26 | G55: 00:19:26
A56: ='Mon Alliance'!A58 ->  | B56: ='Mon Alliance'!G58 ->  | C56: =ROUNDUP(24*3600*(1-EXP(-B56/350))*7.375*(0.9^'Mon Alliance'!$H$1),0) -> 
A57: ='Mon Alliance'!A59 ->  | B57: ='Mon Alliance'!G59 ->  | C57: =ROUNDUP(24*3600*(1-EXP(-B57/350))*7.375*(0.9^'Mon Alliance'!$H$1),0) -> 
A58: ='Mon Alliance'!A60 ->  | B58: ='Mon Alliance'!G60 ->  | C58: =ROUNDUP(24*3600*(1-EXP(-B58/350))*7.375*(0.9^'Mon Alliance'!$H$1),0) -> 
A59: ='Mon Alliance'!A61 ->  | B59: ='Mon Alliance'!G61 ->  | C59: =ROUNDUP(24*3600*(1-EXP(-B59/350))*7.375*(0.9^'Mon Alliance'!$H$1),0) -> 
A60: ='Mon Alliance'!A62 ->  | B60: ='Mon Alliance'!G62 ->  | C60: =ROUNDUP(24*3600*(1-EXP(-B60/350))*7.375*(0.9^'Mon Alliance'!$H$1),0) -> 
A61: ='Mon Alliance'!A63 ->  | B61: ='Mon Alliance'!G63 ->  | C61: =ROUNDUP(24*3600*(1-EXP(-B61/350))*7.375*(0.9^'Mon Alliance'!$H$1),0) -> 
A62: ='Mon Alliance'!A64 ->  | B62: ='Mon Alliance'!G64 ->  | C62: =ROUNDUP(24*3600*(1-EXP(-B62/350))*7.375*(0.9^'Mon Alliance'!$H$1),0) -> 
A63: ='Mon Alliance'!A65 ->  | B63: ='Mon Alliance'!G65 ->  | C63: =ROUNDUP(24*3600*(1-EXP(-B63/350))*7.375*(0.9^'Mon Alliance'!$H$1),0) -> 
A64: ='Mon Alliance'!A66 ->  | B64: ='Mon Alliance'!G66 ->  | C64: =ROUNDUP(24*3600*(1-EXP(-B64/350))*7.375*(0.9^'Mon Alliance'!$H$1),0) -> 
A65: ='Mon Alliance'!A67 ->  | B65: ='Mon Alliance'!G67 ->  | C65: =ROUNDUP(24*3600*(1-EXP(-B65/350))*7.375*(0.9^'Mon Alliance'!$H$1),0) -> 
A66: ='Mon Alliance'!A68 ->  | B66: ='Mon Alliance'!G68 ->  | C66: =ROUNDUP(24*3600*(1-EXP(-B66/350))*7.375*(0.9^'Mon Alliance'!$H$1),0) -> 
A67: ='Mon Alliance'!A69 ->  | B67: ='Mon Alliance'!G69 ->  | C67: =ROUNDUP(24*3600*(1-EXP(-B67/350))*7.375*(0.9^'Mon Alliance'!$H$1),0) ->  | D67: =ROUNDDOWN(C67/3600,0) ->  | E67: =ROUNDDOWN((C67-D67*3600)/60,0) ->  | F67: =ROUNDUP((C67-D67*3600-E67*60),0) ->  | G67: =TIME(D67,E67,F67) -> 
A68: ='Mon Alliance'!A70 ->  | B68: ='Mon Alliance'!G70 ->  | C68: =ROUNDUP(24*3600*(1-EXP(-B68/350))*7.375*(0.9^'Mon Alliance'!$H$1),0) -> 
A69: ='Mon Alliance'!A71 ->  | B69: ='Mon Alliance'!G71 ->  | C69: =ROUNDUP(24*3600*(1-EXP(-B69/350))*7.375*(0.9^'Mon Alliance'!$H$1),0) -> 
A70: ='Mon Alliance'!A72 ->  | B70: ='Mon Alliance'!G72 ->  | C70: =ROUNDUP(24*3600*(1-EXP(-B70/350))*7.375*(0.9^'Mon Alliance'!$H$1),0) -> 
A71: ='Mon Alliance'!A73 ->  | B71: ='Mon Alliance'!G73 ->  | C71: =ROUNDUP(24*3600*(1-EXP(-B71/350))*7.375*(0.9^'Mon Alliance'!$H$1),0) -> 
A72: ='Mon Alliance'!A74 ->  | B72: ='Mon Alliance'!G74 ->  | C72: =ROUNDUP(24*3600*(1-EXP(-B72/350))*7.375*(0.9^'Mon Alliance'!$H$1),0) -> 
A73: ='Mon Alliance'!A75 ->  | B73: ='Mon Alliance'!G75 ->  | C73: =ROUNDUP(24*3600*(1-EXP(-B73/350))*7.375*(0.9^'Mon Alliance'!$H$1),0) -> 
A74: ='Mon Alliance'!A76 ->  | B74: ='Mon Alliance'!G76 ->  | C74: =ROUNDUP(24*3600*(1-EXP(-B74/350))*7.375*(0.9^'Mon Alliance'!$H$1),0) -> 
A75: ='Mon Alliance'!A77 ->  | B75: ='Mon Alliance'!G77 ->  | C75: =ROUNDUP(24*3600*(1-EXP(-B75/350))*7.375*(0.9^'Mon Alliance'!$H$1),0) -> 
A76: ='Mon Alliance'!A78 ->  | B76: ='Mon Alliance'!G78 ->  | C76: =ROUNDUP(24*3600*(1-EXP(-B76/350))*7.375*(0.9^'Mon Alliance'!$H$1),0) -> 
A77: ='Mon Alliance'!A79 ->  | B77: ='Mon Alliance'!G79 ->  | C77: =ROUNDUP(24*3600*(1-EXP(-B77/350))*7.375*(0.9^'Mon Alliance'!$H$1),0) -> 
A78: ='Mon Alliance'!A80 ->  | B78: ='Mon Alliance'!G80 ->  | C78: =ROUNDUP(24*3600*(1-EXP(-B78/350))*7.375*(0.9^'Mon Alliance'!$H$1),0) -> 
A79: ='Mon Alliance'!A81 ->  | B79: ='Mon Alliance'!G81 ->  | C79: =ROUNDUP(24*3600*(1-EXP(-B79/350))*7.375*(0.9^'Mon Alliance'!$H$1),0) -> 
A80: ='Mon Alliance'!A82 ->  | B80: ='Mon Alliance'!G82 ->  | C80: =ROUNDUP(24*3600*(1-EXP(-B80/350))*7.375*(0.9^'Mon Alliance'!$H$1),0) -> 
A81: ='Mon Alliance'!A83 ->  | B81: ='Mon Alliance'!G83 ->  | C81: =ROUNDUP(24*3600*(1-EXP(-B81/350))*7.375*(0.9^'Mon Alliance'!$H$1),0) -> 
A82: ='Mon Alliance'!A84 ->  | B82: ='Mon Alliance'!G84 ->  | C82: =ROUNDUP(24*3600*(1-EXP(-B82/350))*7.375*(0.9^'Mon Alliance'!$H$1),0) -> 
A83: ='Mon Alliance'!A85 ->  | B83: ='Mon Alliance'!G85 ->  | C83: =ROUNDUP(24*3600*(1-EXP(-B83/350))*7.375*(0.9^'Mon Alliance'!$H$1),0) -> 
A84: ='Mon Alliance'!A86 ->  | B84: ='Mon Alliance'!G86 ->  | C84: =ROUNDUP(24*3600*(1-EXP(-B84/350))*7.375*(0.9^'Mon Alliance'!$H$1),0) -> 
A85: ='Mon Alliance'!A87 ->  | B85: ='Mon Alliance'!G87 ->  | C85: =ROUNDUP(24*3600*(1-EXP(-B85/350))*7.375*(0.9^'Mon Alliance'!$H$1),0) -> 
A86: ='Mon Alliance'!A88 ->  | B86: ='Mon Alliance'!G88 ->  | C86: =ROUNDUP(24*3600*(1-EXP(-B86/350))*7.375*(0.9^'Mon Alliance'!$H$1),0) -> 
A87: ='Mon Alliance'!A89 ->  | B87: ='Mon Alliance'!G89 ->  | C87: =ROUNDUP(24*3600*(1-EXP(-B87/350))*7.375*(0.9^'Mon Alliance'!$H$1),0) -> 
A88: ='Mon Alliance'!A90 ->  | B88: ='Mon Alliance'!G90 ->  | C88: =ROUNDUP(24*3600*(1-EXP(-B88/350))*7.375*(0.9^'Mon Alliance'!$H$1),0) -> 
A89: ='Mon Alliance'!A91 ->  | B89: ='Mon Alliance'!G91 ->  | C89: =ROUNDUP(24*3600*(1-EXP(-B89/350))*7.375*(0.9^'Mon Alliance'!$H$1),0) -> 
A90: ='Mon Alliance'!A92 ->  | B90: ='Mon Alliance'!G92 ->  | C90: =ROUNDUP(24*3600*(1-EXP(-B90/350))*7.375*(0.9^'Mon Alliance'!$H$1),0) -> 
A91: ='Mon Alliance'!A93 ->  | B91: ='Mon Alliance'!G93 ->  | C91: =ROUNDUP(24*3600*(1-EXP(-B91/350))*7.375*(0.9^'Mon Alliance'!$H$1),0) -> 
A92: ='Mon Alliance'!A94 ->  | B92: ='Mon Alliance'!G94 ->  | C92: =ROUNDUP(24*3600*(1-EXP(-B92/350))*7.375*(0.9^'Mon Alliance'!$H$1),0) -> 
A93: ='Mon Alliance'!A95 ->  | B93: ='Mon Alliance'!G95 ->  | C93: =ROUNDUP(24*3600*(1-EXP(-B93/350))*7.375*(0.9^'Mon Alliance'!$H$1),0) -> 
A94: ='Mon Alliance'!A96 ->  | B94: ='Mon Alliance'!G96 ->  | C94: =ROUNDUP(24*3600*(1-EXP(-B94/350))*7.375*(0.9^'Mon Alliance'!$H$1),0) -> 
A95: ='Mon Alliance'!A97 ->  | B95: ='Mon Alliance'!G97 ->  | C95: =ROUNDUP(24*3600*(1-EXP(-B95/350))*7.375*(0.9^'Mon Alliance'!$H$1),0) -> 
A96: ='Mon Alliance'!A98 ->  | B96: ='Mon Alliance'!G98 ->  | C96: =ROUNDUP(24*3600*(1-EXP(-B96/350))*7.375*(0.9^'Mon Alliance'!$H$1),0) -> 
A97: ='Mon Alliance'!A99 ->  | B97: ='Mon Alliance'!G99 ->  | C97: =ROUNDUP(24*3600*(1-EXP(-B97/350))*7.375*(0.9^'Mon Alliance'!$H$1),0) -> 
A98: ='Mon Alliance'!A100 ->  | B98: ='Mon Alliance'!G100 ->  | C98: =ROUNDUP(24*3600*(1-EXP(-B98/350))*7.375*(0.9^'Mon Alliance'!$H$1),0) -> 
A99: ='Mon Alliance'!A101 -> 0 | B99: ='Mon Alliance'!G101 -> 0 | C99: =ROUNDUP(24*3600*(1-EXP(-B99/350))*7.375*(0.9^'Mon Alliance'!$H$1),0) -> 0 | D99: 0 | E99: 0 | F99: 0 | G99: 00:00:00
A100: ='Mon Alliance'!A102 -> 0 | B100: ='Mon Alliance'!G102 -> 0 | C100: =ROUNDUP(24*3600*(1-EXP(-B100/350))*7.375*(0.9^'Mon Alliance'!$H$1),0) -> 0 | D100: 0 | E100: 0 | F100: 0 | G100: 00:00:00

Sheet Data Ally 1 (hidden)
A1: Temps | B1: Distance | C1: Temps | D1: h | E1: min | F1: sec | G1: Soit
A2: ='Alliance 1'!A4 -> Apokles | B2: ='Alliance 1'!G4 -> 139.4417441 | C2: =ROUNDUP(24*3600*(1-EXP(-B2/350))*7.375*(0.9^'Alliance 1'!$H$1),0) -> 13529 | D2: =ROUNDDOWN(C2/3600,0) -> 3 | E2: =ROUNDDOWN((C2-D2*3600)/60,0) -> 45 | F2: =ROUNDUP((C2-D2*3600-E2*60),0) -> 29 | G2: =TIME(D2,E2,F2) -> 03:45:29
A3: ='Alliance 1'!A5 -> MicroMadere | B3: ='Alliance 1'!G5 -> 143.3771251 | C3: =ROUNDUP(24*3600*(1-EXP(-B3/350))*7.375*(0.9^'Alliance 1'!$H$1),0) -> 13838 | D3: =ROUNDDOWN(C3/3600,0) -> 3 | E3: =ROUNDDOWN((C3-D3*3600)/60,0) -> 50 | F3: =ROUNDUP((C3-D3*3600-E3*60),0) -> 38 | G3: =TIME(D3,E3,F3) -> 03:50:38
A4: ='Alliance 1'!A6 -> baltazar14 | B4: ='Alliance 1'!G6 -> 7.280109889 | C4: =ROUNDUP(24*3600*(1-EXP(-B4/350))*7.375*(0.9^'Alliance 1'!$H$1),0) -> 848 | D4: 0 | E4: 14 | F4: 8 | G4: 00:14:08
A5: ='Alliance 1'!A7 -> vinkou | B5: ='Alliance 1'!G7 -> 72.09022125 | C5: =ROUNDUP(24*3600*(1-EXP(-B5/350))*7.375*(0.9^'Alliance 1'!$H$1),0) -> 7664 | D5: 2 | E5: 7 | F5: 44 | G5: 02:07:44
A6: ='Alliance 1'!A8 -> carapuce | B6: ='Alliance 1'!G8 -> 104.3072385 | C6: =ROUNDUP(24*3600*(1-EXP(-B6/350))*7.375*(0.9^'Alliance 1'!$H$1),0) -> 10611 | D6: 2 | E6: 56 | F6: 51 | G6: 02:56:51
A7: ='Alliance 1'!A9 -> Bastet | B7: ='Alliance 1'!G9 -> 138.1774222 | C7: =ROUNDUP(24*3600*(1-EXP(-B7/350))*7.375*(0.9^'Alliance 1'!$H$1),0) -> 13429 | D7: 3 | E7: 43 | F7: 49 | G7: 03:43:49
A8: ='Alliance 1'!A10 -> bryansixx | B8: ='Alliance 1'!G10 -> 110.1135777 | C8: =ROUNDUP(24*3600*(1-EXP(-B8/350))*7.375*(0.9^'Alliance 1'!$H$1),0) -> 11113 | D8: 3 | E8: 5 | F8: 13 | G8: 03:05:13
A9: ='Alliance 1'!A11 -> Indestructor | B9: ='Alliance 1'!G11 -> 88.28363382 | C9: =ROUNDUP(24*3600*(1-EXP(-B9/350))*7.375*(0.9^'Alliance 1'!$H$1),0) -> 9179 | D9: 2 | E9: 32 | F9: 59 | G9: 02:32:59
A10: ='Alliance 1'!A12 -> Akrapovic | B10: ='Alliance 1'!G12 -> 88.09086218 | C10: =ROUNDUP(24*3600*(1-EXP(-B10/350))*7.375*(0.9^'Alliance 1'!$H$1),0) -> 9161 | D10: 2 | E10: 32 | F10: 41 | G10: 02:32:41
A11: ='Alliance 1'!A13 -> maitre-marchombres | B11: ='Alliance 1'!G13 -> 167.5052238 | C11: =ROUNDUP(24*3600*(1-EXP(-B11/350))*7.375*(0.9^'Alliance 1'!$H$1),0) -> 15659 | D11: 4 | E11: 20 | F11: 59 | G11: 04:20:59
A12: ='Alliance 1'!A14 -> le_chaton | B12: ='Alliance 1'!G14 -> 157.1146079 | C12: =ROUNDUP(24*3600*(1-EXP(-B12/350))*7.375*(0.9^'Alliance 1'!$H$1),0) -> 14890 | D12: 4 | E12: 8 | F12: 10 | G12: 04:08:10
A13: ='Alliance 1'!A15 -> b-girl | B13: ='Alliance 1'!G15 -> 138.0579588 | C13: =ROUNDUP(24*3600*(1-EXP(-B13/350))*7.375*(0.9^'Alliance 1'!$H$1),0) -> 13420 | D13: 3 | E13: 43 | F13: 40 | G13: 03:43:40
A14: ='Alliance 1'!A16 -> macgyver300 | B14: ='Alliance 1'!G16 -> 672.5830804 | C14: =ROUNDUP(24*3600*(1-EXP(-B14/350))*7.375*(0.9^'Alliance 1'!$H$1),0) -> 35145 | D14: 9 | E14: 45 | F14: 45 | G14: 09:45:45
A15: ='Alliance 1'!A17 -> MissXY | B15: ='Alliance 1'!G17 -> 130.9809146 | C15: =ROUNDUP(24*3600*(1-EXP(-B15/350))*7.375*(0.9^'Alliance 1'!$H$1),0) -> 12853 | D15: 3 | E15: 34 | F15: 13 | G15: 03:34:13
A16: ='Alliance 1'!A18 -> Mr_Patate | B16: ='Alliance 1'!G18 -> 136.4734406 | C16: =ROUNDUP(24*3600*(1-EXP(-B16/350))*7.375*(0.9^'Alliance 1'!$H$1),0) -> 13294 | D16: 3 | E16: 41 | F16: 34 | G16: 03:41:34
A17: ='Alliance 1'!A19 -> Spirou | B17: ='Alliance 1'!G19 -> 17.20465053 | C17: =ROUNDUP(24*3600*(1-EXP(-B17/350))*7.375*(0.9^'Alliance 1'!$H$1),0) -> 1975 | D17: 0 | E17: 32 | F17: 55 | G17: 00:32:55
A18: ='Alliance 1'!A20 -> theputbill | B18: ='Alliance 1'!G20 -> 154.3923573 | C18: =ROUNDUP(24*3600*(1-EXP(-B18/350))*7.375*(0.9^'Alliance 1'!$H$1),0) -> 14685 | D18: 4 | E18: 4 | F18: 45 | G18: 04:04:45
A19: ='Alliance 1'!A21 -> juri | B19: ='Alliance 1'!G21 -> 14.86606875 | C19: =ROUNDUP(24*3600*(1-EXP(-B19/350))*7.375*(0.9^'Alliance 1'!$H$1),0) -> 1713 | D19: 0 | E19: 28 | F19: 33 | G19: 00:28:33
A20: ='Alliance 1'!A22 -> bernard1349 | B20: ='Alliance 1'!G22 -> 134.0335779 | C20: =ROUNDUP(24*3600*(1-EXP(-B20/350))*7.375*(0.9^'Alliance 1'!$H$1),0) -> 13099 | D20: 3 | E20: 38 | F20: 19 | G20: 03:38:19
A21: ='Alliance 1'!A23 -> Oupouaout | B21: ='Alliance 1'!G23 -> 137.8187215 | C21: =ROUNDUP(24*3600*(1-EXP(-B21/350))*7.375*(0.9^'Alliance 1'!$H$1),0) -> 13401 | D21: 3 | E21: 43 | F21: 21 | G21: 03:43:21
A22: ='Alliance 1'!A24 -> gilles21 | B22: ='Alliance 1'!G24 -> 98.50888285 | C22: =ROUNDUP(24*3600*(1-EXP(-B22/350))*7.375*(0.9^'Alliance 1'!$H$1),0) -> 10100 | D22: 2 | E22: 48 | F22: 20 | G22: 02:48:20
A23: ='Alliance 1'!A25 -> era92 | B23: ='Alliance 1'!G25 -> 103.696673 | C23: =ROUNDUP(24*3600*(1-EXP(-B23/350))*7.375*(0.9^'Alliance 1'!$H$1),0) -> 10557 | D23: 2 | E23: 55 | F23: 57 | G23: 02:55:57
A24: ='Alliance 1'!A26 -> z3rO | B24: ='Alliance 1'!G26 -> 153.0816775 | C24: =ROUNDUP(24*3600*(1-EXP(-B24/350))*7.375*(0.9^'Alliance 1'!$H$1),0) -> 14586 | D24: 4 | E24: 3 | F24: 6 | G24: 04:03:06
A25: ='Alliance 1'!A27 -> Thoutmosis | B25: ='Alliance 1'!G27 -> 138.6001443 | C25: =ROUNDUP(24*3600*(1-EXP(-B25/350))*7.375*(0.9^'Alliance 1'!$H$1),0) -> 13463 | D25: 3 | E25: 44 | F25: 23 | G25: 03:44:23
A26: ='Alliance 1'!A28 -> Cstinger | B26: ='Alliance 1'!G28 -> 156.8470593 | C26: =ROUNDUP(24*3600*(1-EXP(-B26/350))*7.375*(0.9^'Alliance 1'!$H$1),0) -> 14870 | D26: 4 | E26: 7 | F26: 50 | G26: 04:07:50
A27: ='Alliance 1'!A29 -> kliff33740 | B27: ='Alliance 1'!G29 -> 153.4438008 | C27: =ROUNDUP(24*3600*(1-EXP(-B27/350))*7.375*(0.9^'Alliance 1'!$H$1),0) -> 14613 | D27: 4 | E27: 3 | F27: 33 | G27: 04:03:33
A28: ='Alliance 1'!A30 -> nsrsqual | B28: ='Alliance 1'!G30 -> 71.84705979 | C28: =ROUNDUP(24*3600*(1-EXP(-B28/350))*7.375*(0.9^'Alliance 1'!$H$1),0) -> 7641 | D28: 2 | E28: 7 | F28: 21 | G28: 02:07:21
A29: ='Alliance 1'!A31 -> Sangoten | B29: ='Alliance 1'!G31 -> 123.0162591 | C29: =ROUNDUP(24*3600*(1-EXP(-B29/350))*7.375*(0.9^'Alliance 1'!$H$1),0) -> 12201 | D29: 3 | E29: 23 | F29: 21 | G29: 03:23:21
A30: ='Alliance 1'!A32 -> polothedrummer | B30: ='Alliance 1'!G32 -> 28.01785145 | C30: =ROUNDUP(24*3600*(1-EXP(-B30/350))*7.375*(0.9^'Alliance 1'!$H$1),0) -> 3168 | D30: 0 | E30: 52 | F30: 48 | G30: 00:52:48
A31: ='Alliance 1'!A33 -> kapyro | B31: ='Alliance 1'!G33 -> 653.3062069 | C31: =ROUNDUP(24*3600*(1-EXP(-B31/350))*7.375*(0.9^'Alliance 1'!$H$1),0) -> 34804 | D31: 9 | E31: 40 | F31: 4 | G31: 09:40:04
A32: ='Alliance 1'!A34 -> Le-Fauve | B32: ='Alliance 1'!G34 -> 9.055385138 | C32: =ROUNDUP(24*3600*(1-EXP(-B32/350))*7.375*(0.9^'Alliance 1'!$H$1),0) -> 1052 | D32: 0 | E32: 17 | F32: 32 | G32: 00:17:32
A33: ='Alliance 1'!A35 -> deezer | B33: ='Alliance 1'!G35 -> 112.0580207 | C33: =ROUNDUP(24*3600*(1-EXP(-B33/350))*7.375*(0.9^'Alliance 1'!$H$1),0) -> 11280 | D33: 3 | E33: 8 | F33: 0 | G33: 03:08:00
A34: ='Alliance 1'!A36 -> Leojah | B34: ='Alliance 1'!G36 -> 13.45362405 | C34: =ROUNDUP(24*3600*(1-EXP(-B34/350))*7.375*(0.9^'Alliance 1'!$H$1),0) -> 1553 | D34: 0 | E34: 25 | F34: 53 | G34: 00:25:53
A35: ='Alliance 1'!A37 -> Pipomambo | B35: ='Alliance 1'!G37 -> 420.042855 | C35: =ROUNDUP(24*3600*(1-EXP(-B35/350))*7.375*(0.9^'Alliance 1'!$H$1),0) -> 28772 | D35: 7 | E35: 59 | F35: 32 | G35: 07:59:32
A36: ='Alliance 1'!A38 -> keiser | B36: ='Alliance 1'!G38 -> 121.2023102 | C36: =ROUNDUP(24*3600*(1-EXP(-B36/350))*7.375*(0.9^'Alliance 1'!$H$1),0) -> 12051 | D36: 3 | E36: 20 | F36: 51 | G36: 03:20:51
A37: ='Alliance 1'!A39 -> Imhotep | B37: ='Alliance 1'!G39 -> 138.0507153 | C37: =ROUNDUP(24*3600*(1-EXP(-B37/350))*7.375*(0.9^'Alliance 1'!$H$1),0) -> 13419 | D37: 3 | E37: 43 | F37: 39 | G37: 03:43:39
A38: ='Alliance 1'!A40 -> Exodus | B38: ='Alliance 1'!G40 -> 120.2039933 | C38: =ROUNDUP(24*3600*(1-EXP(-B38/350))*7.375*(0.9^'Alliance 1'!$H$1),0) -> 11968 | D38: 3 | E38: 19 | F38: 28 | G38: 03:19:28
A39: ='Alliance 1'!A41 -> Goliath | B39: ='Alliance 1'!G41 -> 52.61178575 | C39: =ROUNDUP(24*3600*(1-EXP(-B39/350))*7.375*(0.9^'Alliance 1'!$H$1),0) -> 5746 | D39: 1 | E39: 35 | F39: 46 | G39: 01:35:46
A40: ='Alliance 1'!A42 -> neko-san | B40: ='Alliance 1'!G42 -> 109.767937 | C40: =ROUNDUP(24*3600*(1-EXP(-B40/350))*7.375*(0.9^'Alliance 1'!$H$1),0) -> 11084 | D40: 3 | E40: 4 | F40: 44 | G40: 03:04:44
A41: ='Alliance 1'!A43 -> styrie | B41: ='Alliance 1'!G43 -> 2159.092633 | C41: =ROUNDUP(24*3600*(1-EXP(-B41/350))*7.375*(0.9^'Alliance 1'!$H$1),0) -> 41084 | D41: 11 | E41: 24 | F41: 44 | G41: 11:24:44
A42: ='Alliance 1'!A44 -> Shesmou | B42: ='Alliance 1'!G44 -> 138.4377116 | C42: =ROUNDUP(24*3600*(1-EXP(-B42/350))*7.375*(0.9^'Alliance 1'!$H$1),0) -> 13450 | D42: 3 | E42: 44 | F42: 10 | G42: 03:44:10
A43: ='Alliance 1'!A45 -> Menes | B43: ='Alliance 1'!G45 -> 340.2484386 | C43: =ROUNDUP(24*3600*(1-EXP(-B43/350))*7.375*(0.9^'Alliance 1'!$H$1),0) -> 25597 | D43: 7 | E43: 6 | F43: 37 | G43: 07:06:37
A44: ='Alliance 1'!A46 -> idefix | B44: ='Alliance 1'!G46 -> 51.07837116 | C44: =ROUNDUP(24*3600*(1-EXP(-B44/350))*7.375*(0.9^'Alliance 1'!$H$1),0) -> 5591 | D44: 1 | E44: 33 | F44: 11 | G44: 01:33:11
A45: ='Alliance 1'!A47 ->  | B45: ='Alliance 1'!G47 ->  | C45: =ROUNDUP(24*3600*(1-EXP(-B45/350))*7.375*(0.9^'Alliance 1'!$H$1),0) -> 
A46: ='Alliance 1'!A48 ->  | B46: ='Alliance 1'!G48 ->  | C46: =ROUNDUP(24*3600*(1-EXP(-B46/350))*7.375*(0.9^'Alliance 1'!$H$1),0) -> 
A47: ='Alliance 1'!A49 ->  | B47: ='Alliance 1'!G49 ->  | C47: =ROUNDUP(24*3600*(1-EXP(-B47/350))*7.375*(0.9^'Alliance 1'!$H$1),0) -> 
A48: ='Alliance 1'!A50 ->  | B48: ='Alliance 1'!G50 ->  | C48: =ROUNDUP(24*3600*(1-EXP(-B48/350))*7.375*(0.9^'Alliance 1'!$H$1),0) -> 
A49: ='Alliance 1'!A51 ->  | B49: ='Alliance 1'!G51 ->  | C49: =ROUNDUP(24*3600*(1-EXP(-B49/350))*7.375*(0.9^'Alliance 1'!$H$1),0) -> 
A50: ='Alliance 1'!A52 ->  | B50: ='Alliance 1'!G52 ->  | C50: =ROUNDUP(24*3600*(1-EXP(-B50/350))*7.375*(0.9^'Alliance 1'!$H$1),0) -> 
A51: ='Alliance 1'!A53 ->  | B51: ='Alliance 1'!G53 ->  | C51: =ROUNDUP(24*3600*(1-EXP(-B51/350))*7.375*(0.9^'Alliance 1'!$H$1),0) -> 
A52: ='Alliance 1'!A54 ->  | B52: ='Alliance 1'!G54 ->  | C52: =ROUNDUP(24*3600*(1-EXP(-B52/350))*7.375*(0.9^'Alliance 1'!$H$1),0) -> 
A53: ='Alliance 1'!A55 ->  | B53: ='Alliance 1'!G55 ->  | C53: =ROUNDUP(24*3600*(1-EXP(-B53/350))*7.375*(0.9^'Alliance 1'!$H$1),0) -> 
A54: ='Alliance 1'!A56 ->  | B54: ='Alliance 1'!G56 ->  | C54: =ROUNDUP(24*3600*(1-EXP(-B54/350))*7.375*(0.9^'Alliance 1'!$H$1),0) -> 
A55: ='Alliance 1'!A57 ->  | B55: ='Alliance 1'!G57 ->  | C55: =ROUNDUP(24*3600*(1-EXP(-B55/350))*7.375*(0.9^'Alliance 1'!$H$1),0) -> 
A56: ='Alliance 1'!A58 ->  | B56: ='Alliance 1'!G58 ->  | C56: =ROUNDUP(24*3600*(1-EXP(-B56/350))*7.375*(0.9^'Alliance 1'!$H$1),0) -> 
A57: ='Alliance 1'!A59 ->  | B57: ='Alliance 1'!G59 ->  | C57: =ROUNDUP(24*3600*(1-EXP(-B57/350))*7.375*(0.9^'Alliance 1'!$H$1),0) -> 
A58: ='Alliance 1'!A60 ->  | B58: ='Alliance 1'!G60 ->  | C58: =ROUNDUP(24*3600*(1-EXP(-B58/350))*7.375*(0.9^'Alliance 1'!$H$1),0) -> 
A59: ='Alliance 1'!A61 ->  | B59: ='Alliance 1'!G61 ->  | C59: =ROUNDUP(24*3600*(1-EXP(-B59/350))*7.375*(0.9^'Alliance 1'!$H$1),0) -> 
A60: ='Alliance 1'!A62 ->  | B60: ='Alliance 1'!G62 ->  | C60: =ROUNDUP(24*3600*(1-EXP(-B60/350))*7.375*(0.9^'Alliance 1'!$H$1),0) -> 
A61: ='Alliance 1'!A63 ->  | B61: ='Alliance 1'!G63 ->  | C61: =ROUNDUP(24*3600*(1-EXP(-B61/350))*7.375*(0.9^'Alliance 1'!$H$1),0) -> 
A62: ='Alliance 1'!A64 ->  | B62: ='Alliance 1'!G64 ->  | C62: =ROUNDUP(24*3600*(1-EXP(-B62/350))*7.375*(0.9^'Alliance 1'!$H$1),0) -> 
A63: ='Alliance 1'!A65 ->  | B63: ='Alliance 1'!G65 ->  | C63: =ROUNDUP(24*3600*(1-EXP(-B63/350))*7.375*(0.9^'Alliance 1'!$H$1),0) -> 
A64: ='Alliance 1'!A66 ->  | B64: ='Alliance 1'!G66 ->  | C64: =ROUNDUP(24*3600*(1-EXP(-B64/350))*7.375*(0.9^'Alliance 1'!$H$1),0) -> 
A65: ='Alliance 1'!A67 ->  | B65: ='Alliance 1'!G67 ->  | C65: =ROUNDUP(24*3600*(1-EXP(-B65/350))*7.375*(0.9^'Alliance 1'!$H$1),0) -> 
A66: ='Alliance 1'!A68 ->  | B66: ='Alliance 1'!G68 ->  | C66: =ROUNDUP(24*3600*(1-EXP(-B66/350))*7.375*(0.9^'Alliance 1'!$H$1),0) -> 
A67: ='Alliance 1'!A69 ->  | B67: ='Alliance 1'!G69 ->  | C67: =ROUNDUP(24*3600*(1-EXP(-B67/350))*7.375*(0.9^'Alliance 1'!$H$1),0) ->  | D67: =ROUNDDOWN(C67/3600,0) ->  | E67: =ROUNDDOWN((C67-D67*3600)/60,0) ->  | F67: =ROUNDUP((C67-D67*3600-E67*60),0) ->  | G67: =TIME(D67,E67,F67) -> 
A68: ='Alliance 1'!A70 ->  | B68: ='Alliance 1'!G70 ->  | C68: =ROUNDUP(24*3600*(1-EXP(-B68/350))*7.375*(0.9^'Alliance 1'!$H$1),0) -> 
A69: ='Alliance 1'!A71 ->  | B69: ='Alliance 1'!G71 ->  | C69: =ROUNDUP(24*3600*(1-EXP(-B69/350))*7.375*(0.9^'Alliance 1'!$H$1),0) -> 
A70: ='Alliance 1'!A72 ->  | B70: ='Alliance 1'!G72 ->  | C70: =ROUNDUP(24*3600*(1-EXP(-B70/350))*7.375*(0.9^'Alliance 1'!$H$1),0) -> 
A71: ='Alliance 1'!A73 ->  | B71: ='Alliance 1'!G73 ->  | C71: =ROUNDUP(24*3600*(1-EXP(-B71/350))*7.375*(0.9^'Alliance 1'!$H$1),0) -> 
A72: ='Alliance 1'!A74 ->  | B72: ='Alliance 1'!G74 ->  | C72: =ROUNDUP(24*3600*(1-EXP(-B72/350))*7.375*(0.9^'Alliance 1'!$H$1),0) -> 
A73: ='Alliance 1'!A75 ->  | B73: ='Alliance 1'!G75 ->  | C73: =ROUNDUP(24*3600*(1-EXP(-B73/350))*7.375*(0.9^'Alliance 1'!$H$1),0) -> 
A74: ='Alliance 1'!A76 ->  | B74: ='Alliance 1'!G76 ->  | C74: =ROUNDUP(24*3600*(1-EXP(-B74/350))*7.375*(0.9^'Alliance 1'!$H$1),0) -> 
A75: ='Alliance 1'!A77 ->  | B75: ='Alliance 1'!G77 ->  | C75: =ROUNDUP(24*3600*(1-EXP(-B75/350))*7.375*(0.9^'Alliance 1'!$H$1),0) -> 
A76: ='Alliance 1'!A78 ->  | B76: ='Alliance 1'!G78 ->  | C76: =ROUNDUP(24*3600*(1-EXP(-B76/350))*7.375*(0.9^'Alliance 1'!$H$1),0) -> 
A77: ='Alliance 1'!A79 ->  | B77: ='Alliance 1'!G79 ->  | C77: =ROUNDUP(24*3600*(1-EXP(-B77/350))*7.375*(0.9^'Alliance 1'!$H$1),0) -> 
A78: ='Alliance 1'!A80 ->  | B78: ='Alliance 1'!G80 ->  | C78: =ROUNDUP(24*3600*(1-EXP(-B78/350))*7.375*(0.9^'Alliance 1'!$H$1),0) -> 
A79: ='Alliance 1'!A81 ->  | B79: ='Alliance 1'!G81 ->  | C79: =ROUNDUP(24*3600*(1-EXP(-B79/350))*7.375*(0.9^'Alliance 1'!$H$1),0) -> 
A80: ='Alliance 1'!A82 ->  | B80: ='Alliance 1'!G82 ->  | C80: =ROUNDUP(24*3600*(1-EXP(-B80/350))*7.375*(0.9^'Alliance 1'!$H$1),0) -> 
A81: ='Alliance 1'!A83 ->  | B81: ='Alliance 1'!G83 ->  | C81: =ROUNDUP(24*3600*(1-EXP(-B81/350))*7.375*(0.9^'Alliance 1'!$H$1),0) -> 
A82: ='Alliance 1'!A84 ->  | B82: ='Alliance 1'!G84 ->  | C82: =ROUNDUP(24*3600*(1-EXP(-B82/350))*7.375*(0.9^'Alliance 1'!$H$1),0) -> 
A83: ='Alliance 1'!A85 ->  | B83: ='Alliance 1'!G85 ->  | C83: =ROUNDUP(24*3600*(1-EXP(-B83/350))*7.375*(0.9^'Alliance 1'!$H$1),0) -> 
A84: ='Alliance 1'!A86 ->  | B84: ='Alliance 1'!G86 ->  | C84: =ROUNDUP(24*3600*(1-EXP(-B84/350))*7.375*(0.9^'Alliance 1'!$H$1),0) -> 
A85: ='Alliance 1'!A87 ->  | B85: ='Alliance 1'!G87 ->  | C85: =ROUNDUP(24*3600*(1-EXP(-B85/350))*7.375*(0.9^'Alliance 1'!$H$1),0) -> 
A86: ='Alliance 1'!A88 ->  | B86: ='Alliance 1'!G88 ->  | C86: =ROUNDUP(24*3600*(1-EXP(-B86/350))*7.375*(0.9^'Alliance 1'!$H$1),0) -> 
A87: ='Alliance 1'!A89 ->  | B87: ='Alliance 1'!G89 ->  | C87: =ROUNDUP(24*3600*(1-EXP(-B87/350))*7.375*(0.9^'Alliance 1'!$H$1),0) -> 
A88: ='Alliance 1'!A90 ->  | B88: ='Alliance 1'!G90 ->  | C88: =ROUNDUP(24*3600*(1-EXP(-B88/350))*7.375*(0.9^'Alliance 1'!$H$1),0) -> 
A89: ='Alliance 1'!A91 ->  | B89: ='Alliance 1'!G91 ->  | C89: =ROUNDUP(24*3600*(1-EXP(-B89/350))*7.375*(0.9^'Alliance 1'!$H$1),0) -> 
A90: ='Alliance 1'!A92 ->  | B90: ='Alliance 1'!G92 ->  | C90: =ROUNDUP(24*3600*(1-EXP(-B90/350))*7.375*(0.9^'Alliance 1'!$H$1),0) -> 
A91: ='Alliance 1'!A93 ->  | B91: ='Alliance 1'!G93 ->  | C91: =ROUNDUP(24*3600*(1-EXP(-B91/350))*7.375*(0.9^'Alliance 1'!$H$1),0) -> 
A92: ='Alliance 1'!A94 ->  | B92: ='Alliance 1'!G94 ->  | C92: =ROUNDUP(24*3600*(1-EXP(-B92/350))*7.375*(0.9^'Alliance 1'!$H$1),0) -> 
A93: ='Alliance 1'!A95 ->  | B93: ='Alliance 1'!G95 ->  | C93: =ROUNDUP(24*3600*(1-EXP(-B93/350))*7.375*(0.9^'Alliance 1'!$H$1),0) -> 
A94: ='Alliance 1'!A96 ->  | B94: ='Alliance 1'!G96 ->  | C94: =ROUNDUP(24*3600*(1-EXP(-B94/350))*7.375*(0.9^'Alliance 1'!$H$1),0) -> 
A95: ='Alliance 1'!A97 ->  | B95: ='Alliance 1'!G97 ->  | C95: =ROUNDUP(24*3600*(1-EXP(-B95/350))*7.375*(0.9^'Alliance 1'!$H$1),0) -> 
A96: ='Alliance 1'!A98 ->  | B96: ='Alliance 1'!G98 ->  | C96: =ROUNDUP(24*3600*(1-EXP(-B96/350))*7.375*(0.9^'Alliance 1'!$H$1),0) -> 
A97: ='Alliance 1'!A99 ->  | B97: ='Alliance 1'!G99 ->  | C97: =ROUNDUP(24*3600*(1-EXP(-B97/350))*7.375*(0.9^'Alliance 1'!$H$1),0) -> 
A98: ='Alliance 1'!A100 ->  | B98: ='Alliance 1'!G100 ->  | C98: =ROUNDUP(24*3600*(1-EXP(-B98/350))*7.375*(0.9^'Alliance 1'!$H$1),0) -> 
A99: ='Alliance 1'!A101 -> , | B99: ='Alliance 1'!G101 -> 0 | C99: =ROUNDUP(24*3600*(1-EXP(-B99/350))*7.375*(0.9^'Alliance 1'!$H$1),0) -> 0 | D99: 0 | E99: 0 | F99: 0 | G99: 00:00:00
A100: ='Alliance 1'!A102 -> 0 | B100: ='Alliance 1'!G102 -> 0 | C100: =ROUNDUP(24*3600*(1-EXP(-B100/350))*7.375*(0.9^'Alliance 1'!$H$1),0) -> 0 | D100: 0 | E100: 0 | F100: 0 | G100: 00:00:00

Sheet Data Ally 2 (hidden)
A1: Temps | B1: Distance | C1: Temps | D1: h | E1: min | F1: sec | G1: Soit
A2: ='Alliance 2'!A4 -> lafourmirousse22 | B2: ='Alliance 2'!G4 -> 21.47091055 | C2: =ROUNDUP(24*3600*(1-EXP(-B2/350))*7.375*(0.9^'Alliance 2'!$H$1),0) -> 2450 | D2: =ROUNDDOWN(C2/3600,0) -> 0 | E2: =ROUNDDOWN((C2-D2*3600)/60,0) -> 40 | F2: =ROUNDUP((C2-D2*3600-E2*60),0) -> 50 | G2: =TIME(D2,E2,F2) -> 00:40:50
A3: ='Alliance 2'!A5 -> colofan | B3: ='Alliance 2'!G5 -> 124.3100961 | C3: =ROUNDUP(24*3600*(1-EXP(-B3/350))*7.375*(0.9^'Alliance 2'!$H$1),0) -> 12308 | D3: =ROUNDDOWN(C3/3600,0) -> 3 | E3: =ROUNDDOWN((C3-D3*3600)/60,0) -> 25 | F3: =ROUNDUP((C3-D3*3600-E3*60),0) -> 8 | G3: =TIME(D3,E3,F3) -> 03:25:08
A4: ='Alliance 2'!A6 -> Pololamagouille | B4: ='Alliance 2'!G6 -> 96.54014709 | C4: =ROUNDUP(24*3600*(1-EXP(-B4/350))*7.375*(0.9^'Alliance 2'!$H$1),0) -> 9925 | D4: 2 | E4: 45 | F4: 25 | G4: 02:45:25
A5: ='Alliance 2'!A7 -> choupette | B5: ='Alliance 2'!G7 -> 92.64987858 | C5: =ROUNDUP(24*3600*(1-EXP(-B5/350))*7.375*(0.9^'Alliance 2'!$H$1),0) -> 9576 | D5: 2 | E5: 39 | F5: 36 | G5: 02:39:36
A6: ='Alliance 2'!A8 -> marco3000 | B6: ='Alliance 2'!G8 -> 84.17244205 | C6: =ROUNDUP(24*3600*(1-EXP(-B6/350))*7.375*(0.9^'Alliance 2'!$H$1),0) -> 8801 | D6: 2 | E6: 26 | F6: 41 | G6: 02:26:41
A7: ='Alliance 2'!A9 -> graxy | B7: ='Alliance 2'!G9 -> 62.60990337 | C7: =ROUNDUP(24*3600*(1-EXP(-B7/350))*7.375*(0.9^'Alliance 2'!$H$1),0) -> 6744 | D7: 1 | E7: 52 | F7: 24 | G7: 01:52:24
A8: ='Alliance 2'!A10 -> mcflan | B8: ='Alliance 2'!G10 -> 133.0939518 | C8: =ROUNDUP(24*3600*(1-EXP(-B8/350))*7.375*(0.9^'Alliance 2'!$H$1),0) -> 13023 | D8: 3 | E8: 37 | F8: 3 | G8: 03:37:03
A9: ='Alliance 2'!A11 -> Patoche | B9: ='Alliance 2'!G11 -> 38.11823711 | C9: =ROUNDUP(24*3600*(1-EXP(-B9/350))*7.375*(0.9^'Alliance 2'!$H$1),0) -> 4249 | D9: 1 | E9: 10 | F9: 49 | G9: 01:10:49
A10: ='Alliance 2'!A12 -> Adrien | B10: ='Alliance 2'!G12 -> 46.38965402 | C10: =ROUNDUP(24*3600*(1-EXP(-B10/350))*7.375*(0.9^'Alliance 2'!$H$1),0) -> 5111 | D10: 1 | E10: 25 | F10: 11 | G10: 01:25:11
A11: ='Alliance 2'!A13 -> kiralove | B11: ='Alliance 2'!G13 -> 42.44997055 | C11: =ROUNDUP(24*3600*(1-EXP(-B11/350))*7.375*(0.9^'Alliance 2'!$H$1),0) -> 4703 | D11: 1 | E11: 18 | F11: 23 | G11: 01:18:23
A12: ='Alliance 2'!A14 -> hyelo | B12: ='Alliance 2'!G14 -> 162.3083485 | C12: =ROUNDUP(24*3600*(1-EXP(-B12/350))*7.375*(0.9^'Alliance 2'!$H$1),0) -> 15278 | D12: 4 | E12: 14 | F12: 38 | G12: 04:14:38
A13: ='Alliance 2'!A15 -> gooze | B13: ='Alliance 2'!G15 -> 88.45903006 | C13: =ROUNDUP(24*3600*(1-EXP(-B13/350))*7.375*(0.9^'Alliance 2'!$H$1),0) -> 9195 | D13: 2 | E13: 33 | F13: 15 | G13: 02:33:15
A14: ='Alliance 2'!A16 -> seguy | B14: ='Alliance 2'!G16 -> 33.01514804 | C14: =ROUNDUP(24*3600*(1-EXP(-B14/350))*7.375*(0.9^'Alliance 2'!$H$1),0) -> 3706 | D14: 1 | E14: 1 | F14: 46 | G14: 01:01:46
A15: ='Alliance 2'!A17 -> Drax | B15: ='Alliance 2'!G17 -> 81.21576202 | C15: =ROUNDUP(24*3600*(1-EXP(-B15/350))*7.375*(0.9^'Alliance 2'!$H$1),0) -> 8526 | D15: 2 | E15: 22 | F15: 6 | G15: 02:22:06
A16: ='Alliance 2'!A18 -> blade | B16: ='Alliance 2'!G18 -> 167.002994 | C16: =ROUNDUP(24*3600*(1-EXP(-B16/350))*7.375*(0.9^'Alliance 2'!$H$1),0) -> 15623 | D16: 4 | E16: 20 | F16: 23 | G16: 04:20:23
A17: ='Alliance 2'!A19 -> letraqueur | B17: ='Alliance 2'!G19 -> 24.04163056 | C17: =ROUNDUP(24*3600*(1-EXP(-B17/350))*7.375*(0.9^'Alliance 2'!$H$1),0) -> 2734 | D17: 0 | E17: 45 | F17: 34 | G17: 00:45:34
A18: ='Alliance 2'!A20 -> Awaf | B18: ='Alliance 2'!G20 -> 145.1206395 | C18: =ROUNDUP(24*3600*(1-EXP(-B18/350))*7.375*(0.9^'Alliance 2'!$H$1),0) -> 13974 | D18: 3 | E18: 52 | F18: 54 | G18: 03:52:54
A19: ='Alliance 2'!A21 -> nicolasto31 | B19: ='Alliance 2'!G21 -> 144.0034722 | C19: =ROUNDUP(24*3600*(1-EXP(-B19/350))*7.375*(0.9^'Alliance 2'!$H$1),0) -> 13887 | D19: 3 | E19: 51 | F19: 27 | G19: 03:51:27
A20: ='Alliance 2'!A22 -> lhyan | B20: ='Alliance 2'!G22 -> 157.276826 | C20: =ROUNDUP(24*3600*(1-EXP(-B20/350))*7.375*(0.9^'Alliance 2'!$H$1),0) -> 14903 | D20: 4 | E20: 8 | F20: 23 | G20: 04:08:23
A21: ='Alliance 2'!A23 -> Chiraze | B21: ='Alliance 2'!G23 -> 146.8740957 | C21: =ROUNDUP(24*3600*(1-EXP(-B21/350))*7.375*(0.9^'Alliance 2'!$H$1),0) -> 14110 | D21: 3 | E21: 55 | F21: 10 | G21: 03:55:10
A22: ='Alliance 2'!A24 -> Antonin | B22: ='Alliance 2'!G24 -> 143.8923209 | C22: =ROUNDUP(24*3600*(1-EXP(-B22/350))*7.375*(0.9^'Alliance 2'!$H$1),0) -> 13879 | D22: 3 | E22: 51 | F22: 19 | G22: 03:51:19
A23: ='Alliance 2'!A25 -> hellwolf11 | B23: ='Alliance 2'!G25 -> 56.43580424 | C23: =ROUNDUP(24*3600*(1-EXP(-B23/350))*7.375*(0.9^'Alliance 2'!$H$1),0) -> 6131 | D23: 1 | E23: 42 | F23: 11 | G23: 01:42:11
A24: ='Alliance 2'!A26 -> erec | B24: ='Alliance 2'!G26 -> 149.2816131 | C24: =ROUNDUP(24*3600*(1-EXP(-B24/350))*7.375*(0.9^'Alliance 2'!$H$1),0) -> 14296 | D24: 3 | E24: 58 | F24: 16 | G24: 03:58:16
A25: ='Alliance 2'!A27 -> Hugues | B25: ='Alliance 2'!G27 -> 145.5815922 | C25: =ROUNDUP(24*3600*(1-EXP(-B25/350))*7.375*(0.9^'Alliance 2'!$H$1),0) -> 14010 | D25: 3 | E25: 53 | F25: 30 | G25: 03:53:30
A26: ='Alliance 2'!A28 -> Nicolasb | B26: ='Alliance 2'!G28 -> 145.8800877 | C26: =ROUNDUP(24*3600*(1-EXP(-B26/350))*7.375*(0.9^'Alliance 2'!$H$1),0) -> 14033 | D26: 3 | E26: 53 | F26: 53 | G26: 03:53:53
A27: ='Alliance 2'!A29 -> astro19 | B27: ='Alliance 2'!G29 -> 149.4824404 | C27: =ROUNDUP(24*3600*(1-EXP(-B27/350))*7.375*(0.9^'Alliance 2'!$H$1),0) -> 14311 | D27: 3 | E27: 58 | F27: 31 | G27: 03:58:31
A28: ='Alliance 2'!A30 -> LeJDueRRrr | B28: ='Alliance 2'!G30 -> 225.3752427 | C28: =ROUNDUP(24*3600*(1-EXP(-B28/350))*7.375*(0.9^'Alliance 2'!$H$1),0) -> 19547 | D28: 5 | E28: 25 | F28: 47 | G28: 05:25:47
A29: ='Alliance 2'!A31 -> linepithema | B29: ='Alliance 2'!G31 -> 71.78439942 | C29: =ROUNDUP(24*3600*(1-EXP(-B29/350))*7.375*(0.9^'Alliance 2'!$H$1),0) -> 7635 | D29: 2 | E29: 7 | F29: 15 | G29: 02:07:15
A30: ='Alliance 2'!A32 -> Nissart | B30: ='Alliance 2'!G32 -> 123.1787319 | C30: =ROUNDUP(24*3600*(1-EXP(-B30/350))*7.375*(0.9^'Alliance 2'!$H$1),0) -> 12215 | D30: 3 | E30: 23 | F30: 35 | G30: 03:23:35
A31: ='Alliance 2'!A33 -> Corum | B31: ='Alliance 2'!G33 -> 164.5964763 | C31: =ROUNDUP(24*3600*(1-EXP(-B31/350))*7.375*(0.9^'Alliance 2'!$H$1),0) -> 15446 | D31: 4 | E31: 17 | F31: 26 | G31: 04:17:26
A32: ='Alliance 2'!A34 -> brabancon | B32: ='Alliance 2'!G34 -> 32.89376841 | C32: =ROUNDUP(24*3600*(1-EXP(-B32/350))*7.375*(0.9^'Alliance 2'!$H$1),0) -> 3693 | D32: 1 | E32: 1 | F32: 33 | G32: 01:01:33
A33: ='Alliance 2'!A35 -> Flow | B33: ='Alliance 2'!G35 -> 225.2687284 | C33: =ROUNDUP(24*3600*(1-EXP(-B33/350))*7.375*(0.9^'Alliance 2'!$H$1),0) -> 19540 | D33: 5 | E33: 25 | F33: 40 | G33: 05:25:40
A34: ='Alliance 2'!A36 -> franck76 | B34: ='Alliance 2'!G36 -> 347.5197836 | C34: =ROUNDUP(24*3600*(1-EXP(-B34/350))*7.375*(0.9^'Alliance 2'!$H$1),0) -> 25917 | D34: 7 | E34: 11 | F34: 57 | G34: 07:11:57
A35: ='Alliance 2'!A37 -> Zeref | B35: ='Alliance 2'!G37 -> 169.9558766 | C35: =ROUNDUP(24*3600*(1-EXP(-B35/350))*7.375*(0.9^'Alliance 2'!$H$1),0) -> 15837 | D35: 4 | E35: 23 | F35: 57 | G35: 04:23:57
A36: ='Alliance 2'!A38 -> flydutchman | B36: ='Alliance 2'!G38 -> 27.85677655 | C36: =ROUNDUP(24*3600*(1-EXP(-B36/350))*7.375*(0.9^'Alliance 2'!$H$1),0) -> 3150 | D36: 0 | E36: 52 | F36: 30 | G36: 00:52:30
A37: ='Alliance 2'!A39 -> Nine | B37: ='Alliance 2'!G39 -> 98.61541462 | C37: =ROUNDUP(24*3600*(1-EXP(-B37/350))*7.375*(0.9^'Alliance 2'!$H$1),0) -> 10110 | D37: 2 | E37: 48 | F37: 30 | G37: 02:48:30
A38: ='Alliance 2'!A40 -> Ant-Hologie | B38: ='Alliance 2'!G40 -> 116.0043103 | C38: =ROUNDUP(24*3600*(1-EXP(-B38/350))*7.375*(0.9^'Alliance 2'!$H$1),0) -> 11615 | D38: 3 | E38: 13 | F38: 35 | G38: 03:13:35
A39: ='Alliance 2'!A41 -> dobby | B39: ='Alliance 2'!G41 -> 129.6533841 | C39: =ROUNDUP(24*3600*(1-EXP(-B39/350))*7.375*(0.9^'Alliance 2'!$H$1),0) -> 12745 | D39: 3 | E39: 32 | F39: 25 | G39: 03:32:25
A40: ='Alliance 2'!A42 -> daubinum | B40: ='Alliance 2'!G42 -> 28.46049894 | C40: =ROUNDUP(24*3600*(1-EXP(-B40/350))*7.375*(0.9^'Alliance 2'!$H$1),0) -> 3216 | D40: 0 | E40: 53 | F40: 36 | G40: 00:53:36
A41: ='Alliance 2'!A43 -> castor | B41: ='Alliance 2'!G43 -> 95.04735662 | C41: =ROUNDUP(24*3600*(1-EXP(-B41/350))*7.375*(0.9^'Alliance 2'!$H$1),0) -> 9791 | D41: 2 | E41: 43 | F41: 11 | G41: 02:43:11
A42: ='Alliance 2'!A44 -> bobdenar | B42: ='Alliance 2'!G44 -> 13 | C42: =ROUNDUP(24*3600*(1-EXP(-B42/350))*7.375*(0.9^'Alliance 2'!$H$1),0) -> 1502 | D42: 0 | E42: 25 | F42: 2 | G42: 00:25:02
A43: ='Alliance 2'!A45 -> Paglop | B43: ='Alliance 2'!G45 -> 180.346888 | C43: =ROUNDUP(24*3600*(1-EXP(-B43/350))*7.375*(0.9^'Alliance 2'!$H$1),0) -> 16578 | D43: 4 | E43: 36 | F43: 18 | G43: 04:36:18
A44: ='Alliance 2'!A46 -> destichado | B44: ='Alliance 2'!G46 -> 149.0033557 | C44: =ROUNDUP(24*3600*(1-EXP(-B44/350))*7.375*(0.9^'Alliance 2'!$H$1),0) -> 14274 | D44: 3 | E44: 57 | F44: 54 | G44: 03:57:54
A45: ='Alliance 2'!A47 -> MistAr | B45: ='Alliance 2'!G47 -> 40.36087214 | C45: =ROUNDUP(24*3600*(1-EXP(-B45/350))*7.375*(0.9^'Alliance 2'!$H$1),0) -> 4485 | D45: 1 | E45: 14 | F45: 45 | G45: 01:14:45
A46: ='Alliance 2'!A48 -> macewindu | B46: ='Alliance 2'!G48 -> 88.36288814 | C46: =ROUNDUP(24*3600*(1-EXP(-B46/350))*7.375*(0.9^'Alliance 2'!$H$1),0) -> 9186 | D46: 2 | E46: 33 | F46: 6 | G46: 02:33:06
A47: ='Alliance 2'!A49 -> Lolo | B47: ='Alliance 2'!G49 -> 135.6244816 | C47: =ROUNDUP(24*3600*(1-EXP(-B47/350))*7.375*(0.9^'Alliance 2'!$H$1),0) -> 13226 | D47: 3 | E47: 40 | F47: 26 | G47: 03:40:26
A48: ='Alliance 2'!A50 -> SpartanGoldberg | B48: ='Alliance 2'!G50 -> 117.0384552 | C48: =ROUNDUP(24*3600*(1-EXP(-B48/350))*7.375*(0.9^'Alliance 2'!$H$1),0) -> 11702 | D48: 3 | E48: 15 | F48: 2 | G48: 03:15:02
A49: ='Alliance 2'!A51 -> Sizz31 | B49: ='Alliance 2'!G51 -> 71.02816343 | C49: =ROUNDUP(24*3600*(1-EXP(-B49/350))*7.375*(0.9^'Alliance 2'!$H$1),0) -> 7562 | D49: 2 | E49: 6 | F49: 2 | G49: 02:06:02
A50: ='Alliance 2'!A52 -> Fubia | B50: ='Alliance 2'!G52 -> 163.0122695 | C50: =ROUNDUP(24*3600*(1-EXP(-B50/350))*7.375*(0.9^'Alliance 2'!$H$1),0) -> 15330 | D50: 4 | E50: 15 | F50: 30 | G50: 04:15:30
A51: ='Alliance 2'!A53 -> Struf | B51: ='Alliance 2'!G53 -> 23.43074903 | C51: =ROUNDUP(24*3600*(1-EXP(-B51/350))*7.375*(0.9^'Alliance 2'!$H$1),0) -> 2666 | D51: 0 | E51: 44 | F51: 26 | G51: 00:44:26
A52: ='Alliance 2'!A54 -> Macflush3 | B52: ='Alliance 2'!G54 -> 109.4577544 | C52: =ROUNDUP(24*3600*(1-EXP(-B52/350))*7.375*(0.9^'Alliance 2'!$H$1),0) -> 11057 | D52: 3 | E52: 4 | F52: 17 | G52: 03:04:17
A53: ='Alliance 2'!A55 -> Bart.Simpson | B53: ='Alliance 2'!G55 -> 82.09750301 | C53: =ROUNDUP(24*3600*(1-EXP(-B53/350))*7.375*(0.9^'Alliance 2'!$H$1),0) -> 8609 | D53: 2 | E53: 23 | F53: 29 | G53: 02:23:29
A54: ='Alliance 2'!A56 -> Minibug | B54: ='Alliance 2'!G56 -> 156.179384 | C54: =ROUNDUP(24*3600*(1-EXP(-B54/350))*7.375*(0.9^'Alliance 2'!$H$1),0) -> 14820 | D54: 4 | E54: 7 | F54: 0 | G54: 04:07:00
A55: ='Alliance 2'!A57 -> tefeu2 | B55: ='Alliance 2'!G57 -> 30.01666204 | C55: =ROUNDUP(24*3600*(1-EXP(-B55/350))*7.375*(0.9^'Alliance 2'!$H$1),0) -> 3384 | D55: 0 | E55: 56 | F55: 24 | G55: 00:56:24
A56: ='Alliance 2'!A58 -> coca | B56: ='Alliance 2'!G58 -> 55.22680509 | C56: =ROUNDUP(24*3600*(1-EXP(-B56/350))*7.375*(0.9^'Alliance 2'!$H$1),0) -> 6010 | D56: 1 | E56: 40 | F56: 10 | G56: 01:40:10
A57: ='Alliance 2'!A59 -> Djika | B57: ='Alliance 2'!G59 -> 113.5341358 | C57: =ROUNDUP(24*3600*(1-EXP(-B57/350))*7.375*(0.9^'Alliance 2'!$H$1),0) -> 11406 | D57: 3 | E57: 10 | F57: 6 | G57: 03:10:06
A58: ='Alliance 2'!A60 -> hellohiz | B58: ='Alliance 2'!G60 -> 69.18092223 | C58: =ROUNDUP(24*3600*(1-EXP(-B58/350))*7.375*(0.9^'Alliance 2'!$H$1),0) -> 7384 | D58: 2 | E58: 3 | F58: 4 | G58: 02:03:04
A59: ='Alliance 2'!A61 -> trouch | B59: ='Alliance 2'!G61 -> 102.4890238 | C59: =ROUNDUP(24*3600*(1-EXP(-B59/350))*7.375*(0.9^'Alliance 2'!$H$1),0) -> 10451 | D59: 2 | E59: 54 | F59: 11 | G59: 02:54:11
A60: ='Alliance 2'!A62 -> Rugbix | B60: ='Alliance 2'!G62 -> 130.1883251 | C60: =ROUNDUP(24*3600*(1-EXP(-B60/350))*7.375*(0.9^'Alliance 2'!$H$1),0) -> 12789 | D60: 3 | E60: 33 | F60: 9 | G60: 03:33:09
A61: ='Alliance 2'!A63 -> tobeerox | B61: ='Alliance 2'!G63 -> 46.40043103 | C61: =ROUNDUP(24*3600*(1-EXP(-B61/350))*7.375*(0.9^'Alliance 2'!$H$1),0) -> 5112 | D61: 1 | E61: 25 | F61: 12 | G61: 01:25:12
A62: ='Alliance 2'!A64 -> Nwoaar | B62: ='Alliance 2'!G64 -> 32.984845 | C62: =ROUNDUP(24*3600*(1-EXP(-B62/350))*7.375*(0.9^'Alliance 2'!$H$1),0) -> 3703 | D62: 1 | E62: 1 | F62: 43 | G62: 01:01:43
A63: ='Alliance 2'!A65 -> stankou | B63: ='Alliance 2'!G65 -> 13.34166406 | C63: =ROUNDUP(24*3600*(1-EXP(-B63/350))*7.375*(0.9^'Alliance 2'!$H$1),0) -> 1540 | D63: 0 | E63: 25 | F63: 40 | G63: 00:25:40
A64: ='Alliance 2'!A66 -> la-beuze | B64: ='Alliance 2'!G66 -> 133.0601368 | C64: =ROUNDUP(24*3600*(1-EXP(-B64/350))*7.375*(0.9^'Alliance 2'!$H$1),0) -> 13021 | D64: 3 | E64: 37 | F64: 1 | G64: 03:37:01
A65: ='Alliance 2'!A67 -> ourasi | B65: ='Alliance 2'!G67 -> 73.43704787 | C65: =ROUNDUP(24*3600*(1-EXP(-B65/350))*7.375*(0.9^'Alliance 2'!$H$1),0) -> 7793 | D65: 2 | E65: 9 | F65: 53 | G65: 02:09:53
A66: ='Alliance 2'!A68 -> fabiker | B66: ='Alliance 2'!G68 -> 31.38470965 | C66: =ROUNDUP(24*3600*(1-EXP(-B66/350))*7.375*(0.9^'Alliance 2'!$H$1),0) -> 3532 | D66: 0 | E66: 58 | F66: 52 | G66: 00:58:52
A67: ='Alliance 2'!A69 -> carpiste57970 | B67: ='Alliance 2'!G69 -> 115.3516363 | C67: =ROUNDUP(24*3600*(1-EXP(-B67/350))*7.375*(0.9^'Alliance 2'!$H$1),0) -> 11560 | D67: =ROUNDDOWN(C67/3600,0) -> 3 | E67: =ROUNDDOWN((C67-D67*3600)/60,0) -> 12 | F67: =ROUNDUP((C67-D67*3600-E67*60),0) -> 40 | G67: =TIME(D67,E67,F67) -> 03:12:40
A68: ='Alliance 2'!A70 -> trickman | B68: ='Alliance 2'!G70 -> 82.97590012 | C68: =ROUNDUP(24*3600*(1-EXP(-B68/350))*7.375*(0.9^'Alliance 2'!$H$1),0) -> 8690 | D68: 2 | E68: 24 | F68: 50 | G68: 02:24:50
A69: ='Alliance 2'!A71 -> Slubs | B69: ='Alliance 2'!G71 -> 165.7377446 | C69: =ROUNDUP(24*3600*(1-EXP(-B69/350))*7.375*(0.9^'Alliance 2'!$H$1),0) -> 15530 | D69: 4 | E69: 18 | F69: 50 | G69: 04:18:50
A70: ='Alliance 2'!A72 -> GuillaumeF | B70: ='Alliance 2'!G72 -> 18.02775638 | C70: =ROUNDUP(24*3600*(1-EXP(-B70/350))*7.375*(0.9^'Alliance 2'!$H$1),0) -> 2067 | D70: 0 | E70: 34 | F70: 27 | G70: 00:34:27
A71: ='Alliance 2'!A73 -> Phenix | B71: ='Alliance 2'!G73 -> 116.0043103 | C71: =ROUNDUP(24*3600*(1-EXP(-B71/350))*7.375*(0.9^'Alliance 2'!$H$1),0) -> 11615 | D71: 3 | E71: 13 | F71: 35 | G71: 03:13:35
A72: ='Alliance 2'!A74 -> quilanvos78 | B72: ='Alliance 2'!G74 -> 87.32124598 | C72: =ROUNDUP(24*3600*(1-EXP(-B72/350))*7.375*(0.9^'Alliance 2'!$H$1),0) -> 9091 | D72: 2 | E72: 31 | F72: 31 | G72: 02:31:31
A73: ='Alliance 2'!A75 -> olitest | B73: ='Alliance 2'!G75 -> 80.77747211 | C73: =ROUNDUP(24*3600*(1-EXP(-B73/350))*7.375*(0.9^'Alliance 2'!$H$1),0) -> 8485 | D73: 2 | E73: 21 | F73: 25 | G73: 02:21:25
A74: ='Alliance 2'!A76 -> anthonysasuke | B74: ='Alliance 2'!G76 -> 117.2731853 | C74: =ROUNDUP(24*3600*(1-EXP(-B74/350))*7.375*(0.9^'Alliance 2'!$H$1),0) -> 11722 | D74: 3 | E74: 15 | F74: 22 | G74: 03:15:22
A75: ='Alliance 2'!A77 -> Giubel | B75: ='Alliance 2'!G77 -> 77.0584194 | C75: =ROUNDUP(24*3600*(1-EXP(-B75/350))*7.375*(0.9^'Alliance 2'!$H$1),0) -> 8136 | D75: 2 | E75: 15 | F75: 36 | G75: 02:15:36
A76: ='Alliance 2'!A78 -> clementin42 | B76: ='Alliance 2'!G78 -> 155.0806242 | C76: =ROUNDUP(24*3600*(1-EXP(-B76/350))*7.375*(0.9^'Alliance 2'!$H$1),0) -> 14737 | D76: 4 | E76: 5 | F76: 37 | G76: 04:05:37
A77: ='Alliance 2'!A79 -> allobye | B77: ='Alliance 2'!G79 -> 121.3342491 | C77: =ROUNDUP(24*3600*(1-EXP(-B77/350))*7.375*(0.9^'Alliance 2'!$H$1),0) -> 12062 | D77: 3 | E77: 21 | F77: 2 | G77: 03:21:02
A78: ='Alliance 2'!A80 -> Dragon25 | B78: ='Alliance 2'!G80 -> 18.38477631 | C78: =ROUNDUP(24*3600*(1-EXP(-B78/350))*7.375*(0.9^'Alliance 2'!$H$1),0) -> 2107 | D78: 0 | E78: 35 | F78: 7 | G78: 00:35:07
A79: ='Alliance 2'!A81 -> Ostrogott | B79: ='Alliance 2'!G81 -> 255.1587741 | C79: =ROUNDUP(24*3600*(1-EXP(-B79/350))*7.375*(0.9^'Alliance 2'!$H$1),0) -> 21311 | D79: 5 | E79: 55 | F79: 11 | G79: 05:55:11
A80: ='Alliance 2'!A82 -> Houssem | B80: ='Alliance 2'!G82 -> 146.9863939 | C80: =ROUNDUP(24*3600*(1-EXP(-B80/350))*7.375*(0.9^'Alliance 2'!$H$1),0) -> 14119 | D80: 3 | E80: 55 | F80: 19 | G80: 03:55:19
A81: ='Alliance 2'!A83 -> cevi18 | B81: ='Alliance 2'!G83 -> 30.08321791 | C81: =ROUNDUP(24*3600*(1-EXP(-B81/350))*7.375*(0.9^'Alliance 2'!$H$1),0) -> 3391 | D81: 0 | E81: 56 | F81: 31 | G81: 00:56:31
A82: ='Alliance 2'!A84 -> deadzone | B82: ='Alliance 2'!G84 -> 126.0991673 | C82: =ROUNDUP(24*3600*(1-EXP(-B82/350))*7.375*(0.9^'Alliance 2'!$H$1),0) -> 12455 | D82: 3 | E82: 27 | F82: 35 | G82: 03:27:35
A83: ='Alliance 2'!A85 -> Dtox | B83: ='Alliance 2'!G85 -> 129.034879 | C83: =ROUNDUP(24*3600*(1-EXP(-B83/350))*7.375*(0.9^'Alliance 2'!$H$1),0) -> 12695 | D83: 3 | E83: 31 | F83: 35 | G83: 03:31:35
A84: ='Alliance 2'!A86 -> Nordal | B84: ='Alliance 2'!G86 -> 31.30495168 | C84: =ROUNDUP(24*3600*(1-EXP(-B84/350))*7.375*(0.9^'Alliance 2'!$H$1),0) -> 3523 | D84: 0 | E84: 58 | F84: 43 | G84: 00:58:43
A85: ='Alliance 2'!A87 -> punkis | B85: ='Alliance 2'!G87 -> 126.5701387 | C85: =ROUNDUP(24*3600*(1-EXP(-B85/350))*7.375*(0.9^'Alliance 2'!$H$1),0) -> 12494 | D85: 3 | E85: 28 | F85: 14 | G85: 03:28:14
A86: ='Alliance 2'!A88 -> Shyzenka | B86: ='Alliance 2'!G88 -> 56.92099788 | C86: =ROUNDUP(24*3600*(1-EXP(-B86/350))*7.375*(0.9^'Alliance 2'!$H$1),0) -> 6180 | D86: 1 | E86: 43 | F86: 0 | G86: 01:43:00
A87: ='Alliance 2'!A89 -> Goelith | B87: ='Alliance 2'!G89 -> 153.2090076 | C87: =ROUNDUP(24*3600*(1-EXP(-B87/350))*7.375*(0.9^'Alliance 2'!$H$1),0) -> 14596 | D87: 4 | E87: 3 | F87: 16 | G87: 04:03:16
A88: ='Alliance 2'!A90 -> Destructor | B88: ='Alliance 2'!G90 -> 76.40026178 | C88: =ROUNDUP(24*3600*(1-EXP(-B88/350))*7.375*(0.9^'Alliance 2'!$H$1),0) -> 8074 | D88: 2 | E88: 14 | F88: 34 | G88: 02:14:34
A89: ='Alliance 2'!A91 -> Stalky | B89: ='Alliance 2'!G91 -> 161.245155 | C89: =ROUNDUP(24*3600*(1-EXP(-B89/350))*7.375*(0.9^'Alliance 2'!$H$1),0) -> 15199 | D89: 4 | E89: 13 | F89: 19 | G89: 04:13:19
A90: ='Alliance 2'!A92 -> l3dz | B90: ='Alliance 2'!G92 -> 65.9241989 | C90: =ROUNDUP(24*3600*(1-EXP(-B90/350))*7.375*(0.9^'Alliance 2'!$H$1),0) -> 7069 | D90: 1 | E90: 57 | F90: 49 | G90: 01:57:49
A91: ='Alliance 2'!A93 -> OURAGAN.II | B91: ='Alliance 2'!G93 -> 63.03173804 | C91: =ROUNDUP(24*3600*(1-EXP(-B91/350))*7.375*(0.9^'Alliance 2'!$H$1),0) -> 6786 | D91: 1 | E91: 53 | F91: 6 | G91: 01:53:06
A92: ='Alliance 2'!A94 -> Azeden9533 | B92: ='Alliance 2'!G94 -> 370.1351105 | C92: =ROUNDUP(24*3600*(1-EXP(-B92/350))*7.375*(0.9^'Alliance 2'!$H$1),0) -> 26872 | D92: 7 | E92: 27 | F92: 52 | G92: 07:27:52
A93: ='Alliance 2'!A95 -> stevenbreak | B93: ='Alliance 2'!G95 -> 123.4908904 | C93: =ROUNDUP(24*3600*(1-EXP(-B93/350))*7.375*(0.9^'Alliance 2'!$H$1),0) -> 12241 | D93: 3 | E93: 24 | F93: 1 | G93: 03:24:01
A94: ='Alliance 2'!A96 -> neufvy | B94: ='Alliance 2'!G96 -> 2133.033755 | C94: =ROUNDUP(24*3600*(1-EXP(-B94/350))*7.375*(0.9^'Alliance 2'!$H$1),0) -> 41078 | D94: 11 | E94: 24 | F94: 38 | G94: 11:24:38
A95: ='Alliance 2'!A97 -> MK_4ever | B95: ='Alliance 2'!G97 -> 318.0062892 | C95: =ROUNDUP(24*3600*(1-EXP(-B95/350))*7.375*(0.9^'Alliance 2'!$H$1),0) -> 24575 | D95: 6 | E95: 49 | F95: 35 | G95: 06:49:35
A96: ='Alliance 2'!A98 ->  | B96: ='Alliance 2'!G98 ->  | C96: =ROUNDUP(24*3600*(1-EXP(-B96/350))*7.375*(0.9^'Alliance 2'!$H$1),0) -> 
A97: ='Alliance 2'!A99 ->  | B97: ='Alliance 2'!G99 ->  | C97: =ROUNDUP(24*3600*(1-EXP(-B97/350))*7.375*(0.9^'Alliance 2'!$H$1),0) -> 
A98: ='Alliance 2'!A100 ->  | B98: ='Alliance 2'!G100 ->  | C98: =ROUNDUP(24*3600*(1-EXP(-B98/350))*7.375*(0.9^'Alliance 2'!$H$1),0) -> 
A99: ='Alliance 2'!A101 -> , | B99: ='Alliance 2'!G101 -> 0 | C99: =ROUNDUP(24*3600*(1-EXP(-B99/350))*7.375*(0.9^'Alliance 2'!$H$1),0) -> 0 | D99: 0 | E99: 0 | F99: 0 | G99: 00:00:00
A100: ='Alliance 2'!A102 -> 0 | B100: ='Alliance 2'!G102 -> 0 | C100: =ROUNDUP(24*3600*(1-EXP(-B100/350))*7.375*(0.9^'Alliance 2'!$H$1),0) -> 0 | D100: 0 | E100: 0 | F100: 0 | G100: 00:00:00

Sheet Data Ally 3 (hidden)
A1: Temps | B1: Distance | C1: Temps | D1: h | E1: min | F1: sec | G1: Soit
A2: ='Alliance 3'!A4 -> Koute | B2: ='Alliance 3'!G4 -> 114 | C2: =ROUNDUP(24*3600*(1-EXP(-B2/350))*7.375*(0.9^'Alliance 2'!$H$1),0) -> 11445 | D2: =ROUNDDOWN(C2/3600,0) -> 3 | E2: =ROUNDDOWN((C2-D2*3600)/60,0) -> 10 | F2: =ROUNDUP((C2-D2*3600-E2*60),0) -> 45 | G2: =TIME(D2,E2,F2) -> 03:10:45
A3: ='Alliance 3'!A5 -> daine | B3: ='Alliance 3'!G5 -> 8.544003745 | C3: =ROUNDUP(24*3600*(1-EXP(-B3/350))*7.375*(0.9^'Alliance 2'!$H$1),0) -> 993 | D3: =ROUNDDOWN(C3/3600,0) -> 0 | E3: =ROUNDDOWN((C3-D3*3600)/60,0) -> 16 | F3: =ROUNDUP((C3-D3*3600-E3*60),0) -> 33 | G3: =TIME(D3,E3,F3) -> 00:16:33
A4: ='Alliance 3'!A6 -> eraser | B4: ='Alliance 3'!G6 -> 226.079632 | C4: =ROUNDUP(24*3600*(1-EXP(-B4/350))*7.375*(0.9^'Alliance 2'!$H$1),0) -> 19590 | D4: 5 | E4: 26 | F4: 30 | G4: 05:26:30
A5: ='Alliance 3'!A7 -> Matty | B5: ='Alliance 3'!G7 -> 161.2761607 | C5: =ROUNDUP(24*3600*(1-EXP(-B5/350))*7.375*(0.9^'Alliance 2'!$H$1),0) -> 15201 | D5: 4 | E5: 13 | F5: 21 | G5: 04:13:21
A6: ='Alliance 3'!A8 -> dreck | B6: ='Alliance 3'!G8 -> 1025.039511 | C6: =ROUNDUP(24*3600*(1-EXP(-B6/350))*7.375*(0.9^'Alliance 2'!$H$1),0) -> 38969 | D6: 10 | E6: 49 | F6: 29 | G6: 10:49:29
A7: ='Alliance 3'!A9 -> sKorpion | B7: ='Alliance 3'!G9 -> 89.80534505 | C7: =ROUNDUP(24*3600*(1-EXP(-B7/350))*7.375*(0.9^'Alliance 2'!$H$1),0) -> 9318 | D7: 2 | E7: 35 | F7: 18 | G7: 02:35:18
A8: ='Alliance 3'!A10 -> Schacka | B8: ='Alliance 3'!G10 -> 81.05553652 | C8: =ROUNDUP(24*3600*(1-EXP(-B8/350))*7.375*(0.9^'Alliance 2'!$H$1),0) -> 8511 | D8: 2 | E8: 21 | F8: 51 | G8: 02:21:51
A9: ='Alliance 3'!A11 -> pixie | B9: ='Alliance 3'!G11 -> 81.74350127 | C9: =ROUNDUP(24*3600*(1-EXP(-B9/350))*7.375*(0.9^'Alliance 2'!$H$1),0) -> 8576 | D9: 2 | E9: 22 | F9: 56 | G9: 02:22:56
A10: ='Alliance 3'!A12 -> elglando25 | B10: ='Alliance 3'!G12 -> 19.23538406 | C10: =ROUNDUP(24*3600*(1-EXP(-B10/350))*7.375*(0.9^'Alliance 2'!$H$1),0) -> 2202 | D10: 0 | E10: 36 | F10: 42 | G10: 00:36:42
A11: ='Alliance 3'!A13 -> wallywilly | B11: ='Alliance 3'!G13 -> 24.18677324 | C11: =ROUNDUP(24*3600*(1-EXP(-B11/350))*7.375*(0.9^'Alliance 2'!$H$1),0) -> 2749 | D11: 0 | E11: 45 | F11: 49 | G11: 00:45:49
A12: ='Alliance 3'!A14 -> gofast | B12: ='Alliance 3'!G14 -> 39.44616585 | C12: =ROUNDUP(24*3600*(1-EXP(-B12/350))*7.375*(0.9^'Alliance 2'!$H$1),0) -> 4389 | D12: 1 | E12: 13 | F12: 9 | G12: 01:13:09
A13: ='Alliance 3'!A15 -> deus35 | B13: ='Alliance 3'!G15 -> 75.31268154 | C13: =ROUNDUP(24*3600*(1-EXP(-B13/350))*7.375*(0.9^'Alliance 2'!$H$1),0) -> 7971 | D13: 2 | E13: 12 | F13: 51 | G13: 02:12:51
A14: ='Alliance 3'!A16 -> bnicky | B14: ='Alliance 3'!G16 -> 265.1527861 | C14: =ROUNDUP(24*3600*(1-EXP(-B14/350))*7.375*(0.9^'Alliance 2'!$H$1),0) -> 21870 | D14: 6 | E14: 4 | F14: 30 | G14: 06:04:30
A15: ='Alliance 3'!A17 -> pomme | B15: ='Alliance 3'!G17 -> 83.21658489 | C15: =ROUNDUP(24*3600*(1-EXP(-B15/350))*7.375*(0.9^'Alliance 2'!$H$1),0) -> 8712 | D15: 2 | E15: 25 | F15: 12 | G15: 02:25:12
A16: ='Alliance 3'!A18 -> edwinn | B16: ='Alliance 3'!G18 -> 158.8238017 | C16: =ROUNDUP(24*3600*(1-EXP(-B16/350))*7.375*(0.9^'Alliance 2'!$H$1),0) -> 15018 | D16: 4 | E16: 10 | F16: 18 | G16: 04:10:18
A17: ='Alliance 3'!A19 -> Akkad | B17: ='Alliance 3'!G19 -> 734.4964261 | C17: =ROUNDUP(24*3600*(1-EXP(-B17/350))*7.375*(0.9^'Alliance 2'!$H$1),0) -> 36122 | D17: 10 | E17: 2 | F17: 2 | G17: 10:02:02
A18: ='Alliance 3'!A20 -> lotinho | B18: ='Alliance 3'!G20 -> 812.3546024 | C18: =ROUNDUP(24*3600*(1-EXP(-B18/350))*7.375*(0.9^'Alliance 2'!$H$1),0) -> 37129 | D18: 10 | E18: 18 | F18: 49 | G18: 10:18:49
A19: ='Alliance 3'!A21 -> StuPfix | B19: ='Alliance 3'!G21 -> 127.251719 | C19: =ROUNDUP(24*3600*(1-EXP(-B19/350))*7.375*(0.9^'Alliance 2'!$H$1),0) -> 12550 | D19: 3 | E19: 29 | F19: 10 | G19: 03:29:10
A20: ='Alliance 3'!A22 -> Snagas | B20: ='Alliance 3'!G22 -> 33.54101966 | C20: =ROUNDUP(24*3600*(1-EXP(-B20/350))*7.375*(0.9^'Alliance 2'!$H$1),0) -> 3763 | D20: 1 | E20: 2 | F20: 43 | G20: 01:02:43
A21: ='Alliance 3'!A23 -> krondgens | B21: ='Alliance 3'!G23 -> 406.3151486 | C21: =ROUNDUP(24*3600*(1-EXP(-B21/350))*7.375*(0.9^'Alliance 2'!$H$1),0) -> 28276 | D21: 7 | E21: 51 | F21: 16 | G21: 07:51:16
A22: ='Alliance 3'!A24 -> uchiha | B22: ='Alliance 3'!G24 -> 31.01612484 | C22: =ROUNDUP(24*3600*(1-EXP(-B22/350))*7.375*(0.9^'Alliance 2'!$H$1),0) -> 3492 | D22: 0 | E22: 58 | F22: 12 | G22: 00:58:12
A23: ='Alliance 3'!A25 -> sempervirens | B23: ='Alliance 3'!G25 -> 69.89277502 | C23: =ROUNDUP(24*3600*(1-EXP(-B23/350))*7.375*(0.9^'Alliance 2'!$H$1),0) -> 7453 | D23: 2 | E23: 4 | F23: 13 | G23: 02:04:13
A24: ='Alliance 3'!A26 -> alijulien | B24: ='Alliance 3'!G26 -> 155.1934277 | C24: =ROUNDUP(24*3600*(1-EXP(-B24/350))*7.375*(0.9^'Alliance 2'!$H$1),0) -> 14746 | D24: 4 | E24: 5 | F24: 46 | G24: 04:05:46
A25: ='Alliance 3'!A27 -> 77snake77 | B25: ='Alliance 3'!G27 -> 136.0147051 | C25: =ROUNDUP(24*3600*(1-EXP(-B25/350))*7.375*(0.9^'Alliance 2'!$H$1),0) -> 13257 | D25: 3 | E25: 40 | F25: 57 | G25: 03:40:57
A26: ='Alliance 3'!A28 -> WeeD-Amnesia | B26: ='Alliance 3'!G28 -> 160.1998752 | C26: =ROUNDUP(24*3600*(1-EXP(-B26/350))*7.375*(0.9^'Alliance 2'!$H$1),0) -> 15121 | D26: 4 | E26: 12 | F26: 1 | G26: 04:12:01
A27: ='Alliance 3'!A29 -> Riri | B27: ='Alliance 3'!G29 -> 61.39218191 | C27: =ROUNDUP(24*3600*(1-EXP(-B27/350))*7.375*(0.9^'Alliance 2'!$H$1),0) -> 6624 | D27: 1 | E27: 50 | F27: 24 | G27: 01:50:24
A28: ='Alliance 3'!A30 -> Gwenole | B28: ='Alliance 3'!G30 -> 55.08175742 | C28: =ROUNDUP(24*3600*(1-EXP(-B28/350))*7.375*(0.9^'Alliance 2'!$H$1),0) -> 5996 | D28: 1 | E28: 39 | F28: 56 | G28: 01:39:56
A29: ='Alliance 3'!A31 -> etoilenoire | B29: ='Alliance 3'!G31 -> 54.58937626 | C29: =ROUNDUP(24*3600*(1-EXP(-B29/350))*7.375*(0.9^'Alliance 2'!$H$1),0) -> 5946 | D29: 1 | E29: 39 | F29: 6 | G29: 01:39:06
A30: ='Alliance 3'!A32 -> nettoyeur | B30: ='Alliance 3'!G32 -> 54.03702434 | C30: =ROUNDUP(24*3600*(1-EXP(-B30/350))*7.375*(0.9^'Alliance 2'!$H$1),0) -> 5890 | D30: 1 | E30: 38 | F30: 10 | G30: 01:38:10
A31: ='Alliance 3'!A33 -> sillages | B31: ='Alliance 3'!G33 -> 144.1249458 | C31: =ROUNDUP(24*3600*(1-EXP(-B31/350))*7.375*(0.9^'Alliance 2'!$H$1),0) -> 13897 | D31: 3 | E31: 51 | F31: 37 | G31: 03:51:37
A32: ='Alliance 3'!A34 -> aurjemi | B32: ='Alliance 3'!G34 -> 43.0464865 | C32: =ROUNDUP(24*3600*(1-EXP(-B32/350))*7.375*(0.9^'Alliance 2'!$H$1),0) -> 4765 | D32: 1 | E32: 19 | F32: 25 | G32: 01:19:25
A33: ='Alliance 3'!A35 -> Balthazard55 | B33: ='Alliance 3'!G35 -> 133.8207757 | C33: =ROUNDUP(24*3600*(1-EXP(-B33/350))*7.375*(0.9^'Alliance 2'!$H$1),0) -> 13082 | D33: 3 | E33: 38 | F33: 2 | G33: 03:38:02
A34: ='Alliance 3'!A36 -> oiseaudeproie | B34: ='Alliance 3'!G36 -> 84.48076704 | C34: =ROUNDUP(24*3600*(1-EXP(-B34/350))*7.375*(0.9^'Alliance 2'!$H$1),0) -> 8829 | D34: 2 | E34: 27 | F34: 9 | G34: 02:27:09
A35: ='Alliance 3'!A37 -> kroing | B35: ='Alliance 3'!G37 -> 15.8113883 | C35: =ROUNDUP(24*3600*(1-EXP(-B35/350))*7.375*(0.9^'Alliance 2'!$H$1),0) -> 1819 | D35: 0 | E35: 30 | F35: 19 | G35: 00:30:19
A36: ='Alliance 3'!A38 -> el-loco | B36: ='Alliance 3'!G38 -> 125.6741819 | C36: =ROUNDUP(24*3600*(1-EXP(-B36/350))*7.375*(0.9^'Alliance 2'!$H$1),0) -> 12420 | D36: 3 | E36: 27 | F36: 0 | G36: 03:27:00
A37: ='Alliance 3'!A39 -> Pich39 | B37: ='Alliance 3'!G39 -> 69.007246 | C37: =ROUNDUP(24*3600*(1-EXP(-B37/350))*7.375*(0.9^'Alliance 2'!$H$1),0) -> 7368 | D37: 2 | E37: 2 | F37: 48 | G37: 02:02:48
A38: ='Alliance 3'!A40 -> GammaNu | B38: ='Alliance 3'!G40 -> 114.0394669 | C38: =ROUNDUP(24*3600*(1-EXP(-B38/350))*7.375*(0.9^'Alliance 2'!$H$1),0) -> 11449 | D38: 3 | E38: 10 | F38: 49 | G38: 03:10:49
A39: ='Alliance 3'!A41 -> Malicieuse | B39: ='Alliance 3'!G41 -> 123.2233744 | C39: =ROUNDUP(24*3600*(1-EXP(-B39/350))*7.375*(0.9^'Alliance 2'!$H$1),0) -> 12218 | D39: 3 | E39: 23 | F39: 38 | G39: 03:23:38
A40: ='Alliance 3'!A42 -> cipo1 | B40: ='Alliance 3'!G42 -> 32.28002478 | C40: =ROUNDUP(24*3600*(1-EXP(-B40/350))*7.375*(0.9^'Alliance 2'!$H$1),0) -> 3628 | D40: 1 | E40: 0 | F40: 28 | G40: 01:00:28
A41: ='Alliance 3'!A43 -> corgun | B41: ='Alliance 3'!G43 -> 131.1868896 | C41: =ROUNDUP(24*3600*(1-EXP(-B41/350))*7.375*(0.9^'Alliance 2'!$H$1),0) -> 12870 | D41: 3 | E41: 34 | F41: 30 | G41: 03:34:30
A42: ='Alliance 3'!A44 -> hano | B42: ='Alliance 3'!G44 -> 61.03277808 | C42: =ROUNDUP(24*3600*(1-EXP(-B42/350))*7.375*(0.9^'Alliance 2'!$H$1),0) -> 6589 | D42: 1 | E42: 49 | F42: 49 | G42: 01:49:49
A43: ='Alliance 3'!A45 -> Hyunkel | B43: ='Alliance 3'!G45 -> 862.0208814 | C43: =ROUNDUP(24*3600*(1-EXP(-B43/350))*7.375*(0.9^'Alliance 2'!$H$1),0) -> 37663 | D43: 10 | E43: 27 | F43: 43 | G43: 10:27:43
A44: ='Alliance 3'!A46 -> jojo | B44: ='Alliance 3'!G46 -> 149.083869 | C44: =ROUNDUP(24*3600*(1-EXP(-B44/350))*7.375*(0.9^'Alliance 2'!$H$1),0) -> 14280 | D44: 3 | E44: 58 | F44: 0 | G44: 03:58:00
A45: ='Alliance 3'!A47 ->  | B45: ='Alliance 3'!G47 ->  | C45: =ROUNDUP(24*3600*(1-EXP(-B45/350))*7.375*(0.9^'Alliance 2'!$H$1),0) -> 
A46: ='Alliance 3'!A48 ->  | B46: ='Alliance 3'!G48 ->  | C46: =ROUNDUP(24*3600*(1-EXP(-B46/350))*7.375*(0.9^'Alliance 2'!$H$1),0) -> 
A47: ='Alliance 3'!A49 ->  | B47: ='Alliance 3'!G49 ->  | C47: =ROUNDUP(24*3600*(1-EXP(-B47/350))*7.375*(0.9^'Alliance 2'!$H$1),0) -> 
A48: ='Alliance 3'!A50 ->  | B48: ='Alliance 3'!G50 ->  | C48: =ROUNDUP(24*3600*(1-EXP(-B48/350))*7.375*(0.9^'Alliance 2'!$H$1),0) -> 
A49: ='Alliance 3'!A51 ->  | B49: ='Alliance 3'!G51 ->  | C49: =ROUNDUP(24*3600*(1-EXP(-B49/350))*7.375*(0.9^'Alliance 2'!$H$1),0) -> 
A50: ='Alliance 3'!A52 ->  | B50: ='Alliance 3'!G52 ->  | C50: =ROUNDUP(24*3600*(1-EXP(-B50/350))*7.375*(0.9^'Alliance 2'!$H$1),0) -> 
A51: ='Alliance 3'!A53 ->  | B51: ='Alliance 3'!G53 ->  | C51: =ROUNDUP(24*3600*(1-EXP(-B51/350))*7.375*(0.9^'Alliance 2'!$H$1),0) -> 
A52: ='Alliance 3'!A54 ->  | B52: ='Alliance 3'!G54 ->  | C52: =ROUNDUP(24*3600*(1-EXP(-B52/350))*7.375*(0.9^'Alliance 2'!$H$1),0) -> 
A53: ='Alliance 3'!A55 ->  | B53: ='Alliance 3'!G55 ->  | C53: =ROUNDUP(24*3600*(1-EXP(-B53/350))*7.375*(0.9^'Alliance 2'!$H$1),0) -> 
A54: ='Alliance 3'!A56 ->  | B54: ='Alliance 3'!G56 ->  | C54: =ROUNDUP(24*3600*(1-EXP(-B54/350))*7.375*(0.9^'Alliance 2'!$H$1),0) -> 
A55: ='Alliance 3'!A57 ->  | B55: ='Alliance 3'!G57 ->  | C55: =ROUNDUP(24*3600*(1-EXP(-B55/350))*7.375*(0.9^'Alliance 2'!$H$1),0) -> 
A56: ='Alliance 3'!A58 ->  | B56: ='Alliance 3'!G58 ->  | C56: =ROUNDUP(24*3600*(1-EXP(-B56/350))*7.375*(0.9^'Alliance 2'!$H$1),0) -> 
A57: ='Alliance 3'!A59 ->  | B57: ='Alliance 3'!G59 ->  | C57: =ROUNDUP(24*3600*(1-EXP(-B57/350))*7.375*(0.9^'Alliance 2'!$H$1),0) -> 
A58: ='Alliance 3'!A60 ->  | B58: ='Alliance 3'!G60 ->  | C58: =ROUNDUP(24*3600*(1-EXP(-B58/350))*7.375*(0.9^'Alliance 2'!$H$1),0) -> 
A59: ='Alliance 3'!A61 ->  | B59: ='Alliance 3'!G61 ->  | C59: =ROUNDUP(24*3600*(1-EXP(-B59/350))*7.375*(0.9^'Alliance 2'!$H$1),0) -> 
A60: ='Alliance 3'!A62 ->  | B60: ='Alliance 3'!G62 ->  | C60: =ROUNDUP(24*3600*(1-EXP(-B60/350))*7.375*(0.9^'Alliance 2'!$H$1),0) -> 
A61: ='Alliance 3'!A63 ->  | B61: ='Alliance 3'!G63 ->  | C61: =ROUNDUP(24*3600*(1-EXP(-B61/350))*7.375*(0.9^'Alliance 2'!$H$1),0) -> 
A62: ='Alliance 3'!A64 ->  | B62: ='Alliance 3'!G64 ->  | C62: =ROUNDUP(24*3600*(1-EXP(-B62/350))*7.375*(0.9^'Alliance 2'!$H$1),0) -> 
A63: ='Alliance 3'!A65 ->  | B63: ='Alliance 3'!G65 ->  | C63: =ROUNDUP(24*3600*(1-EXP(-B63/350))*7.375*(0.9^'Alliance 2'!$H$1),0) -> 
A64: ='Alliance 3'!A66 ->  | B64: ='Alliance 3'!G66 ->  | C64: =ROUNDUP(24*3600*(1-EXP(-B64/350))*7.375*(0.9^'Alliance 2'!$H$1),0) -> 
A65: ='Alliance 3'!A67 ->  | B65: ='Alliance 3'!G67 ->  | C65: =ROUNDUP(24*3600*(1-EXP(-B65/350))*7.375*(0.9^'Alliance 2'!$H$1),0) -> 
A66: ='Alliance 3'!A68 ->  | B66: ='Alliance 3'!G68 ->  | C66: =ROUNDUP(24*3600*(1-EXP(-B66/350))*7.375*(0.9^'Alliance 2'!$H$1),0) -> 
A67: ='Alliance 3'!A69 ->  | B67: ='Alliance 3'!G69 ->  | C67: =ROUNDUP(24*3600*(1-EXP(-B67/350))*7.375*(0.9^'Alliance 2'!$H$1),0) ->  | D67: =ROUNDDOWN(C67/3600,0) ->  | E67: =ROUNDDOWN((C67-D67*3600)/60,0) ->  | F67: =ROUNDUP((C67-D67*3600-E67*60),0) ->  | G67: =TIME(D67,E67,F67) -> 
A68: ='Alliance 3'!A70 ->  | B68: ='Alliance 3'!G70 ->  | C68: =ROUNDUP(24*3600*(1-EXP(-B68/350))*7.375*(0.9^'Alliance 2'!$H$1),0) -> 
A69: ='Alliance 3'!A71 ->  | B69: ='Alliance 3'!G71 ->  | C69: =ROUNDUP(24*3600*(1-EXP(-B69/350))*7.375*(0.9^'Alliance 2'!$H$1),0) -> 
A70: ='Alliance 3'!A72 ->  | B70: ='Alliance 3'!G72 ->  | C70: =ROUNDUP(24*3600*(1-EXP(-B70/350))*7.375*(0.9^'Alliance 2'!$H$1),0) -> 
A71: ='Alliance 3'!A73 ->  | B71: ='Alliance 3'!G73 ->  | C71: =ROUNDUP(24*3600*(1-EXP(-B71/350))*7.375*(0.9^'Alliance 2'!$H$1),0) -> 
A72: ='Alliance 3'!A74 ->  | B72: ='Alliance 3'!G74 ->  | C72: =ROUNDUP(24*3600*(1-EXP(-B72/350))*7.375*(0.9^'Alliance 2'!$H$1),0) -> 
A73: ='Alliance 3'!A75 ->  | B73: ='Alliance 3'!G75 ->  | C73: =ROUNDUP(24*3600*(1-EXP(-B73/350))*7.375*(0.9^'Alliance 2'!$H$1),0) -> 
A74: ='Alliance 3'!A76 ->  | B74: ='Alliance 3'!G76 ->  | C74: =ROUNDUP(24*3600*(1-EXP(-B74/350))*7.375*(0.9^'Alliance 2'!$H$1),0) -> 
A75: ='Alliance 3'!A77 ->  | B75: ='Alliance 3'!G77 ->  | C75: =ROUNDUP(24*3600*(1-EXP(-B75/350))*7.375*(0.9^'Alliance 2'!$H$1),0) -> 
A76: ='Alliance 3'!A78 ->  | B76: ='Alliance 3'!G78 ->  | C76: =ROUNDUP(24*3600*(1-EXP(-B76/350))*7.375*(0.9^'Alliance 2'!$H$1),0) -> 
A77: ='Alliance 3'!A79 ->  | B77: ='Alliance 3'!G79 ->  | C77: =ROUNDUP(24*3600*(1-EXP(-B77/350))*7.375*(0.9^'Alliance 2'!$H$1),0) -> 
A78: ='Alliance 3'!A80 ->  | B78: ='Alliance 3'!G80 ->  | C78: =ROUNDUP(24*3600*(1-EXP(-B78/350))*7.375*(0.9^'Alliance 2'!$H$1),0) -> 
A79: ='Alliance 3'!A81 ->  | B79: ='Alliance 3'!G81 ->  | C79: =ROUNDUP(24*3600*(1-EXP(-B79/350))*7.375*(0.9^'Alliance 2'!$H$1),0) -> 
A80: ='Alliance 3'!A82 ->  | B80: ='Alliance 3'!G82 ->  | C80: =ROUNDUP(24*3600*(1-EXP(-B80/350))*7.375*(0.9^'Alliance 2'!$H$1),0) -> 
A81: ='Alliance 3'!A83 ->  | B81: ='Alliance 3'!G83 ->  | C81: =ROUNDUP(24*3600*(1-EXP(-B81/350))*7.375*(0.9^'Alliance 2'!$H$1),0) -> 
A82: ='Alliance 3'!A84 ->  | B82: ='Alliance 3'!G84 ->  | C82: =ROUNDUP(24*3600*(1-EXP(-B82/350))*7.375*(0.9^'Alliance 2'!$H$1),0) -> 
A83: ='Alliance 3'!A85 ->  | B83: ='Alliance 3'!G85 ->  | C83: =ROUNDUP(24*3600*(1-EXP(-B83/350))*7.375*(0.9^'Alliance 2'!$H$1),0) -> 
A84: ='Alliance 3'!A86 ->  | B84: ='Alliance 3'!G86 ->  | C84: =ROUNDUP(24*3600*(1-EXP(-B84/350))*7.375*(0.9^'Alliance 2'!$H$1),0) -> 
A85: ='Alliance 3'!A87 ->  | B85: ='Alliance 3'!G87 ->  | C85: =ROUNDUP(24*3600*(1-EXP(-B85/350))*7.375*(0.9^'Alliance 2'!$H$1),0) -> 
A86: ='Alliance 3'!A88 ->  | B86: ='Alliance 3'!G88 ->  | C86: =ROUNDUP(24*3600*(1-EXP(-B86/350))*7.375*(0.9^'Alliance 2'!$H$1),0) -> 
A87: ='Alliance 3'!A89 ->  | B87: ='Alliance 3'!G89 ->  | C87: =ROUNDUP(24*3600*(1-EXP(-B87/350))*7.375*(0.9^'Alliance 2'!$H$1),0) -> 
A88: ='Alliance 3'!A90 ->  | B88: ='Alliance 3'!G90 ->  | C88: =ROUNDUP(24*3600*(1-EXP(-B88/350))*7.375*(0.9^'Alliance 2'!$H$1),0) -> 
A89: ='Alliance 3'!A91 ->  | B89: ='Alliance 3'!G91 ->  | C89: =ROUNDUP(24*3600*(1-EXP(-B89/350))*7.375*(0.9^'Alliance 2'!$H$1),0) -> 
A90: ='Alliance 3'!A92 ->  | B90: ='Alliance 3'!G92 ->  | C90: =ROUNDUP(24*3600*(1-EXP(-B90/350))*7.375*(0.9^'Alliance 2'!$H$1),0) -> 
A91: ='Alliance 3'!A93 ->  | B91: ='Alliance 3'!G93 ->  | C91: =ROUNDUP(24*3600*(1-EXP(-B91/350))*7.375*(0.9^'Alliance 2'!$H$1),0) -> 
A92: ='Alliance 3'!A94 ->  | B92: ='Alliance 3'!G94 ->  | C92: =ROUNDUP(24*3600*(1-EXP(-B92/350))*7.375*(0.9^'Alliance 2'!$H$1),0) -> 
A93: ='Alliance 3'!A95 ->  | B93: ='Alliance 3'!G95 ->  | C93: =ROUNDUP(24*3600*(1-EXP(-B93/350))*7.375*(0.9^'Alliance 2'!$H$1),0) -> 
A94: ='Alliance 3'!A96 ->  | B94: ='Alliance 3'!G96 ->  | C94: =ROUNDUP(24*3600*(1-EXP(-B94/350))*7.375*(0.9^'Alliance 2'!$H$1),0) -> 
A95: ='Alliance 3'!A97 ->  | B95: ='Alliance 3'!G97 ->  | C95: =ROUNDUP(24*3600*(1-EXP(-B95/350))*7.375*(0.9^'Alliance 2'!$H$1),0) -> 
A96: ='Alliance 3'!A98 ->  | B96: ='Alliance 3'!G98 ->  | C96: =ROUNDUP(24*3600*(1-EXP(-B96/350))*7.375*(0.9^'Alliance 2'!$H$1),0) -> 
A97: ='Alliance 3'!A99 ->  | B97: ='Alliance 3'!G99 ->  | C97: =ROUNDUP(24*3600*(1-EXP(-B97/350))*7.375*(0.9^'Alliance 2'!$H$1),0) -> 
A98: ='Alliance 3'!A100 ->  | B98: ='Alliance 3'!G100 ->  | C98: =ROUNDUP(24*3600*(1-EXP(-B98/350))*7.375*(0.9^'Alliance 2'!$H$1),0) -> 
A99: ='Alliance 3'!A101 -> , | B99: ='Alliance 3'!G101 -> 0 | C99: =ROUNDUP(24*3600*(1-EXP(-B99/350))*7.375*(0.9^'Alliance 2'!$H$1),0) -> 0 | D99: 0 | E99: 0 | F99: 0 | G99: 00:00:00
A100: ='Alliance 3'!A102 -> 0 | B100: ='Alliance 3'!G102 -> 0 | C100: =ROUNDUP(24*3600*(1-EXP(-B100/350))*7.375*(0.9^'Alliance 2'!$H$1),0) -> 0 | D100: 0 | E100: 0 | F100: 0 | G100: 00:00:00

Sheet Liste des joueurs (hidden)
A1: Pseudo | B1: x | C1: y | D1: Alliance
A2: ='Analyse BDD'!E10024 -> ------------------ | B2: ='Analyse BDD'!L10024 -> 36 | C2: ='Analyse BDD'!N10024 -> 1711 | D2: ='Analyse BDD'!H10024 -> LF
A3: ='Analyse BDD'!E444 -> ....assassin123.... | B3: ='Analyse BDD'!L444 -> 26 | C3: ='Analyse BDD'!N444 -> 37 | D3: ='Analyse BDD'!H444 -> CXIII
A4: ='Analyse BDD'!E318 -> ...Rza... | B4: ='Analyse BDD'!L318 -> 29 | C4: ='Analyse BDD'!N318 -> 28 | D4: ='Analyse BDD'!H318 -> God
A5: ='Analyse BDD'!E3587 -> .4l3x | B5: ='Analyse BDD'!L3587 -> 42 | C5: ='Analyse BDD'!N3587 -> 484 | D5: ='Analyse BDD'!H3587 -> 0
A6: ='Analyse BDD'!E7578 -> .666. | B6: ='Analyse BDD'!L7578 -> 37 | C6: ='Analyse BDD'!N7578 -> 1297 | D6: ='Analyse BDD'!H7578 -> 0
A7: ='Analyse BDD'!E1163 -> .GuiGou12. | B7: ='Analyse BDD'!L1163 -> 7 | C7: ='Analyse BDD'!N1163 -> 96 | D7: ='Analyse BDD'!H1163 -> 0
A8: ='Analyse BDD'!E3162 -> .Limi. | B8: ='Analyse BDD'!L3162 -> 47 | C8: ='Analyse BDD'!N3162 -> 390 | D8: ='Analyse BDD'!H3162 -> MS
A9: ='Analyse BDD'!E19583 -> .Linou. | B9: ='Analyse BDD'!L19583 -> 3 | C9: ='Analyse BDD'!N19583 -> 2374 | D9: ='Analyse BDD'!H19583 -> 0
A10: ='Analyse BDD'!E15229 -> .nicolas62. | B10: ='Analyse BDD'!L15229 -> 28 | C10: ='Analyse BDD'!N15229 -> 2167 | D10: ='Analyse BDD'!H15229 -> 0
A11: ='Analyse BDD'!E14398 -> .vins.96 | B11: ='Analyse BDD'!L14398 -> 29 | C11: ='Analyse BDD'!N14398 -> 2130 | D11: ='Analyse BDD'!H14398 -> 0
A12: ='Analyse BDD'!E12361 -> ___________________ | B12: ='Analyse BDD'!L12361 -> 12 | C12: ='Analyse BDD'!N12361 -> 2061 | D12: ='Analyse BDD'!H12361 -> 0
A13: ='Analyse BDD'!E1906 -> _Angel_ | B13: ='Analyse BDD'!L1906 -> 40 | C13: ='Analyse BDD'!N1906 -> 173 | D13: ='Analyse BDD'!H1906 -> LXM
A14: ='Analyse BDD'!E2461 -> _Antho_ | B14: ='Analyse BDD'!L2461 -> 14 | C14: ='Analyse BDD'!N2461 -> 257 | D14: ='Analyse BDD'!H2461 -> ADFR
A15: ='Analyse BDD'!E9565 -> _changement_ | B15: ='Analyse BDD'!L9565 -> 10 | C15: ='Analyse BDD'!N9565 -> 1640 | D15: ='Analyse BDD'!H9565 -> _LDF_
A16: ='Analyse BDD'!E1896 -> _diablo_ | B16: ='Analyse BDD'!L1896 -> 5 | C16: ='Analyse BDD'!N1896 -> 173 | D16: ='Analyse BDD'!H1896 -> LXM
A17: ='Analyse BDD'!E5070 -> -_-diabolix-_- | B17: ='Analyse BDD'!L5070 -> 41 | C17: ='Analyse BDD'!N5070 -> 801 | D17: ='Analyse BDD'!H5070 -> 0
A18: ='Analyse BDD'!E17747 -> _Elektra_ | B18: ='Analyse BDD'!L17747 -> 32 | C18: ='Analyse BDD'!N17747 -> 2289 | D18: ='Analyse BDD'!H17747 -> 0
A19: ='Analyse BDD'!E9142 -> _Emeraude_ | B19: ='Analyse BDD'!L9142 -> 32 | C19: ='Analyse BDD'!N9142 -> 1571 | D19: ='Analyse BDD'!H9142 -> A.E
A20: ='Analyse BDD'!E18128 -> _foumi_ | B20: ='Analyse BDD'!L18128 -> 2 | C20: ='Analyse BDD'!N18128 -> 2306 | D20: ='Analyse BDD'!H18128 -> 0
A21: ='Analyse BDD'!E11314 -> _Master169_ | B21: ='Analyse BDD'!L11314 -> 19 | C21: ='Analyse BDD'!N11314 -> 1989 | D21: ='Analyse BDD'!H11314 -> 0
A22: ='Analyse BDD'!E11612 -> _moimoimoi575 | B22: ='Analyse BDD'!L11612 -> 15 | C22: ='Analyse BDD'!N11612 -> 2019 | D22: ='Analyse BDD'!H11612 -> 0
A23: ='Analyse BDD'!E5506 -> _Niki_ | B23: ='Analyse BDD'!L5506 -> 29 | C23: ='Analyse BDD'!N5506 -> 885 | D23: ='Analyse BDD'!H5506 -> 0
A24: ='Analyse BDD'!E3119 -> _SEB_ou07 | B24: ='Analyse BDD'!L3119 -> 18 | C24: ='Analyse BDD'!N3119 -> 379 | D24: ='Analyse BDD'!H3119 -> L.M
A25: ='Analyse BDD'!E1905 -> _Wolverine_ | B25: ='Analyse BDD'!L1905 -> 36 | C25: ='Analyse BDD'!N1905 -> 173 | D25: ='Analyse BDD'!H1905 -> LXM
A26: ='Analyse BDD'!E4908 -> _XxNYTHOxX_ | B26: ='Analyse BDD'!L4908 -> 29 | C26: ='Analyse BDD'!N4908 -> 767 | D26: ='Analyse BDD'!H4908 -> 0
A27: ='Analyse BDD'!E1000 -> _Z.4_ | B27: ='Analyse BDD'!L1000 -> 24 | C27: ='Analyse BDD'!N1000 -> 84 | D27: ='Analyse BDD'!H1000 -> TOD
A28: ='Analyse BDD'!E12798 -> 000000000 | B28: ='Analyse BDD'!L12798 -> 23 | C28: ='Analyse BDD'!N12798 -> 2083 | D28: ='Analyse BDD'!H12798 -> 0
A29: ='Analyse BDD'!E13464 -> 000000000 | B29: ='Analyse BDD'!L13464 -> 23 | C29: ='Analyse BDD'!N13464 -> 2083 | D29: ='Analyse BDD'!H13464 -> 0
A30: ='Analyse BDD'!E11244 -> 007-travers | B30: ='Analyse BDD'!L11244 -> 39 | C30: ='Analyse BDD'!N11244 -> 1981 | D30: ='Analyse BDD'!H11244 -> vinc
A31: ='Analyse BDD'!E9235 -> 00titou00 | B31: ='Analyse BDD'!L9235 -> 30 | C31: ='Analyse BDD'!N9235 -> 2371 | D31: ='Analyse BDD'!H9235 -> 0
A32: ='Analyse BDD'!E18063 -> 0111 | B32: ='Analyse BDD'!L18063 -> 34 | C32: ='Analyse BDD'!N18063 -> 2303 | D32: ='Analyse BDD'!H18063 -> 0
A33: ='Analyse BDD'!E9613 -> 01zun | B33: ='Analyse BDD'!L9613 -> 7 | C33: ='Analyse BDD'!N9613 -> 1649 | D33: ='Analyse BDD'!H9613 -> ONE
A34: ='Analyse BDD'!E5815 -> 04diogo | B34: ='Analyse BDD'!L5815 -> 11 | C34: ='Analyse BDD'!N5815 -> 945 | D34: ='Analyse BDD'!H5815 -> sud
A35: ='Analyse BDD'!E1409 -> 08hardcore08 | B35: ='Analyse BDD'!L1409 -> 18 | C35: ='Analyse BDD'!N1409 -> 117 | D35: ='Analyse BDD'!H1409 -> LCM
A36: ='Analyse BDD'!E18694 -> 0o-oasis82-o0 | B36: ='Analyse BDD'!L18694 -> 42 | C36: ='Analyse BDD'!N18694 -> 2332 | D36: ='Analyse BDD'!H18694 -> L-G-T
A37: ='Analyse BDD'!E12639 -> 0-YoP | B37: ='Analyse BDD'!L12639 -> 39 | C37: ='Analyse BDD'!N12639 -> 2075 | D37: ='Analyse BDD'!H12639 -> 0
A38: ='Analyse BDD'!E5177 -> 1000pattes | B38: ='Analyse BDD'!L5177 -> 4 | C38: ='Analyse BDD'!N5177 -> 825 | D38: ='Analyse BDD'!H5177 -> Aire
A39: ='Analyse BDD'!E5227 -> 100e | B39: ='Analyse BDD'!L5227 -> 27 | C39: ='Analyse BDD'!N5227 -> 834 | D39: ='Analyse BDD'!H5227 -> CSBok
A40: ='Analyse BDD'!E9878 -> 100emilien | B40: ='Analyse BDD'!L9878 -> 18 | C40: ='Analyse BDD'!N9878 -> 1689 | D40: ='Analyse BDD'!H9878 -> tic
A41: ='Analyse BDD'!E17229 -> 103.683eme | B41: ='Analyse BDD'!L17229 -> 14 | C41: ='Analyse BDD'!N17229 -> 2263 | D41: ='Analyse BDD'!H17229 -> 0
A42: ='Analyse BDD'!E10236 -> 103_683 | B42: ='Analyse BDD'!L10236 -> 1 | C42: ='Analyse BDD'!N10236 -> 1826 | D42: ='Analyse BDD'!H10236 -> 0
A43: ='Analyse BDD'!E1619 -> 103603 | B43: ='Analyse BDD'!L1619 -> 37 | C43: ='Analyse BDD'!N1619 -> 182 | D43: ='Analyse BDD'!H1619 -> 0
A44: ='Analyse BDD'!E3735 -> 103683e | B44: ='Analyse BDD'!L3735 -> 7 | C44: ='Analyse BDD'!N3735 -> 514 | D44: ='Analyse BDD'!H3735 -> 0
A45: ='Analyse BDD'!E2455 -> 103eme | B45: ='Analyse BDD'!L2455 -> 33 | C45: ='Analyse BDD'!N2455 -> 256 | D45: ='Analyse BDD'!H2455 -> -LMF-
A46: ='Analyse BDD'!E2293 -> 103rodo | B46: ='Analyse BDD'!L2293 -> 11 | C46: ='Analyse BDD'!N2293 -> 233 | D46: ='Analyse BDD'!H2293 -> 0
A47: ='Analyse BDD'!E10399 -> 104e | B47: ='Analyse BDD'!L10399 -> 10 | C47: ='Analyse BDD'!N10399 -> 1852 | D47: ='Analyse BDD'!H10399 -> 0
A48: ='Analyse BDD'!E468 -> 10emilien | B48: ='Analyse BDD'!L468 -> 22 | C48: ='Analyse BDD'!N468 -> 1327 | D48: ='Analyse BDD'!H468 -> 0
A49: ='Analyse BDD'!E11514 -> 10jap | B49: ='Analyse BDD'!L11514 -> 29 | C49: ='Analyse BDD'!N11514 -> 2185 | D49: ='Analyse BDD'!H11514 -> 0
A50: ='Analyse BDD'!E3429 -> 10rotules | B50: ='Analyse BDD'!L3429 -> 6 | C50: ='Analyse BDD'!N3429 -> 448 | D50: ='Analyse BDD'!H3429 -> WNE
A51: ='Analyse BDD'!E9184 -> 10The-Crow01 | B51: ='Analyse BDD'!L9184 -> 29 | C51: ='Analyse BDD'!N9184 -> 1575 | D51: ='Analyse BDD'!H9184 -> L-PHX
A52: ='Analyse BDD'!E9299 -> 113eme | B52: ='Analyse BDD'!L9299 -> 27 | C52: ='Analyse BDD'!N9299 -> 1594 | D52: ='Analyse BDD'!H9299 -> M.U.F
A53: ='Analyse BDD'!E19544 -> 118009 | B53: ='Analyse BDD'!L19544 -> 3 | C53: ='Analyse BDD'!N19544 -> 2373 | D53: ='Analyse BDD'!H19544 -> 0
A54: ='Analyse BDD'!E5781 -> 1234 | B54: ='Analyse BDD'!L5781 -> 23 | C54: ='Analyse BDD'!N5781 -> 936 | D54: ='Analyse BDD'!H5781 -> C.C
A55: ='Analyse BDD'!E10274 -> 123456789p | B55: ='Analyse BDD'!L10274 -> 45 | C55: ='Analyse BDD'!N10274 -> 1831 | D55: ='Analyse BDD'!H10274 -> 0
A56: ='Analyse BDD'!E5584 -> 1234568 | B56: ='Analyse BDD'!L5584 -> 43 | C56: ='Analyse BDD'!N5584 -> 898 | D56: ='Analyse BDD'!H5584 -> 0
A57: ='Analyse BDD'!E7963 -> 1234asdf | B57: ='Analyse BDD'!L7963 -> 22 | C57: ='Analyse BDD'!N7963 -> 1361 | D57: ='Analyse BDD'!H7963 -> 0
A58: ='Analyse BDD'!E20206 -> 123ABC | B58: ='Analyse BDD'!L20206 -> 19 | C58: ='Analyse BDD'!N20206 -> 2405 | D58: ='Analyse BDD'!H20206 -> 0
A59: ='Analyse BDD'!E2916 -> 123fourmi | B59: ='Analyse BDD'!L2916 -> 20 | C59: ='Analyse BDD'!N2916 -> 331 | D59: ='Analyse BDD'!H2916 -> 0
A60: ='Analyse BDD'!E3133 -> 1250 | B60: ='Analyse BDD'!L3133 -> 2 | C60: ='Analyse BDD'!N3133 -> 393 | D60: ='Analyse BDD'!H3133 -> LWP
A61: ='Analyse BDD'!E18981 -> 12ans | B61: ='Analyse BDD'!L18981 -> 9 | C61: ='Analyse BDD'!N18981 -> 2345 | D61: ='Analyse BDD'!H18981 -> 0
A62: ='Analyse BDD'!E14284 -> 143451 | B62: ='Analyse BDD'!L14284 -> 28 | C62: ='Analyse BDD'!N14284 -> 2120 | D62: ='Analyse BDD'!H14284 -> 0
A63: ='Analyse BDD'!E3854 -> 14anskevin | B63: ='Analyse BDD'!L3854 -> 36 | C63: ='Analyse BDD'!N3854 -> 543 | D63: ='Analyse BDD'!H3854 -> ANTI
A64: ='Analyse BDD'!E12546 -> 1524 | B64: ='Analyse BDD'!L12546 -> 44 | C64: ='Analyse BDD'!N12546 -> 2070 | D64: ='Analyse BDD'!H12546 -> 0
A65: ='Analyse BDD'!E17487 -> 15900000000 | B65: ='Analyse BDD'!L17487 -> 23 | C65: ='Analyse BDD'!N17487 -> 2276 | D65: ='Analyse BDD'!H17487 -> 0
A66: ='Analyse BDD'!E19088 -> 16260 | B66: ='Analyse BDD'!L19088 -> 38 | C66: ='Analyse BDD'!N19088 -> 2349 | D66: ='Analyse BDD'!H19088 -> 0
A67: ='Analyse BDD'!E1122 -> 163eme | B67: ='Analyse BDD'!L1122 -> 29 | C67: ='Analyse BDD'!N1122 -> 93 | D67: ='Analyse BDD'!H1122 -> ZEN
A68: ='Analyse BDD'!E17959 -> 169258 | B68: ='Analyse BDD'!L17959 -> 34 | C68: ='Analyse BDD'!N17959 -> 2298 | D68: ='Analyse BDD'!H17959 -> 0
A69: ='Analyse BDD'!E16944 -> 180799 | B69: ='Analyse BDD'!L16944 -> 44 | C69: ='Analyse BDD'!N16944 -> 2247 | D69: ='Analyse BDD'!H16944 -> 0
A70: ='Analyse BDD'!E14890 -> 183e | B70: ='Analyse BDD'!L14890 -> 39 | C70: ='Analyse BDD'!N14890 -> 2151 | D70: ='Analyse BDD'!H14890 -> 0
A71: ='Analyse BDD'!E9563 -> 19kevin98 | B71: ='Analyse BDD'!L9563 -> 14 | C71: ='Analyse BDD'!N9563 -> 1640 | D71: ='Analyse BDD'!H9563 -> 0
A72: ='Analyse BDD'!E5252 -> 1emilien | B72: ='Analyse BDD'!L5252 -> 20 | C72: ='Analyse BDD'!N5252 -> 837 | D72: ='Analyse BDD'!H5252 -> 666
A73: ='Analyse BDD'!E14157 -> 1Laura1 | B73: ='Analyse BDD'!L14157 -> 42 | C73: ='Analyse BDD'!N14157 -> 2115 | D73: ='Analyse BDD'!H14157 -> 0
A74: ='Analyse BDD'!E17431 -> 1olli | B74: ='Analyse BDD'!L17431 -> 37 | C74: ='Analyse BDD'!N17431 -> 2274 | D74: ='Analyse BDD'!H17431 -> 0
A75: ='Analyse BDD'!E7295 -> 1sully1 | B75: ='Analyse BDD'!L7295 -> 21 | C75: ='Analyse BDD'!N7295 -> 1243 | D75: ='Analyse BDD'!H7295 -> FYW
A76: ='Analyse BDD'!E1466 -> 1-Tox | B76: ='Analyse BDD'!L1466 -> 37 | C76: ='Analyse BDD'!N1466 -> 122 | D76: ='Analyse BDD'!H1466 -> RSF
A77: ='Analyse BDD'!E9821 -> 20000 | B77: ='Analyse BDD'!L9821 -> 7 | C77: ='Analyse BDD'!N9821 -> 1679 | D77: ='Analyse BDD'!H9821 -> 0
A78: ='Analyse BDD'!E19151 -> 202034 | B78: ='Analyse BDD'!L19151 -> 14 | C78: ='Analyse BDD'!N19151 -> 2354 | D78: ='Analyse BDD'!H19151 -> 0
A79: ='Analyse BDD'!E4098 -> 20cyl | B79: ='Analyse BDD'!L4098 -> 23 | C79: ='Analyse BDD'!N4098 -> 597 | D79: ='Analyse BDD'!H4098 -> GANJA
A80: ='Analyse BDD'!E14802 -> 21leon | B80: ='Analyse BDD'!L14802 -> 9 | C80: ='Analyse BDD'!N14802 -> 2148 | D80: ='Analyse BDD'!H14802 -> 0
A81: ='Analyse BDD'!E4272 -> 222222 | B81: ='Analyse BDD'!L4272 -> 44 | C81: ='Analyse BDD'!N4272 -> 637 | D81: ='Analyse BDD'!H4272 -> 0
A82: ='Analyse BDD'!E15676 -> 2222228 | B82: ='Analyse BDD'!L15676 -> 20 | C82: ='Analyse BDD'!N15676 -> 2188 | D82: ='Analyse BDD'!H15676 -> 0
A83: ='Analyse BDD'!E15101 -> 2401floflo | B83: ='Analyse BDD'!L15101 -> 27 | C83: ='Analyse BDD'!N15101 -> 2163 | D83: ='Analyse BDD'!H15101 -> 0
A84: ='Analyse BDD'!E6221 -> 240601 | B84: ='Analyse BDD'!L6221 -> 17 | C84: ='Analyse BDD'!N6221 -> 1035 | D84: ='Analyse BDD'!H6221 -> 24060
A85: ='Analyse BDD'!E17390 -> 24eme | B85: ='Analyse BDD'!L17390 -> 46 | C85: ='Analyse BDD'!N17390 -> 2272 | D85: ='Analyse BDD'!H17390 -> 0
A86: ='Analyse BDD'!E14733 -> 250789 | B86: ='Analyse BDD'!L14733 -> 17 | C86: ='Analyse BDD'!N14733 -> 2144 | D86: ='Analyse BDD'!H14733 -> 0
A87: ='Analyse BDD'!E16734 -> 2509buck | B87: ='Analyse BDD'!L16734 -> 20 | C87: ='Analyse BDD'!N16734 -> 2239 | D87: ='Analyse BDD'!H16734 -> 0
A88: ='Analyse BDD'!E9441 -> 25niko | B88: ='Analyse BDD'!L9441 -> 6 | C88: ='Analyse BDD'!N9441 -> 1618 | D88: ='Analyse BDD'!H9441 -> 0
A89: ='Analyse BDD'!E3777 -> 26titi11 | B89: ='Analyse BDD'!L3777 -> 16 | C89: ='Analyse BDD'!N3777 -> 522 | D89: ='Analyse BDD'!H3777 -> 0
A90: ='Analyse BDD'!E8758 -> 275abis | B90: ='Analyse BDD'!L8758 -> 19 | C90: ='Analyse BDD'!N8758 -> 1508 | D90: ='Analyse BDD'!H8758 -> DD
A91: ='Analyse BDD'!E18855 -> 2803bart | B91: ='Analyse BDD'!L18855 -> 13 | C91: ='Analyse BDD'!N18855 -> 2339 | D91: ='Analyse BDD'!H18855 -> 0
A92: ='Analyse BDD'!E5323 -> 2891-218 | B92: ='Analyse BDD'!L5323 -> 42 | C92: ='Analyse BDD'!N5323 -> 852 | D92: ='Analyse BDD'!H5323 -> S.A
A93: ='Analyse BDD'!E17769 -> 29xraypbd | B93: ='Analyse BDD'!L17769 -> 12 | C93: ='Analyse BDD'!N17769 -> 2290 | D93: ='Analyse BDD'!H17769 -> 0
A94: ='Analyse BDD'!E14258 -> 2cwx632 | B94: ='Analyse BDD'!L14258 -> 16 | C94: ='Analyse BDD'!N14258 -> 2121 | D94: ='Analyse BDD'!H14258 -> 0
A95: ='Analyse BDD'!E17973 -> 2FLAG | B95: ='Analyse BDD'!L17973 -> 36 | C95: ='Analyse BDD'!N17973 -> 2299 | D95: ='Analyse BDD'!H17973 -> LCM
A96: ='Analyse BDD'!E12795 -> -2-HiGRiSE-8- | B96: ='Analyse BDD'!L12795 -> 32 | C96: ='Analyse BDD'!N12795 -> 2083 | D96: ='Analyse BDD'!H12795 -> 0
A97: ='Analyse BDD'!E13461 -> -2-HiGRiSE-8- | B97: ='Analyse BDD'!L13461 -> 32 | C97: ='Analyse BDD'!N13461 -> 2083 | D97: ='Analyse BDD'!H13461 -> 0
A98: ='Analyse BDD'!E161 -> 2k2m | B98: ='Analyse BDD'!L161 -> 5 | C98: ='Analyse BDD'!N161 -> 17 | D98: ='Analyse BDD'!H161 -> 0
A99: ='Analyse BDD'!E10484 -> 2-Sevrian | B99: ='Analyse BDD'!L10484 -> 16 | C99: ='Analyse BDD'!N10484 -> 1867 | D99: ='Analyse BDD'!H10484 -> 0
A100: ='Analyse BDD'!E12600 -> 3_3_3_3 | B100: ='Analyse BDD'!L12600 -> 41 | C100: ='Analyse BDD'!N12600 -> 2073 | D100: ='Analyse BDD'!H12600 -> 0
A101: ='Analyse BDD'!E14669 -> 30000 | B101: ='Analyse BDD'!L14669 -> 36 | C101: ='Analyse BDD'!N14669 -> 2141 | D101: ='Analyse BDD'!H14669 -> 0
A102: ='Analyse BDD'!E14120 -> 300balle | B102: ='Analyse BDD'!L14120 -> 18 | C102: ='Analyse BDD'!N14120 -> 2113 | D102: ='Analyse BDD'!H14120 -> NO-AF
A103: ='Analyse BDD'!E7576 -> 314pir | B103: ='Analyse BDD'!L7576 -> 28 | C103: ='Analyse BDD'!N7576 -> 1295 | D103: ='Analyse BDD'!H7576 -> 0
A104: ='Analyse BDD'!E5882 -> 326emale | B104: ='Analyse BDD'!L5882 -> 7 | C104: ='Analyse BDD'!N5882 -> 963 | D104: ='Analyse BDD'!H5882 -> 0
A105: ='Analyse BDD'!E3999 -> 327e | B105: ='Analyse BDD'!L3999 -> 34 | C105: ='Analyse BDD'!N3999 -> 575 | D105: ='Analyse BDD'!H3999 -> 0
A106: ='Analyse BDD'!E3578 -> 3333RIDDICK3333 | B106: ='Analyse BDD'!L3578 -> 33 | C106: ='Analyse BDD'!N3578 -> 480 | D106: ='Analyse BDD'!H3578 -> -EMP-
A107: ='Analyse BDD'!E278 -> 333Spartiate333 | B107: ='Analyse BDD'!L278 -> 43 | C107: ='Analyse BDD'!N278 -> 25 | D107: ='Analyse BDD'!H278 -> TOD
A108: ='Analyse BDD'!E16830 -> 38ALLSTARS | B108: ='Analyse BDD'!L16830 -> 14 | C108: ='Analyse BDD'!N16830 -> 2242 | D108: ='Analyse BDD'!H16830 -> 0
A109: ='Analyse BDD'!E11172 -> 3siop3 | B109: ='Analyse BDD'!L11172 -> 8 | C109: ='Analyse BDD'!N11172 -> 1973 | D109: ='Analyse BDD'!H11172 -> 0
A110: ='Analyse BDD'!E2459 -> 3TAZ | B110: ='Analyse BDD'!L2459 -> 37 | C110: ='Analyse BDD'!N2459 -> 257 | D110: ='Analyse BDD'!H2459 -> tzzzz
A111: ='Analyse BDD'!E6699 -> 3words8letters | B111: ='Analyse BDD'!L6699 -> 33 | C111: ='Analyse BDD'!N6699 -> 1129 | D111: ='Analyse BDD'!H6699 -> AKS
A112: ='Analyse BDD'!E11209 -> 47210 | B112: ='Analyse BDD'!L11209 -> 23 | C112: ='Analyse BDD'!N11209 -> 1977 | D112: ='Analyse BDD'!H11209 -> 0
A113: ='Analyse BDD'!E603 -> 4gphan76 | B113: ='Analyse BDD'!L603 -> 13 | C113: ='Analyse BDD'!N603 -> 49 | D113: ='Analyse BDD'!H603 -> 0
A114: ='Analyse BDD'!E1793 -> 4midiable | B114: ='Analyse BDD'!L1793 -> 40 | C114: ='Analyse BDD'!N1793 -> 161 | D114: ='Analyse BDD'!H1793 -> LXM
A115: ='Analyse BDD'!E7353 -> 4mis | B115: ='Analyse BDD'!L7353 -> 16 | C115: ='Analyse BDD'!N7353 -> 1253 | D115: ='Analyse BDD'!H7353 -> Rasta
A116: ='Analyse BDD'!E7419 -> 4sile | B116: ='Analyse BDD'!L7419 -> 41 | C116: ='Analyse BDD'!N7419 -> 1266 | D116: ='Analyse BDD'!H7419 -> 0
A117: ='Analyse BDD'!E19075 -> 543006 | B117: ='Analyse BDD'!L19075 -> 25 | C117: ='Analyse BDD'!N19075 -> 2349 | D117: ='Analyse BDD'!H19075 -> 0
A118: ='Analyse BDD'!E19674 -> 54julie54 | B118: ='Analyse BDD'!L19674 -> 8 | C118: ='Analyse BDD'!N19674 -> 2380 | D118: ='Analyse BDD'!H19674 -> 0
A119: ='Analyse BDD'!E13302 -> 56eme | B119: ='Analyse BDD'!L13302 -> 11 | C119: ='Analyse BDD'!N13302 -> 2106 | D119: ='Analyse BDD'!H13302 -> 0
A120: ='Analyse BDD'!E13968 -> 56eme | B120: ='Analyse BDD'!L13968 -> 11 | C120: ='Analyse BDD'!N13968 -> 2106 | D120: ='Analyse BDD'!H13968 -> 0
A121: ='Analyse BDD'!E20172 -> 59690 | B121: ='Analyse BDD'!L20172 -> 33 | C121: ='Analyse BDD'!N20172 -> 2404 | D121: ='Analyse BDD'!H20172 -> 0
A122: ='Analyse BDD'!E19438 -> 5audrey5 | B122: ='Analyse BDD'!L19438 -> 42 | C122: ='Analyse BDD'!N19438 -> 2366 | D122: ='Analyse BDD'!H19438 -> 0
A123: ='Analyse BDD'!E2651 -> 600balles | B123: ='Analyse BDD'!L2651 -> 19 | C123: ='Analyse BDD'!N2651 -> 297 | D123: ='Analyse BDD'!H2651 -> RCZ
A124: ='Analyse BDD'!E1980 -> 666x666 | B124: ='Analyse BDD'!L1980 -> 39 | C124: ='Analyse BDD'!N1980 -> 183 | D124: ='Analyse BDD'!H1980 -> LEFzz
A125: ='Analyse BDD'!E2954 -> 69cam | B125: ='Analyse BDD'!L2954 -> 12 | C125: ='Analyse BDD'!N2954 -> 341 | D125: ='Analyse BDD'!H2954 -> 0
A126: ='Analyse BDD'!E7390 -> 69chilou | B126: ='Analyse BDD'!L7390 -> 40 | C126: ='Analyse BDD'!N7390 -> 1260 | D126: ='Analyse BDD'!H7390 -> PRS
A127: ='Analyse BDD'!E10867 -> 6yoda6 | B127: ='Analyse BDD'!L10867 -> 14 | C127: ='Analyse BDD'!N10867 -> 1930 | D127: ='Analyse BDD'!H10867 -> 0
A128: ='Analyse BDD'!E10939 -> 70Cachou | B128: ='Analyse BDD'!L10939 -> 6 | C128: ='Analyse BDD'!N10939 -> 1940 | D128: ='Analyse BDD'!H10939 -> 0
A129: ='Analyse BDD'!E5826 -> 77blackbird | B129: ='Analyse BDD'!L5826 -> 47 | C129: ='Analyse BDD'!N5826 -> 948 | D129: ='Analyse BDD'!H5826 -> ALCOL
A130: ='Analyse BDD'!E11381 -> 77leiable | B130: ='Analyse BDD'!L11381 -> 18 | C130: ='Analyse BDD'!N11381 -> 1995 | D130: ='Analyse BDD'!H11381 -> Lion
A131: ='Analyse BDD'!E18442 -> 77marvin77 | B131: ='Analyse BDD'!L18442 -> 38 | C131: ='Analyse BDD'!N18442 -> 2319 | D131: ='Analyse BDD'!H18442 -> 0
A132: ='Analyse BDD'!E2697 -> 77snake77 | B132: ='Analyse BDD'!L2697 -> 18 | C132: ='Analyse BDD'!N2697 -> 309 | D132: ='Analyse BDD'!H2697 -> ODT
A133: ='Analyse BDD'!E8214 -> 78miss | B133: ='Analyse BDD'!L8214 -> 30 | C133: ='Analyse BDD'!N8214 -> 1404 | D133: ='Analyse BDD'!H8214 -> 0
A134: ='Analyse BDD'!E14720 -> 7Lisa | B134: ='Analyse BDD'!L14720 -> 46 | C134: ='Analyse BDD'!N14720 -> 2144 | D134: ='Analyse BDD'!H14720 -> 0
A135: ='Analyse BDD'!E15700 -> 7Solo7 | B135: ='Analyse BDD'!L15700 -> 31 | C135: ='Analyse BDD'!N15700 -> 2189 | D135: ='Analyse BDD'!H15700 -> A.R
A136: ='Analyse BDD'!E18482 -> 7val7 | B136: ='Analyse BDD'!L18482 -> 32 | C136: ='Analyse BDD'!N18482 -> 2322 | D136: ='Analyse BDD'!H18482 -> 0
A137: ='Analyse BDD'!E17291 -> 89000 | B137: ='Analyse BDD'!L17291 -> 13 | C137: ='Analyse BDD'!N17291 -> 2268 | D137: ='Analyse BDD'!H17291 -> 0
A138: ='Analyse BDD'!E19394 -> 8bierealeop | B138: ='Analyse BDD'!L19394 -> 42 | C138: ='Analyse BDD'!N19394 -> 2364 | D138: ='Analyse BDD'!H19394 -> 0
A139: ='Analyse BDD'!E10307 -> 8ejiTa | B139: ='Analyse BDD'!L10307 -> 30 | C139: ='Analyse BDD'!N10307 -> 1836 | D139: ='Analyse BDD'!H10307 -> 0
A140: ='Analyse BDD'!E12646 -> 8pattes | B140: ='Analyse BDD'!L12646 -> 44 | C140: ='Analyse BDD'!N12646 -> 2075 | D140: ='Analyse BDD'!H12646 -> MA
A141: ='Analyse BDD'!E11716 -> 8romain | B141: ='Analyse BDD'!L11716 -> 41 | C141: ='Analyse BDD'!N11716 -> 2030 | D141: ='Analyse BDD'!H11716 -> 0
A142: ='Analyse BDD'!E18323 -> 914571 | B142: ='Analyse BDD'!L18323 -> 16 | C142: ='Analyse BDD'!N18323 -> 2314 | D142: ='Analyse BDD'!H18323 -> 0
A143: ='Analyse BDD'!E19560 -> 93master | B143: ='Analyse BDD'!L19560 -> 44 | C143: ='Analyse BDD'!N19560 -> 2374 | D143: ='Analyse BDD'!H19560 -> 0
A144: ='Analyse BDD'!E8543 -> 974BLANKO | B144: ='Analyse BDD'!L8543 -> 4 | C144: ='Analyse BDD'!N8543 -> 1501 | D144: ='Analyse BDD'!H8543 -> Aire
A145: ='Analyse BDD'!E14219 -> 97remi | B145: ='Analyse BDD'!L14219 -> 6 | C145: ='Analyse BDD'!N14219 -> 2117 | D145: ='Analyse BDD'!H14219 -> 0
A146: ='Analyse BDD'!E9110 -> 987654321 | B146: ='Analyse BDD'!L9110 -> 10 | C146: ='Analyse BDD'!N9110 -> 1568 | D146: ='Analyse BDD'!H9110 -> 0
A147: ='Analyse BDD'!E7207 -> 987654321marvin | B147: ='Analyse BDD'!L7207 -> 16 | C147: ='Analyse BDD'!N7207 -> 1228 | D147: ='Analyse BDD'!H7207 -> MV
A148: ='Analyse BDD'!E16947 -> 99lolo | B148: ='Analyse BDD'!L16947 -> 36 | C148: ='Analyse BDD'!N16947 -> 2247 | D148: ='Analyse BDD'!H16947 -> 0
A149: ='Analyse BDD'!E4354 -> 9oiukpascal | B149: ='Analyse BDD'!L4354 -> 3 | C149: ='Analyse BDD'!N4354 -> 653 | D149: ='Analyse BDD'!H4354 -> RCZ
A150: ='Analyse BDD'!E1347 -> A.T.T.I.L.A. | B150: ='Analyse BDD'!L1347 -> 40 | C150: ='Analyse BDD'!N1347 -> 112 | D150: ='Analyse BDD'!H1347 -> H-K
A151: ='Analyse BDD'!E9617 -> A_la_mirabelle | B151: ='Analyse BDD'!L9617 -> 11 | C151: ='Analyse BDD'!N9617 -> 1651 | D151: ='Analyse BDD'!H9617 -> 0
A152: ='Analyse BDD'!E6979 -> a2mots | B152: ='Analyse BDD'!L6979 -> 28 | C152: ='Analyse BDD'!N6979 -> 1181 | D152: ='Analyse BDD'!H6979 -> SER
A153: ='Analyse BDD'!E18787 -> aaaaaaa | B153: ='Analyse BDD'!L18787 -> 42 | C153: ='Analyse BDD'!N18787 -> 2336 | D153: ='Analyse BDD'!H18787 -> 0
A154: ='Analyse BDD'!E1599 -> aaaaarrrgh | B154: ='Analyse BDD'!L1599 -> 13 | C154: ='Analyse BDD'!N1599 -> 139 | D154: ='Analyse BDD'!H1599 -> LSTR
A155: ='Analyse BDD'!E15796 -> aabbcc | B155: ='Analyse BDD'!L15796 -> 42 | C155: ='Analyse BDD'!N15796 -> 2193 | D155: ='Analyse BDD'!H15796 -> 0
A156: ='Analyse BDD'!E15060 -> Aaldaron | B156: ='Analyse BDD'!L15060 -> 38 | C156: ='Analyse BDD'!N15060 -> 2160 | D156: ='Analyse BDD'!H15060 -> 0
A157: ='Analyse BDD'!E15443 -> aaprtt | B157: ='Analyse BDD'!L15443 -> 45 | C157: ='Analyse BDD'!N15443 -> 2177 | D157: ='Analyse BDD'!H15443 -> 0
A158: ='Analyse BDD'!E1375 -> Aarion | B158: ='Analyse BDD'!L1375 -> 37 | C158: ='Analyse BDD'!N1375 -> 114 | D158: ='Analyse BDD'!H1375 -> SPLIF
A159: ='Analyse BDD'!E20064 -> aaronnick | B159: ='Analyse BDD'!L20064 -> 29 | C159: ='Analyse BDD'!N20064 -> 2398 | D159: ='Analyse BDD'!H20064 -> 0
A160: ='Analyse BDD'!E11898 -> aarrg | B160: ='Analyse BDD'!L11898 -> 26 | C160: ='Analyse BDD'!N11898 -> 2038 | D160: ='Analyse BDD'!H11898 -> 0
A161: ='Analyse BDD'!E11868 -> aarrthuurr | B161: ='Analyse BDD'!L11868 -> 11 | C161: ='Analyse BDD'!N11868 -> 2036 | D161: ='Analyse BDD'!H11868 -> 0
A162: ='Analyse BDD'!E5992 -> ab123 | B162: ='Analyse BDD'!L5992 -> 33 | C162: ='Analyse BDD'!N5992 -> 989 | D162: ='Analyse BDD'!H5992 -> 0
A163: ='Analyse BDD'!E124 -> AB64 | B163: ='Analyse BDD'!L124 -> 22 | C163: ='Analyse BDD'!N124 -> 14 | D163: ='Analyse BDD'!H124 -> LXM
A164: ='Analyse BDD'!E9074 -> abba | B164: ='Analyse BDD'!L9074 -> 44 | C164: ='Analyse BDD'!N9074 -> 1563 | D164: ='Analyse BDD'!H9074 -> 0
A165: ='Analyse BDD'!E8328 -> Abby | B165: ='Analyse BDD'!L8328 -> 21 | C165: ='Analyse BDD'!N8328 -> 1423 | D165: ='Analyse BDD'!H8328 -> EST
A166: ='Analyse BDD'!E811 -> abbyssion | B166: ='Analyse BDD'!L811 -> 14 | C166: ='Analyse BDD'!N811 -> 67 | D166: ='Analyse BDD'!H811 -> nwnc
A167: ='Analyse BDD'!E6268 -> abc-123 | B167: ='Analyse BDD'!L6268 -> 11 | C167: ='Analyse BDD'!N6268 -> 1042 | D167: ='Analyse BDD'!H6268 -> 0
A168: ='Analyse BDD'!E12155 -> abc2002 | B168: ='Analyse BDD'!L12155 -> 42 | C168: ='Analyse BDD'!N12155 -> 2054 | D168: ='Analyse BDD'!H12155 -> 0
A169: ='Analyse BDD'!E11846 -> abc321 | B169: ='Analyse BDD'!L11846 -> 40 | C169: ='Analyse BDD'!N11846 -> 2035 | D169: ='Analyse BDD'!H11846 -> 0
A170: ='Analyse BDD'!E18119 -> abc741852963 | B170: ='Analyse BDD'!L18119 -> 13 | C170: ='Analyse BDD'!N18119 -> 2305 | D170: ='Analyse BDD'!H18119 -> 0
A171: ='Analyse BDD'!E18690 -> ABCD.Delaviolance. | B171: ='Analyse BDD'!L18690 -> 27 | C171: ='Analyse BDD'!N18690 -> 2331 | D171: ='Analyse BDD'!H18690 -> -EdC-
A172: ='Analyse BDD'!E6030 -> abdelhamid-24 | B172: ='Analyse BDD'!L6030 -> 34 | C172: ='Analyse BDD'!N6030 -> 998 | D172: ='Analyse BDD'!H6030 -> 0
A173: ='Analyse BDD'!E2749 -> Abdou | B173: ='Analyse BDD'!L2749 -> 16 | C173: ='Analyse BDD'!N2749 -> 317 | D173: ='Analyse BDD'!H2749 -> 0
A174: ='Analyse BDD'!E15828 -> Abdoul95 | B174: ='Analyse BDD'!L15828 -> 11 | C174: ='Analyse BDD'!N15828 -> 2195 | D174: ='Analyse BDD'!H15828 -> 0
A175: ='Analyse BDD'!E9283 -> Abdouman | B175: ='Analyse BDD'!L9283 -> 34 | C175: ='Analyse BDD'!N9283 -> 1591 | D175: ='Analyse BDD'!H9283 -> 0
A176: ='Analyse BDD'!E9295 -> abdoustef | B176: ='Analyse BDD'!L9295 -> 39 | C176: ='Analyse BDD'!N9295 -> 1594 | D176: ='Analyse BDD'!H9295 -> lftag
A177: ='Analyse BDD'!E2795 -> Abdramane | B177: ='Analyse BDD'!L2795 -> 20 | C177: ='Analyse BDD'!N2795 -> 319 | D177: ='Analyse BDD'!H2795 -> 0
A178: ='Analyse BDD'!E5479 -> abductor | B178: ='Analyse BDD'!L5479 -> 29 | C178: ='Analyse BDD'!N5479 -> 881 | D178: ='Analyse BDD'!H5479 -> ADP
A179: ='Analyse BDD'!E2737 -> Abdullah | B179: ='Analyse BDD'!L2737 -> 12 | C179: ='Analyse BDD'!N2737 -> 316 | D179: ='Analyse BDD'!H2737 -> 0
A180: ='Analyse BDD'!E15049 -> abec | B180: ='Analyse BDD'!L15049 -> 29 | C180: ='Analyse BDD'!N15049 -> 2159 | D180: ='Analyse BDD'!H15049 -> LRS
A181: ='Analyse BDD'!E7597 -> Abeceday | B181: ='Analyse BDD'!L7597 -> 40 | C181: ='Analyse BDD'!N7597 -> 1298 | D181: ='Analyse BDD'!H7597 -> 0
A182: ='Analyse BDD'!E8789 -> abeille | B182: ='Analyse BDD'!L8789 -> 30 | C182: ='Analyse BDD'!N8789 -> 1515 | D182: ='Analyse BDD'!H8789 -> lgdeE
A183: ='Analyse BDD'!E7785 -> abidou01 | B183: ='Analyse BDD'!L7785 -> 3 | C183: ='Analyse BDD'!N7785 -> 1335 | D183: ='Analyse BDD'!H7785 -> chupa
A184: ='Analyse BDD'!E17025 -> abino | B184: ='Analyse BDD'!L17025 -> 41 | C184: ='Analyse BDD'!N17025 -> 2251 | D184: ='Analyse BDD'!H17025 -> 0
A185: ='Analyse BDD'!E15019 -> abird | B185: ='Analyse BDD'!L15019 -> 48 | C185: ='Analyse BDD'!N15019 -> 2160 | D185: ='Analyse BDD'!H15019 -> 0
A186: ='Analyse BDD'!E14683 -> abla | B186: ='Analyse BDD'!L14683 -> 39 | C186: ='Analyse BDD'!N14683 -> 2142 | D186: ='Analyse BDD'!H14683 -> 0
A187: ='Analyse BDD'!E231 -> Ablatia | B187: ='Analyse BDD'!L231 -> 34 | C187: ='Analyse BDD'!N231 -> 23 | D187: ='Analyse BDD'!H231 -> Troll
A188: ='Analyse BDD'!E2024 -> abnegallum | B188: ='Analyse BDD'!L2024 -> 1 | C188: ='Analyse BDD'!N2024 -> 192 | D188: ='Analyse BDD'!H2024 -> 0
A189: ='Analyse BDD'!E1456 -> Abneos | B189: ='Analyse BDD'!L1456 -> 37 | C189: ='Analyse BDD'!N1456 -> 121 | D189: ='Analyse BDD'!H1456 -> ADFR
A190: ='Analyse BDD'!E19936 -> abnndd | B190: ='Analyse BDD'!L19936 -> 21 | C190: ='Analyse BDD'!N19936 -> 2394 | D190: ='Analyse BDD'!H19936 -> 0
A191: ='Analyse BDD'!E16008 -> abou | B191: ='Analyse BDD'!L16008 -> 45 | C191: ='Analyse BDD'!N16008 -> 2204 | D191: ='Analyse BDD'!H16008 -> 0
A192: ='Analyse BDD'!E2809 -> Aboubakar | B192: ='Analyse BDD'!L2809 -> 38 | C192: ='Analyse BDD'!N2809 -> 320 | D192: ='Analyse BDD'!H2809 -> 0
A193: ='Analyse BDD'!E14213 -> aboud888 | B193: ='Analyse BDD'!L14213 -> 16 | C193: ='Analyse BDD'!N14213 -> 2117 | D193: ='Analyse BDD'!H14213 -> 0
A194: ='Analyse BDD'!E12170 -> Abous | B194: ='Analyse BDD'!L12170 -> 41 | C194: ='Analyse BDD'!N12170 -> 2052 | D194: ='Analyse BDD'!H12170 -> 0
A195: ='Analyse BDD'!E4777 -> abpavie | B195: ='Analyse BDD'!L4777 -> 9 | C195: ='Analyse BDD'!N4777 -> 741 | D195: ='Analyse BDD'!H4777 -> 0
A196: ='Analyse BDD'!E2819 -> Abraham | B196: ='Analyse BDD'!L2819 -> 13 | C196: ='Analyse BDD'!N2819 -> 320 | D196: ='Analyse BDD'!H2819 -> 0
A197: ='Analyse BDD'!E2094 -> Abraracourcix | B197: ='Analyse BDD'!L2094 -> 38 | C197: ='Analyse BDD'!N2094 -> 199 | D197: ='Analyse BDD'!H2094 -> L.I.B
A198: ='Analyse BDD'!E11302 -> Abraxas | B198: ='Analyse BDD'!L11302 -> 21 | C198: ='Analyse BDD'!N11302 -> 1988 | D198: ='Analyse BDD'!H11302 -> Aire
A199: ='Analyse BDD'!E2266 -> abryl2 | B199: ='Analyse BDD'!L2266 -> 4 | C199: ='Analyse BDD'!N2266 -> 226 | D199: ='Analyse BDD'!H2266 -> -PAX-
A200: ='Analyse BDD'!E11412 -> aburame | B200: ='Analyse BDD'!L11412 -> 6 | C200: ='Analyse BDD'!N11412 -> 2000 | D200: ='Analyse BDD'!H11412 -> 0
... 20108 more rows

Sheet CC BDD (hidden)
A1: -- MySQL dump 10.13 Distrib 5.1.67, for debian-linux-gnu (x86_64)
A2: --
A3: =-- Host: localhost Database: Fourmizzz_FR_S3 -> 
A4: -- ------------------------------------------------------
A5: =-- Server version ->  | B5: 5.1.67-0ubuntu0.10.04.1-log
A7: /*!40101 SET @OLD_CHARACTER_SET_CLIENT=@@CHARACTER_SET_CLIENT */;
A8: /*!40101 SET @OLD_CHARACTER_SET_RESULTS=@@CHARACTER_SET_RESULTS */;
A9: /*!40101 SET @OLD_COLLATION_CONNECTION=@@COLLATION_CONNECTION */;
A10: /*!40101 SET NAMES utf8 */;
A11: /*!40103 SET @OLD_TIME_ZONE=@@TIME_ZONE */;
A12: /*!40103 SET TIME_ZONE='+00:00' */;
A13: /*!40014 SET @OLD_UNIQUE_CHECKS=@@UNIQUE_CHECKS, UNIQUE_CHECKS=0 */;
A14: /*!40014 SET @OLD_FOREIGN_KEY_CHECKS=@@FOREIGN_KEY_CHECKS, FOREIGN_KEY_CHECKS=0 */;
A15: /*!40101 SET @OLD_SQL_MODE=@@SQL_MODE, SQL_MODE='NO_AUTO_VALUE_ON_ZERO' */;
A16: /*!40111 SET @OLD_SQL_NOTES=@@SQL_NOTES, SQL_NOTES=0 */;
A18: --
A19: -- Table structure for table `BDDJoueurs`
A20: --
A22: DROP TABLE IF EXISTS `BDDJoueurs`;
A23: /*!40101 SET @saved_cs_client = @@character_set_client */;
A24: /*!40101 SET character_set_client = utf8 */;
A25: CREATE TABLE `BDDJoueurs` (
A26: `ID` int(11) NOT NULL,
A27: `Pseudo` varchar(50) NOT NULL DEFAULT '',
A28: `x` int(11) NOT NULL DEFAULT '0',
A29: `y` int(11) NOT NULL DEFAULT '0',
A30: `alliance` varchar(100) DEFAULT '0',
A31: `grade` varchar(250) NOT NULL,
A32: `scoreTechnologie` int(11) DEFAULT '0',
A33: `scoreFourmiliere` int(11) NOT NULL DEFAULT '0',
A34: `vacance` tinyint(1) NOT NULL DEFAULT '0',
A35: `ban` tinyint(1) NOT NULL DEFAULT '0',
A36: `terrain` bigint(20) NOT NULL,
A37: PRIMARY KEY (`ID`),
A38: UNIQUE KEY `Pseudo` (`Pseudo`)
A39: ) ENGINE=MyISAM DEFAULT CHARSET=latin1;
A40: /*!40101 SET character_set_client = @saved_cs_client */;
A42: --
A43: -- Dumping data for table `BDDJoueurs`
A44: --
A46: LOCK TABLES `BDDJoueurs` WRITE;
A47: /*!40000 ALTER TABLE `BDDJoueurs` DISABLE KEYS */;
A79: 0,'0','0',0,0,0,0,50),(51465,'ftuj',12,2403,'0','0',0,1,0,0,50),(51385,'iirfane',31,2398,'0','0',0,1,0,0,50),(51386,'nice',34,2398,'0','0',0,0,0,0,50),(51387,'lol006',37,2398,'0','0',0,1,0,0,50),(51389,'jacleroy',40,2398,'0','0',0,0,0,0,50),(51396,'Gildarts',40,2399,'SONGE','92140',176,276,0,0,105459635),(51453,'docpatch',14,2402,'0','0',27,74,0,0,2028),(51390,'skylight',43,2398,'JFP','82910',142,235,0,0,1932437),(51392,'Ryder',46,2399,'0','0',38,86,0,0,14440),(51393,'lolo13460',45,2399,'0','0',0,0,0,0,50),(51394,'chopinzal',44,2399,'0','0',0,0,0,0,50),(51395,'marciz',41,2399,'0','0',0,1,0,0,50),(51457,'Lacigale',7,2402,'0','0',90,143,0,0,116510),(51423,'bubbatls',25,2400,'0','0',20,52,0,0,1773),(51397,'tempete',39,2399,'0','0',2,14,0,0,244),(51398,'lucasL78',36,2399,'0','0',0,1,0,0,50),(51401,'remi97',30,2399,'0','0',0,1,0,0,50),(51399,'Lorenzo12',34,2399,'0','0',0,0,0,0,50),(51400,'fourminator34',32,2399,'0','0',0,1,0,0,50),(51402,'hk6369',27,2399,'-RU-','100171',151,240,0,0,537258),(51403,'karl005',26,2399,'0','0',0,3,0,0,350),(51410,'remis',10,2399,'fauve','66860',88,172,0,0,261872),(51405,'Kinoo91',22,2399,'0','0',0,1,0,0,50),(51406,'niiniiie',19,2399,'DJs','39469',155,253,0,0,22226719),(51408,'bryanattie',14,2399,'0','0',0,0,0,0,50),(51409,'You11',11,2399,'0','0',0,2,0,0,50),(51411,'olivier435',7,2399,'0','0',0,0,0,0,50),(51412,'laveuve',6,2399,'0','0',0,0,0,0,50),(51477,'Tenshura',34,2403,'0','0',0,0,0,0,50),(51414,'shein',2,2400,'0','0',0,0,0,0,50),(51420,'lecool80',18,2400,'HAF','58759',98,149,0,0,91502),(51415,'celiantone',3,2400,'0','0',0,1,0,0,50),(51416,'cyrom',6,2400,'0','0',0,0,0,0,50),(51417,'cedric050000',9,2400,'0','0',0,0,0,0,50),(51418,'donatien',12,2400,'0','0',0,0,0,0,50),(51419,'ti-dim',15,2400,'0','0',112,185,0,0,192000),(51421,'tanisla9',21,2400,'0','0',0,0,0,0,50),(51436,'erwan91210',43,2402,'0','0',0,0,0,0,50),(51422,'evach39',24,2400,'0','0',0,3,0,0,70),(51424,'CAMILLEROSE25999',27,2400,'0','0',1,12,0,0,76),(51425,'lucas283',28,2400,'0','0',0,3,0,0,50),(51426,'foxfox',30,2400,'0','0',113,188,0,0,108948),(51455,'genial65',9,2402,'0','0',0,0,0,0,50),(51427,'rocky3000',33,2400,'0','0',0,0,0,0,50),(51432,'SH00T',44,2400,'0','0',0,1,0,0,50),(51428,'karelis',34,2400,'0','0',110,184,0,0,67110),(51430,'pigonator',40,2400,'0','0',0,2,0,0,50),(51431,'Mr_wadox',42,2400,'0','0',0,1,0,0,50),(51435,'maelien',46,2402,'0','0',0,1,0,0,50),(51437,'Mariondu34',42,2402,'0','0',92,151,0,0,59319),(51439,'vvv88',40,2402,'0','0',0,0,0,0,50),(51438,'laboitemail',41,2402,'0','0',0,0,0,0,50),(51440,'azertb',38,2402,'0','0',1,13,0,0,79),(51441,'pti-lulu',35,2402,'0','0',0,0,0,0,50),(51443,'Jordano',30,2402,'0','0',0,0,0,0,50),(51444,'Terreur1',29,2402,'0','0',18,37,0,0,1458),(51445,'pauleloi',27,2402,'0','0',0,1,0,0,50),(51446,'Geoffrey1000',25,2402,'0','0',0,2,0,0,50),(51447,'Terreur2',22,2402,'0','0',0,1,0,0,50),(51462,'sadek',6,2403,'0','0',0,1,0,0,50),(51448,'fernandez',20,2402,'0','0',0,8,0,0,200),(51449,'four-ever',19,2402,'0','0',0,0,0,0,50),(51450,'luffy-kun',18,2402,'0','0',0,0,0,0,50),(51451,'joebubyslam_creve_',17,2402,'0','0',3,13,0,0,184),(51452,'clothildeh',15,2402,'0','0',3,43,0,0,2105),(51454,'Hondali',12,2402,'0','0',6,26,0,0,835),(51456,'rose8553',8,2402,'0','0',6,26,0,0,1098),(51458,'mier',6,2402,'0','0',0,0,0,0,50),(51459,'Belokian',3,2402,'0','0',0,0,0,0,50),(51460,'lefle',3,2403,'0','0',20,46,0,0,1168),(51461,'Brax',5,2403,'0','0',0,0,0,0,50),(51463,'Darkcyrdec67',7,2403,'0','0',0,0,0,0,50),(51464,'doriandu5',10,2403,'0','0',0,0,0,0,50),(51468,'dinana27',19,2403,'29','58085',126,232,0,0,1104694),(51466,'dragonxxx',15,2403,'0','0',0,0,0,0,50),(51475,'Megasite',29,2403,'sole','59847',116,194,0,0,288000),(51467,'Indiana',18,2403,'0','0',0,5,0,0,50),(51469,'MrOelch',20,2403,'0','0',0,1,0,0,50),(51486,'raghnarok6',42,2404,'0','0',23,42,0,0,3400),(51470,'yoann-73250',21,2403,'0','0',0,0,0,0,50),(51471,'maxime1312',22,2403,'0','0',0,0,0,0,50),(51472,'renaud.ca',23,2403,'0','0',0,0,0,0,50),(51473,'FoUrMiiiiiie-NoIrE',25,2403,'0','0',83,150,0,0,101456),(51478,'CaLiMerA',37,2403,'0','0',117,188,0,0,95355),(51476,'Raykeur',32,2403,'-M3R-','78149',119,196,0,0,164378),(51479,'oups69',38,2403,'0','0',0,1,0,0,50),(51480,'Melstan',40,2403,'0','0',0,0,0,0,50),(51481,'julien123',41,2403,'0','0',0,0,0,0,50),(51483,'Vargon',45,2403,'0','0',0,2,0,0,50),(51484,'zonnar',46,2404,'0','0',92,163,0,0,113655),(51485,'Soly',45,2404,'0','0',121,189,0,0,250363),(51487,'kram60',39,2404,'0','0',12,25,0,0,800),(51488,'kentin62',38,2404,'0','0',0,1,0,0,50),(51489,'Thomaslunch',35,2404,'0','0',0,0,0,0,50),(51490,'59690',33,2404,'0','0',0,0,0,0,50),(51491,'Leroyjg',32,2404,'0','0',32,57,0,0,1229),(51559,'milaxel',19,2407,'0','0',0,1,0,0,50),(51602,'AGBEFIO',11,2409,'BOCAN','59984',83,131,0,0,36000),(51492,'Marsuppius',31,2404,'0','0',0,0,0,0,50),(51493,'killivore',29,2404,'0','0',0,0,0,0,50),(51555,'theo01560',11,2407,'ltdlm','59907',23,69,0,0,8878),(51494,'whiteforest',27,2404,'GAIAZ','99346',141,234,0,0,7786628),(51495,'KalKuloman',24,2404,'24060','53401',134,223,0,0,203731),(51594,'Arthrek',8,2408,'0','0',2,12,0,0,250),(51501,'psauvan2012',11,2404,'Aire','22168',145,229,0,1,122085),(51496,'natan123',21,2404,'0','0',0,0,0,0,50),(51497,'fanfan74',19,2404,'0','0',0,0,0,0,50),(51511,'kiwis',13,2405,'0','0',0,0,0,0,50),(51498,'spirous',18,2404,'0','0',28,55,0,0,1272),(51499,'bellicus2',16,2404,'0','0',0,1,0,0,50),(51600,'Bromus',6,2409,'L-R-I','57626',6,41,0,0,284),(51500,'lucifurus',14,2404,'0','0',0,1,0,0,50),(51519,'FREDXO',32,2405,'0','0',0,3,0,0,72),(51502,'Tarious68',10,2404,'LPA','94896',160,264,0,0,34636611),(51503,'ddzorg',9,2404,'0','0',98,172,0,0,61876),(51583,'arnold8',28,2408,'0','0',0,0,0,0,50),(51504,'blouina',6,2404,'0','0',0,0,0,0,50),(51505,'Thalenthalas',3,2404,'0','0',0,3,0,0,50),(51506,'gomez',3,2405,'NN24','51601',125,197,0,0,1000000),(51507,'vava80',4,2405,'0','0',5,36,0,0,900),(51531,'Stingers',36,2406,'0','0',0,1,0,0,50),(51510,'kevin23',10,2405,'0','0',0,0,0,0,50),(51598,'imperator09',2,2409,'0','0',0,0,0,0,50),(51508,'perrine',6,2405,'0','0',0,1,0,0,50),(51509,'cece68',7,2405,'0','0',4,17,0,0,672),(51596,'christophe12345',6,2408,'0','0',26,70,0,1,716),(51514,'suzette',22,2405,'0','0',0,0,0,0,50),(51512,'louis12345',16,2405,'CHEVA','59047',57,110,0,1,4960),(51513,'123ABC',19,2405,'0','0',0,0,0,0,50),(51515,'mimi363',23,2405,'0','0',0,19,0,0,160),(51516,'loics',26,2405,'0','0',0,0,0,0,50),(52247,'Jonathandu47340',29,2440,'-T-','91092',123,210,0,1,47430),(51518,'labetouille',30,2405,'0','0',0,3,0,0,50),(51520,'Godness',35,2405,'0','0',0,0,0,0,50),(51521,'Spow',37,2405,'0','0',0,1,0,0,50),(51522,'neness',38,2405,'0','0',0,0,0,0,50),(51523,'davidsky97',40,2405,'0','0',5,14,0,0,120),(51524,'wedwing',42,2405,'0','0',0,0,0,0,50),(51525,'pegda',43,2405,'0','0',0,0,0,0,50),(51526,'fourmayza',44,2405,'B.Z.','55132',49,97,0,0,8426),(51527,'Nono72',46,2406,'0','0',108,183,0,0,70959),(51528,'raleygh1997',43,2406,'0','0',0,0,0,0,50),(51529,'hmohamed',42,2406,'0','0',0,0,0,0,50),(51530,'Paradis',39,2406,'0','0',55,103,0,0,8690),(51532,'lionelmessi',35,2406,'0','0',0,0,0,0,50),(51534,'hbud43',32,2406,'0','0',7,46,0,0,1552),(51605,'erwinio',17,2409,'0','0',0,0,0,0,50),(51535,'Blackbird03',30,2406,'LesPG','76369',154,250,0,0,1195966),(51536,'yoyoto30',28,2406,'0','0',0,0,0,0,50),(51552,'ThisDayWeFight',6,2407,'0','0',0,1,0,0,50),(51537,'parafourms',25,2406,'0','0',0,0,0,0,50),(51538,'King_Fourmizzz',22,2406,'0','0',13,36,0,0,820),(51539,'Rommel',20,2406,'TFC','91651',149,259,0,0,4879250),(51540,'papigogo',17,2406,'0','0',0,0,0,0,50),(51541,'Pb1-10-pb',16,2406,'0','0',49,107,0,0,4801),(51542,'pop33',14,2406,'L-P-F','88456',141,238,0,0,1862217),(51543,'lobayzo',11,2406,'B.Z.','55131',62,125,0,0,32494),(51544,'fourmi-tuer',8,2406,'bg123','85391',13,30,0,0,800),(51545,'lucas-daniel',7,2406,'0','0',0,0,0,0,50),(51546,'Waiz98',4,2406,'0','0',0,1,0,0,50),(51547,'jonathan62140',3,2406,'0','0',0,0,0,0,50),(51548,'supernath',2,2407,'GFA','11896',18,71,0,0,3584),(51549,'Pheonix199',3,2407,'0','0',0,0,0,0,50),(59155,'cocodu76430',35,2761,'0','0',0,2,0,0,50),(51551,'craft456',5,2407,'0','0',0,0,0,0,50),(51561,'jacques2001',22,2407,'0','0',0,1,0,0,50),(51553,'camou30',8,2407,'0','0',10,35,0,0,3124),(51554,'lilileo',10,2407,'0','0',0,0,0,0,50),(51556,'sirlongduzboub',13,2407,'0','0',0,1,0,0,50),(51557,'blayerds',16,2407,'0','0',0,1,0,0,50),(51558,'pikathomas',18,2407,'drs2','58904',65,120,0,1,4169),(51560,'badfourmiz',21,2407,'0','0',24,65,0,0,3900),(55932,'Takoyashi',6,2609,'LPA','94896',154,267,0,0,43379455),(51562,'gaitas',24,2407,'0','0',0,0,0,0,50),(51563,'Gelcamig',27,2407,'0','0',39,78,0,0,6400),(51565,'golden92',30,2407,'0','0',0,3,0,0,50),(51564,'clementdu03',29,2407,'0','0',0,1,0,0,50),(51566,'julbucklude',33,2407,'0','0',0,0,0,0,50),(51567,'adrien22',34,2407,'CE','81460',0,5,0,0,50),(51568,'manondaniel0',35,2407,'0','0',0,1,0,0,50),(51569,'essola',38,2407,'0','0',0,0,0,0,50),(51573,'WUYLLI',47,2408,'0','0',0,0,0,0,50),(51570,'Lucasdu57',40,2407,'0','0',26,50,0,0,1315),(51571,'cocola',42,2407,'101','39840',34,70,0,0,4000),(51572,'bastdu34',45,2407,'0','0',70,160,0,0,65578),(51574,'antho444',44,2408,'0','0',0,0,0,0,50),(51576,'zecrom0910',41,2408,'0','0',2,27,0,0,132),(51577,'ayoubCHERIF',39,2408,'B.Z.','55132',4,19,0,0,200),(51581,'Gaylors',30,2408,'TFC','87509',158,255,0,0,1418176),(51578,'Cavein',37,2408,'0','0',31,66,0,0,18388),(51579,'chivers',35,2408,'0','0',74,116,0,1,4787),(51580,'Dovahgeek',32,2408,'0','0',0,1,0,0,50),(51582,'pulpiman',29,2408,'0','0',0,0,0,0,50),(51584,'korok',25,2408,'0','0',0,0,0,0,50),(51585,'ben16',24,2408,'0','0',0,1,0,0,50),(51586,'togmut',22,2408,'DbA','64225',127,205,0,0,500000),(51587,'aquila44',21,2408,'0','0',64,118,0,0,17600),(51588,'choups',19,2408,'0','0',0,0,0,0,50),(52028,'lenon',40,2429,'0','0',0,0,0,0,50),(51590,'Clymos',16,2408,'0','0',0,1,0,0,50),(51591,'jirodo',15,2408,'0','0',0,1,0,0,45),(51592,'benislam',13,2408,'0','0',0,0,0,0,50),(51593,'theoj60',11,2408,'0','0',0,0,0,0,50),(51595,'doudouMw',7,2408,'0','0',0,0,0,0,50),(51597,'quentindu80500',4,2408,'0','0',0,0,0,0,50),(51599,'zalakis',4,2409,'0','0',19,39,0,0,1010),(51601,'nini4335',8,2409,'0','0',0,1,0,0,50),(51603,'Mike-offroad',14,2409,'0','0',0,1,0,0,50),(51604,'daunard',16,2409,'0','0',0,0,0,0,50),(51606,'Divinity_s',20,2409,'lel','96295',106,164,0,0,1094818),(51607,'Sunshine97',22,2409,'0','0',0,0,0,0,50),(51608,'tigars',25,2409,'Tears','56672',54,131,0,0,7040),(51702,'Miniteau',34,2413,'0','0',0,0,0,0,50),(51706,'ddodo',42,2413,'0','0',0,0,0,0,50),(51728,'Rastasanta23',13,2414,'0','0',0,0,0,0,50),(51720,'cassis',31,2414,'0','0',0,0,0,0,50),(51609,'maria111',28,2409,'0','0',0,0,0,0,50),(51680,'Dididou',23,2412,'0','0',35,71,0,0,1920),(51738,'uwatecadd',13,2415,'0','0',0,0,0,0,50),(51623,'fofiss',39,2410,'0','0',0,0,0,0,50),(51610,'REMI37',31,2409,'0','0',0,0,0,0,50),(51611,'halto',33,2409,'0','0',0,0,0,0,50),(51612,'titi258',34,2409,'0','0',0,0,0,0,50),(51613,'cournou',36,2409,'0','0',0,2,0,0,45),(51614,'zabmille',37,2409,'0','0',4,63,0,0,640),(51615,'cmoiren',38,2409,'0','0',0,1,0,0,50),(51617,'Yanoshy',43,2409,'0','0',0,0,0,0,50),(51640,'MAGIC-KILLER',9,2410,'0','0',0,0,0,0,50),(51618,'octave34',45,2409,'0','0',54,97,0,0,6400),(51619,'didier210968',46,2410,'0','0',0,0,0,0,50),(51620,'chandalen',45,2410,'0','0',0,0,0,0,50);
A111: (72824,'Abon',25,3402,'0','0',0,1,0,0,50),(72826,'discodave29t',29,3402,'0','0',0,0,0,0,50),(72827,'aralize',32,3402,'0','0',0,0,0,0,50),(72835,'ludo54',46,3403,'0','0',0,0,0,0,50),(72828,'bilou2439',33,3402,'0','0',0,0,0,0,50),(72829,'DLT_McBeton',36,3402,'0','0',17,63,0,0,1836),(72832,'Grut',43,3402,'0','0',0,0,0,0,50),(72830,'dizzy-dramas',38,3402,'E-L-W','91674',81,145,0,0,71622),(72831,'soroz',40,3402,'0','0',56,93,0,0,10240),(72833,'greg75',45,3402,'0','0',0,0,0,0,50),(72834,'margagn',46,3402,'0','0',0,0,0,0,50),(72836,'Erostrate',43,3403,'0','0',0,2,0,0,50),(72838,'bhadi',40,3403,'0','0',0,1,0,0,50),(72839,'DLT_Goldenwars',38,3403,'0','0',0,1,0,0,50),(72846,'Pitoo',21,3403,'0','0',92,146,0,0,60000),(72843,'gabriel2001',28,3403,'0','0',0,0,0,0,50),(72840,'DeRoOo18',36,3403,'0','0',0,0,0,0,50),(72842,'Jean213',30,3403,'0','0',0,1,0,0,50),(72844,'alexandredehlem',25,3403,'0','0',8,25,0,0,220),(72845,'jexo125',23,3403,'0','0',0,0,0,0,50),(72848,'alex230',16,3403,'0','0',8,24,0,0,250),(72884,'azzarius',35,3405,'0','0',64,115,0,0,30000),(72849,'zickers',15,3403,'0','0',0,1,0,0,50),(72850,'Ilaya',14,3403,'0','0',34,91,0,0,7340),(72851,'laurane',13,3403,'0','0',0,1,0,0,50),(72852,'damnwolf',12,3403,'0','0',0,0,0,0,50),(72853,'ewen56',9,3403,'X.X','75373',66,139,0,0,411644),(72854,'killian4972',6,3403,'0','0',0,8,0,0,73),(72866,'kixfight',22,3404,'0','0',0,6,0,0,73),(72867,'Akwatiik',24,3404,'0','0',0,1,0,0,50),(72889,'choupinou',27,3405,'0','0',0,10,0,0,183),(72876,'brudehlem',43,3404,'0','0',15,36,0,0,256),(72855,'ririptor',3,3403,'0','0',0,0,0,0,50),(72856,'bizonar',3,3404,'0','0',83,158,0,0,90990),(72887,'alilo',29,3405,'0','0',0,0,0,0,50),(72858,'cedric12',7,3404,'S.T.','89602',113,210,0,0,443023),(72857,'Roronoa',6,3404,'Udie','93801',62,102,0,0,75500),(72859,'Mathyiyi',10,3404,'0','0',0,0,0,0,50),(72864,'Voidryx',17,3404,'E.M.','31489',102,183,0,0,800000),(72860,'dedel72',11,3404,'0','0',0,0,0,0,50),(72875,'tomtom0511',42,3404,'0','0',0,0,0,0,50),(72861,'tristher',13,3404,'0','0',0,5,0,0,50),(72862,'erwan57565',15,3404,'0','0',0,0,0,0,50),(72863,'terminus',16,3404,'0','0',0,0,0,0,50),(72865,'lucas143',20,3404,'0','0',3,16,0,0,50),(72868,'noufel89',25,3404,'0','0',0,0,0,0,50),(72869,'anti-termite',28,3404,'0','0',19,65,0,0,5500),(72870,'matata',31,3404,'Hdr','91490',81,133,0,0,1055),(72871,'matarmel',34,3404,'0','0',17,50,0,0,6181),(72872,'patoune46',36,3404,'0','0',0,0,0,0,50),(72873,'Celtina',39,3404,'Aire','22168',53,110,0,0,6300),(72874,'Pestouille',40,3404,'S.A','72265',83,140,0,0,198554),(72880,'yanou',43,3405,'0','0',0,1,0,0,50),(72877,'CeDrIX_s',46,3404,'0','0',0,0,0,0,50),(72878,'romainhandball',46,3405,'0','0',0,0,0,0,50),(72879,'luc-ass',45,3405,'0','0',0,1,0,0,50),(72885,'Agent69',32,3405,'0','0',0,0,0,0,50),(72881,'clemessi',40,3405,'0','0',0,3,0,0,50),(72898,'le-loup',13,3405,'0','0',0,1,0,0,50),(72882,'jokerla',39,3405,'0','0',0,0,0,0,50),(72883,'alex1525',38,3405,'0','0',0,4,0,0,50),(72886,'yimo',30,3405,'-DR-','100908',92,175,0,0,770495),(72888,'steef',28,3405,'0','0',0,2,0,0,50),(72890,'mavrick82',25,3405,'0','0',0,8,0,0,199),(72891,'albert-camanbert',24,3405,'FROM','90294',48,92,0,0,28660),(72892,'ali01100',23,3405,'LesPG','53841',46,120,0,0,1300),(72893,'gillebotique',22,3405,'heros','79752',0,1,0,0,50),(72894,'Skini',21,3405,'0','0',0,0,0,0,50),(72895,'Lafolle09100',19,3405,'0','0',0,0,0,0,50),(72896,'PomPom',16,3405,'0','0',0,0,0,0,50),(72897,'fourmicro-onde',14,3405,'0','0',10,25,0,0,750),(72899,'theking1',10,3405,'0','0',0,0,0,0,50),(72918,'mastral',33,3407,'0','0',12,34,0,0,216),(72900,'sanaa20',7,3405,'0','0',0,0,0,0,50),(72901,'44minecraft44',6,3405,'colos','98987',19,63,0,0,4698),(72902,'Lil06',3,3405,'0','0',0,1,0,0,50),(72903,'tepuatu',1,3406,'0','0',0,0,0,0,50),(72904,'TheQuest',3,3407,'0','0',0,0,0,0,50),(72912,'Elmister',19,3407,'0','0',12,36,0,0,583),(72933,'Graenum',32,3408,'0','0',0,0,0,0,50),(72914,'Noracle',23,3407,'0','0',5,17,0,0,155),(72927,'fazer',43,3408,'-ATR-','100481',105,177,0,0,500000),(72907,'toto99999',8,3407,'0','0',81,127,0,0,85000),(72905,'rintouf',5,3407,'0','0',0,0,0,0,50),(72906,'coralanazerty',7,3407,'0','0',0,1,0,0,50),(72908,'bat38440',10,3407,'0','0',0,0,0,0,50),(72911,'toussaint',18,3407,'0','0',37,88,0,0,88),(72909,'biglotte',13,3407,'-LDE-','98448',55,97,0,0,18826),(72910,'Lolafroum',16,3407,'0','0',0,1,0,0,50),(72913,'valentindu74',22,3407,'300','100404',87,148,0,0,455628),(72915,'fourmi73',24,3407,'0','0',0,0,0,0,50),(72916,'maxou2233',27,3407,'0','0',0,9,0,0,120),(72917,'lotte',30,3407,'B-S-P','90475',104,196,0,0,1408024),(72919,'legaule',35,3407,'LGA','91999',96,164,0,0,171634),(72920,'dops',36,3407,'T.S.','91090',84,152,0,0,100000),(72921,'Belo_Kio_Kyuni',37,3407,'FEDB','90844',34,74,0,0,4455),(72922,'demondours',39,3407,'0','0',0,0,0,0,50),(72926,'lolote9',46,3408,'0','0',0,12,0,0,70),(72923,'elise5791',41,3407,'0','0',1,14,0,0,179),(72924,'Lilyy',44,3407,'0','0',0,0,0,0,50),(72925,'Jygallag',46,3407,'0','0',0,0,0,0,50),(72928,'Clorofil',42,3408,'0','0',0,1,0,0,50),(72929,'delia',41,3408,'0','0',0,0,0,0,50),(72930,'dodo007',38,3408,'LDP','90758',39,94,0,0,60000),(72931,'belec17',36,3408,'0','0',0,1,0,0,50),(72937,'jlou26',24,3408,'0','0',0,0,0,0,50),(72932,'Mickak',35,3408,'0','0',29,58,0,0,6172),(72934,'Gorak',30,3408,'B-S-P','93767',127,204,0,0,2674941),(72935,'mjpl',27,3408,'mjpl','94264',62,112,0,0,20000),(72936,'Tgl76',26,3408,'-ATR-','100478',99,177,0,0,405348),(72939,'Jumpor',21,3408,'E/D/F','90407',0,0,0,0,50),(72938,'bx2kiler',22,3408,'0','0',0,0,0,0,50),(72944,'Ha-beach',11,3408,'0','0',0,2,0,0,44),(72940,'Antalgique',19,3408,'0','0',10,25,0,0,218),(72941,'Robinson',17,3408,'rob','91745',78,148,0,0,250000),(72942,'allandemarthelange',14,3408,'0','0',0,0,0,0,50),(72943,'johnclinton',13,3408,'0','0',0,0,0,0,50),(72945,'Maitre-Dragox',9,3408,'DLT','90756',91,168,0,0,123020),(72946,'devilmonkey68',7,3408,'0','0',0,0,0,0,50),(72947,'bigmez',6,3408,'0','0',0,0,0,0,50),(72948,'princessvink',5,3408,'0','0',38,67,0,0,3752),(72949,'Silent',4,3408,'M/CAR','98625',50,96,0,1,11565),(72950,'rudboy',3,3409,'0','0',0,0,0,0,50),(72951,'flo500',6,3409,'0','0',0,15,0,0,60),(72952,'gaara',7,3409,'0','0',0,8,0,0,50),(72953,'thelastdestroy',8,3409,'TLH-G','90459',80,142,0,0,45000),(72954,'Samix',10,3409,'0','0',0,0,0,0,50),(72982,'Bateau81',24,3410,'0','0',12,37,0,0,562),(72956,'LidealDivin',14,3409,'0','0',0,0,0,0,50),(72957,'nana17',17,3409,'0','0',0,0,0,0,50),(72958,'rifire',19,3409,'0','0',0,1,0,0,50),(72986,'rariprevo',17,3410,'0','0',0,0,0,0,50),(72959,'girudatsu',21,3409,'Black','100932',88,130,0,0,571301),(72960,'Dieu',23,3409,'0','0',0,6,0,0,50),(72961,'Ashuan',24,3409,'0','0',0,0,0,0,50),(72962,'damien008',27,3409,'ladef','90855',3,4,0,1,80),(72963,'bebs',30,3409,'0','0',0,0,0,0,50),(72968,'Kiody',40,3409,'croco','85258',25,66,0,0,12288),(72964,'cla62',32,3409,'0','0',0,4,0,0,71),(72965,'labestiole',34,3409,'0','0',0,0,0,0,50),(72966,'Gbmb',37,3409,'0','0',4,22,0,0,211),(72967,'MrMadsheep',38,3409,'0','0',0,2,0,0,50),(72969,'Abracadabra',42,3409,'0','0',0,1,0,0,50),(72970,'TROYEN078',44,3409,'0','0',0,0,0,0,50),(72971,'nounours',46,3410,'0','0',0,1,0,0,44),(72972,'Bsatek',45,3410,'0','0',0,1,0,0,50),(72973,'guy578',43,3410,'0','0',20,39,0,0,1000),(72974,'orme27',40,3410,'0','0',0,0,0,0,50),(72975,'alexandre33',38,3410,'0','0',0,0,0,0,50),(72976,'Yeying',36,3410,'P.T','84221',91,150,0,0,256800),(72977,'Parsezt04',34,3410,'DbA','64225',96,169,0,0,150000),(72978,'Chara',31,3410,'0','0',0,1,0,0,50),(72979,'dudultux',30,3410,'Ombre','94717',107,163,0,0,165573),(72980,'gergerdu73',27,3410,'0','0',2,12,0,0,168),(72981,'dr_fab',26,3410,'0','0',36,85,0,0,4849),(72985,'titi972',18,3410,'0','0',0,1,0,0,50),(72983,'Diamonds',23,3410,'0','0',0,4,0,0,80),(72984,'KOMAT89',21,3410,'Aire','22168',110,198,0,0,2345338),(72987,'thelastrazio',14,3410,'TLH-G','90541',55,112,0,0,70801),(72988,'nat0750',11,3410,'0','0',4,30,0,0,95),(72989,'leloup67370',10,3410,'0','0',0,7,0,0,96),(72990,'robin38610',7,3410,'rob','95015',68,130,0,0,228842),(72991,'kamsam',4,3410,'0','0',0,0,0,0,50),(73017,'SCRE4M',47,3412,'0','0',0,0,0,0,50),(72992,'anikitta12',3,3411,'0','0',0,0,0,0,50),(72993,'CHEMOUNY',4,3411,'0','0',0,0,0,0,50),(72994,'Bluepoppy',6,3411,'0','0',0,2,0,0,50),(72995,'TawZ',8,3411,'0','0',0,0,0,0,50),(72996,'Clem34',9,3411,'-AA-','98866',0,3,0,0,60),(72997,'Daskill',11,3411,'0','0',0,6,0,0,84),(72998,'formino',14,3411,'0','0',0,0,0,0,50),(72999,'cedric3000',17,3411,'0','0',0,0,0,0,50),(73000,'tifftiff',19,3411,'0','0',0,1,0,0,50),(73026,'rubyCoquine5',34,3412,'0','0',0,0,0,0,50),(73001,'LaFourmisSage',20,3411,'0','0',14,46,0,1,164),(73002,'Pam_Pam',21,3411,'AR','90553',0,0,0,0,50),(73003,'ange_de_la_mort',24,3411,'0','0',0,3,0,0,45),(73004,'tibouch974',26,3411,'0','0',0,0,0,0,50),(73005,'Mike-Aswad',27,3411,'0','0',0,5,0,0,47),(73006,'rend',30,3411,'0','0',0,0,0,0,50),(73007,'Edthekiller',33,3411,'0','0',0,0,0,0,50),(73012,'kirry',41,3411,'0','0',0,4,0,0,50),(73008,'ruru10',34,3411,'0','0',8,18,0,0,96),(73009,'rezrez',37,3411,'0','0',0,0,0,0,50),(73010,'Talekame',38,3411,'SPQR','93004',107,167,0,0,423170),(73011,'Helys',40,3411,'P.T','98225',76,131,0,0,368447),(73015,'cornedehibou',45,3411,'0','0',86,150,0,0,90000),(73013,'CptSpaulding',42,3411,'-DR-','91172',111,187,0,0,124837),(73014,'ilang',43,3411,'0','0',15,38,0,1,796),(73016,'sixel',46,3411,'Once','100643',50,124,0,0,24239),(73018,'Zapdespi0n.com',46,3412,'0','0',4,37,0,1,234),(73019,'Gilwalker',44,3412,'0','0',0,0,0,0,50),(73021,'kensuke',42,3412,'UUPER','98575',56,115,0,0,22528),(73022,'Maleek',41,3412,'0','0',0,0,0,0,50),(73023,'nygerz',40,3412,'P.T','84221',97,177,0,0,964454),(73024,'termitealex',38,3412,'P.T','84219',78,148,0,0,600000),(73025,'Fourmifion',37,3412,'DbA','64097',105,161,0,0,751157),(73044,'azoth666',3,3413,'0','0',72,145,0,0,76020),(73027,'petitefourmis25',32,3412,'ladef','90855',2,7,0,1,50),(73047,'miellat34',10,3413,'L.C.F','45257',13,38,0,0,1256),(73028,'Liyaahxhc',30,3412,'0','0',0,2,0,0,50),(73055,'NuterraSama',31,3413,'LCDM/','93451',72,121,0,0,60000),(73029,'Oneill',27,3412,'0','0',0,1,0,0,50),(73030,'loganhelin',25,3412,'0','0',41,75,0,0,3200);
A120: /*!40000 ALTER TABLE `BDDJoueurs` ENABLE KEYS */;
A121: UNLOCK TABLES;
A123: --
A124: -- Table structure for table `BDDJoueurs_colonies`
A125: --
A127: DROP TABLE IF EXISTS `BDDJoueurs_colonies`;
A128: /*!40101 SET @saved_cs_client = @@character_set_client */;
A129: /*!40101 SET character_set_client = utf8 */;
A130: CREATE TABLE `BDDJoueurs_colonies` (
A131: `IDEsclave` int(11) NOT NULL,
A132: `IDColon` int(11) NOT NULL
A133: ) ENGINE=MyISAM DEFAULT CHARSET=latin1;
A134: /*!40101 SET character_set_client = @saved_cs_client */;
A136: --
A137: -- Dumping data for table `BDDJoueurs_colonies`
A138: --
A140: LOCK TABLES `BDDJoueurs_colonies` WRITE;
A141: /*!40000 ALTER TABLE `BDDJoueurs_colonies` DISABLE KEYS */;
A147: /*!40000 ALTER TABLE `BDDJoueurs_colonies` ENABLE KEYS */;
A148: UNLOCK TABLES;
A150: --
A151: -- Table structure for table `diplomatie`
A152: --
A154: DROP TABLE IF EXISTS `diplomatie`;
A155: /*!40101 SET @saved_cs_client = @@character_set_client */;
A156: /*!40101 SET character_set_client = utf8 */;
A157: CREATE TABLE `diplomatie` (
A158: `alliance1` varchar(60) CHARACTER SET utf8 NOT NULL DEFAULT '',
A159: `alliance2` varchar(60) CHARACTER SET utf8 NOT NULL DEFAULT '',
A160: `relation` varchar(15) NOT NULL DEFAULT '',
A161: PRIMARY KEY (`alliance1`,`alliance2`),
A162: KEY `ind_relation1` (`alliance1`(5),`relation`(2)),
A163: KEY `ind_relation2` (`alliance2`(5),`relation`(2))
A164: ) ENGINE=MyISAM DEFAULT CHARSET=latin1;
A165: /*!40101 SET character_set_client = @saved_cs_client */;
A167: --
A168: -- Dumping data for table `diplomatie`
A169: --
A171: LOCK TABLES `diplomatie` WRITE;
A172: /*!40000 ALTER TABLE `diplomatie` DISABLE KEYS */;
B174: -VI-','guerre'),('M-M','six','paix'),('six','M-M','paix'),('LCDFV','BDB','paix'),('BDB','chupa','paix'),('BDB','LCDFV','paix'),('TD','TLMEC','guerre'),('TD','TSAR3','guerre'),('TD','VEMR','guerre'),('TD','vinc','guerre'),('M-M','E.L.P','paix'),('crs','crs
C175: SEC0','paix'),('ODN','-XP-','guerre'),('happy','M.U.F','guerre'),('LDDN','drago','paix'),('PRS','B-A-H','paix'),('PRS','EUF','paix'),('colos','-LDE-','paix'),('fo-ur','FNOZ','paix'),('alk1','-LAG-','paix'),('va','seul','paix'),('va','L.I.G','paix'),('va','ADFR','paix'),('va','ESM','paix'),('WTZ','/PC/','paix'),('WTZ','ADJ','paix'),('WTZ','C.N','paix'),('WTZ','GERFO','paix'),('WTZ','L.C.F','paix'),('WTZ','les-6','paix'),('WTZ','LRS','paix'),('WTZ','MLN','paix'),('WTZ','naavi','paix'),('Udie','LEFzz','paix'),('WTZ','power','paix'),('WTZ','T-A','paix'),('WTZ','Aire','paix'),('LGA','DbA','paix'),('M.U.F','WTZ','paix'),('LMDNY','-LFC-','paix'),('LGDD','Aire','paix'),('LDDN','LDVC','paix'),('-ATR-','D-d-E','paix'),('LUNA','LCDM/','paix'),('LMDNY','-Ddo','paix'),('FT2','FT2','paix'),('FT2','Aire','paix'),('FT2','-BES-','paix'),('FT2','MK','paix'),('M/CAR','-LFL-','paix'),('LCD','ladef','paix'),('-RT-','naawi','guerre'),('ONE','LUNA','paix'),('_OwO_','NOTIK','paix'),('Aire','LGDD','paix'),('-PAX-','-PAX-','paix'),('LLG','GLX','paix'),('-LFL-','M/CAR','paix'),('EUF','naavi','paix'),('F.E.','FDB','paix'),('F.E.','FBB','paix'),('TFC','dksd','paix'),('YAMA','HELLRAISER','guerre'),('PFE','anony','guerre'),('EUF','Ombre','paix'),('Aire2','Aire2','paix'),('amb','ig','paix'),('-PAX-','RCZ','paix'),('ADFR','A-rch','paix'),('Givre','C-L','paix'),('amb','lb','paix'),('-ZBZ-','PlayUp','paix'),('B-S-P','NZO','paix'),('LFP','LCDA','paix'),('GR','-LGB-','guerre'),('LPA','LCM','paix'),('RDS','SHO','paix'),('SHO','RDS','paix'),('ig','amb','paix'),('LABO','afzzz','paix'),('L-PHX','LFO','paix'),('lfv','','paix'),('Aire','-LL-','paix'),('VN5','ECO6','guerre'),('B-A-H','8O','guerre'),('LMDNY','LUNA','paix'),('AOF','SOLOS','paix'),('TRIED','lBl','paix'),('LCDM/','LLG','paix'),('IRON','IRON','paix'),('AKI','Ombre','paix'),('amb','AMX','paix'),('power','C-L','paix'),('-LFU-','WEED.','guerre'),('Mere','-CD-','guerre'),('-ACA-','MK','guerre'),('UUPER','Aire2','paix'),('-ZBZ-','PlayUp(-DP-)','paix'),('LDDNY','Aire ','paix'),('DIY','UUPER','paix'),('C-L','power','paix'),('DLT','rob','paix'),('HOTD','C-L','paix'),('MK','_MK_','guerre'),('C-L','HOTD','paix'),('C-L','IRON','paix'),('SP13','LMDNY','paix'),('MK','-ACA-','guerre'),('-ATR-','-LJ-','paix'),('WTZ','happy','guerre'),('_666_','Givre','paix'),('S.M.','ig','paix'),('RAG','DLT','paix'),('LMDNY','LMDNY ','paix'),('L.D.V','K.O','paix'),('Mere','lne','guerre'),('-RT-','HOTD','guerre'),('ASM','HYYP','guerre'),('WOSI','Lion','paix'),('Lion','WOSI','paix'),('Givre','LORD','paix'),('-ATR-','SOLOS','paix'),('SOLOS','-ATR-','paix'),('SOLOS','--o--','paix'),('SOLOS','fight','paix'),('-LJ-','-ATR-','paix'),('Udie','DDT','paix'),('PFE','AITD','guerre'),('PFE','-DLL-','guerre'),('Ombre','AKI','paix'),('LMDNY','bspp','paix'),('LCDM/','L-B-C','paix'),('VN5','USA','guerre'),('Aire','Z51','paix'),('Aire','-DN-','paix'),('EUF','LUNA','paix'),('JFP','LDDN','paix'),('LUNA','EUF','paix'),('ADFDF','adn','guerre'),('bspp','Yoshi','paix'),('_OwO_','LUNA','paix'),('LUNA','PMM','paix'),('JFP','bspp','paix'),('-RT-','-RT-','guerre'),('bspp','JFP','paix'),('lel','zbz','paix'),('VN5','EC06','guerre'),('WAAGH','NOTIK','paix'),('bspp','-ZBZ-','paix'),('bspp','LMDNY','paix'),('RSKP','B-A-H','paix'),('afzzz','LABO','paix'),('bspp','S.M.','paix'),('Lion','WAAGH','paix'),('WAAGH','Lion','paix'),('B-A-H','RSKP','paix'),('L.S.D','L.C.F','paix'),('CAF','SACRE','paix'),('WAAGH','FDR','paix'),('ESM','Mere','paix'),('-my-','amb','paix'),('amb','-my-','paix'),('FDR','WAAGH','paix'),('GAIAZ','Naavi','paix'),('amb','BONZ','paix'),('EPT','OMD','paix'),('amb','BUK','paix'),('amb','U-F-S','paix'),('HdB','-PAX-','paix'),('BaBa','U-F-S','paix'),('U-F-S','amb','paix'),('ig','SOLOS','paix'),('-RT-','TFID','guerre'),('IRON','HOTD','paix'),('IRON','NFF','paix'),('IRON','-GLX-','paix'),('_OwO_','EXCEL','paix'),('IRON','PXG','paix'),('S.M.','xmen','paix'),('C-L','A-L','paix'),('-GLX-','IRON','paix'),('amb','BF-','paix'),('amb','ATOM','paix'),('amb','ASM','paix'),('amb','Asi','paix'),('amb','ASF','paix'),('amb','Arene','paix'),('ig','-CT-','paix'),('-LE-','JFP','paix'),('AJT','CN67','paix'),('COUCA','LFO','paix'),('YAMA','LFR','guerre'),('Udie','-LLG-','paix'),('ZzZ','-PAX-','paix'),('RS','-LF-','paix'),('TFID','impl','guerre'),('heros','power','paix'),('VN5','-BES-','guerre'),('LAI','L.F.P','guerre'),('OMD','-LLG-','paix'),('U-F-S','U-F-S','paix'),('LMDNY','U-F-S','paix'),('U-F-S','LMDNY','paix'),('--F--','JFP','paix'),('UUPER','U-F-S','paix'),('U-F-S','UUPER','paix'),('LOGE','L-PHX','guerre'),('LFP','LM','paix'),('SPLIF','A-rch','guerre'),('-GLX-','LUNA','paix'),('-PAX-','BONZ','paix'),('-PAX-','HdB','paix'),('-PAX-','M.U.F','paix'),('-PAX-','va','paix'),('BONZ','-PAX-','paix'),('M.U.F','-PAX-','paix'),('UUPER','-LPI-','paix'),('-ZBZ-','naawi','paix'),('-my-','bspp','paix'),('lrf','GANJA','paix'),('lrf','ONE','paix'),('L.L','_CD_','guerre'),('LAI','ls73','paix'),('lel','K.O','paix'),('xmen','xmen','paix'),('SOLOS','LIFG','paix'),('A-rch','SPLIF','guerre'),('xmen','S.M.','paix'),('-XP-','U-F-S','guerre'),('INC','-LF-','paix'),('ig','S.M.','paix'),('ig','-my-','paix'),('LUNA','afzzz','paix'),('EAV','LOGE','paix'),('LDDNY','LDDNY','paix'),('LMDL','WT','paix'),('ZzZ','-LLG-','paix'),('-LFR-','THEMA','paix'),('UUPER','RS','paix'),('lel','LFQF','paix'),('lel','MAP','paix'),('SDF','_OwO_','paix'),('-RA-','TFID','guerre'),('SOLOS','ig','paix'),('RS','HEX','paix'),('RS','10','paix'),('RS','/PC/','paix'),('RS','UUPER','paix'),('RS','KiRi.','paix'),('LUNA','-GLX-','paix'),('LALR','-RU-','paix'),('ADFDF','-TDF-','paix'),('colos','Aire','paix'),('-LLG-','ZzZ','paix'),('K.O','lel','paix'),('M/CAR','X.X','paix'),('-LL-','Aire','paix'),('SOLOS','A.o.f','paix'),('ig','M.U.F','paix'),('EAV','L-PHX','guerre'),('SP13','ONE','paix'),('SP13','GANJA','paix'),('-GLX-','M.U.F','paix'),('DbA','-GLX-','paix'),('Once','LBDD','paix'),('lrf','--F--','paix'),('-GLX-','DbA','paix'),('JFP','--F--','paix'),('-my-','ig','paix'),('ls73','ncf','paix'),('-RT-','UUPER','guerre'),('M.U.F','ig','paix'),('lrf','-o-','paix'),('L.A.D','armac','paix'),('_OwO_','SDF','paix'),('heros','M/CAR','guerre'),('SDF','Mere','guerre'),('-FD-','Crou','guerre'),('S.A','TRV','paix'),('NOTIK','iglr','paix'),('M/CAR','heros','guerre'),('-LPI-','LGDD','paix'),('LMDL','LBDD','paix'),('PMM','LGDD','paix'),('-LPI-','UUPER','paix'),('-LPI-','DWAW','paix'),('ewan1','EXCEL','paix'),('SPDLI','jfp','paix'),('Aire','-PAX-','paix'),('-ZBZ-','lel','paix'),('UUPER','-RT-','guerre'),('XBOX','teamfourmizzzzzzzzzzzz','guerre'),('PMM','LUNA','paix'),('ls73','','paix'),('I.F','RP','guerre'),('ls73','lai','paix'),('BaBa','LMDNY','paix'),('PMM','NFF','paix'),('UTP','Givre','paix'),('-LPI-','DP','paix'),('FYT','Pius','guerre'),('F.E.','','guerre'),('F.E.','oO','paix'),('F.E.','00001','paix'),('F.E.','hoho','paix'),('F.E.','Z.Z.Z','paix'),('-LRD-','KH','paix'),('Biz','Couca','paix'),('lfv','NFF','paix'),('NFF','lfv','paix'),('-FD-','scbk','guerre'),('AOF','FDD','paix'),('Lion','lrf','paix'),('B-A-H','bes ','paix'),('B-A-H','-BES- | D175: ','paix'),('B-A-H','-BES-','paix'),('Angel','Angel','paix'),('BaBa','M.U.F','paix'),('XBOX','Les robin des bois','paix'),('XBOX','-BES-','paix'),('XBOX','noobs','paix'),('impl','TFID','guerre'),('l.c.n','C-L','paix'),('ls73','BONZ','paix'),('l.c.n','0','guerre'),('l.c.n','l.c.n','paix'),('l.c.n',' | E175: -BES-','paix'),('l.c.n','Aire','paix'),('BONZ','ls73','paix'),('Z51','Aire','paix'),('Z51','LPA','paix'),('V-J-R','JFP','paix'),('VN5','MK','guerre'),('VN5','','paix'),('VN5','-RA-','guerre'),('VN5','ODT','guerre'),('VN5','ZEN','guerre'),('VN5','FYT','gue | F175: CRIMSON DAGGERS','paix'),('LMDNY','LALR','paix'),('LALR','LMDNY','paix'),('lel','TRIED','paix'),('LFOF','CLOSE','paix'),('_OwO_','LEFzz','paix'),('EXCEL','FDR','paix'),('LCT','','paix'),('-LGB-','ast','paix'),('impl','VIKTOR','guerre'),('M.U.F','-GLX-','paix'),('M.U.F','BaBa','paix'),('M.U.F','GERFO','paix'),('M.U.F','L-R-R','paix'),('M.U.F','lfg','paix'),('-ZBZ-','LMDNY','paix'),('TRV','A-L','paix'),('UUPER','_BES_','paix'),('BONZ','UUPER','paix'),('JFP','LP','paix'),('_CD_','L.L','paix'),('SDF','COUCA','guerre'),('Udie','BES','guerre'),('-LGB-','','paix'),('BLS','BORG','paix'),('-LGB-','tlt','paix'),('DWV','','paix'),('Udie','-AIRE-','paix'),('LP','JFP','paix'),('LCDM/','LTDM','paix'),('-RT-','LCMs','guerre'),('-RT-','lcdm','guerre'),('-RT-','LCDM/','guerre'),('Sith','sisi','paix'),('impl','_CD_','paix'),('lrf','','paix'),('300','LDDNY','guerre'),('TRIED','lel','paix'),('LGDF','LFP','paix'),('T.C','SDF','guerre'),('-AA-','-WA-','paix'),('JFP','XXX','paix'),('ADFDF','ddf','paix'),('X.X','M/CAR | G175: Madagascar','paix'),('EPT','-ATR-','paix'),('LFP','LGDF','paix'),('WET','GAIA','paix'),('LGDF','Pacifiques','paix'),('NCF','ls73','paix'),('LFP','','paix'),('-CDD-','IDM','paix'),('-CDD-','LMDNY','paix'),('LGDF','H.G.','paix'),('IDM','-CDD-','paix'),('IDM','LALR','paix'),('LMDNY','IDM','paix'),('IDM','LMDNY','paix'),('LALR','IDM','paix'),('impl','pfe','paix'),('LSM','IDM','paix'),('TFID','HYYP','guerre'),('LAME','LUNA','paix'),('-LLG-','U-F-S','paix'),('LUNA','LAME','paix'),('TRID','sbf','guerre'),('WAIAZ','GAIAZ','paix'),('-CT-','ig','paix'),('UUPER','bonz','paix'),('L.CS','L-F-E','paix'),('PFXM','bonz','paix'),('6001','JFP','guerre'),('power','heros','paix'),('LMDNY','-AA-','paix'),('-AA-','LMDNY','paix'),('Aire','PMM','paix'),('LMDNY','-ZBZ-','paix'),('None','chupa','guerre'),('NCF','-CDD-','paix'),('LABO','DbA','paix'),('-XP-','LGDD','guerre'),('_CD_','impl','paix'),('-LGB-','SECO','paix'),('ADFR','death','guerre'),('B-A-H','8O | H175: ','paix'),('Lion','TFID','paix'),('colos','guere','paix'),('colos','-BES-','paix'),('colos','-RA-','paix'),('colos','colos','paix'),('colos','COMPA','paix'),('colos','Rooi','paix'),('LALR','Black','paix'),('Black','LALR','paix'),('M/CAR','Hm','guerre'),('LALR','colos','paix'),('LEFzz','W','paix'),('LMDNY','LFP','paix'),('EXCEL','iron','paix'),('B-A-H',' 80','paix'),('300','CELTE','paix'),('LALR','LCDM/','paix'),('VN5','aire','guerre'),('LLG','LCDM/','paix'),('EXCEL','LMDL','paix'),('LCDM/','LALR','paix'),('LFP','LMDNY','paix'),('va','LALR','paix'),('va','nawi','paix'),('va','naawi','paix'),('LALR','va','paix'),('LMDL','-DP-','paix'),('LEFzz','Udie','paix'),('L-R-R','IRON WARRIORS','paix'),('L-R-R','IRON','paix'),('_CD_','RDS','paix'),('CII','LUNA','paix'),('CII','Meute','paix'),('HUNS','HYPE','paix'),('HUNS','guere','guerre'),('DOL','OMD','paix'),('OMD','OMD','paix'),('OMD','DOL','paix'),('RS','RS','paix'),('-BV-','-BES- | I175: ','paix'),('-BV-','MK | J175: ','paix'),('-BV-','Bassist\'s Egyptian Slap','paix'),('FLOP','-VI-','guerre'),('colos','LALR','paix'),('NCF','Is73','paix'),('NCF','L.CS','paix'),('naawi','afzzz','paix'),('afzzz','naawi','paix'),('DA','-WA-','paix'),('-WA-','DA','paix'),('LMDL','DP','paix'),('LQE','LMDNY','paix'),('SPA','Meute','guerre'),('-WA-','LQE','paix'),('LQE','-WA-','paix'),('LMDNY','LBDD','paix'),('-XP-','UUPER','guerre'),('TN','TRID','paix'),('m.m.a','LAI','paix'),('-LGB-','WTA','paix'),('-LGB-','GR','paix'),('K.O','L.D.V','paix'),('-AA-','LFE','paix'),('AJT','-KK-','paix'),('LALR','m.m.a','paix'),('LSM','EXCEL','paix'),('-RU-','LALR','paix'),('-KK-','AJT | K175: ','paix'),('LEFzz','_OwO_','paix'),('afzzz','TRID','paix'),('m.m.a','LALR','paix'),('WT','LBDD','paix'),('-LGB-','7301','paix'),('LMDNY','AoK','paix'),('AoK','Once','paix'),('LMDNY','WT','paix'),('L.D.V','AOF','paix'),('-WA-','LBDD','paix'),('IDM','LSM','paix'),('LBDD','-WA-','paix'),('LBDD','RS','paix'),('RS','LBDD','paix'),('LFO','LesPC','paix'),('RS','LQE','paix'),('LQE','RS','paix'),('EXCEL','LMDNY','paix'),('Once','AoK','paix'),('soc','-vi-','paix'),('FATE','L.CS','paix'),('afzzz','naavi','paix'),('afzzz','ombre','paix'),('croco','AFD','paix'),('DbA','afzzz','paix'),('ADLM','LCDM/','paix'),('JUIK','','guerre'),('afzzz','DbA','paix'),('LDDNY','LMDL','paix'),('LCDM/','ADLM','paix'),('LCDM/','Aire','paix'),('LCDM/','Aire2','paix'),('afzzz','LDDNY','paix'),('Ombre','afzzz','paix'),('OMD','LABO','paix'),('LABO','OMD','paix'),('WAAGH','La L&eacute;gion de Repos','paix'),('LEFzz','LMDNY','paix'),('mcry','LOGE','guerre'),('LOGE','LFO','paix'),('LFO','LOGE','paix'),('L.A.D','esm','guerre'),('MK','AITD','guerre'),('A-L','v.m','paix'),('-ZBZ-','LORD','paix'),('TRID','afzzz','paix'),('SPA','ETH','guerre'),('TRIED','K.O','paix'),('-BES-','BARCA','guerre'),('FRAT','les artificiers','paix'),('-WA-','','paix'),('FNOZ','L.I.B','paix'),('NC','RAGE','guerre'),('CN67','AJT','paix'),('nuage','GAIAZ','paix'),('-RU-','bvt','paix'),('LP','LCT','paix'),('LDDNY','afzzz','paix'),('BLS','CBORG','paix'),('ddf','adfdf','paix'),('ddf','-tdf-','paix'),('-LGB-','MW2','paix'),('300','-FD-','paix'),('LDDNY','-RU-','paix'),('peuff','','guerre'),('va','(LEFzz)','paix'),('va','LEFzz','paix'),('LDDNY','LBDD','paix'),('LEFzz','va','paix'),('LMDNY','LDDNY','paix'),('nuage','WAIAZ','paix'),('nuage','-art-','paix'),('nuage','LQE','paix'),('nuage','flop','paix'),('ADLM','NOTIK','paix'),('NOTIK','ADLM','paix'),('-TDF-','adn','guerre'),('-TDF-','ddf','paix'),('-LGB-','ccc','paix'),('-LGB-',' | L175: O_P','paix'),('AL-SP','L.CS','paix'),('THEMA','-LFR-','paix'),('ewan1','fourmi carnivore','paix'),('-GLX-','LABO','paix'),('-XP-','-LF-','guerre'),('Mere','tagle','guerre'),('ADT','coloniseur proffesionel','paix'),('ABA','Madoshis Knights','paix'),('LRS','OMD','paix'),('Mere','ESM','paix'),('-XP-','bla','guerre'),('LABO','-GLX-','paix'),('LALR','P.T','paix'),('P.T','LALR','paix'),('nuage','MK','paix'),('lrf','f','paix'),('CBORG','BLS','paix'),('OTLC','CELTE','paix'),('LUNA','LALR','paix'),('LP','naavi','paix'),('L.CS','FATE','paix'),('-RU-','LDDNY','paix'),('Sein','cok','paix'),('FLOP','taps','guerre'),('Aire','LDDNY','paix'),('-VI-','soc','paix'),('LCT','L-F-E','paix'),('LLDLN','ADJ','paix'),('LLDLN','D-d-E','paix'),('Freak','RSKP','guerre'),('LAI','Kiwi','guerre'),('Kiwi','LAI','guerre'),('CELTE','300','paix'),('AL-SP','','guerre'),('Zn','Zn','paix'),('LEFzz','Eld','paix'),('Eld','LEFzz','paix'),('A','-CDD-','paix'),('A','LVK','paix'),('A','Aire','paix'),('ewan1','MK','paix'),('ewan1','A','paix'),('ewan1','Aire','paix'),('ewan1','-LFR-','paix'),('_K_','-RU-','paix'),('LesGN','TLF','guerre'),('LesGN','lol','paix'),('ewan1','ewan1','paix'),('AA-F','HYYP','guerre'),('RSKP','Freak','guerre'),('AoK','LALR','paix'),('AoK','RP','paix'),('Aire','-LJ-','paix'),('-XP-','-PH-','guerre'),('Sein','WAR | M175: ','guerre'),('Sein',' | N175: Bassist\'s Egyptian Slap','guerre'),('Sein','L\'Alambic','guerre'),('Sein','La Vall&eacute;e des Rois | O175: ','guerre'),('Lion','impl','guerre'),('-LFR-','300','paix'),('300','-LFR-','paix'),('-LLG-','-RU-','paix'),('impl','Lion','guerre');
A176: /*!40000 ALTER TABLE `diplomatie` ENABLE KEYS */;
A177: UNLOCK TABLES;
A179: --
A180: -- Table structure for table `BDDJoueurs_alliance`
A181: --
A183: DROP TABLE IF EXISTS `BDDJoueurs_alliance`;
A184: /*!40101 SET @saved_cs_client = @@character_set_client */;
A185: /*!40101 SET character_set_client = utf8 */;
A186: CREATE TABLE `BDDJoueurs_alliance` (
A187: `nom` varchar(100) COLLATE latin1_german2_ci NOT NULL DEFAULT '',
A188: `tag` varchar(10) COLLATE latin1_german2_ci NOT NULL DEFAULT '',
A189: `nbMembres` int(11) DEFAULT '0',
A190: `scoreTerrain` bigint(20) NOT NULL DEFAULT '0',
A191: `scoreTechnologie` int(11) NOT NULL DEFAULT '0',
A192: `scoreFourmiliere` int(11) NOT NULL DEFAULT '0',
A193: PRIMARY KEY (`tag`)
A194: ) ENGINE=MyISAM DEFAULT CHARSET=latin1 COLLATE=latin1_german2_ci;
A195: /*!40101 SET character_set_client = @saved_cs_client */;
A197: --
A198: -- Dumping data for table `BDDJoueurs_alliance`
A199: --
A201: LOCK TABLES `BDDJoueurs_alliance` WRITE;
A202: /*!40000 ALTER TABLE `BDDJoueurs_alliance` DISABLE KEYS */;
A206: the demons hell','demon',1,170,0,21),('LE MONDE HUNS','HUNS',3,33200,107,226),('MJPL','lpjm',1,100,1,21),('chien des enfers','cde',1,1000030,154,245),('DarkBlue','DKB',1,491520,132,217),('La communaut&Atilde;&copy; viking','LCV',1,986,14,16),('colo suce (colossus)','cs',1,38321,174,300),('Dans le Luc ...','-DLL-',1,129445,157,266),('ARTROPLORA','R.P',1,7974,63,105),('Monsieur Black','MBK',1,61143,187,325),('Les fourmis Simi&Atilde;&copy;sque','Fsq',1,150000,68,133),('Les Walking Dead','LWD',14,10413145,1570,2630),('Murky Ant Dark','MAD',4,126810,184,351),('aldhjfiodbhe','joe',1,170486,77,122),('INSTINCT','TRIED',6,13460885,767,1351),('Weezzz','V-J-R',1,600000,111,189),('en route pour la ban','erplb',1,86227,167,271),('Les Crois&Atilde;&copy;s de la Main Noire','LCMN',1,7979,61,105),('swiss','swiss',1,1560325,164,287),('La solitude','.S.',1,128712,126,223),('DSK vs SOUBRETTE','Hotel',1,1031836,157,255),('La faucheuse','HEL',1,305519,177,307),('La Rage du Peuple','RP',8,2831513,375,615),('patrouv&Atilde;&copy;','mjpl',1,20000,62,112),('La Replique Kamikaze','LRK',1,175551,164,282),('Fourmis~d\'&Atilde;&copy;lite','F.D.S',1,655060,136,236),('Le Bronx','L..B',1,60696,149,250),('Fourmi L&Atilde;&copy;gionnaire Du Sud ','FLDS',12,703958,720,1364),('Fourmizzz Spliff','FSP',1,123874,112,179),('- On The Desk -','-OTD-',4,883731,284,521),('La sieste','Dodo',1,1967483,176,284),('la zone','OYO',1,191254,148,236),('YKYMFK','YKYMF',1,443226,112,211),('SOUTH PARK APOCALYPTIQUE','SPA',24,1032799933,3950,6352),('TheLegendScream','TLS',4,116202,296,527),('Pas Se Prendre La Tete','PSPLT',1,402931,102,156),('le-retour','l-r',1,34687,144,243),('Les Passeurs D\'Ames','LPA',16,689166395,2465,4035),('habitant de la foret','hdlf',1,1464164,167,280),('L\'ordre mythique de d&Atilde;&copy;fense','OMD',20,2786352,963,1635),('Les fourmis extraterrestre ','fo-ur',1,9600,56,87),('los conquestadores','LO',2,1843012,184,305),('Kamikaze','KZ',3,7215610,512,857),('wati fourmis ','watiB',7,1195291,229,539),('Les Guerriers De l\'Espace','-GE-',5,884,19,89),('Psy4','Psyc',1,200255,169,270),('ERACTIA','A-C-A',2,78580,54,129),('The fourmizzz palace','TFP',1,981286,141,239),('I et V 35','35',1,510000,112,179),('Fourmilitaire','FMRT',3,1013960,164,363),('Les-Black-Cats','L-B-C',2,6730443,350,562),('Black Moon','Black',25,17346367,1751,2932),('Moi tout seul.','-MTS.',1,544040,122,229),('la horde Noire','HN',1,150000,102,177),('pirana','ney',1,6686,52,108),('les huns','lhs',2,371009,185,321),('Le CastelPillar','WTZ',11,14245480,812,1484),('le Fourmillion','XXX',1,75000,54,118),('Ad&Atilde;&uml;ptes des T&Atilde;&copy;n&Atilde;&uml;bres','ADT',3,1419840,289,504),('La ptite ville du moyen-age','V-M-A',1,15019,17,74),('Coffee Shop BZH','CSBZH',3,6464616,429,691),('Red Team','-RT-',1,655,52,86),('Sans Foi Ni Loi','SFNL',2,5711450,312,516),('La Taverne Du Lion D\'Or','Lion',26,59958942,2906,4914),('War Of Spirit','WOSI',5,41961,282,487),('Les L&Atilde;&copy;gendaires','-LL-',6,412551,154,361),('Echecs et Mat','EM',1,166720,107,223),('EazyPeT','EPT',4,258820,270,494),('Myrm&Atilde;&copy;cofourmis','Formi',1,70170,21,100),('GaLaXie','-GLX-',36,199532786,5202,8665),('Cervoise','CER',1,2660204,171,294),('New Order','NO',2,7722,60,118),('ELC amx ','AMX',7,1513098,504,945),('la famille r&Atilde;&copy;unie','lrf',3,121976,84,205),('Les Jeunes Fourmiziens','LJF18',1,223080,69,107),('l\'alliance tout tout-risque','-ATR-',69,27656075,4530,8484),('Le Journal','-LJ-',27,54343896,1858,3480),('Cafards','CAF',1,2984521,151,261),('Suna','5un4',1,10000,71,103),('Tueurs &Atilde;&nbsp; gages','-TaG-',2,48508,94,181),('le pays de Hyro','sb19',2,4600,31,93),('Vae Victis','VV',4,15809023,665,1104),('Les chevaliers de fourmizzz','-LCDF',2,54747,114,227),('Oups : Dead','O-D',1,532858,168,299),('Akatsuki','--A--',1,1521187,182,284),('Jemaimeetjassume','ILOVE',1,287895,104,202),('La Taverne de la Nouille','T-N',1,5176316,153,261),('union des fourmis soldat ','U-F-S',6,3951069,614,1083),('MASTERZ','MAZ',2,2300,14,79),('les raclures','R-A-C',5,306841,430,727),('Le serveur le moins utile : s3','Z-Z-Z',1,86579,99,157),('Eagle','Ea',1,179281,157,263),('Airsoft et Paintball','-AP-',2,2629,9,63),('Les Bouloutes De Dofus','LBDD',5,2357,43,112),('La Cit&Atilde;&copy;e des T&Atilde;&copy;n&Atilde;&uml;bres','LCT',12,77900092,1617,2725),('Etendard au vent','EAV',1,2702136,182,299),('VMAX 2000','000',1,98419,143,225),('Les gentils bisounours','-LGB-',3,2340003,458,758),('Alliance Exp&Atilde;&copy;rimentale','AE',1,5287586,152,250),('les fourmis noires','pto',1,20000,48,85),('Dark fourmizzz','DF',1,7500,29,56),('Les Pingoins Infernale ','-LPI-',8,3383321,527,1025),('bambouxxx','BBX',3,20300,75,145),('Alliance des Dorylinae','A-D',2,2301600,159,276),('13','13',1,1874613,161,275),('LesDieuxDeFourmizzz','DF67',3,175900,197,351),('coloniseur proffesionel','colos',10,1732037,456,1007),('aile de phoenix','-ADP-',4,640745,92,230),('monster','sisi',14,5882239,1182,2068),('S&Atilde;&copy;rial Killer','-SK-',1,231751,116,211),('joker','junk',1,1468864,98,147),('Le gang des fourmizzziens','LGDF',5,60477,133,310),('mercennarye','mcry',1,433173,144,235),('Kingdom Hearts','-KH-',1,183,0,14),('Zoneo','Zoneo',2,546007,203,375),('dfrgf','rffcd',1,230,5,24),('KJBC','KJBC',1,666,0,29),('stone','sto',1,218805,162,272),('Alliance Totocide','AL24',2,107877,167,274),('Dorylus Nigricans','-D-N-',2,10000,88,176),('195/45R17 91W','SSS',1,586921,178,296),('la matrice','xmx',4,3388329,357,620),('Alliance Active','-AA-',9,44979,163,370),('smashingmachine','KCDQ',2,32515,122,204),('Moi tout seul','Mts',1,2657899,139,227),('Hitman','Hm',3,79496,198,376),('alliance pour dragon ','apd',5,958873,152,341),('Groupe Academique InterArmeeZz','GAIAZ',31,210061226,4408,7293),('Les Magnifiques fourmis Folles','LMFF',1,2800,25,62),('THE MAGIX','THEMA',1,1101209,145,236),('MECHANT, JTE HAIS ! ','NANAL',1,-16496896,181,566),('Wilds Ants','-WA-',12,3910081,677,1284),('SI VIS PACEM PARA BELUM','SVPPB',2,9335790,334,572),('shadow of chernobyl','soc',2,1799903,358,605),('Colporteur Interdit Ici','CII',1,441280,156,254),('ELFE','ELFE',1,2141892,167,303),('Wing Academique InterArmeeZz','WAIAZ',20,58342528,2079,3559),('Academie Sith','Sith',1,2483509,184,296),('Les Fous du Volant','FdV',2,2355444,257,436),('Death Korps','DKS',9,417049,495,850),('The Dark Fourmi','-TDF-',2,1957,38,133),('Les fous','LFO',15,466896854,2375,3858),('LA TAVERNE DE DRACO','DRACO',1,205843,106,173),('La compagnie des menteurs','Lie',1,291377,56,95),('Blacks Vipers','-BV-',1,3034650,155,254),('Carton','Tips',1,168628,158,263),('La zen attitude','Lza',1,3146064,162,266),('Stay Inside','SI',1,1621047,91,173),('Les panth&Atilde;&uml;res des neiges','Once',9,258389,307,637),('Altherans','ODA',1,264091,138,239),('La Confr&Atilde;&copy;rie Noire','-CN-',5,8154978,625,1078),('Ga&Atilde;&macr;a','GAIA',4,7220550,726,1533),('akatsuki','nuage',3,12100,40,143),('LeToutPuissant','LTPu',1,100651,134,245),('Les Animaux Unis','-LAU-',6,978555,413,790),('No woman No cry..','NoCry',1,95596,131,224),('tournevis','TVS',1,1269043,170,285),('-Les Royaumes d\'Ulthuan-','-RU-',19,14692826,1772,2724),('Sons of H&Atilde;&copy;cate','FATE',1,10293057,154,270),('la democratie des fourmis','ddf',2,2911,43,92),('L\'ankou Breizh Angels','ABA',12,54503,174,447),('Cash','CASH',1,234149,98,160),('300','300',7,4563340,679,454),('Nique Le Chat','NLC',1,5401271,169,291),('adriland','super',1,2823,8,37),('MIZAR','-MIZ-',1,192,5,23),('Are You Not Untertained?','-Glad',1,240000,117,196),('AllianceSparte','AL-SP',22,9243102,726,1448),('&Acirc;&curren;','kuku',1,48935757,182,323),('tpmg','tpmg',3,22688,62,146),('peufffffffffffffffffffffffffff','peuff',1,268045,150,257),('anges de fourmizz','ewan1',4,40121,117,556),('Hyperion','hpr',1,307293,128,229),('Le loup solitaire','WOLF',1,348856,127,203),('Petit Bonbon Gitan','PBG',1,5678822,174,285),('Cauchemar D\'outres Tombe','CDT',2,779058,116,188),('les simpson','abc-l',1,61156,38,122),('Combat arms EU','CAEU',2,1860105,265,457),('Apple','A',6,368758,82,435),('&agrave;&reg;Å“ Songe &agrave;&reg;Å“','pense',3,818,0,37),('Amis avec convois','AAC',1,0,0,0),('Zone neutre ','Zn',1,0,3,2),('la lib&Atilde;&copy;ration des anges ','LDANG',2,32000,59,1);
A207: /*!40000 ALTER TABLE `BDDJoueurs_alliance` ENABLE KEYS */;
A208: UNLOCK TABLES;
A209: /*!40103 SET TIME_ZONE=@OLD_TIME_ZONE */;
A211: /*!40101 SET SQL_MODE=@OLD_SQL_MODE */;
A212: /*!40014 SET FOREIGN_KEY_CHECKS=@OLD_FOREIGN_KEY_CHECKS */;
A213: /*!40014 SET UNIQUE_CHECKS=@OLD_UNIQUE_CHECKS */;
A214: /*!40101 SET CHARACTER_SET_CLIENT=@OLD_CHARACTER_SET_CLIENT */;
A215: /*!40101 SET CHARACTER_SET_RESULTS=@OLD_CHARACTER_SET_RESULTS */;
A216: /*!40101 SET COLLATION_CONNECTION=@OLD_COLLATION_CONNECTION */;
A217: /*!40111 SET SQL_NOTES=@OLD_SQL_NOTES */;
A219: -- Dump completed on 2013-04-12 1:59:08

Sheet EXTRAC BDD (hidden)

Sheet Analyse BDD (hidden)
B1: NBCAR | E1: Pseudo | H1: Alliance | L1: x | N1: y
A2: ='EXTRAC BDD'!A4 -> (1,'Amrac',3,3,'test','97667',9,14,0,0,680) | B2: =LEN(A2) -> 43 | C2: =FIND("'",A2,1) -> 4 | D2: =FIND("'",A2,(1+C2))-1 -> 9 | E2: =RIGHT(LEFT(A2,D2),(D2-C2)) -> Amrac | F2: =FIND("'",A2,D2+2) -> 16 | G2: =FIND("'",A2,(1+F2))-1 -> 20 | H2: =RIGHT(LEFT(A2,G2),(G2-F2)) -> test | I2: =FIND(",",A2,1) -> 3 | J2: =FIND(",",A2,I2+1) -> 11 | K2: =FIND(",",A2,J2+1) -> 13 | L2: =RIGHT(LEFT(A2,(K2-1)),(K2-J2-1)) -> 3 | M2: =FIND(",",A2,K2+1) -> 15 | N2: =RIGHT(LEFT(A2,(M2-1)),(M2-K2-1)) -> 3
A3: ='EXTRAC BDD'!A5 -> (2,'Preem',1,4,'LOGE','7338',0,0,0,0,42) | B3: =LEN(A3) -> 40 | C3: =FIND("'",A3,1) -> 4 | D3: =FIND("'",A3,(1+C3))-1 -> 9 | E3: =RIGHT(LEFT(A3,D3),(D3-C3)) -> Preem | F3: =FIND("'",A3,D3+2) -> 16 | G3: =FIND("'",A3,(1+F3))-1 -> 20 | H3: =RIGHT(LEFT(A3,G3),(G3-F3)) -> LOGE | I3: =FIND(",",A3,1) -> 3 | J3: =FIND(",",A3,I3+1) -> 11 | K3: =FIND(",",A3,J3+1) -> 13 | L3: =RIGHT(LEFT(A3,(K3-1)),(K3-J3-1)) -> 1 | M3: =FIND(",",A3,K3+1) -> 15 | N3: =RIGHT(LEFT(A3,(M3-1)),(M3-K3-1)) -> 4
A4: ='EXTRAC BDD'!A6 -> (6,'valerius',9,4,'M.R','27766',81,127,0,0,456044) | B4: 50 | C4: 4 | D4: 12 | E4: valerius | F4: 19 | G4: 22 | H4: M.R | I4: 3 | J4: 14 | K4: 16 | L4: 9 | M4: 18 | N4: 4
A5: ='EXTRAC BDD'!A7 -> (9,'Truc',15,4,'OPO','86466',164,279,0,0,222715) | B5: 48 | C5: 4 | D5: 8 | E5: Truc | F5: 16 | G5: 19 | H5: OPO | I5: 3 | J5: 10 | K5: 13 | L5: 15 | M5: 15 | N5: 4
A6: ='EXTRAC BDD'!A8 -> (10,'jaouse',17,4,'L.I.G','83627',171,290,0,0,422922) | B6: 53 | C6: 5 | D6: 11 | E6: jaouse | F6: 19 | G6: 24 | H6: L.I.G | I6: 4 | J6: 13 | K6: 16 | L6: 17 | M6: 18 | N6: 4
A7: ='EXTRAC BDD'!A9 -> (12,'Xx-Cadenca-xX',19,4,'0','0',130,227,0,0,89337) | B7: 51 | C7: 5 | D7: 18 | E7: Xx-Cadenca-xX | F7: 26 | G7: 27 | H7: 0 | I7: 4 | J7: 20 | K7: 23 | L7: 19 | M7: 25 | N7: 4
A8: ='EXTRAC BDD'!A10 -> (14,'Bloodies',23,4,'T-LOL','29360',96,160,0,0,7002) | B8: 52 | C8: 5 | D8: 13 | E8: Bloodies | F8: 21 | G8: 26 | H8: T-LOL | I8: 4 | J8: 15 | K8: 18 | L8: 23 | M8: 20 | N8: 4
A9: ='EXTRAC BDD'!A11 -> (15,'chuba',24,4,'LPC','31183',136,228,0,0,59822) | B9: 49 | C9: 5 | D9: 10 | E9: chuba | F9: 18 | G9: 21 | H9: LPC | I9: 4 | J9: 12 | K9: 15 | L9: 24 | M9: 17 | N9: 4
A10: ='EXTRAC BDD'!A12 -> (17,'IGrec',30,4,'GenY','70985',136,230,0,0,156501) | B10: 51 | C10: 5 | D10: 10 | E10: IGrec | F10: 18 | G10: 22 | H10: GenY | I10: 4 | J10: 12 | K10: 15 | L10: 30 | M10: 17 | N10: 4
A11: ='EXTRAC BDD'!A13 -> (18,'thorek1991',32,4,'0','0',141,236,0,0,21668) | B11: 48 | C11: 5 | D11: 15 | E11: thorek1991 | F11: 23 | G11: 24 | H11: 0 | I11: 4 | J11: 17 | K11: 20 | L11: 32 | M11: 22 | N11: 4
A12: ='EXTRAC BDD'!A14 -> (19,'Zeref',34,4,'MK','93030',189,317,0,0,18476413) | B12: 51 | C12: 5 | D12: 10 | E12: Zeref | F12: 18 | G12: 20 | H12: MK | I12: 4 | J12: 12 | K12: 15 | L12: 34 | M12: 17 | N12: 4
A13: ='EXTRAC BDD'!A15 -> (20,'trucalling',37,4,'0','0',127,220,0,0,27245) | B13: 48 | C13: 5 | D13: 15 | E13: trucalling | F13: 23 | G13: 24 | H13: 0 | I13: 4 | J13: 17 | K13: 20 | L13: 37 | M13: 22 | N13: 4
A14: ='EXTRAC BDD'!A16 -> (23,'benouze',44,4,'0','0',111,222,0,0,8195) | B14: 44 | C14: 5 | D14: 12 | E14: benouze | F14: 20 | G14: 21 | H14: 0 | I14: 4 | J14: 14 | K14: 17 | L14: 44 | M14: 19 | N14: 4
A15: ='EXTRAC BDD'!A17 -> (24,'christheal',45,4,'TRID','1074',200,324,0,0,291953740) | B15: 58 | C15: 5 | D15: 15 | E15: christheal | F15: 23 | G15: 27 | H15: TRID | I15: 4 | J15: 17 | K15: 20 | L15: 45 | M15: 22 | N15: 4
A16: ='EXTRAC BDD'!A18 -> (25,'nolwenn',47,5,'0','0',116,192,0,0,57997) | B16: 45 | C16: 5 | D16: 12 | E16: nolwenn | F16: 20 | G16: 21 | H16: 0 | I16: 4 | J16: 14 | K16: 17 | L16: 47 | M16: 19 | N16: 5
A17: ='EXTRAC BDD'!A19 -> (29,'ANTIVIRIUS',37,5,'0','0',101,166,0,0,19437) | B17: 48 | C17: 5 | D17: 15 | E17: ANTIVIRIUS | F17: 23 | G17: 24 | H17: 0 | I17: 4 | J17: 17 | K17: 20 | L17: 37 | M17: 22 | N17: 5
A18: ='EXTRAC BDD'!A20 -> (31,'BlackWin',33,5,'0','0',173,288,0,0,120917) | B18: 47 | C18: 5 | D18: 13 | E18: BlackWin | F18: 21 | G18: 22 | H18: 0 | I18: 4 | J18: 15 | K18: 18 | L18: 33 | M18: 20 | N18: 5
A19: ='EXTRAC BDD'!A21 -> (32,'nanou80',31,5,'CHABB','1873',151,262,0,0,804934) | B19: 53 | C19: 5 | D19: 12 | E19: nanou80 | F19: 20 | G19: 25 | H19: CHABB | I19: 4 | J19: 14 | K19: 17 | L19: 31 | M19: 19 | N19: 5
A20: ='EXTRAC BDD'!A22 -> (33,'kerdi',29,5,'PAD','68881',115,203,0,0,175120) | B20: 50 | C20: 5 | D20: 10 | E20: kerdi | F20: 18 | G20: 21 | H20: PAD | I20: 4 | J20: 12 | K20: 15 | L20: 29 | M20: 17 | N20: 5
A21: ='EXTRAC BDD'!A23 -> (36,'alexhand',25,5,'RDS','71487',187,312,0,0,1784820) | B21: 54 | C21: 5 | D21: 13 | E21: alexhand | F21: 21 | G21: 24 | H21: RDS | I21: 4 | J21: 15 | K21: 18 | L21: 25 | M21: 20 | N21: 5
A22: ='EXTRAC BDD'!A24 -> (37,'bloodlusts',23,5,'0','0',136,229,0,0,15529) | B22: 48 | C22: 5 | D22: 15 | E22: bloodlusts | F22: 23 | G22: 24 | H22: 0 | I22: 4 | J22: 17 | K22: 20 | L22: 23 | M22: 22 | N22: 5
A23: ='EXTRAC BDD'!A25 -> (38,'casper',21,5,'-L-D-','96373',156,274,0,0,3011104) | B23: 54 | C23: 5 | D23: 11 | E23: casper | F23: 19 | G23: 24 | H23: -L-D- | I23: 4 | J23: 13 | K23: 16 | L23: 21 | M23: 18 | N23: 5
A24: ='EXTRAC BDD'!A26 -> (43,'gralaf',8,5,'GFA','11891',134,240,0,0,607964) | B24: 50 | C24: 5 | D24: 11 | E24: gralaf | F24: 18 | G24: 21 | H24: GFA | I24: 4 | J24: 13 | K24: 15 | L24: 8 | M24: 17 | N24: 5
A25: ='EXTRAC BDD'!A27 -> (44,'soli',6,5,'0','0',94,160,0,0,35405) | B25: 40 | C25: 5 | D25: 9 | E25: soli | F25: 16 | G25: 17 | H25: 0 | I25: 4 | J25: 11 | K25: 13 | L25: 6 | M25: 15 | N25: 5
A26: ='EXTRAC BDD'!A28 -> (45,'Nakwenda',4,5,'LOGE','7338',148,265,0,0,244816) | B26: 52 | C26: 5 | D26: 13 | E26: Nakwenda | F26: 20 | G26: 24 | H26: LOGE | I26: 4 | J26: 15 | K26: 17 | L26: 4 | M26: 19 | N26: 5
A27: ='EXTRAC BDD'!A29 -> (46,'maitre-marchombres',3,6,'-RA-','78364',174,295,0,0,182838877) | B27: 66 | C27: 5 | D27: 23 | E27: maitre-marchombres | F27: 30 | G27: 34 | H27: -RA- | I27: 4 | J27: 25 | K27: 27 | L27: 3 | M27: 29 | N27: 6
A28: ='EXTRAC BDD'!A30 -> (47,'killman',5,6,'TME','77797',137,253,0,0,277523) | B28: 51 | C28: 5 | D28: 12 | E28: killman | F28: 19 | G28: 22 | H28: TME | I28: 4 | J28: 14 | K28: 16 | L28: 5 | M28: 18 | N28: 6
A29: ='EXTRAC BDD'!A31 -> (49,'Gottferdom',9,6,'0','0',129,231,0,0,53826) | B29: 47 | C29: 5 | D29: 15 | E29: Gottferdom | F29: 22 | G29: 23 | H29: 0 | I29: 4 | J29: 17 | K29: 19 | L29: 9 | M29: 21 | N29: 6
A30: ='EXTRAC BDD'!A32 -> (51,'Inferno',11,6,'0','0',92,185,0,0,1687) | B30: 43 | C30: 5 | D30: 12 | E30: Inferno | F30: 20 | G30: 21 | H30: 0 | I30: 4 | J30: 14 | K30: 17 | L30: 11 | M30: 19 | N30: 6
A31: ='EXTRAC BDD'!A33 -> (52,'Slayer',12,6,'.....','73154',102,182,0,0,142115) | B31: 53 | C31: 5 | D31: 11 | E31: Slayer | F31: 19 | G31: 24 | H31: ..... | I31: 4 | J31: 13 | K31: 16 | L31: 12 | M31: 18 | N31: 6
A32: ='EXTRAC BDD'!A34 -> (53,'blade',15,6,'MK','93035',167,299,0,0,1150000000) | B32: 53 | C32: 5 | D32: 10 | E32: blade | F32: 18 | G32: 20 | H32: MK | I32: 4 | J32: 12 | K32: 15 | L32: 15 | M32: 17 | N32: 6
A33: ='EXTRAC BDD'!A35 -> (56,'tunturi',23,6,'-K-','62472',102,190,0,0,112890) | B33: 52 | C33: 5 | D33: 12 | E33: tunturi | F33: 20 | G33: 23 | H33: -K- | I33: 4 | J33: 14 | K33: 17 | L33: 23 | M33: 19 | N33: 6
A34: ='EXTRAC BDD'!A36 -> (58,'sangoku',27,6,'0','0',178,311,0,0,65959) | B34: 45 | C34: 5 | D34: 12 | E34: sangoku | F34: 20 | G34: 21 | H34: 0 | I34: 4 | J34: 14 | K34: 17 | L34: 27 | M34: 19 | N34: 6
A35: ='EXTRAC BDD'!A37 -> (60,'Guest_001',31,6,'61','6356',52,110,0,0,25492) | B35: 50 | C35: 5 | D35: 14 | E35: Guest_001 | F35: 22 | G35: 24 | H35: 61 | I35: 4 | J35: 16 | K35: 19 | L35: 31 | M35: 21 | N35: 6
A36: ='EXTRAC BDD'!A38 -> (61,'ben57',32,6,'-BES-','80633',182,312,0,0,149380852) | B36: 55 | C36: 5 | D36: 10 | E36: ben57 | F36: 18 | G36: 23 | H36: -BES- | I36: 4 | J36: 12 | K36: 15 | L36: 32 | M36: 17 | N36: 6
A37: ='EXTRAC BDD'!A39 -> (62,'Morphy',35,6,'-BES-','95336',155,264,0,0,1927950) | B37: 54 | C37: 5 | D37: 11 | E37: Morphy | F37: 19 | G37: 24 | H37: -BES- | I37: 4 | J37: 13 | K37: 16 | L37: 35 | M37: 18 | N37: 6
A38: ='EXTRAC BDD'!A40 -> (63,'poilofesse',38,6,'OPC','98771',174,287,0,0,1853910) | B38: 56 | C38: 5 | D38: 15 | E38: poilofesse | F38: 23 | G38: 26 | H38: OPC | I38: 4 | J38: 17 | K38: 20 | L38: 38 | M38: 22 | N38: 6
